Workbook

Sheet SOW
C1: EXCESS LIABILITY TRUST FUND SCOPE OF WORK State Form 51955 (R16 / 1-26) | G1: TO BE COMPLETED BY IDEM
G2: Date Approved (month/day/year) | I2: Macros must be enabled to use the form.
C3: Indiana Department of Environmental Management | G3: ="Incident Number #" &G33 -> Incident Number #
A5: INSTRUCTIONS: This is the form and format approved and required by the administrator to request a cost effectiveness of corrective action determination pursuant to IC 13-23-9-1.5(a) and 328 IAC 1-3-1.3. Once you have an approved Corrective Action Plan (CAP), this form is required if you are going to seek reimbursement from the Excess Liability Trust Fund (ELTF). This form may also be used to request a preapproval of work under 328 IAC 1-3-1.6.
A7: SECTION 1 - ELIGIBLE PARTY INFORMATION
A8: Name of Eligible Party (Corporation, Individual, Public Agency, or Other Entity) (Documentation may be required, see instructions.)
I9: =IF(OR(ISBLANK(A9)),"Blank","") -> Blank
A10: Mailing Address (number and street) | E10: City, State (Abbreviation), ZIP code
I11: =IF(OR(ISBLANK(A11),ISBLANK(E11)),"Blank","") -> Blank
A12: Name of Eligible Party Contact | E12: Eligible Party Contact Title | I12: =IF(OR(ISBLANK(A12),ISBLANK(E12)),"Blank","") -> 
I13: =IF(OR(ISBLANK(A13),ISBLANK(E13)),"Blank","") -> Blank
A14: Eligible Party Contact E-mail Address | E14: Eligible Party Contact Telephone Number (with area code)
I15: =IF(OR(ISBLANK(A15),ISBLANK(E15)),"Blank","") -> Blank | K15: =IF(AND(J11=TRUE, OR(J12=TRUE, J13=TRUE)), 0, "blank") -> blank
I16: =IF(OR(ISBLANK(H17),K16="Blank"),"Blank","") -> Blank | J16: FALSE | K16: =IF(AND(J16=FALSE,J17=FALSE),"Blank","") -> Blank
J17: FALSE
A19: SECTION 2 - CONSULTANT/AUTHORIZED AGENT INFORMATION (Optional)
A20: Business Name
I21: =IF(ISBLANK(A21),"Blank","") -> Blank | K21: =IF(ISBLANK(H22),H21,H22) -> 0
A22: Mailing Address (number and street)
I23: =IF(ISBLANK(A23),"Blank","") -> Blank | K23: =IF(AND(J23=FALSE,J24=FALSE),"Blank","") -> Blank
A24: City, State (Abbreviation), ZIP Code
I25: =IF(ISBLANK(A25),"Blank","") -> Blank
A26: Contact Name | E26: Contact Title | I26: =IF(OR(ISBLANK(A26),ISBLANK(#REF!)),"Blank","") -> 
I27: =IF(OR(ISBLANK(A27),ISBLANK(E27)),"Blank","") -> Blank
A28: Contact E-mail Address | E28: Contact Telephone Number (with area code)
I29: =IF(OR(ISBLANK(A29),ISBLANK(E29)),"Blank","") -> Blank | J29: FALSE
A31: SECTION 3 -SITE INFORMATION | J31: FALSE
A32: Facility Identification Number | D32: Name of Facility | G32: LUST Incident Number
I33: =IF(OR(ISBLANK(A33),ISBLANK(D33),ISBLANK(G33)),"Blank","") -> Blank | J33: FALSE
A34: Further Site Investigation Submittal Date (month/day/year) | D34: Corrective Action Plan Submittal Date (month/day/year) | J34: FALSE
I35: =IF(OR(ISBLANK(A35),ISBLANK(D35)),"Blank","") -> Blank
A36: SECTION 4 - SIGNATURE OF UST OWNER, UST OPERATOR, PROPERTY OWNER, AND/OR ATTORNEY IN FACT
A37: I swear or affirm to the best of my knowledge and belief that the costs presented herein represent costs that are appropriate and performed only as necessary to meet the cleanup objectives for the site. As part of this request, I swear or affirm that all charges presented as part of the projected work and projected costs are necessary to the performance of corrective action. Upon expiration of any right of review, I will be bound by the determination issued by the administrator. I also swear that I have not altered the calculations in this electronic form. I swear or affirm, under penalty of perjury as specified by IC 35-44.1-2-1 and other penalties specified by IC-30-10 and IC 13-23-9-6, that the statements and representations in this document are true, accurate, and complete. I also understand that all submitted information will be retained in the Virtual File Cabinet as a public record.
A39: Signature of UST Owner, UST Operator, Property Owner, or Attorney In Fact | F39: Date Signed (month/day/year)
A41: Print Name | F41: Title | H41: Company
I42: =IF(OR(ISBLANK(A42),ISBLANK(F42),ISBLANK(H42)),"Blank","") -> Blank
A43: If applicable, a copy of the signed Power of Attorney must also be attached. If the Power of Attorney has been modified or amended, a current copy must be attached. | I43: =IF(OR(I9="Blank",I11="Blank",I13="Blank",I15="Blank",I17="Blank",I21="Blank",I23="Blank",I25="Blank",I27="Blank",I29="Blank",I33="Blank",I35="Blank",I42="Blank"),"Please complete form before submittal.","") -> Please complete form before submittal.
A45: SECTION 5 - | B45: Preapproval of Costs for Remediation alternatives (Order alternatives in the preference desired.)
A46: Selection | B46: Description | F46: Cost | H46: Select for Preapproval of Work
A47: #1 | F47: =H92 -> 0
A48: #2 | F48: =H132 -> 0
A49: #3 | F49: =H172 -> 0
A50: #4 | F50: =H212 -> 0
A51: #5 | F51: =H252 -> 0
A52: Comments
A55: Selection #1 - SOW (itemized) | I55: Amt from SOW (itemized)
A56: SECTION 6 - SITE CHARACTERIZATION AND CAP DEVELOPMENT | H56: =SUM(H57:H61) -> 0 | I56: =SUM(I57:I61) -> 0
A57: ISC | C57: # of wells | I57: ='SOW (itemized)'!AJ6 -> 0
A58: FSI | C58: # of wells | I58: ='SOW (itemized)'!AJ7 -> 0
A59: ERC | I59: ='SOW (itemized)'!AJ8 -> 0
A60: Pilot Study | I60: ='SOW (itemized)'!AJ9 -> 0
A61: CAP Development or Applicable Report | I61: ='SOW (itemized)'!AJ10 -> 0
A62: Comments
I64: Amt from SOW (itemized)
A65: SECTION 7 - CAP IMPLEMENTATION | E65: Quantity | F65: Amt per event | H65: =SUM(H66:H72) -> 0 | I65: =SUM(I66:I72) -> 0
A66: Excavation | D66: # of tons | I66: ='SOW (itemized)'!AN6 -> 0
A67: Enhanced Bioremediation | D67: # of injection points | I67: ='SOW (itemized)'!AN7 -> 0
A68: Vac Event | D68: # of events | H68: =IF(ISBLANK(E68),"",E68*F68) ->  | I68: ='SOW (itemized)'!AN8 -> 0
A69: Remediation System | D69: # of years | I69: ='SOW (itemized)'!AN9 -> 0
A70: Remediation System Contingencies/Repairs | I70: ='SOW (itemized)'!AN10 -> 0
A71: Remediation System Rebuild | I71: ='SOW (itemized)'!AN10 -> 0
A72: CAP Implementation Report | I72: ='SOW (itemized)'!AN11 -> 0
A73: Comments
I75: Amt from SOW (itemized)
A76: SECTION 8 - MONITORING AND/OR REMEDIATION SYSTEM O&M | E76: Quantity | F76: Amt per event | H76: =SUM(H77:H82) -> 0 | I76: =SUM(I77:I82) -> 0
A77: Monitoring Routine | D77: # of events | H77: =IF(ISBLANK(E77),"",E77*F77) ->  | I77: ='SOW (itemized)'!AR6 -> 0
A78: O&M Routine | D78: # of events | I78: ='SOW (itemized)'!AR7 -> 0
A79: CAPR Reports | D79: # of reports | I79: ='SOW (itemized)'!AR8 -> 0
A80: Monitoring Annual | D80: # of events | I80: ='SOW (itemized)'!AR9 -> 0
A81: O&M Comprehensive | D81: # of events | I81: ='SOW (itemized)'!AR10 -> 0
A82: CAPR Reports | D82: # of reports | I82: ='SOW (itemized)'!AR11 -> 0
A83: Comments
I85: Amt from SOW (itemized)
A86: SECTION 9 - CLOSURE | H86: =SUM(H87:H89) -> 0 | I86: =SUM(I87:I89) -> 0
A87: Final NFA Report | I87: ='SOW (itemized)'!AU6 -> 0
A88: Remediation System Decommissioning | I88: ='SOW (itemized)'!AU8 -> 0
A89: Well Abandonment & Report | I89: ='SOW (itemized)'!AU10 -> 0
A90: Comments
A92: SECTION 10 - CLAIM PREPARATION AND FINAL COMMENTS | E92: 0 | F92: Grand Total | H92: =H56+H65+H76+H86+E92 -> 0 | I92: =I56+I65+I76+I86 -> 0
A95: Selection #2 - SOW (itemized) (2) | I95: Amt from SOW (itemized)
A96: SECTION 6 - SITE CHARACTERIZATION AND CAP DEVELOPMENT | H96: =SUM(H97:H101) -> 0 | I96: =SUM(I97:I101) -> 0
A97: ISC | C97: # of wells | I97: ='SOW (itemized) (2)'!$AJ$6 -> 0
A98: FSI | C98: # of wells | I98: ='SOW (itemized) (2)'!$AJ$7 -> 0
A99: ERC | I99: ='SOW (itemized) (2)'!$AJ$8 -> 0
A100: Pilot Study | I100: ='SOW (itemized) (2)'!$AJ$9 -> 0
A101: CAP Development or Applicable Report | I101: ='SOW (itemized) (2)'!$AJ$10 -> 0
A102: Comments
I104: Amt from SOW (itemized)
A105: SECTION 7 - CAP IMPLEMENTATION | E105: Quantity | F105: Amt per event | H105: =SUM(H106:H112) -> 0 | I105: =SUM(I106:I112) -> 0
A106: Excavation | D106: # of tons | I106: ='SOW (itemized) (2)'!$AN$6 -> 0
A107: Enhanced Bioremediation | D107: # of injection points | I107: ='SOW (itemized) (2)'!$AN$7 -> 0
A108: Vac Event | D108: # of events | H108: =IF(ISBLANK(E1088),"",E108*F108) ->  | I108: ='SOW (itemized) (2)'!$AN$8 -> 0
A109: Remediation System | D109: # of years | I109: ='SOW (itemized) (2)'!$AN$9 -> 0
A110: Remediation System Contingencies/Repairs | I110: 0
A111: Remediation System Rebuild | I111: ='SOW (itemized) (2)'!AN50 -> 0
A112: CAP Implementation Report | I112: ='SOW (itemized) (2)'!AN51 -> 0
A113: Comments | J113: FALSE
I115: Amt from SOW (itemized)
A116: SECTION 8 - MONITORING AND/OR REMEDIATION SYSTEM O&M | E116: Quantity | F116: Amt per event | H116: =SUM(H117:H122) -> 0 | I116: =SUM(I117:I122) -> 0
A117: Monitoring Routine | D117: # of events | H117: =IF(ISBLANK(E117),"",E117*F117) ->  | I117: ='SOW (itemized) (2)'!$AR6 -> 0
A118: O&M Routine | D118: # of events | I118: ='SOW (itemized) (2)'!$AR7 -> 0
A119: CAPR Reports | D119: # of reports | I119: ='SOW (itemized) (2)'!$AR8 -> 0
A120: Monitoring Annual | D120: # of events | I120: ='SOW (itemized) (2)'!$AR9 -> 0
A121: O&M Comprehensive | D121: # of events | I121: ='SOW (itemized) (2)'!$AR10 -> 0
A122: CAPR Reports | D122: # of reports | I122: ='SOW (itemized) (2)'!$AR11 -> 0
A123: Comments
I125: Amt from SOW (itemized)
A126: SECTION 9 - CLOSURE | H126: =SUM(H127:H129) -> 0 | I126: =SUM(I127:I129) -> 0
A127: Final NFA Report | I127: ='SOW (itemized) (2)'!$AU$6 -> 0
A128: Remediation System Decommissioning | I128: ='SOW (itemized) (2)'!$AU$8 -> 0
A129: Well Abandonment & Report | I129: ='SOW (itemized) (2)'!$AU$10 -> 0
A130: Comments
A132: SECTION 10 - Comments and Grand Total | H132: =H96+H105+H116+H126 -> 0 | I132: =I96+I105+I116+I126 -> 0
A135: Selection #3 - SOW (itemized) (3) | I135: Amt from SOW (itemized)
A136: SECTION 6 - SITE CHARACTERIZATION AND CAP DEVELOPMENT | H136: =SUM(H137:H141) -> 0 | I136: =SUM(I137:I141) -> 0
A137: ISC | C137: # of wells | I137: ='SOW (itemized) (3)'!$AJ6 -> 0
A138: FSI | C138: # of wells | I138: ='SOW (itemized) (3)'!$AJ$7 -> 0
A139: ERC | I139: ='SOW (itemized) (3)'!$AJ$8 -> 0
A140: Pilot Study | I140: ='SOW (itemized) (3)'!$AJ$9 -> 0
A141: CAP Development or Applicable Report | I141: ='SOW (itemized) (3)'!$AJ$10 -> 0
A142: Comments
I144: Amt from SOW (itemized)
A145: SECTION 7 - CAP IMPLEMENTATION | E145: Quantity | F145: Amt per event | H145: =SUM(H146:H152) -> 0 | I145: =SUM(I146:I152) -> 0
A146: Excavation | D146: # of tons | I146: ='SOW (itemized) (3)'!$AN$6 -> 0
A147: Enhanced Bioremediation | D147: # of injection points | I147: ='SOW (itemized) (3)'!$AN$7 -> 0
A148: Vac Event | D148: # of events | H148: =IF(ISBLANK(E148),"",E148*F148) ->  | I148: ='SOW (itemized) (3)'!$AN$8 -> 0
A149: Remediation System | D149: # of years | I149: ='SOW (itemized) (3)'!$AN$9 -> 0
A150: Remediation System Contingencies/Repairs | I150: 0
A151: Remediation System Rebuild | I151: ='SOW (itemized) (3)'!AN90 -> 0
A152: CAP Implementation Report | I152: ='SOW (itemized) (3)'!AN91 -> 0
A153: Comments
I155: Amt from SOW (itemized)
A156: SECTION 8 - MONITORING AND/OR REMEDIATION SYSTEM O&M | E156: Quantity | F156: Amt per event | H156: =SUM(H157:H162) -> 0 | I156: =SUM(I157:I162) -> 0
A157: Monitoring Routine | D157: # of events | H157: =IF(ISBLANK(E157),"",E157*F157) ->  | I157: ='SOW (itemized) (3)'!$AR6 -> 0
A158: O&M Routine | D158: # of events | I158: ='SOW (itemized) (3)'!$AR7 -> 0
A159: CAPR Reports | D159: # of reports | I159: ='SOW (itemized) (3)'!$AR8 -> 0
A160: Monitoring Annual | D160: # of events | I160: ='SOW (itemized) (3)'!$AR9 -> 0
A161: O&M Comprehensive | D161: # of events | I161: ='SOW (itemized) (3)'!$AR10 -> 0
A162: CAPR Reports | D162: # of reports | I162: ='SOW (itemized) (3)'!$AR11 -> 0
A163: Comments
I165: Amt from SOW (itemized)
A166: SECTION 9 - CLOSURE | H166: =SUM(H167:H169) -> 0 | I166: =SUM(I167:I169) -> 0
A167: Final NFA Report | I167: ='SOW (itemized) (3)'!$AU$6 -> 0
A168: Remediation System Decommissioning | I168: ='SOW (itemized) (3)'!$AU$8 -> 0
A169: Well Abandonment & Report | I169: ='SOW (itemized) (3)'!$AU$10 -> 0
A170: Comments
A172: SECTION 10 - Comments and Grand Total | H172: =H136+H145+H156+H166 -> 0 | I172: =I136+I145+I156+I166 -> 0
A175: Selection #4 - SOW (itemized) (4) | I175: Amt from SOW (itemized)
A176: SECTION 6 - SITE CHARACTERIZATION AND CAP DEVELOPMENT | H176: =SUM(H177:H181) -> 0 | I176: =SUM(I177:I181) -> 0
A177: ISC | C177: # of wells | I177: ='SOW (itemized) (4)'!$AJ$6 -> 0
A178: FSI | C178: # of wells | I178: ='SOW (itemized) (4)'!$AJ$7 -> 0
A179: ERC | I179: ='SOW (itemized) (4)'!$AJ$8 -> 0
A180: Pilot Study | I180: ='SOW (itemized) (4)'!$AJ$9 -> 0
A181: CAP Development or Applicable Report | I181: ='SOW (itemized) (4)'!$AJ$10 -> 0
A182: Comments
I184: Amt from SOW (itemized)
A185: SECTION 7 - CAP IMPLEMENTATION | E185: Quantity | F185: Amt per event | H185: =SUM(H186:H192) -> 0 | I185: =SUM(I186:I192) -> 0
A186: Excavation | D186: # of tons | I186: ='SOW (itemized) (4)'!$AN$6 -> 0
A187: Enhanced Bioremediation | D187: # of injection points | I187: ='SOW (itemized) (4)'!$AN$7 -> 0
A188: Vac Event | D188: # of events | H188: =IF(ISBLANK(E188),"",E188*F188) ->  | I188: ='SOW (itemized) (4)'!$AN$8 -> 0
A189: Remediation System | D189: # of years | I189: ='SOW (itemized) (4)'!$AN$9 -> 0
A190: Remediation System Contingencies/Repairs | I190: 0
A191: Remediation System Rebuild | I191: ='SOW (itemized) (4)'!AN130 -> 0
A192: CAP Implementation Report | I192: ='SOW (itemized) (4)'!AN131 -> 0
A193: Comments
I195: Amt from SOW (itemized)
A196: SECTION 8 - MONITORING AND/OR REMEDIATION SYSTEM O&M | E196: Quantity | F196: Amt per event | H196: =SUM(H197:H202) -> 0 | I196: =SUM(I197:I202) -> 0
A197: Monitoring Routine | D197: # of events | H197: =IF(ISBLANK(E197),"",E197*F197) ->  | I197: ='SOW (itemized) (4)'!$AR6 -> 0
A198: O&M Routine | D198: # of events | I198: ='SOW (itemized) (4)'!$AR7 -> 0
A199: CAPR Reports | D199: # of reports | I199: ='SOW (itemized) (4)'!$AR8 -> 0
A200: Monitoring Annual | D200: # of events | I200: ='SOW (itemized) (4)'!$AR9 -> 0
A201: O&M Comprehensive | D201: # of events | I201: ='SOW (itemized) (4)'!$AR10 -> 0
A202: CAPR Reports | D202: # of reports | I202: ='SOW (itemized) (4)'!$AR11 -> 0
A203: Comments
I205: Amt from SOW (itemized)
A206: SECTION 9 - CLOSURE | H206: =SUM(H207:H209) -> 0 | I206: =SUM(I207:I209) -> 0
A207: Final NFA Report | I207: ='SOW (itemized) (4)'!$AU$6 -> 0
A208: Remediation System Decommissioning | I208: ='SOW (itemized) (4)'!$AU$8 -> 0
A209: Well Abandonment & Report | I209: ='SOW (itemized) (4)'!$AU$10 -> 0
A210: Comments
A212: SECTION 10 - Comments and Grand Total | H212: =H176+H185+H196+H206 -> 0 | I212: =I176+I185+I196+I206 -> 0
A215: Selection #5 - SOW (itemized) (5) | I215: Amt from SOW (itemized)
A216: SECTION 6 - SITE CHARACTERIZATION AND CAP DEVELOPMENT | H216: =SUM(H217:H221) -> 0 | I216: =SUM(I217:I221) -> 0
A217: ISC | C217: # of wells | I217: ='SOW (itemized) (5)'!$AJ$6 -> 0
A218: FSI | C218: # of wells | I218: ='SOW (itemized) (5)'!$AJ$7 -> 0
A219: ERC | I219: ='SOW (itemized) (5)'!$AJ$8 -> 0
A220: Pilot Study | I220: ='SOW (itemized) (5)'!$AJ$9 -> 0
A221: CAP Development or Applicable Report | I221: ='SOW (itemized) (5)'!$AJ$10 -> 0
A222: Comments
I224: Amt from SOW (itemized)
A225: SECTION 7 - CAP IMPLEMENTATION | E225: Quantity | F225: Amt per event | H225: =SUM(H226:H232) -> 0 | I225: =SUM(I226:I232) -> 0
A226: Excavation | D226: # of tons | I226: ='SOW (itemized) (5)'!$AN$6 -> 0
A227: Enhanced Bioremediation | D227: # of injection points | I227: ='SOW (itemized) (5)'!$AN$7 -> 0
A228: Vac Event | D228: # of events | H228: =IF(ISBLANK(E228),"",E228*F228) ->  | I228: ='SOW (itemized) (5)'!$AN$8 -> 0
A229: Remediation System | D229: # of years | I229: ='SOW (itemized) (5)'!$AN$9 -> 0
A230: Remediation System Contingencies/Repairs | I230: 0
A231: Remediation System Rebuild | I231: ='SOW (itemized) (5)'!AN170 -> 0
A232: CAP Implementation Report | I232: ='SOW (itemized) (5)'!AN171 -> 0
A233: Comments
I235: Amt from SOW (itemized)
... 15 more rows

Sheet Application (hidden)
C1: DRAFT EXCESS LIABILITY TRUST FUND APPLICATION (PHASE APPROACH) | G1: TO BE COMPLETED BY IDEM
G2: Date Submitted (month/day/year) | I2: Macros must be enabled to use the form. | L2: Click here for instructions
C3: State Form XXXXX Indiana Department of Environmental Management | G3: ELTF Control Number
A5: INSTRUCTIONS: This form should be submitted when applying for a reimbursement request for costs incurred on or after (undetermined date) or a resubmittal of reimbursement request. Please click on the link to the right to view the most recent submittal instructions. Applications will not be processed that contain incomplete information (all fields on this application must be completed) or do not contain the required forms/pages as described in the INSTRUCTIONS for completing the application. Do not include social security numbers on any supporting backup documentation.
A6: TO BE COMPLETED BY APPLICANT
A7: SECTION 1 - APPLICANT INFORMATION
A8: Name of Applicant | G8: Please enter a Tax ID Number or Social Security Number.
G9: Tax ID Number: | I9: =IF(OR(ISBLANK(A9),K9=0),"Blank","") -> Blank | K9: =IF(ISBLANK(H10),H9,H10) -> 0
A10: Mailing Address of Applicant (number and street) | G10: SSN:
G11: Social Security Number Included in Backup Documents? | I11: =IF(OR(ISBLANK(A11),K11="Blank"),"Blank","") -> Blank | J11: FALSE | K11: =IF(AND(J11=FALSE,J12=FALSE),"Blank","") -> Blank
A12: City, State (Abbr.) ZIP Code | J12: FALSE
I13: =IF(OR(ISBLANK(A13)),"Blank","") -> Blank
A14: Name of Second Party for Joint Check (if applicable). Check will be issued to applicant and party listed below, and mailed to the above address.
J15: FALSE
A16: Name of Applicant Contact | E16: Applicant Contact Company Name | H16: Applicant Contact Title | I16: =IF(OR(ISBLANK(A16),ISBLANK(E16)),"Blank","") ->  | J16: FALSE
I17: =IF(OR(ISBLANK(A17),ISBLANK(E17),ISBLANK(H17),K17="Blank"),"Blank","") -> Blank | K17: =IF(AND(J15=FALSE,J16=FALSE),"Blank","") -> Blank
A18: Applicant Contact E-mail Address | E18: Applicant Contact Telephone Number (with area code)
I19: =IF(OR(ISBLANK(A19),ISBLANK(E19)),"Blank","") -> Blank
A20: SECTION 2 - ELIGIBLE PARTY INFORMATION
A21: Name of Eligible Party (Documentation required, see instructions.)
I22: =IF(OR(ISBLANK(A22)),"Blank","") -> Blank | J22: FALSE
A23: Mailing Address (number and street) | E23: City, State, (Abbr) ZIP code | J23: FALSE
I24: =IF(OR(ISBLANK(A24),ISBLANK(E24)),"Blank","") -> Blank | J24: FALSE
A25: Name of Eligible Party Contact | E25: Eligible Party Contact Company Name | H25: Eligible Party Contact Title | I25: =IF(OR(ISBLANK(A25),ISBLANK(E25)),"Blank","") ->  | J25: FALSE
I26: =IF(OR(ISBLANK(A26),ISBLANK(E26),ISBLANK(H26),K26="Blank"),"Blank","") -> Blank | J26: FALSE | K26: =IF(AND(J22=FALSE,J23=FALSE),"Blank","") -> Blank
A27: Eligible Party Contact E-mail Address | E27: Eligible Party Contact Telephone Number (with area code) | J27: FALSE
I28: =IF(OR(ISBLANK(A28),ISBLANK(E28)),"Blank","") -> Blank | J28: FALSE
A29: Eligible Party Status | J29: FALSE
I30: =IF(AND(J24=FALSE,J25=FALSE,J26=FALSE,J27=FALSE,J28=FALSE,J29=FALSE,J30=FALSE),"Blank","") -> Blank | J30: FALSE
A32: SECTION 3 -SITE INFORMATION
A33: Facility Identification Number | D33: Name of Facility | G33: LUST Incident Number
I34: =IF(OR(ISBLANK(A34),ISBLANK(D34),ISBLANK(G34)),"Blank","") -> Blank
A36: SECTION 4 - REIMBURSEMENT REQUESTS
A38: Identify the Type of Claim Application:
C40: Subsequent Claim Application (None of the costs requested in this claim application have been previously submitted.) | I40: =IF(AND(J40=FALSE,J42=FALSE,J49=FALSE,J50=FALSE,J56=FALSE,J64=FALSE),"Blank","") -> Blank | J40: FALSE
C42: Subsequent Claim Application and Resubmittal of Denied Costs (This claim application includes new costs and costs that have been denied by the IDEM. The portion of the claim that was previously submitted must be identified below as being previously submitted and include the dollar value of the original claim.) | J42: FALSE
C46: Original Amount Requested: | G46: Claim Number Assigned By IDEM:
C49: Resubmittal (Claim includes only costs previously denied by IDEM.) | G49: Complete Claim Resubmittal (Claim was previously reviewed and denied by IDEM in full.) | J49: FALSE
J50: FALSE
C53: Original Amount Requested for Denied Costs: | G53: Claim Number Assigned By IDEM:
C56: Third Party Claim (If you have been held responsible for damages to a third party and are submitting the judgment or settlement agreement for reimbursement as a third party claim. Please submit proof that a copy of this claim has been sent to the Indiana Attorney General.) | J56: FALSE
C64: Final Claim (This is for the last claim submitted after the NFA has been issued.) | J64: FALSE
A68: Enter the Total Costs for the Claim from the Attached "Pay Requests" (including resubmitted costs if applicable) | G68: IDEM Date Stamp
A69: $ | I69: =IF(ISBLANK(C69),"Blank","") -> Blank
A70: Enter the Total Resubmitted Costs (if applicable)
A71: $
C73: EXCESS LIABILITY TRUST FUND APPLICATION
C74: State Form XXXXX Indiana Department of Environmental Management
A77: TO BE COMPLETED BY APPLICANT (continued)
A79: SECTION 5 - CLAIM PREPARER CONTACT INFORMATION
A80: Name of Contact Person Concerning Claim Issues | E80: Contact Company Name
I81: =IF(OR(ISBLANK(A81),ISBLANK(E81),K81="Blank"),"Blank","") -> Blank | J81: FALSE
A82: Contact E-mail Address | E82: Contact Telephone Number (with area code) | J82: FALSE
I83: =IF(OR(ISBLANK(A83),ISBLANK(E83)),"Blank","") -> Blank | J83: FALSE
A84: Request Covers Work Performed During the Following Period (month/day/year) | G84: From: | H84: To:
I85: =IF(OR(ISBLANK(G85),ISBLANK(H85)),"Blank","") -> Blank
A86: Phases Requested for Cost Evaluation: (check applicable phases)
C88: Immediate Response (Costs for initial abatement. Costs for emergency measures with applicable "Confirmation of Emergency Response Status" form signed by appropriate IDEM representative.) | I88: =IF(AND(J88=FALSE,J91=FALSE,J95=FALSE,J98=FALSE,J101=FALSE),"Blank","") -> Blank | J88: FALSE
C91: Site Characterization and Corrective Action Plan Development (Costs for ISC, FSI, ERC, Pilot Study, and CAP Development.) | J91: FALSE
C94: Corrective Action Plan Implementation (Costs for Excavation, Enhanced Bioremediation, Vac Events, and Remediation Systems.)
J95: FALSE
C97: Groundwater Monitoring and Remediation System O & M (Costs for Monitoring and/or O&M requested by quarter.)
J98: FALSE
C100: Closure (Costs for NFA reporting, System Decommissioning and Well Abandonment.)
J101: FALSE
A103: Was there Private Insurance that may cover this Release? | E103: Name of Insurance Company | H103: Policy number | J103: FALSE
I104: =IF(AND(J103=FALSE, J104=FALSE),"Blank","") -> Blank | J104: FALSE
A106: SECTION 6 - SIGNATURE OF UST OWNER, UST OPERATOR, PROPERTY OWNER, ATTORNEY IN FACT, AND/OR ASSIGNEE OF RIGHTS
A107: I swear or affirm to the best of my knowledge and belief that the costs presented herein represent the reimbursable costs actually incurred in the performance of site characterization or corrective action related to this site during the period of time indicated on this application. I swear or affirm that all charges presented as part of this application were necessary to the performance of site characterization or corrective action. I also swear that I have not altered the calculations in this electronic form. I understand that pursuant to Indiana Code 13-23-9-6, I may be subject to criminal prosecution for submitting false and/or inaccurate information on this application. I also understand that all submitted information will be retained in the Virtual File Cabinet as a public record.
A108: In accordance with 328 IAC 1-3-1(a), the applicant must be a UST owner, UST operator, subsequent property owner, or person assigned the right of reimbursement. In accordance with 328 IAC 1-5-1(b), the assignor of rights (UST owner, UST operator, property owner, or attorney in fact) must sign the application in addition to the assignee of rights. Persons that have been assigned rights and also have appropriate power of attorney should sign both signature blocks.
A109: Signature of Assignee of Rights | F109: Date Signed (month/day/year)
B111: Print Name | F111: Title | H111: Company | J111: FALSE
J112: FALSE
A113: Signature of UST Owner, UST Operator, Property Owner, or Attorney In Fact | F113: Date Signed (month/day/year)
B115: Print Name | F115: Title | H115: Company | J115: FALSE
I116: =IF(OR(ISBLANK(B116),ISBLANK(F116),ISBLANK(H116),K116="Blank"),"Blank","") -> Blank | J116: FALSE | K116: =IF(AND(J115=FALSE,J116=FALSE),"Blank","") -> Blank
A117: If applicable, a copy of the signed Assignment of Rights under 328 IAC 1-3-1 must be attached. If applicable, a copy of the signed Power of Attorney must also be attached. If the Assignment of Rights or the Power of Attorney has been modified or amended, a current copy must be attached. | I117: =IF(OR(I9="Blank",I11="Blank",I13="Blank",I17="Blank",I19="Blank",I22="Blank",I24="Blank",I26="Blank",I28="Blank",I30="Blank",I34="Blank",I40="Blank",I69="Blank",I85="Blank",I88="Blank",I104="Blank",I116="Blank"),"Please complete form before submittal.","") -> Please complete form before submittal.
A119: MAILING INSTRUCTIONS: Please mail one single-sided paper copy (including a printout of this application and all back up information) and one CD or DVD with a PDF file (exact match of paper copy) and Excel file (.XLS) with the application information to the following address:
E120: Indiana Department of Environmental Management | K120: UST Owner
E121: Excess Liability Trust Fund | K121: UST Operator
E122: 100 North Senate Avenue, Room 1255 | K122: Property Owner
E123: Indianapolis, IN 46204-2251 | K123: Attorney In Fact

Sheet Invoice Summary (hidden)
A1: INVOICE SUMMARY
A2: INSTRUCTIONS: | B2: The following summary represents all invoices which reflect costs incurred during corrective action. The list will be utilized to verify that all costs represented on the accompanying pay request forms have been presented in an original invoice. Proof of payment should be represented by canceled check or affidavit. Do not include social security numbers on any supporting backup documentation.
A5: Name of Applicant | E5: Incident Number
A6: =Application!A9 -> 0 | E6: =Application!G34 -> 0
A7: TO BE COMPLETED BY APPLICANT | H7: Pay Request Numbers | K7: Check boxes to Activate Worksheets
A8: NAME OF VENDOR (Subsequent Claims should be entered first and followed by Resubmittals.) | C8: INVOICE NUMBER | D8: INVOICE DATE (month/day/year) | E8: TOTAL INVOICE AMOUNT | F8: REQUESTED AMOUNT | G8: PROOF OF PAYMENT | I8: Vendor | J8: Invoice #
H9: 1 | I9: =A9 -> 0 | J9: =C9 -> 0 | K9: Subsequent 1 | L9: =IF('Subsequent (1)'!I1115='Invoice Summary'!F9, "","Requested Amount Total Does Not Match '" &K9& "' Sheet") -> 
H10: 2 | I10: =A10 -> 0 | J10: =C10 -> 0 | K10: S2 | L10: =IF(#REF!='Invoice Summary'!F10, "","Requested Amount Total Does Not Match '" &K10& "' Sheet") -> 
H11: 3 | I11: 0 | J11: 0 | K11: S3 | L11: =IF(#REF!='Invoice Summary'!F11, "","Requested Amount Total Does Not Match '" &K11& "' Sheet") -> 
H12: 4 | I12: 0 | J12: 0 | K12: S4 | L12: =IF(#REF!='Invoice Summary'!F12, "","Requested Amount Total Does Not Match '" &K12& "' Sheet") -> 
H13: 5 | I13: 0 | J13: 0 | K13: S5 | L13: =IF(#REF!='Invoice Summary'!F13, "","Requested Amount Total Does Not Match '" &K13& "' Sheet") -> 
H14: 6 | I14: 0 | J14: 0 | K14: S6 | L14: =IF(#REF!='Invoice Summary'!F14, "","Requested Amount Total Does Not Match '" &K14& "' Sheet") -> 
H15: 7 | I15: 0 | J15: 0 | K15: S7 | L15: =IF(#REF!='Invoice Summary'!F15, "","Requested Amount Total Does Not Match '" &K15& "' Sheet") -> 
H16: 8 | I16: 0 | J16: 0 | K16: S8 | L16: =IF(#REF!='Invoice Summary'!F16, "","Requested Amount Total Does Not Match '" &K16& "' Sheet") -> 
H17: 9 | I17: 0 | J17: 0 | K17: S9 | L17: =IF(#REF!='Invoice Summary'!F17, "","Requested Amount Total Does Not Match '" &K17& "' Sheet") -> 
H18: 10 | I18: 0 | J18: 0 | K18: S10 | L18: =IF(#REF!='Invoice Summary'!F18, "","Requested Amount Total Does Not Match '" &K18& "' Sheet") -> 
H19: 11 | I19: 0 | J19: 0 | K19: S11 | L19: =IF(#REF!='Invoice Summary'!F19, "","Requested Amount Total Does Not Match '" &K19& "' Sheet") -> 
H20: 12 | I20: 0 | J20: 0 | K20: S12 | L20: =IF(#REF!='Invoice Summary'!F20, "","Requested Amount Total Does Not Match '" &K20& "' Sheet") -> 
H21: 13 | I21: 0 | J21: 0 | K21: S13 | L21: =IF(#REF!='Invoice Summary'!F21, "","Requested Amount Total Does Not Match '" &K21& "' Sheet") -> 
H22: 14 | I22: 0 | J22: 0 | K22: S14 | L22: =IF(#REF!='Invoice Summary'!F22, "","Requested Amount Total Does Not Match '" &K22& "' Sheet") -> 
H23: 15 | I23: 0 | J23: 0 | K23: S15 | L23: =IF(#REF!='Invoice Summary'!F23, "","Requested Amount Total Does Not Match '" &K23& "' Sheet") -> 
A24: Subsequent Totals (Resubmittals only under this line.) | E24: =SUM(E9:E23) -> 0 | F24: =SUM(F9:F23) -> 0 | H24: Resub Numbers
H25: 1 | I25: =A25 -> 0 | J25: 0 | K25: Resubmittal (1) | L25: =IF('Resubmittal (1)'!$F$66='Invoice Summary'!F25, "","Requested Amount Total Does Not Match '" &K25& "' Sheet") -> 
H26: 2 | I26: 0 | J26: 0 | K26: R2 | L26: =IF(#REF!='Invoice Summary'!F26, "","Requested Amount Total Does Not Match '" &K26& "' Sheet") -> 
H27: 3 | I27: 0 | J27: 0 | K27: R3 | L27: =IF(#REF!='Invoice Summary'!F27, "","Requested Amount Total Does Not Match '" &K27& "' Sheet") -> 
H28: 4 | I28: 0 | J28: 0 | K28: R4 | L28: =IF(#REF!='Invoice Summary'!F28, "","Requested Amount Total Does Not Match '" &K28& "' Sheet") -> 
H29: 5 | I29: 0 | J29: 0 | K29: R5 | L29: =IF(#REF!='Invoice Summary'!F29, "","Requested Amount Total Does Not Match '" &K29& "' Sheet") -> 
H30: 6 | I30: 0 | J30: 0 | K30: R6 | L30: =IF(#REF!='Invoice Summary'!F30, "","Requested Amount Total Does Not Match '" &K30& "' Sheet") -> 
H31: 7 | I31: 0 | J31: 0 | K31: R7 | L31: =IF(#REF!='Invoice Summary'!F31, "","Requested Amount Total Does Not Match '" &K31& "' Sheet") -> 
H32: 8 | I32: 0 | J32: 0 | K32: R8 | L32: =IF(#REF!='Invoice Summary'!F32, "","Requested Amount Total Does Not Match '" &K32& "' Sheet") -> 
H33: 9 | I33: =A33 -> 0 | J33: =C33 -> 0 | K33: R9 | L33: =IF(#REF!='Invoice Summary'!F33, "","Requested Amount Total Does Not Match '" &K33& "' Sheet") -> 
H34: 10 | I34: 0 | J34: 0 | K34: R10 | L34: =IF(#REF!='Invoice Summary'!F34, "","Requested Amount Total Does Not Match '" &K34& "' Sheet") -> 
A35: Resubmittal Totals | E35: =SUM(E25:E34) -> 0 | F35: =SUM(F25:F34) -> 0
D36: Grand Totals | E36: =SUM(E24+E35) -> 0 | F36: =SUM(F24+F35) -> 0
F37: =IF(OR(AND(Application!J50=TRUE, F36=Application!C69), AND(F36=Application!C69,F35=Application!C71)), "", "Requested Amount Total Does Not Match Application") -> 

Sheet SOW (itemized)
A1: Itemized Scope of Work #1 | AF1: Planning, Field Work, and Reporting Costs
AH2: Site Characterization and CAP Development | AK2: CAP Implementation | AO2: GW Monitoring and/or Remediation System O&M | AS2: Closure
A5: Incident Number | AH5: =I298 -> 0 | AK5: =I532 -> 0 | AO5: =SUM(I990,I991) -> 0 | AS5: =I1110 -> 0
A6: =SOW!G33 -> 0 | AJ6: =SUM(I57:I65,I69:I121,I125:I134) -> 0 | AN6: =SUM(I303:I376) -> 0 | AR6: =SUM(I537:I583) -> 0 | AU6: =SUM(I996:I1017) -> 0
A7: Select Date: | P7: 20 | AA7: Markup | AB7: =VLOOKUP($A8,'Reference Data'!$B$135:$D$153,3,FALSE) -> 0.1 | AJ7: =SUM(I138:I146,I150:I202,I206:I215) -> 0 | AN7: =SUM(I380:I408) -> 0 | AR7: =SUM(I587:I634) -> 0
A8: 1/1/2026 to Present | AA8: Add Lines # | AB8: 7 | AJ8: =SUM(I219:I230) -> 0 | AN8: =SUM(I412:I444) -> 0 | AO8: CAPR Routine Report Subtotals | AR8: =SUM(I638:I647) -> 0 | AU8: =SUM(I1021:I1063) -> 0
Z9: Total $ of Added Lines | AB9: =SUM(I34:I110) -> 0 | AJ9: =SUM(I234:I257) -> 0 | AN9: =SUM(I448:I481) -> 0 | AR9: =SUM(I651:I697) -> 0
Z10: Total $ of Sheet | AB10: =I1115 -> 0 | AJ10: =SUM(I261:I297) -> 0 | AN10: =SUM(I485:I518) -> 0 | AR10: =SUM(I701:I748) -> 0 | AU10: =SUM(I1067:I1109) -> 0
AA11: Sheet # | AB11: 0 | AN11: =SUM(I522:I531) -> 0 | AO11: CAPR Report Subtotals | AR11: =SUM(I752:I761) -> 0
A12: Immediate Response Costs | AW12: =IF(SUM($I$15:$I$52)>0, 1, 0) -> 0 | AX12: 0
A13: Planning, Preparation, and Follow-up Costs (Office) | F13: =IF(ISNUMBER(C13),IF(ISNUMBER(E13),ROUND(AC13*E13,2),""),"") ->  | G13: =IF(Q13>1,VLOOKUP(Q13,'Reference Data'!$C$9:$C$43,3,FALSE),"") ->  | I13: =IF(ISBLANK($C13),"",IF(($A$8)="Please Choose Date","Select Date Error!",IF($R13="N/A","",$X13))) ->  | AW13: =IF(SUM($I$15:$I$23)>0, 1, 0) -> 0 | AX13: 0
A14: DESCRIPTION | B14: TASK PERFORMED | C14: UNITS | D14: TYPE | E14: UNIT COST | F14: TOTAL W/O MARKUP OR TAX | G14: TAX (NO MARKUP) | H14: % MARK-UP | I14: AMOUNT PROPOSED | Q14: Automated Descriptor | R14: Automated Unit Cost | S14: Total Automated Unit Cost | T14: PROPOSED Unit Cost | U14: PROPOSED total w/o markup or tax | V14: PROPOSED Tax | W14: PROPOSED Markup | X14: PROPOSED Total AMT | Y14: Lower Calculated Markup | Z14: Lower Calculated total w/ markup and tax | AA14: Lower Cost Final total | AB14: Amt Denied | AC14: Units Rounded | AD14: Markup Available | AW14: =IF(SUM($I$15:$I$23)>0, 1, 0) -> 0 | AX14: 0
A15: Principal | D15: =IF(Q15>1,VLOOKUP(Q15,'Reference Data'!$C$9:$C$43,5,FALSE),"") ->  | E15: =R15 ->  | F15: =IF(ISNUMBER(C15),IF(ISNUMBER(E15),ROUND(AC15*E15,2),""),"") ->  | G15: =IF(Q15>1,VLOOKUP(Q15,'Reference Data'!$C$9:$C$43,3,FALSE),"") ->  | I15: =IF(ISBLANK($C15),"",IF(($A$8)="Please Choose Date","Select Date Error!",IF($R15="N/A","",$X15))) ->  | Q15: =IF(ISBLANK($A15),1,VLOOKUP($A15,'Reference Data'!$B$9:$C$133,2,FALSE)) -> 2 | R15: =VLOOKUP(Q15,'Reference Data'!$C$9:O$125,($P$7)+1,FALSE) ->  | S15: =IF(Q15>1, ROUND(R15*AC15,2), "") ->  | T15: =IF(ISNUMBER(E15),E15,"") ->  | U15: =IF(ISNUMBER(T15),ROUND(E15*AC15,2),"") ->  | V15: =IF(ISNUMBER(G15),G15,0) -> 0 | W15: =IF(ISNUMBER(H15), H15, 0) -> 0 | X15: =IF(Q15>1,IF(ISNUMBER(U15),ROUND(U15*(1+W15)+V15,2),S15),"") ->  | Y15: =IF(W15>$AB$7,$AB$7,W15) -> 0 | Z15: =IF(ISNUMBER(U15),ROUND(U15*(Y15+1)+V15,2),S15) ->  | AA15: =IF(AND(Q15>1,S15>0,S15<Z15),S15,Z15) ->  | AB15: =IF(AND(ISNUMBER(X15),ISNUMBER(AA15)),IF((X15-AA15)>0,X15-AA15,""),"") ->  | AC15: =ROUND($C15,2) -> 0 | AD15: =IF(ISBLANK($A15),1,VLOOKUP($A15,'Reference Data'!$B$9:$D$133,3,FALSE)) -> 0 | AW15: =IF(AA15=0, 0, 1) ->  | AX15: 0
A16: Senior Project Manager | D16: =IF(Q16>1,VLOOKUP(Q16,'Reference Data'!$C$9:$C$43,5,FALSE),"") ->  | E16: =R16 ->  | G16: =IF(Q16>1,VLOOKUP(Q16,'Reference Data'!$C$9:$C$43,3,FALSE),"") ->  | I16: =IF(ISBLANK($C16),"",IF(($A$8)="Please Choose Date","Select Date Error!",IF($R16="N/A","",$X16))) ->  | Q16: =IF(ISBLANK($A16),1,VLOOKUP($A16,'Reference Data'!$B$9:$C$133,2,FALSE)) -> 3 | R16: =VLOOKUP(Q16,'Reference Data'!$C$9:O$125,($P$7)+1,FALSE) ->  | V16: 0 | W16: 0 | Y16: 0 | AC16: 0 | AD16: =IF(ISBLANK($A16),1,VLOOKUP($A16,'Reference Data'!$B$9:$D$133,3,FALSE)) -> 0 | AW16: =IF(AA16=0, 0, 1) ->  | AX16: 0
A17: Project Manager | D17: =IF(Q17>1,VLOOKUP(Q17,'Reference Data'!$C$9:$C$43,5,FALSE),"") ->  | G17: =IF(Q17>1,VLOOKUP(Q17,'Reference Data'!$C$9:$C$43,3,FALSE),"") ->  | Q17: =IF(ISBLANK($A17),1,VLOOKUP($A17,'Reference Data'!$B$9:$C$133,2,FALSE)) -> 4 | R17: =VLOOKUP(Q17,'Reference Data'!$C$9:O$125,($P$7)+1,FALSE) ->  | V17: 0 | W17: 0 | Y17: 0 | AC17: 0 | AD17: =IF(ISBLANK($A17),1,VLOOKUP($A17,'Reference Data'!$B$9:$D$133,3,FALSE)) -> 0 | AW17: =IF(AA17=0, 0, 1) ->  | AX17: 0
A18: Staff | D18: =IF(Q18>1,VLOOKUP(Q18,'Reference Data'!$C$9:$C$43,5,FALSE),"") ->  | G18: =IF(Q18>1,VLOOKUP(Q18,'Reference Data'!$C$9:$C$43,3,FALSE),"") ->  | Q18: =IF(ISBLANK($A18),1,VLOOKUP($A18,'Reference Data'!$B$9:$C$133,2,FALSE)) -> 5 | R18: =VLOOKUP(Q18,'Reference Data'!$C$9:O$125,($P$7)+1,FALSE) ->  | V18: 0 | W18: 0 | Y18: 0 | AC18: 0 | AD18: =IF(ISBLANK($A18),1,VLOOKUP($A18,'Reference Data'!$B$9:$D$133,3,FALSE)) -> 0 | AX18: 0
A19: Technician | D19: =IF(Q19>1,VLOOKUP(Q19,'Reference Data'!$C$9:$C$43,5,FALSE),"") ->  | G19: =IF(Q19>1,VLOOKUP(Q19,'Reference Data'!$C$9:$C$43,3,FALSE),"") ->  | Q19: =IF(ISBLANK($A19),1,VLOOKUP($A19,'Reference Data'!$B$9:$C$133,2,FALSE)) -> 6 | R19: =VLOOKUP(Q19,'Reference Data'!$C$9:O$125,($P$7)+1,FALSE) ->  | V19: 0 | W19: 0 | Y19: 0 | AC19: 0 | AD19: =IF(ISBLANK($A19),1,VLOOKUP($A19,'Reference Data'!$B$9:$D$133,3,FALSE)) -> 0 | AX19: 0
A20: Drafting | D20: =IF(Q20>1,VLOOKUP(Q20,'Reference Data'!$C$9:$C$43,5,FALSE),"") ->  | G20: =IF(Q20>1,VLOOKUP(Q20,'Reference Data'!$C$9:$C$43,3,FALSE),"") ->  | Q20: =IF(ISBLANK($A20),1,VLOOKUP($A20,'Reference Data'!$B$9:$C$133,2,FALSE)) -> 7 | R20: =VLOOKUP(Q20,'Reference Data'!$C$9:O$125,($P$7)+1,FALSE) ->  | V20: 0 | W20: 0 | Y20: 0 | AC20: 0 | AD20: =IF(ISBLANK($A20),1,VLOOKUP($A20,'Reference Data'!$B$9:$D$133,3,FALSE)) -> 0 | AX20: 0
A21: Clerical | D21: =IF(Q21>1,VLOOKUP(Q21,'Reference Data'!$C$9:$C$43,5,FALSE),"") ->  | G21: =IF(Q21>1,VLOOKUP(Q21,'Reference Data'!$C$9:$C$43,3,FALSE),"") ->  | Q21: =IF(ISBLANK($A21),1,VLOOKUP($A21,'Reference Data'!$B$9:$C$133,2,FALSE)) -> 8 | R21: =VLOOKUP(Q21,'Reference Data'!$C$9:O$125,($P$7)+1,FALSE) ->  | V21: 0 | W21: 0 | Y21: 0 | AC21: 0 | AD21: =IF(ISBLANK($A21),1,VLOOKUP($A21,'Reference Data'!$B$9:$D$133,3,FALSE)) -> 0 | AX21: 0
A22: Other (markup eligible) | B22: 1 | C22: 1 | D22: =IF(Q22>1,VLOOKUP(Q22,'Reference Data'!$C$9:$C$43,5,FALSE),"") ->  | E22: 0 | F22: 0 | G22: =IF(Q22>1,VLOOKUP(Q22,'Reference Data'!$C$9:$C$43,3,FALSE),"") ->  | I22: =IF($E22=0,"",IF(($A$8)="Please Choose Date","Select Date Error!",IF($R22="N/A","",$X22))) ->  | Q22: =IF(ISBLANK($A22),1,VLOOKUP($A22,'Reference Data'!$B$9:$C$133,2,FALSE)) -> 94 | R22: =VLOOKUP(Q22,'Reference Data'!$C$9:O$125,($P$7)+1,FALSE) ->  | T22: 0 | U22: 0 | V22: 0 | W22: 0 | X22: 0 | Y22: 0 | Z22: 0 | AC22: 1 | AD22: =IF(ISBLANK($A22),1,VLOOKUP($A22,'Reference Data'!$B$9:$D$133,3,FALSE)) -> 1 | AX22: 0
A23: Other (not markup eligible) | B23: 1 | C23: 1 | D23: =IF(Q23>1,VLOOKUP(Q23,'Reference Data'!$C$9:$C$43,5,FALSE),"") ->  | E23: 0 | F23: 0 | G23: =IF(Q23>1,VLOOKUP(Q23,'Reference Data'!$C$9:$C$43,3,FALSE),"") ->  | I23: =IF($E23=0,"",IF(($A$8)="Please Choose Date","Select Date Error!",IF($R23="N/A","",$X23))) ->  | Q23: =IF(ISBLANK($A23),1,VLOOKUP($A23,'Reference Data'!$B$9:$C$133,2,FALSE)) -> 95 | R23: =VLOOKUP(Q23,'Reference Data'!$C$9:O$125,($P$7)+1,FALSE) ->  | S23: =IF(Q23>1, ROUND(R23*AC23,2), "") ->  | T23: =IF(ISNUMBER(E23),E23,"") -> 0 | U23: =IF(ISNUMBER(T23),ROUND(E23*AC23,2),"") -> 0 | V23: =IF(ISNUMBER(G23),G23,0) -> 0 | W23: =IF(ISNUMBER(H23), H23, 0) -> 0 | X23: =IF(Q23>1,IF(ISNUMBER(U23),ROUND(U23*(1+W23)+V23,2),S23),"") -> 0 | Y23: =IF(W23>$AB$7,$AB$7,W23) -> 0 | Z23: =IF(ISNUMBER(U23),ROUND(U23*(Y23+1)+V23,2),S23) -> 0 | AA23: =IF(AND(Q23>1,S23>0,S23<Z23),S23,Z23) ->  | AB23: =IF(AND(ISNUMBER(X23),ISNUMBER(AA23)),IF((X23-AA23)>0,X23-AA23,""),"") ->  | AC23: 1 | AD23: =IF(ISBLANK($A23),1,VLOOKUP($A23,'Reference Data'!$B$9:$D$133,3,FALSE)) -> 0 | AX23: 0
AW24: =IF(SUM($I$27:$I$38)>0, 1, 0) -> 0 | AX24: 0
A25: Field Costs | G25: =IF(Q25>1,VLOOKUP(Q25,'Reference Data'!$C$9:$C$43,3,FALSE),"") ->  | I25: =IF(ISBLANK($C25),"",IF(($A$8)="Please Choose Date","Select Date Error!",IF($R25="N/A","",$X25))) ->  | R25: =VLOOKUP(Q25,'Reference Data'!$C$9:O$125,($P$7)+1,FALSE) ->  | AW25: =IF(SUM($I$27:$I$38)>0, 1, 0) -> 0 | AX25: 0
A26: DESCRIPTION | B26: TASK PERFORMED | C26: UNITS | D26: TYPE | E26: UNIT COST | F26: TOTAL W/O MARKUP OR TAX | G26: TAX (NO MARKUP) | H26: % MARK-UP | I26: AMOUNT PROPOSED | Q26: Automated Descriptor | R26: =VLOOKUP(Q26,'Reference Data'!$C$9:O$125,($P$7)+1,FALSE) ->  | S26: Total Automated Unit Cost | T26: PROPOSED Unit Cost | U26: PROPOSED total w/o markup or tax | V26: PROPOSED Tax | W26: PROPOSED Markup | X26: PROPOSED Total AMT | Y26: Lower Calculated Markup | Z26: Lower Calculated total w/ markup and tax | AA26: Lower Cost Final total | AB26: Amt Denied | AC26: Units Rounded | AD26: Markup Available | AW26: =IF(SUM($I$27:$I$38)>0, 1, 0) -> 0 | AX26: 0
A27: Principal | D27: =IF(Q27>1,VLOOKUP(Q27,'Reference Data'!$C$9:$C$43,5,FALSE),"") ->  | E27: =R27 ->  | F27: =IF(ISNUMBER(C27),IF(ISNUMBER(E27),ROUND(AC27*E27,2),""),"") ->  | G27: =IF(Q27>1,VLOOKUP(Q27,'Reference Data'!$C$9:$C$43,3,FALSE),"") ->  | I27: =IF(ISBLANK($C27),"",IF(($A$8)="Please Choose Date","Select Date Error!",IF($R27="N/A","",$X27))) ->  | Q27: =IF(ISBLANK($A27),1,VLOOKUP($A27,'Reference Data'!$B$9:$C$133,2,FALSE)) -> 2 | R27: =VLOOKUP(Q27,'Reference Data'!$C$9:O$125,($P$7)+1,FALSE) ->  | S27: =IF(Q27>1, ROUND(R27*AC27,2), "") ->  | T27: =IF(ISNUMBER(E27),E27,"") ->  | U27: =IF(ISNUMBER(T27),ROUND(E27*AC27,2),"") ->  | V27: =IF(ISNUMBER(G27),G27,0) -> 0 | W27: =IF(ISNUMBER(H27), H27, 0) -> 0 | X27: =IF(Q27>1,IF(ISNUMBER(U27),ROUND(U27*(1+W27)+V27,2),S27),"") ->  | Y27: =IF(W27>$AB$7,$AB$7,W27) -> 0 | Z27: =IF(ISNUMBER(U27),ROUND(U27*(Y27+1)+V27,2),S27) ->  | AA27: =IF(AND(Q27>1,S27>0,S27<Z27),S27,Z27) ->  | AB27: =IF(AND(ISNUMBER(X27),ISNUMBER(AA27)),IF((X27-AA27)>0,X27-AA27,""),"") ->  | AC27: =ROUND($C27,2) -> 0 | AD27: =IF(ISBLANK($A27),1,VLOOKUP($A27,'Reference Data'!$B$9:$D$133,3,FALSE)) -> 0 | AX27: 0
A28: Senior Project Manager | D28: =IF(Q28>1,VLOOKUP(Q28,'Reference Data'!$C$9:$C$43,5,FALSE),"") ->  | G28: =IF(Q28>1,VLOOKUP(Q28,'Reference Data'!$C$9:$C$43,3,FALSE),"") ->  | I28: =IF(ISBLANK($C28),"",IF(($A$8)="Please Choose Date","Select Date Error!",IF($R28="N/A","",$X28))) ->  | Q28: =IF(ISBLANK($A28),1,VLOOKUP($A28,'Reference Data'!$B$9:$C$133,2,FALSE)) -> 3 | R28: =VLOOKUP(Q28,'Reference Data'!$C$9:O$125,($P$7)+1,FALSE) ->  | V28: 0 | W28: 0 | Y28: 0 | AC28: 0 | AD28: =IF(ISBLANK($A28),1,VLOOKUP($A28,'Reference Data'!$B$9:$D$133,3,FALSE)) -> 0 | AX28: 0
A29: Project Manager | D29: =IF(Q29>1,VLOOKUP(Q29,'Reference Data'!$C$9:$C$43,5,FALSE),"") ->  | G29: =IF(Q29>1,VLOOKUP(Q29,'Reference Data'!$C$9:$C$43,3,FALSE),"") ->  | Q29: =IF(ISBLANK($A29),1,VLOOKUP($A29,'Reference Data'!$B$9:$C$133,2,FALSE)) -> 4 | R29: =VLOOKUP(Q29,'Reference Data'!$C$9:O$125,($P$7)+1,FALSE) ->  | V29: 0 | W29: 0 | Y29: 0 | AC29: 0 | AD29: =IF(ISBLANK($A29),1,VLOOKUP($A29,'Reference Data'!$B$9:$D$133,3,FALSE)) -> 0 | AX29: 0
A30: Staff | D30: =IF(Q30>1,VLOOKUP(Q30,'Reference Data'!$C$9:$C$43,5,FALSE),"") ->  | G30: =IF(Q30>1,VLOOKUP(Q30,'Reference Data'!$C$9:$C$43,3,FALSE),"") ->  | Q30: =IF(ISBLANK($A30),1,VLOOKUP($A30,'Reference Data'!$B$9:$C$133,2,FALSE)) -> 5 | R30: =VLOOKUP(Q30,'Reference Data'!$C$9:O$125,($P$7)+1,FALSE) ->  | V30: 0 | W30: 0 | Y30: 0 | AC30: 0 | AD30: =IF(ISBLANK($A30),1,VLOOKUP($A30,'Reference Data'!$B$9:$D$133,3,FALSE)) -> 0 | AX30: 0
A31: Technician | D31: =IF(Q31>1,VLOOKUP(Q31,'Reference Data'!$C$9:$C$43,5,FALSE),"") ->  | G31: =IF(Q31>1,VLOOKUP(Q31,'Reference Data'!$C$9:$C$43,3,FALSE),"") ->  | Q31: =IF(ISBLANK($A31),1,VLOOKUP($A31,'Reference Data'!$B$9:$C$133,2,FALSE)) -> 6 | R31: =VLOOKUP(Q31,'Reference Data'!$C$9:O$125,($P$7)+1,FALSE) ->  | V31: 0 | W31: 0 | Y31: 0 | AC31: 0 | AD31: =IF(ISBLANK($A31),1,VLOOKUP($A31,'Reference Data'!$B$9:$D$133,3,FALSE)) -> 0 | AX31: 0
A32: Drafting | D32: =IF(Q32>1,VLOOKUP(Q32,'Reference Data'!$C$9:$C$43,5,FALSE),"") ->  | G32: =IF(Q32>1,VLOOKUP(Q32,'Reference Data'!$C$9:$C$43,3,FALSE),"") ->  | Q32: =IF(ISBLANK($A32),1,VLOOKUP($A32,'Reference Data'!$B$9:$C$133,2,FALSE)) -> 7 | R32: =VLOOKUP(Q32,'Reference Data'!$C$9:O$125,($P$7)+1,FALSE) ->  | V32: 0 | W32: 0 | Y32: 0 | AC32: 0 | AD32: =IF(ISBLANK($A32),1,VLOOKUP($A32,'Reference Data'!$B$9:$D$133,3,FALSE)) -> 0 | AX32: 0
A33: Clerical | D33: =IF(Q33>1,VLOOKUP(Q33,'Reference Data'!$C$9:$C$43,5,FALSE),"") ->  | G33: =IF(Q33>1,VLOOKUP(Q33,'Reference Data'!$C$9:$C$43,3,FALSE),"") ->  | Q33: =IF(ISBLANK($A33),1,VLOOKUP($A33,'Reference Data'!$B$9:$C$133,2,FALSE)) -> 8 | R33: =VLOOKUP(Q33,'Reference Data'!$C$9:O$125,($P$7)+1,FALSE) ->  | V33: 0 | W33: 0 | Y33: 0 | AC33: 0 | AD33: =IF(ISBLANK($A33),1,VLOOKUP($A33,'Reference Data'!$B$9:$D$133,3,FALSE)) -> 0 | AX33: 0
A34: Mileage | D34: =IF(Q34>1,VLOOKUP(Q34,'Reference Data'!$C$9:$C$43,5,FALSE),"") ->  | G34: =IF(Q34>1,VLOOKUP(Q34,'Reference Data'!$C$9:$C$43,3,FALSE),"") ->  | Q34: =IF(ISBLANK($A34),1,VLOOKUP($A34,'Reference Data'!$B$9:$C$133,2,FALSE)) -> 9 | R34: =VLOOKUP(Q34,'Reference Data'!$C$9:O$125,($P$7)+1,FALSE) ->  | V34: 0 | W34: 0 | Y34: 0 | AC34: 0 | AD34: =IF(ISBLANK($A34),1,VLOOKUP($A34,'Reference Data'!$B$9:$D$133,3,FALSE)) -> 0 | AX34: 0
A35: Overnight lodging (total) | C35: 1 | D35: =IF(Q35>1,VLOOKUP(Q35,'Reference Data'!$C$9:$C$43,5,FALSE),"") ->  | E35: 0 | F35: 0 | G35: =IF(Q35>1,VLOOKUP(Q35,'Reference Data'!$C$9:$C$43,3,FALSE),"") ->  | I35: =IF($E35=0,"",IF(($A$8)="Please Choose Date","Select Date Error!",IF($R35="N/A","",$X35))) ->  | Q35: =IF(ISBLANK($A35),1,VLOOKUP($A35,'Reference Data'!$B$9:$C$133,2,FALSE)) -> 10 | R35: =VLOOKUP(Q35,'Reference Data'!$C$9:O$125,($P$7)+1,FALSE) ->  | T35: 0 | U35: 0 | V35: 0 | W35: 0 | X35: 0 | Y35: 0 | Z35: 0 | AC35: 1 | AD35: =IF(ISBLANK($A35),1,VLOOKUP($A35,'Reference Data'!$B$9:$D$133,3,FALSE)) -> 0 | AX35: 0
A36: Per diem | D36: =IF(Q36>1,VLOOKUP(Q36,'Reference Data'!$C$9:$C$43,5,FALSE),"") ->  | G36: =IF(Q36>1,VLOOKUP(Q36,'Reference Data'!$C$9:$C$43,3,FALSE),"") ->  | I36: =IF(ISBLANK($C36),"",IF(($A$8)="Please Choose Date","Select Date Error!",IF($R36="N/A","",$X36))) ->  | Q36: =IF(ISBLANK($A36),1,VLOOKUP($A36,'Reference Data'!$B$9:$C$133,2,FALSE)) -> 11 | R36: =VLOOKUP(Q36,'Reference Data'!$C$9:O$125,($P$7)+1,FALSE) ->  | V36: 0 | W36: 0 | Y36: 0 | AC36: 0 | AD36: =IF(ISBLANK($A36),1,VLOOKUP($A36,'Reference Data'!$B$9:$D$133,3,FALSE)) -> 0 | AX36: 0
A37: Other (markup eligible) | C37: 1 | D37: =IF(Q37>1,VLOOKUP(Q37,'Reference Data'!$C$9:$C$43,5,FALSE),"") ->  | E37: 0 | F37: 0 | G37: =IF(Q37>1,VLOOKUP(Q37,'Reference Data'!$C$9:$C$43,3,FALSE),"") ->  | I37: =IF($E37=0,"",IF(($A$8)="Please Choose Date","Select Date Error!",IF($R37="N/A","",$X37))) ->  | Q37: =IF(ISBLANK($A37),1,VLOOKUP($A37,'Reference Data'!$B$9:$C$133,2,FALSE)) -> 94 | R37: =VLOOKUP(Q37,'Reference Data'!$C$9:O$125,($P$7)+1,FALSE) ->  | T37: 0 | U37: 0 | V37: 0 | W37: 0 | X37: 0 | Y37: 0 | Z37: 0 | AC37: 1 | AD37: =IF(ISBLANK($A37),1,VLOOKUP($A37,'Reference Data'!$B$9:$D$133,3,FALSE)) -> 1 | AX37: 0
A38: Other (not markup eligible) | C38: 1 | D38: =IF(Q38>1,VLOOKUP(Q38,'Reference Data'!$C$9:$C$43,5,FALSE),"") ->  | E38: 0 | F38: 0 | G38: =IF(Q38>1,VLOOKUP(Q38,'Reference Data'!$C$9:$C$43,3,FALSE),"") ->  | I38: =IF($E38=0,"",IF(($A$8)="Please Choose Date","Select Date Error!",IF($R38="N/A","",$X38))) ->  | Q38: =IF(ISBLANK($A38),1,VLOOKUP($A38,'Reference Data'!$B$9:$C$133,2,FALSE)) -> 95 | R38: =VLOOKUP(Q38,'Reference Data'!$C$9:O$125,($P$7)+1,FALSE) ->  | T38: 0 | U38: 0 | V38: 0 | W38: 0 | X38: 0 | Y38: 0 | Z38: 0 | AC38: 1 | AD38: =IF(ISBLANK($A38),1,VLOOKUP($A38,'Reference Data'!$B$9:$D$133,3,FALSE)) -> 0 | AX38: 0
AW39: =IF(SUM($I$42:$I$51)>0, 1, 0) -> 0 | AX39: 0
A40: Report Writing Costs | F40: =IF(ISNUMBER(C40),IF(ISNUMBER(E40),ROUND(AC40*E40,2),""),"") ->  | G40: =IF(Q40>1,VLOOKUP(Q40,'Reference Data'!$C$9:$C$43,3,FALSE),"") ->  | I40: =IF(ISBLANK($C40),"",IF(($A$8)="Please Choose Date","Select Date Error!",IF($R40="N/A","",$X40))) ->  | R40: =VLOOKUP(Q40,'Reference Data'!$C$9:O$125,($P$7)+1,FALSE) ->  | AW40: =IF(SUM($I$42:$I$51)>0, 1, 0) -> 0 | AX40: 0
A41: DESCRIPTION | B41: TASK PERFORMED | C41: UNITS | D41: TYPE | E41: UNIT COST | F41: TOTAL W/O MARKUP OR TAX | G41: TAX (NO MARKUP) | H41: % MARK-UP | I41: AMOUNT PROPOSED | Q41: Automated Descriptor | R41: =VLOOKUP(Q41,'Reference Data'!$C$9:O$125,($P$7)+1,FALSE) ->  | S41: Total Automated Unit Cost | T41: PROPOSED Unit Cost | U41: PROPOSED total w/o markup or tax | V41: PROPOSED Tax | W41: PROPOSED Markup | X41: PROPOSED Total AMT | Y41: Lower Calculated Markup | Z41: Lower Calculated total w/ markup and tax | AA41: Lower Cost Final total | AB41: Amt Denied | AC41: Units Rounded | AD41: Markup Available | AW41: =IF(SUM($I$42:$I$51)>0, 1, 0) -> 0 | AX41: 0
A42: Principal | D42: =IF(Q42>1,VLOOKUP(Q42,'Reference Data'!$C$9:$C$43,5,FALSE),"") ->  | E42: =R42 ->  | F42: =IF(ISNUMBER(C42),IF(ISNUMBER(E42),ROUND(AC42*E42,2),""),"") ->  | G42: =IF(Q42>1,VLOOKUP(Q42,'Reference Data'!$C$9:$C$43,3,FALSE),"") ->  | I42: =IF(ISBLANK($C42),"",IF(($A$8)="Please Choose Date","Select Date Error!",IF($R42="N/A","",$X42))) ->  | Q42: =IF(ISBLANK($A42),1,VLOOKUP($A42,'Reference Data'!$B$9:$C$133,2,FALSE)) -> 2 | R42: =VLOOKUP(Q42,'Reference Data'!$C$9:O$125,($P$7)+1,FALSE) ->  | S42: =IF(Q42>1, ROUND(R42*AC42,2), "") ->  | T42: =IF(ISNUMBER(E42),E42,"") ->  | U42: =IF(ISNUMBER(T42),ROUND(E42*AC42,2),"") ->  | V42: =IF(ISNUMBER(G42),G42,0) -> 0 | W42: =IF(ISNUMBER(H42), H42, 0) -> 0 | X42: =IF(Q42>1,IF(ISNUMBER(U42),ROUND(U42*(1+W42)+V42,2),S42),"") ->  | Y42: =IF(W42>$AB$7,$AB$7,W42) -> 0 | Z42: =IF(ISNUMBER(U42),ROUND(U42*(Y42+1)+V42,2),S42) ->  | AA42: =IF(AND(Q42>1,S42>0,S42<Z42),S42,Z42) ->  | AB42: =IF(AND(ISNUMBER(X42),ISNUMBER(AA42)),IF((X42-AA42)>0,X42-AA42,""),"") ->  | AC42: =ROUND($C42,2) -> 0 | AD42: =IF(ISBLANK($A42),1,VLOOKUP($A42,'Reference Data'!$B$9:$D$133,3,FALSE)) -> 0 | AX42: 0
A43: Senior Project Manager | D43: =IF(Q43>1,VLOOKUP(Q43,'Reference Data'!$C$9:$C$43,5,FALSE),"") ->  | G43: =IF(Q43>1,VLOOKUP(Q43,'Reference Data'!$C$9:$C$43,3,FALSE),"") ->  | Q43: =IF(ISBLANK($A43),1,VLOOKUP($A43,'Reference Data'!$B$9:$C$133,2,FALSE)) -> 3 | R43: =VLOOKUP(Q43,'Reference Data'!$C$9:O$125,($P$7)+1,FALSE) ->  | V43: 0 | W43: 0 | Y43: 0 | AC43: 0 | AD43: =IF(ISBLANK($A43),1,VLOOKUP($A43,'Reference Data'!$B$9:$D$133,3,FALSE)) -> 0 | AX43: 0
A44: Project Manager | D44: =IF(Q44>1,VLOOKUP(Q44,'Reference Data'!$C$9:$C$43,5,FALSE),"") ->  | G44: =IF(Q44>1,VLOOKUP(Q44,'Reference Data'!$C$9:$C$43,3,FALSE),"") ->  | Q44: =IF(ISBLANK($A44),1,VLOOKUP($A44,'Reference Data'!$B$9:$C$133,2,FALSE)) -> 4 | R44: =VLOOKUP(Q44,'Reference Data'!$C$9:O$125,($P$7)+1,FALSE) ->  | V44: 0 | W44: 0 | Y44: 0 | AC44: 0 | AD44: =IF(ISBLANK($A44),1,VLOOKUP($A44,'Reference Data'!$B$9:$D$133,3,FALSE)) -> 0 | AX44: 0
A45: Staff | D45: =IF(Q45>1,VLOOKUP(Q45,'Reference Data'!$C$9:$C$43,5,FALSE),"") ->  | G45: =IF(Q45>1,VLOOKUP(Q45,'Reference Data'!$C$9:$C$43,3,FALSE),"") ->  | Q45: =IF(ISBLANK($A45),1,VLOOKUP($A45,'Reference Data'!$B$9:$C$133,2,FALSE)) -> 5 | R45: =VLOOKUP(Q45,'Reference Data'!$C$9:O$125,($P$7)+1,FALSE) ->  | V45: 0 | W45: 0 | Y45: 0 | AC45: 0 | AD45: =IF(ISBLANK($A45),1,VLOOKUP($A45,'Reference Data'!$B$9:$D$133,3,FALSE)) -> 0 | AX45: 0
A46: Technician | D46: =IF(Q46>1,VLOOKUP(Q46,'Reference Data'!$C$9:$C$43,5,FALSE),"") ->  | G46: =IF(Q46>1,VLOOKUP(Q46,'Reference Data'!$C$9:$C$43,3,FALSE),"") ->  | Q46: =IF(ISBLANK($A46),1,VLOOKUP($A46,'Reference Data'!$B$9:$C$133,2,FALSE)) -> 6 | R46: =VLOOKUP(Q46,'Reference Data'!$C$9:O$125,($P$7)+1,FALSE) ->  | V46: 0 | W46: 0 | Y46: 0 | AC46: 0 | AD46: =IF(ISBLANK($A46),1,VLOOKUP($A46,'Reference Data'!$B$9:$D$133,3,FALSE)) -> 0 | AX46: 0
A47: Drafting | D47: =IF(Q47>1,VLOOKUP(Q47,'Reference Data'!$C$9:$C$43,5,FALSE),"") ->  | G47: =IF(Q47>1,VLOOKUP(Q47,'Reference Data'!$C$9:$C$43,3,FALSE),"") ->  | Q47: =IF(ISBLANK($A47),1,VLOOKUP($A47,'Reference Data'!$B$9:$C$133,2,FALSE)) -> 7 | R47: =VLOOKUP(Q47,'Reference Data'!$C$9:O$125,($P$7)+1,FALSE) ->  | V47: 0 | W47: 0 | Y47: 0 | AC47: 0 | AD47: =IF(ISBLANK($A47),1,VLOOKUP($A47,'Reference Data'!$B$9:$D$133,3,FALSE)) -> 0 | AX47: 0
A48: Clerical | D48: =IF(Q48>1,VLOOKUP(Q48,'Reference Data'!$C$9:$C$43,5,FALSE),"") ->  | G48: =IF(Q48>1,VLOOKUP(Q48,'Reference Data'!$C$9:$C$43,3,FALSE),"") ->  | Q48: =IF(ISBLANK($A48),1,VLOOKUP($A48,'Reference Data'!$B$9:$C$133,2,FALSE)) -> 8 | R48: =VLOOKUP(Q48,'Reference Data'!$C$9:O$125,($P$7)+1,FALSE) ->  | V48: 0 | W48: 0 | Y48: 0 | AC48: 0 | AD48: =IF(ISBLANK($A48),1,VLOOKUP($A48,'Reference Data'!$B$9:$D$133,3,FALSE)) -> 0 | AX48: 0
A49: Copies | D49: =IF(Q49>1,VLOOKUP(Q49,'Reference Data'!$C$9:$C$43,5,FALSE),"") ->  | G49: =IF(Q49>1,VLOOKUP(Q49,'Reference Data'!$C$9:$C$43,3,FALSE),"") ->  | Q49: =IF(ISBLANK($A49),1,VLOOKUP($A49,'Reference Data'!$B$9:$C$133,2,FALSE)) -> 96 | R49: =VLOOKUP(Q49,'Reference Data'!$C$9:O$125,($P$7)+1,FALSE) ->  | V49: 0 | W49: 0 | Y49: 0 | AC49: 0 | AD49: =IF(ISBLANK($A49),1,VLOOKUP($A49,'Reference Data'!$B$9:$D$133,3,FALSE)) -> 0 | AX49: 0
A50: Other (markup eligible) | C50: 1 | D50: =IF(Q50>1,VLOOKUP(Q50,'Reference Data'!$C$9:$C$43,5,FALSE),"") ->  | E50: 0 | F50: 0 | G50: =IF(Q50>1,VLOOKUP(Q50,'Reference Data'!$C$9:$C$43,3,FALSE),"") ->  | I50: =IF($E50=0,"",IF(($A$8)="Please Choose Date","Select Date Error!",IF($R50="N/A","",$X50))) ->  | Q50: =IF(ISBLANK($A50),1,VLOOKUP($A50,'Reference Data'!$B$9:$C$133,2,FALSE)) -> 94 | R50: =VLOOKUP(Q50,'Reference Data'!$C$9:O$125,($P$7)+1,FALSE) ->  | T50: 0 | U50: 0 | V50: 0 | W50: 0 | X50: 0 | Y50: 0 | Z50: 0 | AC50: 1 | AD50: =IF(ISBLANK($A50),1,VLOOKUP($A50,'Reference Data'!$B$9:$D$133,3,FALSE)) -> 1 | AX50: 0
A51: Other (not markup eligible) | C51: 1 | D51: =IF(Q51>1,VLOOKUP(Q51,'Reference Data'!$C$9:$C$43,5,FALSE),"") ->  | E51: 0 | F51: 0 | G51: =IF(Q51>1,VLOOKUP(Q51,'Reference Data'!$C$9:$C$43,3,FALSE),"") ->  | I51: =IF($E51=0,"",IF(($A$8)="Please Choose Date","Select Date Error!",IF($R51="N/A","",$X51))) ->  | Q51: =IF(ISBLANK($A51),1,VLOOKUP($A51,'Reference Data'!$B$9:$C$133,2,FALSE)) -> 95 | R51: =VLOOKUP(Q51,'Reference Data'!$C$9:O$125,($P$7)+1,FALSE) ->  | T51: 0 | U51: 0 | V51: 0 | W51: 0 | X51: 0 | Y51: 0 | Z51: 0 | AC51: 1 | AD51: =IF(ISBLANK($A51),1,VLOOKUP($A51,'Reference Data'!$B$9:$D$133,3,FALSE)) -> 0 | AX51: 0
A52: Immediate Response Grand Total | I52: =SUM(I15:I51) -> 0 | R52: =VLOOKUP(Q52,'Reference Data'!$C$9:O$125,($P$7)+1,FALSE) ->  | AA52: =I52 -> 0 | AW52: 0 | AX52: 0
A53: Site Characterization and CAP Development Costs | R53: =VLOOKUP(Q53,'Reference Data'!$C$9:Z$125,($P$7)+1,FALSE) ->  | AW53: =IF(SUM($I$57:$I$298)>0, 1, 0) -> 0 | AX53: 0
A54: Initial Site Characterization | R54: =VLOOKUP(Q54,'Reference Data'!$C$9:Z$125,($P$7)+1,FALSE) ->  | AW54: =IF(SUM($I$57:$I$134)>0, 1, 0) -> 0 | AX54: 0
A55: Planning, Preparation, and Follow-up Costs (Office) | R55: =VLOOKUP(Q55,'Reference Data'!$C$9:Z$125,($P$7)+1,FALSE) ->  | AW55: =IF(SUM($I$57:$I$65)>0, 1, 0) -> 0 | AX55: 0
A56: DESCRIPTION | B56: TASK PERFORMED | C56: UNITS | D56: TYPE | E56: UNIT COST | F56: TOTAL W/O MARKUP OR TAX | G56: TAX (NO MARKUP) | H56: % MARK-UP | I56: AMOUNT PROPOSED | Q56: Automated Descriptor | R56: =VLOOKUP(Q56,'Reference Data'!$C$9:Z$125,($P$7)+1,FALSE) ->  | S56: Total Automated Unit Cost | T56: PROPOSED Unit Cost | U56: PROPOSED total w/o markup or tax | V56: PROPOSED Tax | W56: PROPOSED Markup | X56: PROPOSED Total AMT | Y56: Lower Calculated Markup | Z56: Lower Calculated total w/ markup and tax | AA56: Lower Cost Final total | AB56: Amt Denied | AC56: Units Rounded | AD56: Markup Available | AW56: =IF(SUM($I$57:$I$65)>0, 1, 0) -> 0 | AX56: 0
A57: Principal | D57: =IF(Q57>1,VLOOKUP(Q57,'Reference Data'!$C$9:$C$43,5,FALSE),"") ->  | E57: =R57 -> 175.25 | F57: =IF(ISNUMBER(C57),IF(ISNUMBER(E57),ROUND(AC57*E57,2),""),"") ->  | G57: =IF(Q57>1,VLOOKUP(Q57,'Reference Data'!$C$9:$C$43,3,FALSE),"") ->  | I57: =IF(ISBLANK($C57),"",IF(($A$8)="Please Choose Date","Select Date Error!",IF($R57="N/A","",$X57))) ->  | Q57: =IF(ISBLANK($A57),1,VLOOKUP($A57,'Reference Data'!$B$9:$C$133,2,FALSE)) -> 2 | R57: =VLOOKUP(Q57,'Reference Data'!$C$9:Z$125,($P$7)+1,FALSE) -> 175.25 | S57: =IF(Q57>1, ROUND(R57*AC57,2), "") -> 0 | T57: =IF(ISNUMBER(E57),E57,"") -> 175.25 | U57: =IF(ISNUMBER(T57),ROUND(E57*AC57,2),"") -> 0 | V57: =IF(ISNUMBER(G57),G57,0) -> 0 | W57: =IF(ISNUMBER(H57), H57, 0) -> 0 | X57: =IF(Q57>1,IF(ISNUMBER(U57),ROUND(U57*(1+W57)+V57,2),S57),"") -> 0 | Y57: =IF(W57>$AB$7,$AB$7,W57) -> 0 | Z57: =IF(ISNUMBER(U57),ROUND(U57*(Y57+1)+V57,2),S57) -> 0 | AA57: =IF(AND(Q57>1,S57>0,S57<Z57),S57,Z57) -> 0 | AB57: =IF(AND(ISNUMBER(X57),ISNUMBER(AA57)),IF((X57-AA57)>0,X57-AA57,""),"") ->  | AC57: =ROUND($C57,2) -> 0 | AD57: =IF(ISBLANK($A57),1,VLOOKUP($A57,'Reference Data'!$B$9:$D$133,3,FALSE)) -> 0 | AW57: 0 | AX57: 0
A58: Senior Project Manager | D58: =IF(Q58>1,VLOOKUP(Q58,'Reference Data'!$C$9:$C$43,5,FALSE),"") ->  | E58: 162.75 | F58: =IF(ISNUMBER(C58),IF(ISNUMBER(E58),ROUND(AC58*E58,2),""),"") ->  | G58: =IF(Q58>1,VLOOKUP(Q58,'Reference Data'!$C$9:$C$43,3,FALSE),"") ->  | Q58: =IF(ISBLANK($A58),1,VLOOKUP($A58,'Reference Data'!$B$9:$C$133,2,FALSE)) -> 3 | R58: =VLOOKUP(Q58,'Reference Data'!$C$9:Z$125,($P$7)+1,FALSE) -> 162.75 | S58: 0 | T58: 162.75 | U58: 0 | V58: 0 | W58: 0 | X58: 0 | Y58: 0 | Z58: 0 | AA58: 0 | AC58: 0 | AD58: =IF(ISBLANK($A58),1,VLOOKUP($A58,'Reference Data'!$B$9:$D$133,3,FALSE)) -> 0 | AW58: 0 | AX58: 0
A59: Project Manager | D59: =IF(Q59>1,VLOOKUP(Q59,'Reference Data'!$C$9:$C$43,5,FALSE),"") ->  | E59: 133.75 | G59: =IF(Q59>1,VLOOKUP(Q59,'Reference Data'!$C$9:$C$43,3,FALSE),"") ->  | Q59: =IF(ISBLANK($A59),1,VLOOKUP($A59,'Reference Data'!$B$9:$C$133,2,FALSE)) -> 4 | R59: =VLOOKUP(Q59,'Reference Data'!$C$9:Z$125,($P$7)+1,FALSE) -> 133.75 | S59: 0 | T59: 133.75 | U59: 0 | V59: 0 | W59: 0 | X59: 0 | Y59: 0 | Z59: 0 | AA59: 0 | AC59: 0 | AD59: =IF(ISBLANK($A59),1,VLOOKUP($A59,'Reference Data'!$B$9:$D$133,3,FALSE)) -> 0 | AW59: 0 | AX59: 0
A60: Staff | D60: =IF(Q60>1,VLOOKUP(Q60,'Reference Data'!$C$9:$C$43,5,FALSE),"") ->  | E60: 112.25 | G60: =IF(Q60>1,VLOOKUP(Q60,'Reference Data'!$C$9:$C$43,3,FALSE),"") ->  | Q60: =IF(ISBLANK($A60),1,VLOOKUP($A60,'Reference Data'!$B$9:$C$133,2,FALSE)) -> 5 | R60: =VLOOKUP(Q60,'Reference Data'!$C$9:Z$125,($P$7)+1,FALSE) -> 112.25 | S60: 0 | T60: 112.25 | U60: 0 | V60: 0 | W60: 0 | X60: 0 | Y60: 0 | Z60: 0 | AA60: 0 | AC60: 0 | AD60: =IF(ISBLANK($A60),1,VLOOKUP($A60,'Reference Data'!$B$9:$D$133,3,FALSE)) -> 0 | AW60: 0 | AX60: 0
A61: Technician | D61: =IF(Q61>1,VLOOKUP(Q61,'Reference Data'!$C$9:$C$43,5,FALSE),"") ->  | E61: 77 | G61: =IF(Q61>1,VLOOKUP(Q61,'Reference Data'!$C$9:$C$43,3,FALSE),"") ->  | Q61: =IF(ISBLANK($A61),1,VLOOKUP($A61,'Reference Data'!$B$9:$C$133,2,FALSE)) -> 6 | R61: =VLOOKUP(Q61,'Reference Data'!$C$9:Z$125,($P$7)+1,FALSE) -> 77 | S61: 0 | T61: 77 | U61: 0 | V61: 0 | W61: 0 | X61: 0 | Y61: 0 | Z61: 0 | AA61: 0 | AC61: 0 | AD61: =IF(ISBLANK($A61),1,VLOOKUP($A61,'Reference Data'!$B$9:$D$133,3,FALSE)) -> 0 | AW61: 0 | AX61: 0
A62: Drafting | D62: =IF(Q62>1,VLOOKUP(Q62,'Reference Data'!$C$9:$C$43,5,FALSE),"") ->  | E62: 64.25 | G62: =IF(Q62>1,VLOOKUP(Q62,'Reference Data'!$C$9:$C$43,3,FALSE),"") ->  | Q62: =IF(ISBLANK($A62),1,VLOOKUP($A62,'Reference Data'!$B$9:$C$133,2,FALSE)) -> 7 | R62: =VLOOKUP(Q62,'Reference Data'!$C$9:Z$125,($P$7)+1,FALSE) -> 64.25 | S62: 0 | T62: 64.25 | U62: 0 | V62: 0 | W62: 0 | X62: 0 | Y62: 0 | Z62: 0 | AA62: 0 | AC62: 0 | AD62: =IF(ISBLANK($A62),1,VLOOKUP($A62,'Reference Data'!$B$9:$D$133,3,FALSE)) -> 0 | AW62: 0 | AX62: 0
A63: Clerical | D63: =IF(Q63>1,VLOOKUP(Q63,'Reference Data'!$C$9:$C$43,5,FALSE),"") ->  | E63: 45.5 | G63: =IF(Q63>1,VLOOKUP(Q63,'Reference Data'!$C$9:$C$43,3,FALSE),"") ->  | Q63: =IF(ISBLANK($A63),1,VLOOKUP($A63,'Reference Data'!$B$9:$C$133,2,FALSE)) -> 8 | R63: =VLOOKUP(Q63,'Reference Data'!$C$9:Z$125,($P$7)+1,FALSE) -> 45.5 | S63: 0 | T63: 45.5 | U63: 0 | V63: 0 | W63: 0 | X63: 0 | Y63: 0 | Z63: 0 | AA63: 0 | AC63: 0 | AD63: =IF(ISBLANK($A63),1,VLOOKUP($A63,'Reference Data'!$B$9:$D$133,3,FALSE)) -> 0 | AW63: 0 | AX63: 0
A64: Other (markup eligible) | C64: 1 | D64: =IF(Q64>1,VLOOKUP(Q64,'Reference Data'!$C$9:$C$43,5,FALSE),"") ->  | E64: 0 | F64: 0 | G64: =IF(Q64>1,VLOOKUP(Q64,'Reference Data'!$C$9:$C$43,3,FALSE),"") ->  | I64: =IF($E64=0,"",IF(($A$8)="Please Choose Date","Select Date Error!",IF($R64="N/A","",$X64))) ->  | Q64: =IF(ISBLANK($A64),1,VLOOKUP($A64,'Reference Data'!$B$9:$C$133,2,FALSE)) -> 94 | R64: =VLOOKUP(Q64,'Reference Data'!$C$9:Z$125,($P$7)+1,FALSE) -> 0 | S64: 0 | T64: 0 | U64: 0 | V64: 0 | W64: 0 | X64: 0 | Y64: 0 | Z64: 0 | AA64: 0 | AC64: 1 | AD64: =IF(ISBLANK($A64),1,VLOOKUP($A64,'Reference Data'!$B$9:$D$133,3,FALSE)) -> 1 | AW64: 0 | AX64: 0
A65: Other (not markup eligible) | C65: 1 | D65: =IF(Q65>1,VLOOKUP(Q65,'Reference Data'!$C$9:$C$43,5,FALSE),"") ->  | E65: 0 | F65: 0 | G65: =IF(Q65>1,VLOOKUP(Q65,'Reference Data'!$C$9:$C$43,3,FALSE),"") ->  | I65: =IF($E65=0,"",IF(($A$8)="Please Choose Date","Select Date Error!",IF($R65="N/A","",$X65))) ->  | Q65: =IF(ISBLANK($A65),1,VLOOKUP($A65,'Reference Data'!$B$9:$C$133,2,FALSE)) -> 95 | R65: =VLOOKUP(Q65,'Reference Data'!$C$9:Z$125,($P$7)+1,FALSE) -> 0 | S65: 0 | T65: 0 | U65: 0 | V65: 0 | W65: 0 | X65: 0 | Y65: 0 | Z65: 0 | AA65: 0 | AC65: 1 | AD65: =IF(ISBLANK($A65),1,VLOOKUP($A65,'Reference Data'!$B$9:$D$133,3,FALSE)) -> 0 | AW65: 0 | AX65: 0
R66: =VLOOKUP(Q66,'Reference Data'!$C$9:Z$125,($P$7)+1,FALSE) ->  | AW66: =IF(SUM($I$69:$I93)>0, 1, 0) -> 0 | AX66: 0
A67: Field Costs | G67: =IF(Q67>1,VLOOKUP(Q67,'Reference Data'!$C$9:$C$43,3,FALSE),"") ->  | I67: =IF(ISBLANK($C67),"",IF(($A$8)="Please Choose Date","Select Date Error!",IF($R67="N/A","",$X67))) ->  | R67: =VLOOKUP(Q67,'Reference Data'!$C$9:Z$125,($P$7)+1,FALSE) ->  | AW67: =IF(SUM($I$69:$I93)>0, 1, 0) -> 0 | AX67: 0
A68: DESCRIPTION | B68: TASK PERFORMED | C68: UNITS | D68: TYPE | E68: UNIT COST | F68: TOTAL W/O MARKUP OR TAX | G68: TAX (NO MARKUP) | H68: % MARK-UP | I68: AMOUNT PROPOSED | Q68: Automated Descriptor | R68: =VLOOKUP(Q68,'Reference Data'!$C$9:Z$125,($P$7)+1,FALSE) ->  | S68: Total Automated Unit Cost | T68: PROPOSED Unit Cost | U68: PROPOSED total w/o markup or tax | V68: PROPOSED Tax | W68: PROPOSED Markup | X68: PROPOSED Total AMT | Y68: Lower Calculated Markup | Z68: Lower Calculated total w/ markup and tax | AA68: Lower Cost Final total | AB68: Amt Denied | AC68: Units Rounded | AD68: Markup Available | AW68: =IF(SUM($I$69:$I93)>0, 1, 0) -> 0 | AX68: 0
A69: Principal | D69: =IF(Q69>1,VLOOKUP(Q69,'Reference Data'!$C$9:$C$43,5,FALSE),"") ->  | E69: =R69 -> 175.25 | G69: =IF(Q69>1,VLOOKUP(Q69,'Reference Data'!$C$9:$C$43,3,FALSE),"") ->  | I69: =IF(ISBLANK($C69),"",IF(($A$8)="Please Choose Date","Select Date Error!",IF($R69="N/A","",$X69))) ->  | Q69: =IF(ISBLANK($A69),1,VLOOKUP($A69,'Reference Data'!$B$9:$C$133,2,FALSE)) -> 2 | R69: =VLOOKUP(Q69,'Reference Data'!$C$9:Z$125,($P$7)+1,FALSE) -> 175.25 | S69: =IF(Q69>1, ROUND(R69*AC69,2), "") -> 0 | T69: =IF(ISNUMBER(E69),E69,"") -> 175.25 | U69: =IF(ISNUMBER(T69),ROUND(E69*AC69,2),"") -> 0 | V69: =IF(ISNUMBER(G69),G69,0) -> 0 | W69: =IF(ISNUMBER(H69), H69, 0) -> 0 | X69: =IF(Q69>1,IF(ISNUMBER(U69),ROUND(U69*(1+W69)+V69,2),S69),"") -> 0 | Y69: =IF(W69>$AB$7,$AB$7,W69) -> 0 | Z69: =IF(ISNUMBER(U69),ROUND(U69*(Y69+1)+V69,2),S69) -> 0 | AA69: =IF(AND(Q69>1,S69>0,S69<Z69),S69,Z69) -> 0 | AB69: =IF(AND(ISNUMBER(X69),ISNUMBER(AA69)),IF((X69-AA69)>0,X69-AA69,""),"") ->  | AC69: =ROUND($C69,2) -> 0 | AD69: =IF(ISBLANK($A69),1,VLOOKUP($A69,'Reference Data'!$B$9:$D$133,3,FALSE)) -> 0 | AW69: 0 | AX69: 0
A70: Senior Project Manager | D70: =IF(Q70>1,VLOOKUP(Q70,'Reference Data'!$C$9:$C$43,5,FALSE),"") ->  | E70: 162.75 | G70: =IF(Q70>1,VLOOKUP(Q70,'Reference Data'!$C$9:$C$43,3,FALSE),"") ->  | I70: =IF(ISBLANK($C70),"",IF(($A$8)="Please Choose Date","Select Date Error!",IF($R70="N/A","",$X70))) ->  | Q70: =IF(ISBLANK($A70),1,VLOOKUP($A70,'Reference Data'!$B$9:$C$133,2,FALSE)) -> 3 | R70: =VLOOKUP(Q70,'Reference Data'!$C$9:Z$125,($P$7)+1,FALSE) -> 162.75 | S70: 0 | T70: 162.75 | U70: 0 | V70: 0 | W70: 0 | X70: 0 | Y70: 0 | Z70: 0 | AA70: 0 | AC70: 0 | AD70: =IF(ISBLANK($A70),1,VLOOKUP($A70,'Reference Data'!$B$9:$D$133,3,FALSE)) -> 0 | AW70: 0 | AX70: 0
A71: Project Manager | D71: =IF(Q71>1,VLOOKUP(Q71,'Reference Data'!$C$9:$C$43,5,FALSE),"") ->  | E71: 133.75 | G71: =IF(Q71>1,VLOOKUP(Q71,'Reference Data'!$C$9:$C$43,3,FALSE),"") ->  | Q71: =IF(ISBLANK($A71),1,VLOOKUP($A71,'Reference Data'!$B$9:$C$133,2,FALSE)) -> 4 | R71: =VLOOKUP(Q71,'Reference Data'!$C$9:Z$125,($P$7)+1,FALSE) -> 133.75 | S71: 0 | T71: 133.75 | U71: 0 | V71: 0 | W71: 0 | X71: 0 | Y71: 0 | Z71: 0 | AA71: 0 | AC71: 0 | AD71: =IF(ISBLANK($A71),1,VLOOKUP($A71,'Reference Data'!$B$9:$D$133,3,FALSE)) -> 0 | AW71: 0 | AX71: 0
A72: Staff | D72: =IF(Q72>1,VLOOKUP(Q72,'Reference Data'!$C$9:$C$43,5,FALSE),"") ->  | E72: 112.25 | G72: =IF(Q72>1,VLOOKUP(Q72,'Reference Data'!$C$9:$C$43,3,FALSE),"") ->  | Q72: =IF(ISBLANK($A72),1,VLOOKUP($A72,'Reference Data'!$B$9:$C$133,2,FALSE)) -> 5 | R72: =VLOOKUP(Q72,'Reference Data'!$C$9:Z$125,($P$7)+1,FALSE) -> 112.25 | S72: 0 | T72: 112.25 | U72: 0 | V72: 0 | W72: 0 | X72: 0 | Y72: 0 | Z72: 0 | AA72: 0 | AC72: 0 | AD72: =IF(ISBLANK($A72),1,VLOOKUP($A72,'Reference Data'!$B$9:$D$133,3,FALSE)) -> 0 | AW72: 0 | AX72: 0
A73: Technician | D73: =IF(Q73>1,VLOOKUP(Q73,'Reference Data'!$C$9:$C$43,5,FALSE),"") ->  | E73: 77 | G73: =IF(Q73>1,VLOOKUP(Q73,'Reference Data'!$C$9:$C$43,3,FALSE),"") ->  | Q73: =IF(ISBLANK($A73),1,VLOOKUP($A73,'Reference Data'!$B$9:$C$133,2,FALSE)) -> 6 | R73: =VLOOKUP(Q73,'Reference Data'!$C$9:Z$125,($P$7)+1,FALSE) -> 77 | S73: 0 | T73: 77 | U73: 0 | V73: 0 | W73: 0 | X73: 0 | Y73: 0 | Z73: 0 | AA73: 0 | AC73: 0 | AD73: =IF(ISBLANK($A73),1,VLOOKUP($A73,'Reference Data'!$B$9:$D$133,3,FALSE)) -> 0 | AW73: 0 | AX73: 0
A74: Drafting | D74: =IF(Q74>1,VLOOKUP(Q74,'Reference Data'!$C$9:$C$43,5,FALSE),"") ->  | E74: 64.25 | G74: =IF(Q74>1,VLOOKUP(Q74,'Reference Data'!$C$9:$C$43,3,FALSE),"") ->  | Q74: =IF(ISBLANK($A74),1,VLOOKUP($A74,'Reference Data'!$B$9:$C$133,2,FALSE)) -> 7 | R74: =VLOOKUP(Q74,'Reference Data'!$C$9:Z$125,($P$7)+1,FALSE) -> 64.25 | S74: 0 | T74: 64.25 | U74: 0 | V74: 0 | W74: 0 | X74: 0 | Y74: 0 | Z74: 0 | AA74: 0 | AC74: 0 | AD74: =IF(ISBLANK($A74),1,VLOOKUP($A74,'Reference Data'!$B$9:$D$133,3,FALSE)) -> 0 | AW74: 0 | AX74: 0
A75: Clerical | D75: =IF(Q75>1,VLOOKUP(Q75,'Reference Data'!$C$9:$C$43,5,FALSE),"") ->  | E75: 45.5 | G75: =IF(Q75>1,VLOOKUP(Q75,'Reference Data'!$C$9:$C$43,3,FALSE),"") ->  | Q75: =IF(ISBLANK($A75),1,VLOOKUP($A75,'Reference Data'!$B$9:$C$133,2,FALSE)) -> 8 | R75: =VLOOKUP(Q75,'Reference Data'!$C$9:Z$125,($P$7)+1,FALSE) -> 45.5 | S75: 0 | T75: 45.5 | U75: 0 | V75: 0 | W75: 0 | X75: 0 | Y75: 0 | Z75: 0 | AA75: 0 | AC75: 0 | AD75: =IF(ISBLANK($A75),1,VLOOKUP($A75,'Reference Data'!$B$9:$D$133,3,FALSE)) -> 0 | AW75: 0 | AX75: 0
A76: Mileage | D76: =IF(Q76>1,VLOOKUP(Q76,'Reference Data'!$C$9:$C$43,5,FALSE),"") ->  | E76: 0.725 | G76: =IF(Q76>1,VLOOKUP(Q76,'Reference Data'!$C$9:$C$43,3,FALSE),"") ->  | Q76: =IF(ISBLANK($A76),1,VLOOKUP($A76,'Reference Data'!$B$9:$C$133,2,FALSE)) -> 9 | R76: =VLOOKUP(Q76,'Reference Data'!$C$9:Z$125,($P$7)+1,FALSE) -> 0.725 | S76: 0 | T76: 0.725 | U76: 0 | V76: 0 | W76: 0 | X76: 0 | Y76: 0 | Z76: 0 | AA76: 0 | AC76: 0 | AD76: =IF(ISBLANK($A76),1,VLOOKUP($A76,'Reference Data'!$B$9:$D$133,3,FALSE)) -> 0 | AW76: 0 | AX76: 0
A77: Overnight lodging (total) | C77: 1 | D77: =IF(Q77>1,VLOOKUP(Q77,'Reference Data'!$C$9:$C$43,5,FALSE),"") ->  | E77: 0 | F77: 0 | G77: =IF(Q77>1,VLOOKUP(Q77,'Reference Data'!$C$9:$C$43,3,FALSE),"") ->  | I77: =IF($E77=0,"",IF(($A$8)="Please Choose Date","Select Date Error!",IF($R77="N/A","",$X77))) ->  | Q77: =IF(ISBLANK($A77),1,VLOOKUP($A77,'Reference Data'!$B$9:$C$133,2,FALSE)) -> 10 | R77: =VLOOKUP(Q77,'Reference Data'!$C$9:Z$125,($P$7)+1,FALSE) -> 0 | S77: 0 | T77: 0 | U77: 0 | V77: 0 | W77: 0 | X77: 0 | Y77: 0 | Z77: 0 | AA77: 0 | AC77: 1 | AD77: =IF(ISBLANK($A77),1,VLOOKUP($A77,'Reference Data'!$B$9:$D$133,3,FALSE)) -> 0 | AW77: 0 | AX77: 0
A78: Per diem | D78: =IF(Q78>1,VLOOKUP(Q78,'Reference Data'!$C$9:$C$43,5,FALSE),"") ->  | E78: =R78 -> 41 | G78: =IF(Q78>1,VLOOKUP(Q78,'Reference Data'!$C$9:$C$43,3,FALSE),"") ->  | Q78: =IF(ISBLANK($A78),1,VLOOKUP($A78,'Reference Data'!$B$9:$C$133,2,FALSE)) -> 11 | R78: =VLOOKUP(Q78,'Reference Data'!$C$9:Z$125,($P$7)+1,FALSE) -> 41 | S78: 0 | T78: 41 | U78: 0 | V78: 0 | W78: 0 | X78: 0 | Y78: 0 | Z78: 0 | AA78: 0 | AC78: 0 | AD78: =IF(ISBLANK($A78),1,VLOOKUP($A78,'Reference Data'!$B$9:$D$133,3,FALSE)) -> 0 | AW78: 0 | AX78: 0
A79: Bailers | E79: 20 | Q79: =IF(ISBLANK($A79),1,VLOOKUP($A79,'Reference Data'!$B$9:$C$133,2,FALSE)) -> 15 | R79: =VLOOKUP(Q79,'Reference Data'!$C$9:Z$125,($P$7)+1,FALSE) -> 20 | S79: =IF(Q79>1, ROUND(R79*AC79,2), "") -> 0 | T79: =IF(ISNUMBER(E79),E79,"") -> 20 | U79: =IF(ISNUMBER(T79),ROUND(E79*AC79,2),"") -> 0 | V79: =IF(ISNUMBER(G79),G79,0) -> 0 | W79: =IF(ISNUMBER(H79), H79, 0) -> 0 | X79: =IF(Q79>1,IF(ISNUMBER(U79),ROUND(U79*(1+W79)+V79,2),S79),"") -> 0 | Y79: =IF(W79>$AB$7,$AB$7,W79) -> 0 | Z79: =IF(ISNUMBER(U79),ROUND(U79*(Y79+1)+V79,2),S79) -> 0 | AA79: =IF(AND(Q79>1,S79>0,S79<Z79),S79,Z79) -> 0 | AB79: =IF(AND(ISNUMBER(X79),ISNUMBER(AA79)),IF((X79-AA79)>0,X79-AA79,""),"") ->  | AC79: 0 | AD79: =IF(ISBLANK($A79),1,VLOOKUP($A79,'Reference Data'!$B$9:$D$133,3,FALSE)) -> 0 | AW79: 0 | AX79: 0
A80: Boring Incidentals | D80: =IF(Q80>1,VLOOKUP(Q80,'Reference Data'!$C$9:$C$43,5,FALSE),"") ->  | E80: 30 | G80: =IF(Q80>1,VLOOKUP(Q80,'Reference Data'!$C$9:$C$43,3,FALSE),"") ->  | Q80: =IF(ISBLANK($A80),1,VLOOKUP($A80,'Reference Data'!$B$9:$C$133,2,FALSE)) -> 16 | R80: =VLOOKUP(Q80,'Reference Data'!$C$9:Z$125,($P$7)+1,FALSE) -> 30 | S80: 0 | T80: 30 | U80: 0 | V80: 0 | W80: 0 | X80: 0 | Y80: 0 | Z80: 0 | AA80: 0 | AC80: 0 | AD80: =IF(ISBLANK($A80),1,VLOOKUP($A80,'Reference Data'!$B$9:$D$133,3,FALSE)) -> 0 | AW80: 0 | AX80: 0
A81: Decon | D81: =IF(Q81>1,VLOOKUP(Q81,'Reference Data'!$C$9:$C$43,5,FALSE),"") ->  | E81: 15 | G81: =IF(Q81>1,VLOOKUP(Q81,'Reference Data'!$C$9:$C$43,3,FALSE),"") ->  | Q81: =IF(ISBLANK($A81),1,VLOOKUP($A81,'Reference Data'!$B$9:$C$133,2,FALSE)) -> 17 | R81: =VLOOKUP(Q81,'Reference Data'!$C$9:Z$125,($P$7)+1,FALSE) -> 15 | S81: 0 | T81: 15 | U81: 0 | V81: 0 | W81: 0 | X81: 0 | Y81: 0 | Z81: 0 | AA81: 0 | AC81: 0 | AD81: =IF(ISBLANK($A81),1,VLOOKUP($A81,'Reference Data'!$B$9:$D$133,3,FALSE)) -> 0 | AW81: =IF(AA81=0, 0, 1) -> 0 | AX81: 0
A82: Flame Ionization Detector | D82: =IF(Q82>1,VLOOKUP(Q82,'Reference Data'!$C$9:$C$43,5,FALSE),"") ->  | E82: 135 | G82: =IF(Q82>1,VLOOKUP(Q82,'Reference Data'!$C$9:$C$43,3,FALSE),"") ->  | Q82: =IF(ISBLANK($A82),1,VLOOKUP($A82,'Reference Data'!$B$9:$C$133,2,FALSE)) -> 19 | R82: =VLOOKUP(Q82,'Reference Data'!$C$9:Z$125,($P$7)+1,FALSE) -> 135 | S82: 0 | T82: =IF(ISNUMBER(E82),E82,"") -> 135 | U82: 0 | V82: =IF(ISNUMBER(G82),G82,0) -> 0 | W82: 0 | X82: 0 | Y82: =IF(W82>$AB$7,$AB$7,W82) -> 0 | Z82: 0 | AA82: 0 | AB82: =IF(AND(ISNUMBER(X82),ISNUMBER(AA82)),IF((X82-AA82)>0,X82-AA82,""),"") ->  | AC82: 0 | AD82: =IF(ISBLANK($A82),1,VLOOKUP($A82,'Reference Data'!$B$9:$D$133,3,FALSE)) -> 0 | AW82: 0 | AX82: 0
A83: Hand Auger | D83: =IF(Q83>1,VLOOKUP(Q83,'Reference Data'!$C$9:$C$43,5,FALSE),"") ->  | E83: 42 | G83: =IF(Q83>1,VLOOKUP(Q83,'Reference Data'!$C$9:$C$43,3,FALSE),"") ->  | Q83: =IF(ISBLANK($A83),1,VLOOKUP($A83,'Reference Data'!$B$9:$C$133,2,FALSE)) -> 20 | R83: =VLOOKUP(Q83,'Reference Data'!$C$9:Z$125,($P$7)+1,FALSE) -> 42 | S83: 0 | T83: 42 | U83: 0 | V83: 0 | W83: 0 | X83: 0 | Y83: 0 | Z83: 0 | AA83: 0 | AC83: 0 | AD83: =IF(ISBLANK($A83),1,VLOOKUP($A83,'Reference Data'!$B$9:$D$133,3,FALSE)) -> 0 | AW83: 0 | AX83: 0
A84: Interface Probe | D84: =IF(Q84>1,VLOOKUP(Q84,'Reference Data'!$C$9:$C$43,5,FALSE),"") ->  | E84: 70 | G84: =IF(Q84>1,VLOOKUP(Q84,'Reference Data'!$C$9:$C$43,3,FALSE),"") ->  | Q84: =IF(ISBLANK($A84),1,VLOOKUP($A84,'Reference Data'!$B$9:$C$133,2,FALSE)) -> 21 | R84: =VLOOKUP(Q84,'Reference Data'!$C$9:Z$125,($P$7)+1,FALSE) -> 70 | S84: 0 | T84: 70 | U84: 0 | V84: 0 | W84: 0 | X84: 0 | Y84: 0 | Z84: 0 | AA84: 0 | AC84: 0 | AD84: =IF(ISBLANK($A84),1,VLOOKUP($A84,'Reference Data'!$B$9:$D$133,3,FALSE)) -> 0 | AW84: 0 | AX84: 0
A85: Laser Survey Equipment | D85: =IF(Q85>1,VLOOKUP(Q85,'Reference Data'!$C$9:$C$43,5,FALSE),"") ->  | E85: 90 | G85: =IF(Q85>1,VLOOKUP(Q85,'Reference Data'!$C$9:$C$43,3,FALSE),"") ->  | Q85: =IF(ISBLANK($A85),1,VLOOKUP($A85,'Reference Data'!$B$9:$C$133,2,FALSE)) -> 22 | R85: =VLOOKUP(Q85,'Reference Data'!$C$9:Z$125,($P$7)+1,FALSE) -> 90 | S85: 0 | T85: =IF(ISNUMBER(E85),E85,"") -> 90 | U85: 0 | V85: =IF(ISNUMBER(G85),G85,0) -> 0 | W85: 0 | X85: 0 | Y85: =IF(W85>$AB$7,$AB$7,W85) -> 0 | Z85: 0 | AA85: 0 | AB85: =IF(AND(ISNUMBER(X85),ISNUMBER(AA85)),IF((X85-AA85)>0,X85-AA85,""),"") ->  | AC85: 0 | AD85: =IF(ISBLANK($A85),1,VLOOKUP($A85,'Reference Data'!$B$9:$D$133,3,FALSE)) -> 0 | AW85: 0 | AX85: 0
A86: MW Incidentals | D86: =IF(Q86>1,VLOOKUP(Q86,'Reference Data'!$C$9:$C$43,5,FALSE),"") ->  | E86: 30 | G86: =IF(Q86>1,VLOOKUP(Q86,'Reference Data'!$C$9:$C$43,3,FALSE),"") ->  | Q86: =IF(ISBLANK($A86),1,VLOOKUP($A86,'Reference Data'!$B$9:$C$133,2,FALSE)) -> 26 | R86: =VLOOKUP(Q86,'Reference Data'!$C$9:Z$125,($P$7)+1,FALSE) -> 30 | S86: 0 | T86: =IF(ISNUMBER(E86),E86,"") -> 30 | U86: 0 | V86: =IF(ISNUMBER(G86),G86,0) -> 0 | W86: 0 | X86: 0 | Y86: =IF(W86>$AB$7,$AB$7,W86) -> 0 | Z86: 0 | AA86: 0 | AB86: =IF(AND(ISNUMBER(X86),ISNUMBER(AA86)),IF((X86-AA86)>0,X86-AA86,""),"") ->  | AC86: 0 | AD86: =IF(ISBLANK($A86),1,VLOOKUP($A86,'Reference Data'!$B$9:$D$133,3,FALSE)) -> 0 | AW86: 0 | AX86: 0
A87: Photo Ionization Detector | D87: =IF(Q87>1,VLOOKUP(Q87,'Reference Data'!$C$9:$C$43,5,FALSE),"") ->  | E87: 90 | G87: =IF(Q87>1,VLOOKUP(Q87,'Reference Data'!$C$9:$C$43,3,FALSE),"") ->  | Q87: =IF(ISBLANK($A87),1,VLOOKUP($A87,'Reference Data'!$B$9:$C$133,2,FALSE)) -> 30 | R87: =VLOOKUP(Q87,'Reference Data'!$C$9:Z$125,($P$7)+1,FALSE) -> 90 | S87: 0 | T87: =IF(ISNUMBER(E87),E87,"") -> 90 | U87: 0 | V87: =IF(ISNUMBER(G87),G87,0) -> 0 | W87: 0 | X87: 0 | Y87: =IF(W87>$AB$7,$AB$7,W87) -> 0 | Z87: 0 | AA87: 0 | AB87: =IF(AND(ISNUMBER(X87),ISNUMBER(AA87)),IF((X87-AA87)>0,X87-AA87,""),"") ->  | AC87: 0 | AD87: =IF(ISBLANK($A87),1,VLOOKUP($A87,'Reference Data'!$B$9:$D$133,3,FALSE)) -> 0 | AW87: 0 | AX87: 0
A88: Water Level Indicator | D88: =IF(Q88>1,VLOOKUP(Q88,'Reference Data'!$C$9:$C$43,5,FALSE),"") ->  | E88: 15 | G88: =IF(Q88>1,VLOOKUP(Q88,'Reference Data'!$C$9:$C$43,3,FALSE),"") ->  | Q88: =IF(ISBLANK($A88),1,VLOOKUP($A88,'Reference Data'!$B$9:$C$133,2,FALSE)) -> 32 | R88: =VLOOKUP(Q88,'Reference Data'!$C$9:Z$125,($P$7)+1,FALSE) -> 15 | S88: 0 | T88: 15 | U88: 0 | V88: 0 | W88: 0 | X88: 0 | Y88: 0 | Z88: 0 | AA88: 0 | AC88: 0 | AD88: =IF(ISBLANK($A88),1,VLOOKUP($A88,'Reference Data'!$B$9:$D$133,3,FALSE)) -> 0 | AW88: 0 | AX88: 0
A89: Drums | D89: =IF(Q89>1,VLOOKUP(Q89,'Reference Data'!$C$9:$C$43,5,FALSE),"") ->  | E89: 0 | G89: =IF(Q89>1,VLOOKUP(Q89,'Reference Data'!$C$9:$C$43,3,FALSE),"") ->  | Q89: =IF(ISBLANK($A89),1,VLOOKUP($A89,'Reference Data'!$B$9:$C$133,2,FALSE)) -> 49 | R89: =VLOOKUP(Q89,'Reference Data'!$C$9:Z$125,($P$7)+1,FALSE) -> 0 | S89: 0 | T89: 0 | U89: 0 | V89: 0 | W89: 0 | X89: 0 | Y89: =IF(W89>$AB$7,$AB$7,W89) -> 0 | Z89: 0 | AA89: 0 | AB89: =IF(AND(ISNUMBER(X89),ISNUMBER(AA89)),IF((X89-AA89)>0,X89-AA89,""),"") ->  | AC89: 0 | AD89: =IF(ISBLANK($A89),1,VLOOKUP($A89,'Reference Data'!$B$9:$D$133,3,FALSE)) -> 1 | AW89: 0 | AX89: 0
A90: Drum Disposal | D90: =IF(Q90>1,VLOOKUP(Q90,'Reference Data'!$C$9:$C$43,5,FALSE),"") ->  | E90: 0 | G90: =IF(Q90>1,VLOOKUP(Q90,'Reference Data'!$C$9:$C$43,3,FALSE),"") ->  | Q90: =IF(ISBLANK($A90),1,VLOOKUP($A90,'Reference Data'!$B$9:$C$133,2,FALSE)) -> 48 | R90: =VLOOKUP(Q90,'Reference Data'!$C$9:Z$125,($P$7)+1,FALSE) -> 0 | S90: 0 | T90: 0 | U90: 0 | V90: 0 | W90: 0 | X90: 0 | Y90: =IF(W90>$AB$7,$AB$7,W90) -> 0 | Z90: 0 | AA90: 0 | AB90: =IF(AND(ISNUMBER(X90),ISNUMBER(AA90)),IF((X90-AA90)>0,X90-AA90,""),"") ->  | AC90: 0 | AD90: =IF(ISBLANK($A90),1,VLOOKUP($A90,'Reference Data'!$B$9:$D$133,3,FALSE)) -> 1 | AW90: 0 | AX90: 0
A91: Utility Locate | D91: =IF(Q91>1,VLOOKUP(Q91,'Reference Data'!$C$9:$C$43,5,FALSE),"") ->  | E91: 0 | G91: =IF(Q91>1,VLOOKUP(Q91,'Reference Data'!$C$9:$C$43,3,FALSE),"") ->  | Q91: =IF(ISBLANK($A91),1,VLOOKUP($A91,'Reference Data'!$B$9:$C$133,2,FALSE)) -> 31 | R91: =VLOOKUP(Q91,'Reference Data'!$C$9:Z$125,($P$7)+1,FALSE) -> 0 | S91: 0 | T91: 0 | U91: 0 | V91: 0 | W91: 0 | X91: 0 | Y91: =IF(W91>$AB$7,$AB$7,W91) -> 0 | Z91: 0 | AA91: 0 | AB91: =IF(AND(ISNUMBER(X91),ISNUMBER(AA91)),IF((X91-AA91)>0,X91-AA91,""),"") ->  | AC91: 0 | AD91: =IF(ISBLANK($A91),1,VLOOKUP($A91,'Reference Data'!$B$9:$D$133,3,FALSE)) -> 1 | AW91: 0 | AX91: 0
A92: Other (markup eligible) | C92: 1 | D92: =IF(Q92>1,VLOOKUP(Q92,'Reference Data'!$C$9:$C$43,5,FALSE),"") ->  | E92: 0 | F92: =IF(ISNUMBER(C92),IF(ISNUMBER(E92),ROUND(AC92*E92,2),""),"") -> 0 | G92: =IF(Q92>1,VLOOKUP(Q92,'Reference Data'!$C$9:$C$43,3,FALSE),"") ->  | I92: =IF($E92=0,"",IF(($A$8)="Please Choose Date","Select Date Error!",IF($R92="N/A","",$X92))) ->  | Q92: =IF(ISBLANK($A92),1,VLOOKUP($A92,'Reference Data'!$B$9:$C$133,2,FALSE)) -> 94 | R92: =VLOOKUP(Q92,'Reference Data'!$C$9:Z$125,($P$7)+1,FALSE) -> 0 | S92: 0 | T92: =IF(ISNUMBER(E92),E92,"") -> 0 | U92: 0 | V92: =IF(ISNUMBER(G92),G92,0) -> 0 | W92: 0 | X92: 0 | Y92: =IF(W92>$AB$7,$AB$7,W92) -> 0 | Z92: 0 | AA92: 0 | AB92: =IF(AND(ISNUMBER(X92),ISNUMBER(AA92)),IF((X92-AA92)>0,X92-AA92,""),"") ->  | AC92: 1 | AD92: =IF(ISBLANK($A92),1,VLOOKUP($A92,'Reference Data'!$B$9:$D$133,3,FALSE)) -> 1 | AW92: 0 | AX92: 0
A93: Other (not markup eligible) | C93: 1 | D93: =IF(Q93>1,VLOOKUP(Q93,'Reference Data'!$C$9:$C$43,5,FALSE),"") ->  | E93: 0 | F93: =IF(ISNUMBER(C93),IF(ISNUMBER(E93),ROUND(AC93*E93,2),""),"") -> 0 | G93: =IF(Q93>1,VLOOKUP(Q93,'Reference Data'!$C$9:$C$43,3,FALSE),"") ->  | I93: =IF($E93=0,"",IF(($A$8)="Please Choose Date","Select Date Error!",IF($R93="N/A","",$X93))) ->  | Q93: =IF(ISBLANK($A93),1,VLOOKUP($A93,'Reference Data'!$B$9:$C$133,2,FALSE)) -> 95 | R93: =VLOOKUP(Q93,'Reference Data'!$C$9:Z$125,($P$7)+1,FALSE) -> 0 | S93: 0 | T93: =IF(ISNUMBER(E93),E93,"") -> 0 | U93: 0 | V93: =IF(ISNUMBER(G93),G93,0) -> 0 | W93: 0 | X93: 0 | Y93: =IF(W93>$AB$7,$AB$7,W93) -> 0 | Z93: 0 | AA93: 0 | AB93: =IF(AND(ISNUMBER(X93),ISNUMBER(AA93)),IF((X93-AA93)>0,X93-AA93,""),"") ->  | AC93: 1 | AD93: =IF(ISBLANK($A93),1,VLOOKUP($A93,'Reference Data'!$B$9:$D$133,3,FALSE)) -> 0 | AW93: 0 | AX93: 0
A94: Laboratory Analyses (Soil) | D94: =IF(Q94>1,VLOOKUP(Q94,'Reference Data'!$C$9:$C$43,5,FALSE),"") ->  | G94: =IF(Q94>1,VLOOKUP(Q94,'Reference Data'!$C$9:$C$43,3,FALSE),"") ->  | R94: =VLOOKUP(Q94,'Reference Data'!$C$9:Z$125,($P$7)+1,FALSE) ->  | AW94: =IF(SUM($I$95:$I106)>0, 1, 0) -> 0 | AX94: 0
A95: VOC -8260 (soil) | D95: =IF(Q95>1,VLOOKUP(Q95,'Reference Data'!$C$9:$C$43,5,FALSE),"") ->  | E95: 0 | G95: =IF(Q95>1,VLOOKUP(Q95,'Reference Data'!$C$9:$C$43,3,FALSE),"") ->  | Q95: =IF(ISBLANK($A95),1,VLOOKUP($A95,'Reference Data'!$B$9:$C$133,2,FALSE)) -> 75 | R95: =VLOOKUP(Q95,'Reference Data'!$C$9:Z$125,($P$7)+1,FALSE) -> 130 | S95: =IF(Q95>1, ROUND(R95*AC95,2), "") -> 0 | T95: 0 | U95: =IF(ISNUMBER(T95),ROUND(E95*AC95,2),"") -> 0 | V95: 0 | W95: =IF(ISNUMBER(H95), H95, 0) -> 0 | X95: =IF(Q95>1,IF(ISNUMBER(U95),ROUND(U95*(1+W95)+V95,2),S95),"") -> 0 | Y95: 0 | Z95: =IF(ISNUMBER(U95),ROUND(U95*(Y95+1)+V95,2),S95) -> 0 | AA95: =IF(AND(Q95>1,S95>0,S95<Z95),S95,Z95) -> 0 | AC95: 0 | AD95: =IF(ISBLANK($A95),1,VLOOKUP($A95,'Reference Data'!$B$9:$D$133,3,FALSE)) -> 1 | AW95: 0 | AX95: 0
A96: BTEX/MTBE -8021 (soil) | D96: =IF(Q96>1,VLOOKUP(Q96,'Reference Data'!$C$9:$C$43,5,FALSE),"") ->  | E96: 0 | G96: =IF(Q96>1,VLOOKUP(Q96,'Reference Data'!$C$9:$C$43,3,FALSE),"") ->  | Q96: =IF(ISBLANK($A96),1,VLOOKUP($A96,'Reference Data'!$B$9:$C$133,2,FALSE)) -> 64 | R96: =VLOOKUP(Q96,'Reference Data'!$C$9:Z$125,($P$7)+1,FALSE) -> 60 | S96: 0 | T96: 0 | U96: 0 | V96: 0 | W96: 0 | X96: 0 | Y96: 0 | Z96: 0 | AA96: 0 | AC96: 0 | AD96: =IF(ISBLANK($A96),1,VLOOKUP($A96,'Reference Data'!$B$9:$D$133,3,FALSE)) -> 1 | AW96: 0 | AX96: 0
A97: BTEX/MTBE -8260 (soil) | D97: =IF(Q97>1,VLOOKUP(Q97,'Reference Data'!$C$9:$C$43,5,FALSE),"") ->  | E97: 0 | G97: =IF(Q97>1,VLOOKUP(Q97,'Reference Data'!$C$9:$C$43,3,FALSE),"") ->  | Q97: =IF(ISBLANK($A97),1,VLOOKUP($A97,'Reference Data'!$B$9:$C$133,2,FALSE)) -> 65 | R97: =VLOOKUP(Q97,'Reference Data'!$C$9:Z$125,($P$7)+1,FALSE) -> 80 | S97: 0 | T97: 0 | U97: 0 | V97: 0 | W97: 0 | X97: 0 | Y97: 0 | Z97: 0 | AA97: 0 | AC97: 0 | AD97: =IF(ISBLANK($A97),1,VLOOKUP($A97,'Reference Data'!$B$9:$D$133,3,FALSE)) -> 1 | AW97: 0 | AX97: 0
A98: SVOC - 8270 (soil) | D98: =IF(Q98>1,VLOOKUP(Q98,'Reference Data'!$C$9:$C$43,5,FALSE),"") ->  | E98: 0 | G98: =IF(Q98>1,VLOOKUP(Q98,'Reference Data'!$C$9:$C$43,3,FALSE),"") ->  | Q98: =IF(ISBLANK($A98),1,VLOOKUP($A98,'Reference Data'!$B$9:$C$133,2,FALSE)) -> 72 | R98: =VLOOKUP(Q98,'Reference Data'!$C$9:Z$125,($P$7)+1,FALSE) -> 225 | S98: 0 | T98: 0 | U98: 0 | V98: 0 | W98: 0 | X98: 0 | Y98: 0 | Z98: 0 | AA98: 0 | AC98: 0 | AD98: =IF(ISBLANK($A98),1,VLOOKUP($A98,'Reference Data'!$B$9:$D$133,3,FALSE)) -> 1 | AW98: 0 | AX98: 0
A99: PAH -8270 SIM (soil) | D99: =IF(Q99>1,VLOOKUP(Q99,'Reference Data'!$C$9:$C$43,5,FALSE),"") ->  | E99: 0 | G99: =IF(Q99>1,VLOOKUP(Q99,'Reference Data'!$C$9:$C$43,3,FALSE),"") ->  | Q99: =IF(ISBLANK($A99),1,VLOOKUP($A99,'Reference Data'!$B$9:$C$133,2,FALSE)) -> 69 | R99: =VLOOKUP(Q99,'Reference Data'!$C$9:Z$125,($P$7)+1,FALSE) -> 130 | S99: 0 | T99: 0 | U99: 0 | V99: 0 | W99: 0 | X99: 0 | Y99: 0 | Z99: 0 | AA99: 0 | AC99: 0 | AD99: =IF(ISBLANK($A99),1,VLOOKUP($A99,'Reference Data'!$B$9:$D$133,3,FALSE)) -> 1 | AW99: 0 | AX99: 0
A100: PAH -8310 (soil) | D100: =IF(Q100>1,VLOOKUP(Q100,'Reference Data'!$C$9:$C$43,5,FALSE),"") ->  | E100: 0 | G100: =IF(Q100>1,VLOOKUP(Q100,'Reference Data'!$C$9:$C$43,3,FALSE),"") ->  | Q100: =IF(ISBLANK($A100),1,VLOOKUP($A100,'Reference Data'!$B$9:$C$133,2,FALSE)) -> 70 | R100: =VLOOKUP(Q100,'Reference Data'!$C$9:Z$125,($P$7)+1,FALSE) -> 150 | S100: 0 | T100: 0 | U100: 0 | V100: 0 | W100: 0 | X100: 0 | Y100: 0 | Z100: 0 | AA100: 0 | AC100: 0 | AD100: =IF(ISBLANK($A100),1,VLOOKUP($A100,'Reference Data'!$B$9:$D$133,3,FALSE)) -> 1 | AW100: 0 | AX100: 0
A101: Metals 7 barium, cadmium, chromium, lead, mercury, nickel, zinc (soil) | D101: =IF(Q101>1,VLOOKUP(Q101,'Reference Data'!$C$9:$C$43,5,FALSE),"") ->  | E101: 0 | G101: =IF(Q101>1,VLOOKUP(Q101,'Reference Data'!$C$9:$C$43,3,FALSE),"") ->  | Q101: =IF(ISBLANK($A101),1,VLOOKUP($A101,'Reference Data'!$B$9:$C$133,2,FALSE)) -> 68 | R101: =VLOOKUP(Q101,'Reference Data'!$C$9:Z$125,($P$7)+1,FALSE) -> 100 | S101: 0 | T101: 0 | U101: 0 | V101: 0 | W101: 0 | X101: 0 | Y101: 0 | Z101: 0 | AA101: 0 | AC101: 0 | AD101: =IF(ISBLANK($A101),1,VLOOKUP($A101,'Reference Data'!$B$9:$D$133,3,FALSE)) -> 1 | AW101: 0 | AX101: 0
A102: Individual Metals (per sample) (soil) | D102: =IF(Q102>1,VLOOKUP(Q102,'Reference Data'!$C$9:$C$43,5,FALSE),"") ->  | E102: 0 | G102: =IF(Q102>1,VLOOKUP(Q102,'Reference Data'!$C$9:$C$43,3,FALSE),"") ->  | Q102: =IF(ISBLANK($A102),1,VLOOKUP($A102,'Reference Data'!$B$9:$C$133,2,FALSE)) -> 67 | R102: =VLOOKUP(Q102,'Reference Data'!$C$9:Z$125,($P$7)+1,FALSE) -> 15 | S102: 0 | T102: 0 | U102: 0 | V102: 0 | W102: 0 | X102: 0 | Y102: 0 | Z102: 0 | AA102: 0 | AC102: 0 | AD102: =IF(ISBLANK($A102),1,VLOOKUP($A102,'Reference Data'!$B$9:$D$133,3,FALSE)) -> 1 | AW102: 0 | AX102: 0
A103: % Moisture (soil) | D103: =IF(Q103>1,VLOOKUP(Q103,'Reference Data'!$C$9:$C$43,5,FALSE),"") ->  | E103: 0 | G103: =IF(Q103>1,VLOOKUP(Q103,'Reference Data'!$C$9:$C$43,3,FALSE),"") ->  | Q103: =IF(ISBLANK($A103),1,VLOOKUP($A103,'Reference Data'!$B$9:$C$133,2,FALSE)) -> 76 | R103: =VLOOKUP(Q103,'Reference Data'!$C$9:Z$125,($P$7)+1,FALSE) -> 0 | S103: 0 | T103: 0 | U103: 0 | V103: 0 | W103: 0 | X103: 0 | Y103: =IF(W103>$AB$7,$AB$7,W103) -> 0 | Z103: 0 | AA103: 0 | AB103: =IF(AND(ISNUMBER(X103),ISNUMBER(AA103)),IF((X103-AA103)>0,X103-AA103,""),"") ->  | AC103: 0 | AD103: =IF(ISBLANK($A103),1,VLOOKUP($A103,'Reference Data'!$B$9:$D$133,3,FALSE)) -> 1 | AW103: 0 | AX103: 0
A104: MS/MSD | D104: =IF(Q104>1,VLOOKUP(Q104,'Reference Data'!$C$9:$C$43,5,FALSE),"") ->  | E104: 0 | G104: =IF(Q104>1,VLOOKUP(Q104,'Reference Data'!$C$9:$C$43,3,FALSE),"") ->  | Q104: =IF(ISBLANK($A104),1,VLOOKUP($A104,'Reference Data'!$B$9:$C$133,2,FALSE)) -> 85 | R104: =VLOOKUP(Q104,'Reference Data'!$C$9:Z$125,($P$7)+1,FALSE) -> 0 | S104: 0 | T104: 0 | U104: 0 | V104: 0 | W104: 0 | X104: 0 | Y104: =IF(W104>$AB$7,$AB$7,W104) -> 0 | Z104: 0 | AA104: 0 | AB104: =IF(AND(ISNUMBER(X104),ISNUMBER(AA104)),IF((X104-AA104)>0,X104-AA104,""),"") ->  | AC104: 0 | AD104: =IF(ISBLANK($A104),1,VLOOKUP($A104,'Reference Data'!$B$9:$D$133,3,FALSE)) -> 1 | AW104: 0 | AX104: 0
A105: QA/QC Data Package | D105: =IF(Q105>1,VLOOKUP(Q105,'Reference Data'!$C$9:$C$43,5,FALSE),"") ->  | E105: 0 | G105: =IF(Q105>1,VLOOKUP(Q105,'Reference Data'!$C$9:$C$43,3,FALSE),"") ->  | Q105: =IF(ISBLANK($A105),1,VLOOKUP($A105,'Reference Data'!$B$9:$C$133,2,FALSE)) -> 86 | R105: =VLOOKUP(Q105,'Reference Data'!$C$9:Z$125,($P$7)+1,FALSE) -> 0 | S105: 0 | T105: 0 | U105: 0 | V105: 0 | W105: 0 | X105: 0 | Y105: 0 | Z105: 0 | AA105: 0 | AC105: 0 | AD105: =IF(ISBLANK($A105),1,VLOOKUP($A105,'Reference Data'!$B$9:$D$133,3,FALSE)) -> 1 | AW105: 0 | AX105: 0
A106: Other | C106: 1 | D106: =IF(Q106>1,VLOOKUP(Q106,'Reference Data'!$C$9:$C$43,5,FALSE),"") ->  | E106: 0 | F106: 0 | G106: =IF(Q106>1,VLOOKUP(Q106,'Reference Data'!$C$9:$C$43,3,FALSE),"") ->  | I106: =IF($E106=0,"",IF(($A$8)="Please Choose Date","Select Date Error!",IF($R106="N/A","",$X106))) ->  | Q106: =IF(ISBLANK($A106),1,VLOOKUP($A106,'Reference Data'!$B$9:$C$133,2,FALSE)) -> 91 | R106: =VLOOKUP(Q106,'Reference Data'!$C$9:Z$125,($P$7)+1,FALSE) -> 0 | S106: 0 | T106: 0 | U106: 0 | V106: 0 | W106: 0 | X106: 0 | Y106: 0 | Z106: 0 | AA106: 0 | AC106: 1 | AD106: =IF(ISBLANK($A106),1,VLOOKUP($A106,'Reference Data'!$B$9:$D$133,3,FALSE)) -> 1 | AW106: 0 | AX106: 0
A107: Laboratory Analyses (Water) | G107: =IF(Q107>1,VLOOKUP(Q107,'Reference Data'!$C$9:$C$43,3,FALSE),"") ->  | R107: =VLOOKUP(Q107,'Reference Data'!$C$9:Z$125,($P$7)+1,FALSE) ->  | AW107: =IF(SUM($I$108:$I$118)>0, 1, 0) -> 0 | AX107: 0
A108: VOC -8260 (water) | D108: =IF(Q108>1,VLOOKUP(Q108,'Reference Data'!$C$9:$C$43,5,FALSE),"") ->  | E108: 0 | G108: =IF(Q108>1,VLOOKUP(Q108,'Reference Data'!$C$9:$C$43,3,FALSE),"") ->  | Q108: =IF(ISBLANK($A108),1,VLOOKUP($A108,'Reference Data'!$B$9:$C$133,2,FALSE)) -> 84 | R108: =VLOOKUP(Q108,'Reference Data'!$C$9:Z$125,($P$7)+1,FALSE) -> 135 | S108: =IF(Q108>1, ROUND(R108*AC108,2), "") -> 0 | T108: 0 | U108: =IF(ISNUMBER(T108),ROUND(E108*AC108,2),"") -> 0 | V108: 0 | W108: =IF(ISNUMBER(H108), H108, 0) -> 0 | X108: =IF(Q108>1,IF(ISNUMBER(U108),ROUND(U108*(1+W108)+V108,2),S108),"") -> 0 | Y108: 0 | Z108: =IF(ISNUMBER(U108),ROUND(U108*(Y108+1)+V108,2),S108) -> 0 | AA108: =IF(AND(Q108>1,S108>0,S108<Z108),S108,Z108) -> 0 | AC108: 0 | AD108: =IF(ISBLANK($A108),1,VLOOKUP($A108,'Reference Data'!$B$9:$D$133,3,FALSE)) -> 1 | AW108: 0 | AX108: 0
A109: BTEX/MTBE -8021 (water) | D109: =IF(Q109>1,VLOOKUP(Q109,'Reference Data'!$C$9:$C$43,5,FALSE),"") ->  | E109: 0 | G109: =IF(Q109>1,VLOOKUP(Q109,'Reference Data'!$C$9:$C$43,3,FALSE),"") ->  | Q109: =IF(ISBLANK($A109),1,VLOOKUP($A109,'Reference Data'!$B$9:$C$133,2,FALSE)) -> 77 | R109: =VLOOKUP(Q109,'Reference Data'!$C$9:Z$125,($P$7)+1,FALSE) -> 50 | S109: 0 | T109: 0 | U109: 0 | V109: 0 | W109: 0 | X109: 0 | Y109: 0 | Z109: 0 | AA109: 0 | AC109: 0 | AD109: =IF(ISBLANK($A109),1,VLOOKUP($A109,'Reference Data'!$B$9:$D$133,3,FALSE)) -> 1 | AW109: 0 | AX109: 0
A110: BTEX/MTBE -8260 (water) | D110: =IF(Q110>1,VLOOKUP(Q110,'Reference Data'!$C$9:$C$43,5,FALSE),"") ->  | E110: 0 | G110: =IF(Q110>1,VLOOKUP(Q110,'Reference Data'!$C$9:$C$43,3,FALSE),"") ->  | Q110: =IF(ISBLANK($A110),1,VLOOKUP($A110,'Reference Data'!$B$9:$C$133,2,FALSE)) -> 78 | R110: =VLOOKUP(Q110,'Reference Data'!$C$9:Z$125,($P$7)+1,FALSE) -> 80 | S110: 0 | T110: 0 | U110: 0 | V110: 0 | W110: 0 | X110: 0 | Y110: 0 | Z110: 0 | AA110: 0 | AC110: 0 | AD110: =IF(ISBLANK($A110),1,VLOOKUP($A110,'Reference Data'!$B$9:$D$133,3,FALSE)) -> 1 | AW110: 0 | AX110: 0
A111: SVOC - 8270 (water) | D111: =IF(Q111>1,VLOOKUP(Q111,'Reference Data'!$C$9:$C$43,5,FALSE),"") ->  | E111: 0 | G111: =IF(Q111>1,VLOOKUP(Q111,'Reference Data'!$C$9:$C$43,3,FALSE),"") ->  | Q111: =IF(ISBLANK($A111),1,VLOOKUP($A111,'Reference Data'!$B$9:$C$133,2,FALSE)) -> 83 | R111: =VLOOKUP(Q111,'Reference Data'!$C$9:Z$125,($P$7)+1,FALSE) -> 225 | S111: 0 | T111: 0 | U111: 0 | V111: 0 | W111: 0 | X111: 0 | Y111: 0 | Z111: 0 | AA111: 0 | AC111: 0 | AD111: =IF(ISBLANK($A111),1,VLOOKUP($A111,'Reference Data'!$B$9:$D$133,3,FALSE)) -> 1 | AW111: 0 | AX111: 0
A112: PAH -8270 SIM (water) | D112: =IF(Q112>1,VLOOKUP(Q112,'Reference Data'!$C$9:$C$43,5,FALSE),"") ->  | E112: 0 | G112: =IF(Q112>1,VLOOKUP(Q112,'Reference Data'!$C$9:$C$43,3,FALSE),"") ->  | Q112: =IF(ISBLANK($A112),1,VLOOKUP($A112,'Reference Data'!$B$9:$C$133,2,FALSE)) -> 81 | R112: =VLOOKUP(Q112,'Reference Data'!$C$9:Z$125,($P$7)+1,FALSE) -> 135 | S112: 0 | T112: 0 | U112: 0 | V112: 0 | W112: 0 | X112: 0 | Y112: 0 | Z112: 0 | AA112: 0 | AC112: 0 | AD112: =IF(ISBLANK($A112),1,VLOOKUP($A112,'Reference Data'!$B$9:$D$133,3,FALSE)) -> 1 | AW112: 0 | AX112: 0
A113: PAH -8310 (water) | D113: =IF(Q113>1,VLOOKUP(Q113,'Reference Data'!$C$9:$C$43,5,FALSE),"") ->  | E113: 0 | G113: =IF(Q113>1,VLOOKUP(Q113,'Reference Data'!$C$9:$C$43,3,FALSE),"") ->  | Q113: =IF(ISBLANK($A113),1,VLOOKUP($A113,'Reference Data'!$B$9:$C$133,2,FALSE)) -> 82 | R113: =VLOOKUP(Q113,'Reference Data'!$C$9:Z$125,($P$7)+1,FALSE) -> 150 | S113: 0 | T113: 0 | U113: 0 | V113: 0 | W113: 0 | X113: 0 | Y113: 0 | Z113: 0 | AA113: 0 | AC113: 0 | AD113: =IF(ISBLANK($A113),1,VLOOKUP($A113,'Reference Data'!$B$9:$D$133,3,FALSE)) -> 1 | AW113: 0 | AX113: 0
A114: Metals 7 barium, cadmium, chromium, lead, mercury, nickel, zinc (water) | D114: =IF(Q114>1,VLOOKUP(Q114,'Reference Data'!$C$9:$C$43,5,FALSE),"") ->  | E114: 0 | G114: =IF(Q114>1,VLOOKUP(Q114,'Reference Data'!$C$9:$C$43,3,FALSE),"") ->  | Q114: =IF(ISBLANK($A114),1,VLOOKUP($A114,'Reference Data'!$B$9:$C$133,2,FALSE)) -> 80 | R114: =VLOOKUP(Q114,'Reference Data'!$C$9:Z$125,($P$7)+1,FALSE) -> 100 | S114: 0 | T114: 0 | U114: 0 | V114: 0 | W114: 0 | X114: 0 | Y114: 0 | Z114: 0 | AA114: 0 | AC114: 0 | AD114: =IF(ISBLANK($A114),1,VLOOKUP($A114,'Reference Data'!$B$9:$D$133,3,FALSE)) -> 1 | AW114: 0 | AX114: 0
A115: Individual Metals (per sample) (water) | D115: =IF(Q115>1,VLOOKUP(Q115,'Reference Data'!$C$9:$C$43,5,FALSE),"") ->  | E115: 0 | G115: =IF(Q115>1,VLOOKUP(Q115,'Reference Data'!$C$9:$C$43,3,FALSE),"") ->  | Q115: =IF(ISBLANK($A115),1,VLOOKUP($A115,'Reference Data'!$B$9:$C$133,2,FALSE)) -> 79 | R115: =VLOOKUP(Q115,'Reference Data'!$C$9:Z$125,($P$7)+1,FALSE) -> 15 | S115: 0 | T115: =IF(ISNUMBER(E115),E115,"") -> 0 | U115: 0 | V115: =IF(ISNUMBER(G115),G115,0) -> 0 | W115: 0 | X115: 0 | Y115: =IF(W115>$AB$7,$AB$7,W115) -> 0 | Z115: 0 | AA115: 0 | AB115: =IF(AND(ISNUMBER(X115),ISNUMBER(AA115)),IF((X115-AA115)>0,X115-AA115,""),"") ->  | AC115: 0 | AD115: =IF(ISBLANK($A115),1,VLOOKUP($A115,'Reference Data'!$B$9:$D$133,3,FALSE)) -> 1 | AW115: 0 | AX115: 0
A116: MS/MSD | D116: =IF(Q116>1,VLOOKUP(Q116,'Reference Data'!$C$9:$C$43,5,FALSE),"") ->  | E116: 0 | G116: =IF(Q116>1,VLOOKUP(Q116,'Reference Data'!$C$9:$C$43,3,FALSE),"") ->  | Q116: =IF(ISBLANK($A116),1,VLOOKUP($A116,'Reference Data'!$B$9:$C$133,2,FALSE)) -> 85 | R116: =VLOOKUP(Q116,'Reference Data'!$C$9:Z$125,($P$7)+1,FALSE) -> 0 | S116: 0 | T116: 0 | U116: 0 | V116: 0 | W116: 0 | X116: 0 | Y116: 0 | Z116: 0 | AA116: 0 | AC116: 0 | AD116: =IF(ISBLANK($A116),1,VLOOKUP($A116,'Reference Data'!$B$9:$D$133,3,FALSE)) -> 1 | AW116: 0 | AX116: 0
A117: QA/QC Data Package | D117: =IF(Q117>1,VLOOKUP(Q117,'Reference Data'!$C$9:$C$43,5,FALSE),"") ->  | E117: 0 | G117: =IF(Q117>1,VLOOKUP(Q117,'Reference Data'!$C$9:$C$43,3,FALSE),"") ->  | Q117: =IF(ISBLANK($A117),1,VLOOKUP($A117,'Reference Data'!$B$9:$C$133,2,FALSE)) -> 86 | R117: =VLOOKUP(Q117,'Reference Data'!$C$9:Z$125,($P$7)+1,FALSE) -> 0 | S117: 0 | T117: 0 | U117: 0 | V117: 0 | W117: 0 | X117: 0 | Y117: 0 | Z117: 0 | AA117: 0 | AC117: 0 | AD117: =IF(ISBLANK($A117),1,VLOOKUP($A117,'Reference Data'!$B$9:$D$133,3,FALSE)) -> 1 | AW117: 0 | AX117: 0
A118: Other | C118: 1 | D118: =IF(Q118>1,VLOOKUP(Q118,'Reference Data'!$C$9:$C$43,5,FALSE),"") ->  | E118: 0 | F118: 0 | G118: =IF(Q118>1,VLOOKUP(Q118,'Reference Data'!$C$9:$C$43,3,FALSE),"") ->  | I118: =IF($E118=0,"",IF(($A$8)="Please Choose Date","Select Date Error!",IF($R118="N/A","",$X118))) ->  | Q118: =IF(ISBLANK($A118),1,VLOOKUP($A118,'Reference Data'!$B$9:$C$133,2,FALSE)) -> 91 | R118: =VLOOKUP(Q118,'Reference Data'!$C$9:Z$125,($P$7)+1,FALSE) -> 0 | S118: 0 | T118: =IF(ISNUMBER(E118),E118,"") -> 0 | U118: 0 | V118: =IF(ISNUMBER(G118),G118,0) -> 0 | W118: 0 | X118: 0 | Y118: =IF(W118>$AB$7,$AB$7,W118) -> 0 | Z118: 0 | AA118: 0 | AB118: =IF(AND(ISNUMBER(X118),ISNUMBER(AA118)),IF((X118-AA118)>0,X118-AA118,""),"") ->  | AC118: 1 | AD118: =IF(ISBLANK($A118),1,VLOOKUP($A118,'Reference Data'!$B$9:$D$133,3,FALSE)) -> 1 | AW118: 0 | AX118: 0
A119: Laboratory Analyses (Air) | R119: =VLOOKUP(Q119,'Reference Data'!$C$9:Z$125,($P$7)+1,FALSE) ->  | AW119: =IF(SUM($I$120:$I$121)>0, 1, 0) -> 0 | AX119: 0
A120: VOC -TO-15 | E120: 0 | Q120: 87 | R120: =VLOOKUP(Q120,'Reference Data'!$C$9:Z$125,($P$7)+1,FALSE) -> 400 | S120: =IF(Q120>1, ROUND(R120*AC120,2), "") -> 0 | T120: =IF(ISNUMBER(E120),E120,"") -> 0 | U120: =IF(ISNUMBER(T120),ROUND(E120*AC120,2),"") -> 0 | V120: =IF(ISNUMBER(G120),G120,0) -> 0 | W120: =IF(ISNUMBER(H120), H120, 0) -> 0 | X120: =IF(Q120>1,IF(ISNUMBER(U120),ROUND(U120*(1+W120)+V120,2),S120),"") -> 0 | Y120: =IF(W120>$AB$7,$AB$7,W120) -> 0 | Z120: =IF(ISNUMBER(U120),ROUND(U120*(Y120+1)+V120,2),S120) -> 0 | AA120: =IF(AND(Q120>1,S120>0,S120<Z120),S120,Z120) -> 0 | AB120: =IF(AND(ISNUMBER(X120),ISNUMBER(AA120)),IF((X120-AA120)>0,X120-AA120,""),"") ->  | AC120: =ROUND($C120,2) -> 0 | AD120: 1 | AW120: 0 | AX120: 0
A121: Other | C121: 1 | E121: 0 | F121: 0 | I121: =IF($E121=0,"",IF(($A$8)="Please Choose Date","Select Date Error!",IF($R121="N/A","",$X121))) ->  | Q121: 91 | R121: =VLOOKUP(Q121,'Reference Data'!$C$9:Z$125,($P$7)+1,FALSE) -> 0 | S121: =IF(Q121>1, ROUND(R121*AC121,2), "") -> 0 | T121: =IF(ISNUMBER(E121),E121,"") -> 0 | U121: =IF(ISNUMBER(T121),ROUND(E121*AC121,2),"") -> 0 | V121: =IF(ISNUMBER(G121),G121,0) -> 0 | W121: =IF(ISNUMBER(H121), H121, 0) -> 0 | X121: =IF(Q121>1,IF(ISNUMBER(U121),ROUND(U121*(1+W121)+V121,2),S121),"") -> 0 | Y121: =IF(W121>$AB$7,$AB$7,W121) -> 0 | Z121: =IF(ISNUMBER(U121),ROUND(U121*(Y121+1)+V121,2),S121) -> 0 | AA121: =IF(AND(Q121>1,S121>0,S121<Z121),S121,Z121) -> 0 | AB121: =IF(AND(ISNUMBER(X121),ISNUMBER(AA121)),IF((X121-AA121)>0,X121-AA121,""),"") ->  | AC121: =ROUND($C121,2) -> 1 | AD121: 1 | AW121: 0 | AX121: 0
R122: =VLOOKUP(Q122,'Reference Data'!$C$9:Z$125,($P$7)+1,FALSE) ->  | AW122: =IF(SUM($I$125:$I$134)>0, 1, 0) -> 0 | AX122: 0
A123: Report Writing Costs | G123: =IF(Q123>1,VLOOKUP(Q123,'Reference Data'!$C$9:$C$43,3,FALSE),"") ->  | I123: =IF(ISBLANK($C123),"",IF(($A$8)="Please Choose Date","Select Date Error!",IF($R123="N/A","",$X123))) ->  | R123: =VLOOKUP(Q123,'Reference Data'!$C$9:Z$125,($P$7)+1,FALSE) ->  | AW123: =IF(SUM($I$125:$I$134)>0, 1, 0) -> 0 | AX123: 0
A124: DESCRIPTION | B124: TASK PERFORMED | C124: UNITS | D124: TYPE | E124: UNIT COST | F124: TOTAL W/O MARKUP OR TAX | G124: TAX (NO MARKUP) | H124: % MARK-UP | I124: AMOUNT PROPOSED | Q124: Automated Descriptor | R124: =VLOOKUP(Q124,'Reference Data'!$C$9:Z$125,($P$7)+1,FALSE) ->  | S124: Total Automated Unit Cost | T124: PROPOSED Unit Cost | U124: PROPOSED total w/o markup or tax | V124: PROPOSED Tax | W124: PROPOSED Markup | X124: PROPOSED Total AMT | Y124: Lower Calculated Markup | Z124: Lower Calculated total w/ markup and tax | AA124: Lower Cost Final total | AB124: Amt Denied | AC124: Units Rounded | AD124: Markup Available | AW124: =IF(SUM($I$125:$I$134)>0, 1, 0) -> 0 | AX124: 0
A125: Principal | D125: =IF(Q125>1,VLOOKUP(Q125,'Reference Data'!$C$9:$C$43,5,FALSE),"") ->  | E125: =R125 -> 175.25 | G125: =IF(Q125>1,VLOOKUP(Q125,'Reference Data'!$C$9:$C$43,3,FALSE),"") ->  | I125: =IF(ISBLANK($C125),"",IF(($A$8)="Please Choose Date","Select Date Error!",IF($R125="N/A","",$X125))) ->  | Q125: =IF(ISBLANK($A125),1,VLOOKUP($A125,'Reference Data'!$B$9:$C$133,2,FALSE)) -> 2 | R125: =VLOOKUP(Q125,'Reference Data'!$C$9:Z$125,($P$7)+1,FALSE) -> 175.25 | S125: =IF(Q125>1, ROUND(R125*AC125,2), "") -> 0 | T125: =IF(ISNUMBER(E125),E125,"") -> 175.25 | U125: =IF(ISNUMBER(T125),ROUND(E125*AC125,2),"") -> 0 | V125: =IF(ISNUMBER(G125),G125,0) -> 0 | W125: =IF(ISNUMBER(H125), H125, 0) -> 0 | X125: =IF(Q125>1,IF(ISNUMBER(U125),ROUND(U125*(1+W125)+V125,2),S125),"") -> 0 | Y125: =IF(W125>$AB$7,$AB$7,W125) -> 0 | Z125: =IF(ISNUMBER(U125),ROUND(U125*(Y125+1)+V125,2),S125) -> 0 | AA125: =IF(AND(Q125>1,S125>0,S125<Z125),S125,Z125) -> 0 | AB125: =IF(AND(ISNUMBER(X125),ISNUMBER(AA125)),IF((X125-AA125)>0,X125-AA125,""),"") ->  | AC125: =ROUND($C125,2) -> 0 | AD125: =IF(ISBLANK($A125),1,VLOOKUP($A125,'Reference Data'!$B$9:$D$133,3,FALSE)) -> 0 | AW125: 0 | AX125: 0
A126: Senior Project Manager | D126: =IF(Q126>1,VLOOKUP(Q126,'Reference Data'!$C$9:$C$43,5,FALSE),"") ->  | E126: =R126 -> 162.75 | G126: =IF(Q126>1,VLOOKUP(Q126,'Reference Data'!$C$9:$C$43,3,FALSE),"") ->  | Q126: =IF(ISBLANK($A126),1,VLOOKUP($A126,'Reference Data'!$B$9:$C$133,2,FALSE)) -> 3 | R126: =VLOOKUP(Q126,'Reference Data'!$C$9:Z$125,($P$7)+1,FALSE) -> 162.75 | S126: 0 | T126: 162.75 | U126: 0 | V126: 0 | W126: 0 | X126: 0 | Y126: 0 | Z126: 0 | AA126: 0 | AC126: 0 | AD126: =IF(ISBLANK($A126),1,VLOOKUP($A126,'Reference Data'!$B$9:$D$133,3,FALSE)) -> 0 | AW126: 0 | AX126: 0
A127: Project Manager | D127: =IF(Q127>1,VLOOKUP(Q127,'Reference Data'!$C$9:$C$43,5,FALSE),"") ->  | E127: =R127 -> 133.75 | G127: =IF(Q127>1,VLOOKUP(Q127,'Reference Data'!$C$9:$C$43,3,FALSE),"") ->  | Q127: =IF(ISBLANK($A127),1,VLOOKUP($A127,'Reference Data'!$B$9:$C$133,2,FALSE)) -> 4 | R127: =VLOOKUP(Q127,'Reference Data'!$C$9:Z$125,($P$7)+1,FALSE) -> 133.75 | S127: 0 | T127: 133.75 | U127: 0 | V127: 0 | W127: 0 | X127: 0 | Y127: 0 | Z127: 0 | AA127: 0 | AC127: 0 | AD127: =IF(ISBLANK($A127),1,VLOOKUP($A127,'Reference Data'!$B$9:$D$133,3,FALSE)) -> 0 | AW127: 0 | AX127: 0
A128: Staff | D128: =IF(Q128>1,VLOOKUP(Q128,'Reference Data'!$C$9:$C$43,5,FALSE),"") ->  | E128: =R128 -> 112.25 | G128: =IF(Q128>1,VLOOKUP(Q128,'Reference Data'!$C$9:$C$43,3,FALSE),"") ->  | Q128: =IF(ISBLANK($A128),1,VLOOKUP($A128,'Reference Data'!$B$9:$C$133,2,FALSE)) -> 5 | R128: =VLOOKUP(Q128,'Reference Data'!$C$9:Z$125,($P$7)+1,FALSE) -> 112.25 | S128: 0 | T128: 112.25 | U128: 0 | V128: 0 | W128: 0 | X128: 0 | Y128: 0 | Z128: 0 | AA128: 0 | AC128: 0 | AD128: =IF(ISBLANK($A128),1,VLOOKUP($A128,'Reference Data'!$B$9:$D$133,3,FALSE)) -> 0 | AW128: 0 | AX128: 0
A129: Technician | D129: =IF(Q129>1,VLOOKUP(Q129,'Reference Data'!$C$9:$C$43,5,FALSE),"") ->  | E129: =R129 -> 77 | F129: =IF(ISNUMBER(C129),IF(ISNUMBER(E129),ROUND(AC129*E129,2),""),"") ->  | G129: =IF(Q129>1,VLOOKUP(Q129,'Reference Data'!$C$9:$C$43,3,FALSE),"") ->  | Q129: =IF(ISBLANK($A129),1,VLOOKUP($A129,'Reference Data'!$B$9:$C$133,2,FALSE)) -> 6 | R129: =VLOOKUP(Q129,'Reference Data'!$C$9:Z$125,($P$7)+1,FALSE) -> 77 | S129: 0 | T129: 77 | U129: 0 | V129: 0 | W129: 0 | X129: 0 | Y129: 0 | Z129: 0 | AA129: 0 | AC129: 0 | AD129: =IF(ISBLANK($A129),1,VLOOKUP($A129,'Reference Data'!$B$9:$D$133,3,FALSE)) -> 0 | AW129: 0 | AX129: 0
A130: Drafting | D130: =IF(Q130>1,VLOOKUP(Q130,'Reference Data'!$C$9:$C$43,5,FALSE),"") ->  | E130: 64.25 | G130: =IF(Q130>1,VLOOKUP(Q130,'Reference Data'!$C$9:$C$43,3,FALSE),"") ->  | Q130: =IF(ISBLANK($A130),1,VLOOKUP($A130,'Reference Data'!$B$9:$C$133,2,FALSE)) -> 7 | R130: =VLOOKUP(Q130,'Reference Data'!$C$9:Z$125,($P$7)+1,FALSE) -> 64.25 | S130: 0 | T130: 64.25 | U130: 0 | V130: 0 | W130: 0 | X130: 0 | Y130: 0 | Z130: 0 | AA130: 0 | AC130: 0 | AD130: =IF(ISBLANK($A130),1,VLOOKUP($A130,'Reference Data'!$B$9:$D$133,3,FALSE)) -> 0 | AW130: 0 | AX130: 0
A131: Clerical | D131: =IF(Q131>1,VLOOKUP(Q131,'Reference Data'!$C$9:$C$43,5,FALSE),"") ->  | E131: 45.5 | G131: =IF(Q131>1,VLOOKUP(Q131,'Reference Data'!$C$9:$C$43,3,FALSE),"") ->  | Q131: =IF(ISBLANK($A131),1,VLOOKUP($A131,'Reference Data'!$B$9:$C$133,2,FALSE)) -> 8 | R131: =VLOOKUP(Q131,'Reference Data'!$C$9:Z$125,($P$7)+1,FALSE) -> 45.5 | S131: 0 | T131: 45.5 | U131: 0 | V131: 0 | W131: 0 | X131: 0 | Y131: 0 | Z131: 0 | AA131: 0 | AC131: 0 | AD131: =IF(ISBLANK($A131),1,VLOOKUP($A131,'Reference Data'!$B$9:$D$133,3,FALSE)) -> 0 | AW131: 0 | AX131: 0
A132: Copies | D132: =IF(Q132>1,VLOOKUP(Q132,'Reference Data'!$C$9:$C$43,5,FALSE),"") ->  | E132: 0.15 | G132: =IF(Q132>1,VLOOKUP(Q132,'Reference Data'!$C$9:$C$43,3,FALSE),"") ->  | Q132: =IF(ISBLANK($A132),1,VLOOKUP($A132,'Reference Data'!$B$9:$C$133,2,FALSE)) -> 96 | R132: =VLOOKUP(Q132,'Reference Data'!$C$9:Z$125,($P$7)+1,FALSE) -> 0.15 | S132: 0 | T132: 0.15 | U132: 0 | V132: 0 | W132: 0 | X132: 0 | Y132: 0 | Z132: 0 | AA132: 0 | AC132: 0 | AD132: =IF(ISBLANK($A132),1,VLOOKUP($A132,'Reference Data'!$B$9:$D$133,3,FALSE)) -> 0 | AW132: 0 | AX132: 0
A133: Other (markup eligible) | C133: 1 | D133: =IF(Q133>1,VLOOKUP(Q133,'Reference Data'!$C$9:$C$43,5,FALSE),"") ->  | E133: 0 | F133: 0 | G133: =IF(Q133>1,VLOOKUP(Q133,'Reference Data'!$C$9:$C$43,3,FALSE),"") ->  | I133: =IF($E133=0,"",IF(($A$8)="Please Choose Date","Select Date Error!",IF($R133="N/A","",$X133))) ->  | Q133: =IF(ISBLANK($A133),1,VLOOKUP($A133,'Reference Data'!$B$9:$C$133,2,FALSE)) -> 94 | R133: =VLOOKUP(Q133,'Reference Data'!$C$9:Z$125,($P$7)+1,FALSE) -> 0 | S133: 0 | T133: 0 | U133: 0 | V133: 0 | W133: 0 | X133: 0 | Y133: 0 | Z133: 0 | AA133: 0 | AC133: 1 | AD133: =IF(ISBLANK($A133),1,VLOOKUP($A133,'Reference Data'!$B$9:$D$133,3,FALSE)) -> 1 | AW133: 0 | AX133: 0
A134: Other (not markup eligible) | C134: 1 | D134: =IF(Q134>1,VLOOKUP(Q134,'Reference Data'!$C$9:$C$43,5,FALSE),"") ->  | E134: 0 | F134: 0 | G134: =IF(Q134>1,VLOOKUP(Q134,'Reference Data'!$C$9:$C$43,3,FALSE),"") ->  | I134: =IF($E134=0,"",IF(($A$8)="Please Choose Date","Select Date Error!",IF($R134="N/A","",$X134))) ->  | Q134: =IF(ISBLANK($A134),1,VLOOKUP($A134,'Reference Data'!$B$9:$C$133,2,FALSE)) -> 95 | R134: =VLOOKUP(Q134,'Reference Data'!$C$9:Z$125,($P$7)+1,FALSE) -> 0 | S134: 0 | T134: 0 | U134: 0 | V134: 0 | W134: 0 | X134: 0 | Y134: 0 | Z134: 0 | AA134: 0 | AC134: 1 | AD134: =IF(ISBLANK($A134),1,VLOOKUP($A134,'Reference Data'!$B$9:$D$133,3,FALSE)) -> 0 | AW134: 0 | AX134: 0
A135: Further Site Investigation | G135: =IF(Q135>1,VLOOKUP(Q135,'Reference Data'!$C$9:$C$43,3,FALSE),"") ->  | I135: =IF(ISBLANK($C135),"",IF(($A$5)="Please Choose Date","Select Date Error!",IF($R135="N/A","",$X135))) ->  | R135: =VLOOKUP(Q135,'Reference Data'!$C$9:Z$125,($P$7)+1,FALSE) ->  | AW135: =IF(SUM($I$138:$I$215)>0, 1, 0) -> 0 | AX135: 0
A136: Planning, Preparation, and Follow-up Costs (Office) | G136: =IF(Q136>1,VLOOKUP(Q136,'Reference Data'!$C$9:$C$43,3,FALSE),"") ->  | I136: =IF(ISBLANK($C136),"",IF(($A$8)="Please Choose Date","Select Date Error!",IF($R136="N/A","",$X136))) ->  | R136: =VLOOKUP(Q136,'Reference Data'!$C$9:Z$125,($P$7)+1,FALSE) ->  | AW136: =IF(SUM($I$138:$I$146)>0, 1, 0) -> 0 | AX136: 0
A137: DESCRIPTION | B137: TASK PERFORMED | C137: UNITS | D137: TYPE | E137: UNIT COST | F137: TOTAL W/O MARKUP OR TAX | G137: TAX (NO MARKUP) | H137: % MARK-UP | I137: AMOUNT PROPOSED | Q137: Automated Descriptor | R137: =VLOOKUP(Q137,'Reference Data'!$C$9:Z$125,($P$7)+1,FALSE) ->  | S137: Total Automated Unit Cost | T137: PROPOSED Unit Cost | U137: PROPOSED total w/o markup or tax | V137: PROPOSED Tax | W137: PROPOSED Markup | X137: PROPOSED Total AMT | Y137: Lower Calculated Markup | Z137: Lower Calculated total w/ markup and tax | AA137: Lower Cost Final total | AB137: Amt Denied | AC137: Units Rounded | AD137: Markup Available | AW137: =IF(SUM($I$138:$I$146)>0, 1, 0) -> 0 | AX137: 0
A138: Principal | D138: =IF(Q138>1,VLOOKUP(Q138,'Reference Data'!$C$9:$C$43,5,FALSE),"") ->  | E138: 175.25 | G138: =IF(Q138>1,VLOOKUP(Q138,'Reference Data'!$C$9:$C$43,3,FALSE),"") ->  | I138: =IF(ISBLANK($C138),"",IF(($A$8)="Please Choose Date","Select Date Error!",IF($R138="N/A","",$X138))) ->  | Q138: =IF(ISBLANK($A138),1,VLOOKUP($A138,'Reference Data'!$B$9:$C$133,2,FALSE)) -> 2 | R138: =VLOOKUP(Q138,'Reference Data'!$C$9:Z$125,($P$7)+1,FALSE) -> 175.25 | S138: =IF(Q138>1, ROUND(R138*AC138,2), "") -> 0 | T138: =IF(ISNUMBER(E138),E138,"") -> 175.25 | U138: =IF(ISNUMBER(T138),ROUND(E138*AC138,2),"") -> 0 | V138: =IF(ISNUMBER(G138),G138,0) -> 0 | W138: =IF(ISNUMBER(H138), H138, 0) -> 0 | X138: =IF(Q138>1,IF(ISNUMBER(U138),ROUND(U138*(1+W138)+V138,2),S138),"") -> 0 | Y138: =IF(W138>$AB$7,$AB$7,W138) -> 0 | Z138: =IF(ISNUMBER(U138),ROUND(U138*(Y138+1)+V138,2),S138) -> 0 | AA138: =IF(AND(Q138>1,S138>0,S138<Z138),S138,Z138) -> 0 | AB138: =IF(AND(ISNUMBER(X138),ISNUMBER(AA138)),IF((X138-AA138)>0,X138-AA138,""),"") ->  | AC138: =ROUND($C138,2) -> 0 | AD138: =IF(ISBLANK($A138),1,VLOOKUP($A138,'Reference Data'!$B$9:$D$133,3,FALSE)) -> 0 | AW138: 0 | AX138: 0
A139: Senior Project Manager | D139: =IF(Q139>1,VLOOKUP(Q139,'Reference Data'!$C$9:$C$43,5,FALSE),"") ->  | E139: 162.75 | G139: =IF(Q139>1,VLOOKUP(Q139,'Reference Data'!$C$9:$C$43,3,FALSE),"") ->  | Q139: =IF(ISBLANK($A139),1,VLOOKUP($A139,'Reference Data'!$B$9:$C$133,2,FALSE)) -> 3 | R139: =VLOOKUP(Q139,'Reference Data'!$C$9:Z$125,($P$7)+1,FALSE) -> 162.75 | S139: 0 | T139: 162.75 | U139: 0 | V139: 0 | W139: 0 | X139: 0 | Y139: 0 | Z139: 0 | AA139: 0 | AC139: 0 | AD139: =IF(ISBLANK($A139),1,VLOOKUP($A139,'Reference Data'!$B$9:$D$133,3,FALSE)) -> 0 | AW139: 0 | AX139: 0
A140: Project Manager | D140: =IF(Q140>1,VLOOKUP(Q140,'Reference Data'!$C$9:$C$43,5,FALSE),"") ->  | E140: 133.75 | G140: =IF(Q140>1,VLOOKUP(Q140,'Reference Data'!$C$9:$C$43,3,FALSE),"") ->  | Q140: =IF(ISBLANK($A140),1,VLOOKUP($A140,'Reference Data'!$B$9:$C$133,2,FALSE)) -> 4 | R140: =VLOOKUP(Q140,'Reference Data'!$C$9:Z$125,($P$7)+1,FALSE) -> 133.75 | S140: 0 | T140: 133.75 | U140: 0 | V140: 0 | W140: 0 | X140: 0 | Y140: 0 | Z140: 0 | AA140: 0 | AC140: 0 | AD140: =IF(ISBLANK($A140),1,VLOOKUP($A140,'Reference Data'!$B$9:$D$133,3,FALSE)) -> 0 | AW140: 0 | AX140: 0
A141: Staff | D141: =IF(Q141>1,VLOOKUP(Q141,'Reference Data'!$C$9:$C$43,5,FALSE),"") ->  | E141: 112.25 | G141: =IF(Q141>1,VLOOKUP(Q141,'Reference Data'!$C$9:$C$43,3,FALSE),"") ->  | Q141: =IF(ISBLANK($A141),1,VLOOKUP($A141,'Reference Data'!$B$9:$C$133,2,FALSE)) -> 5 | R141: =VLOOKUP(Q141,'Reference Data'!$C$9:Z$125,($P$7)+1,FALSE) -> 112.25 | S141: 0 | T141: 112.25 | U141: 0 | V141: 0 | W141: 0 | X141: 0 | Y141: 0 | Z141: 0 | AA141: 0 | AC141: 0 | AD141: =IF(ISBLANK($A141),1,VLOOKUP($A141,'Reference Data'!$B$9:$D$133,3,FALSE)) -> 0 | AW141: 0 | AX141: 0
A142: Technician | D142: =IF(Q142>1,VLOOKUP(Q142,'Reference Data'!$C$9:$C$43,5,FALSE),"") ->  | E142: 77 | G142: =IF(Q142>1,VLOOKUP(Q142,'Reference Data'!$C$9:$C$43,3,FALSE),"") ->  | Q142: =IF(ISBLANK($A142),1,VLOOKUP($A142,'Reference Data'!$B$9:$C$133,2,FALSE)) -> 6 | R142: =VLOOKUP(Q142,'Reference Data'!$C$9:Z$125,($P$7)+1,FALSE) -> 77 | S142: 0 | T142: 77 | U142: 0 | V142: 0 | W142: 0 | X142: 0 | Y142: 0 | Z142: 0 | AA142: 0 | AC142: 0 | AD142: =IF(ISBLANK($A142),1,VLOOKUP($A142,'Reference Data'!$B$9:$D$133,3,FALSE)) -> 0 | AW142: 0 | AX142: 0
A143: Drafting | D143: =IF(Q143>1,VLOOKUP(Q143,'Reference Data'!$C$9:$C$43,5,FALSE),"") ->  | E143: 64.25 | G143: =IF(Q143>1,VLOOKUP(Q143,'Reference Data'!$C$9:$C$43,3,FALSE),"") ->  | Q143: =IF(ISBLANK($A143),1,VLOOKUP($A143,'Reference Data'!$B$9:$C$133,2,FALSE)) -> 7 | R143: =VLOOKUP(Q143,'Reference Data'!$C$9:Z$125,($P$7)+1,FALSE) -> 64.25 | S143: 0 | T143: 64.25 | U143: 0 | V143: 0 | W143: 0 | X143: 0 | Y143: 0 | Z143: 0 | AA143: 0 | AC143: 0 | AD143: =IF(ISBLANK($A143),1,VLOOKUP($A143,'Reference Data'!$B$9:$D$133,3,FALSE)) -> 0 | AW143: 0 | AX143: 0
A144: Clerical | D144: =IF(Q144>1,VLOOKUP(Q144,'Reference Data'!$C$9:$C$43,5,FALSE),"") ->  | E144: 45.5 | G144: =IF(Q144>1,VLOOKUP(Q144,'Reference Data'!$C$9:$C$43,3,FALSE),"") ->  | Q144: =IF(ISBLANK($A144),1,VLOOKUP($A144,'Reference Data'!$B$9:$C$133,2,FALSE)) -> 8 | R144: =VLOOKUP(Q144,'Reference Data'!$C$9:Z$125,($P$7)+1,FALSE) -> 45.5 | S144: 0 | T144: 45.5 | U144: 0 | V144: 0 | W144: 0 | X144: 0 | Y144: 0 | Z144: 0 | AA144: 0 | AC144: 0 | AD144: =IF(ISBLANK($A144),1,VLOOKUP($A144,'Reference Data'!$B$9:$D$133,3,FALSE)) -> 0 | AW144: 0 | AX144: 0
A145: Other (markup eligible) | C145: 1 | D145: =IF(Q145>1,VLOOKUP(Q145,'Reference Data'!$C$9:$C$43,5,FALSE),"") ->  | E145: 0 | F145: =IF(ISNUMBER(C145),IF(ISNUMBER(E145),ROUND(AC145*E145,2),""),"") -> 0 | G145: =IF(Q145>1,VLOOKUP(Q145,'Reference Data'!$C$9:$C$43,3,FALSE),"") ->  | I145: =IF($E145=0,"",IF(($A$8)="Please Choose Date","Select Date Error!",IF($R145="N/A","",$X145))) ->  | Q145: =IF(ISBLANK($A145),1,VLOOKUP($A145,'Reference Data'!$B$9:$C$133,2,FALSE)) -> 94 | R145: =VLOOKUP(Q145,'Reference Data'!$C$9:Z$125,($P$7)+1,FALSE) -> 0 | S145: 0 | T145: 0 | U145: 0 | V145: 0 | W145: 0 | X145: 0 | Y145: 0 | Z145: 0 | AA145: 0 | AC145: 1 | AD145: =IF(ISBLANK($A145),1,VLOOKUP($A145,'Reference Data'!$B$9:$D$133,3,FALSE)) -> 1 | AW145: 0 | AX145: 0
A146: Other (not markup eligible) | C146: 1 | D146: =IF(Q146>1,VLOOKUP(Q146,'Reference Data'!$C$9:$C$43,5,FALSE),"") ->  | E146: 0 | F146: =IF(ISNUMBER(C146),IF(ISNUMBER(E146),ROUND(AC146*E146,2),""),"") -> 0 | G146: =IF(Q146>1,VLOOKUP(Q146,'Reference Data'!$C$9:$C$43,3,FALSE),"") ->  | I146: =IF($E146=0,"",IF(($A$8)="Please Choose Date","Select Date Error!",IF($R146="N/A","",$X146))) ->  | Q146: =IF(ISBLANK($A146),1,VLOOKUP($A146,'Reference Data'!$B$9:$C$133,2,FALSE)) -> 95 | R146: =VLOOKUP(Q146,'Reference Data'!$C$9:Z$125,($P$7)+1,FALSE) -> 0 | S146: 0 | T146: 0 | U146: 0 | V146: 0 | W146: 0 | X146: 0 | Y146: 0 | Z146: 0 | AA146: 0 | AC146: 1 | AD146: =IF(ISBLANK($A146),1,VLOOKUP($A146,'Reference Data'!$B$9:$D$133,3,FALSE)) -> 0 | AW146: 0 | AX146: 0
R147: =VLOOKUP(Q147,'Reference Data'!$C$9:Z$125,($P$7)+1,FALSE) ->  | AW147: =IF(SUM($I$150:$I$174)>0, 1, 0) -> 0 | AX147: 0
A148: Field Costs | G148: =IF(Q148>1,VLOOKUP(Q148,'Reference Data'!$C$9:$C$43,3,FALSE),"") ->  | I148: =IF(ISBLANK($C148),"",IF(($A$8)="Please Choose Date","Select Date Error!",IF($R148="N/A","",$X148))) ->  | R148: =VLOOKUP(Q148,'Reference Data'!$C$9:Z$125,($P$7)+1,FALSE) ->  | AW148: =IF(SUM($I$150:$I$174)>0, 1, 0) -> 0 | AX148: 0
A149: DESCRIPTION | B149: TASK PERFORMED | C149: UNITS | D149: TYPE | E149: UNIT COST | F149: TOTAL W/O MARKUP OR TAX | G149: TAX (NO MARKUP) | H149: % MARK-UP | I149: AMOUNT PROPOSED | Q149: Automated Descriptor | R149: =VLOOKUP(Q149,'Reference Data'!$C$9:Z$125,($P$7)+1,FALSE) ->  | S149: Total Automated Unit Cost | T149: PROPOSED Unit Cost | U149: PROPOSED total w/o markup or tax | V149: PROPOSED Tax | W149: PROPOSED Markup | X149: PROPOSED Total AMT | Y149: Lower Calculated Markup | Z149: Lower Calculated total w/ markup and tax | AA149: Lower Cost Final total | AB149: Amt Denied | AC149: Units Rounded | AD149: Markup Available | AW149: =IF(SUM($I$150:$I$174)>0, 1, 0) -> 0 | AX149: 0
A150: Principal | D150: =IF(Q150>1,VLOOKUP(Q150,'Reference Data'!$C$9:$C$43,5,FALSE),"") ->  | E150: 175.25 | G150: =IF(Q150>1,VLOOKUP(Q150,'Reference Data'!$C$9:$C$43,3,FALSE),"") ->  | I150: =IF(ISBLANK($C150),"",IF(($A$8)="Please Choose Date","Select Date Error!",IF($R150="N/A","",$X150))) ->  | Q150: =IF(ISBLANK($A150),1,VLOOKUP($A150,'Reference Data'!$B$9:$C$133,2,FALSE)) -> 2 | R150: =VLOOKUP(Q150,'Reference Data'!$C$9:Z$125,($P$7)+1,FALSE) -> 175.25 | S150: =IF(Q150>1, ROUND(R150*AC150,2), "") -> 0 | T150: =IF(ISNUMBER(E150),E150,"") -> 175.25 | U150: =IF(ISNUMBER(T150),ROUND(E150*AC150,2),"") -> 0 | V150: =IF(ISNUMBER(G150),G150,0) -> 0 | W150: =IF(ISNUMBER(H150), H150, 0) -> 0 | X150: =IF(Q150>1,IF(ISNUMBER(U150),ROUND(U150*(1+W150)+V150,2),S150),"") -> 0 | Y150: =IF(W150>$AB$7,$AB$7,W150) -> 0 | Z150: =IF(ISNUMBER(U150),ROUND(U150*(Y150+1)+V150,2),S150) -> 0 | AA150: =IF(AND(Q150>1,S150>0,S150<Z150),S150,Z150) -> 0 | AB150: =IF(AND(ISNUMBER(X150),ISNUMBER(AA150)),IF((X150-AA150)>0,X150-AA150,""),"") ->  | AC150: =ROUND($C150,2) -> 0 | AD150: =IF(ISBLANK($A150),1,VLOOKUP($A150,'Reference Data'!$B$9:$D$133,3,FALSE)) -> 0 | AW150: =IF(AA150=0, 0, 1) -> 0 | AX150: 0
A151: Senior Project Manager | D151: =IF(Q151>1,VLOOKUP(Q151,'Reference Data'!$C$9:$C$43,5,FALSE),"") ->  | E151: 162.75 | G151: =IF(Q151>1,VLOOKUP(Q151,'Reference Data'!$C$9:$C$43,3,FALSE),"") ->  | Q151: =IF(ISBLANK($A151),1,VLOOKUP($A151,'Reference Data'!$B$9:$C$133,2,FALSE)) -> 3 | R151: =VLOOKUP(Q151,'Reference Data'!$C$9:Z$125,($P$7)+1,FALSE) -> 162.75 | S151: 0 | T151: 162.75 | U151: 0 | V151: 0 | W151: 0 | X151: 0 | Y151: 0 | Z151: 0 | AA151: 0 | AC151: 0 | AD151: =IF(ISBLANK($A151),1,VLOOKUP($A151,'Reference Data'!$B$9:$D$133,3,FALSE)) -> 0 | AW151: 0 | AX151: 0
A152: Project Manager | D152: =IF(Q152>1,VLOOKUP(Q152,'Reference Data'!$C$9:$C$43,5,FALSE),"") ->  | E152: 133.75 | G152: =IF(Q152>1,VLOOKUP(Q152,'Reference Data'!$C$9:$C$43,3,FALSE),"") ->  | Q152: =IF(ISBLANK($A152),1,VLOOKUP($A152,'Reference Data'!$B$9:$C$133,2,FALSE)) -> 4 | R152: =VLOOKUP(Q152,'Reference Data'!$C$9:Z$125,($P$7)+1,FALSE) -> 133.75 | S152: 0 | T152: 133.75 | U152: 0 | V152: 0 | W152: 0 | X152: 0 | Y152: 0 | Z152: 0 | AA152: 0 | AC152: 0 | AD152: =IF(ISBLANK($A152),1,VLOOKUP($A152,'Reference Data'!$B$9:$D$133,3,FALSE)) -> 0 | AW152: 0 | AX152: 0
A153: Staff | D153: =IF(Q153>1,VLOOKUP(Q153,'Reference Data'!$C$9:$C$43,5,FALSE),"") ->  | E153: 112.25 | G153: =IF(Q153>1,VLOOKUP(Q153,'Reference Data'!$C$9:$C$43,3,FALSE),"") ->  | Q153: =IF(ISBLANK($A153),1,VLOOKUP($A153,'Reference Data'!$B$9:$C$133,2,FALSE)) -> 5 | R153: =VLOOKUP(Q153,'Reference Data'!$C$9:Z$125,($P$7)+1,FALSE) -> 112.25 | S153: 0 | T153: 112.25 | U153: 0 | V153: 0 | W153: 0 | X153: 0 | Y153: 0 | Z153: 0 | AA153: 0 | AC153: 0 | AD153: =IF(ISBLANK($A153),1,VLOOKUP($A153,'Reference Data'!$B$9:$D$133,3,FALSE)) -> 0 | AW153: 0 | AX153: 0
A154: Technician | D154: =IF(Q154>1,VLOOKUP(Q154,'Reference Data'!$C$9:$C$43,5,FALSE),"") ->  | E154: 77 | G154: =IF(Q154>1,VLOOKUP(Q154,'Reference Data'!$C$9:$C$43,3,FALSE),"") ->  | Q154: =IF(ISBLANK($A154),1,VLOOKUP($A154,'Reference Data'!$B$9:$C$133,2,FALSE)) -> 6 | R154: =VLOOKUP(Q154,'Reference Data'!$C$9:Z$125,($P$7)+1,FALSE) -> 77 | S154: 0 | T154: 77 | U154: 0 | V154: 0 | W154: 0 | X154: 0 | Y154: 0 | Z154: 0 | AA154: 0 | AC154: 0 | AD154: =IF(ISBLANK($A154),1,VLOOKUP($A154,'Reference Data'!$B$9:$D$133,3,FALSE)) -> 0 | AW154: 0 | AX154: 0
A155: Drafting | D155: =IF(Q155>1,VLOOKUP(Q155,'Reference Data'!$C$9:$C$43,5,FALSE),"") ->  | E155: 64.25 | G155: =IF(Q155>1,VLOOKUP(Q155,'Reference Data'!$C$9:$C$43,3,FALSE),"") ->  | Q155: =IF(ISBLANK($A155),1,VLOOKUP($A155,'Reference Data'!$B$9:$C$133,2,FALSE)) -> 7 | R155: =VLOOKUP(Q155,'Reference Data'!$C$9:Z$125,($P$7)+1,FALSE) -> 64.25 | S155: 0 | T155: 64.25 | U155: 0 | V155: 0 | W155: 0 | X155: 0 | Y155: 0 | Z155: 0 | AA155: 0 | AC155: 0 | AD155: =IF(ISBLANK($A155),1,VLOOKUP($A155,'Reference Data'!$B$9:$D$133,3,FALSE)) -> 0 | AW155: 0 | AX155: 0
A156: Clerical | D156: =IF(Q156>1,VLOOKUP(Q156,'Reference Data'!$C$9:$C$43,5,FALSE),"") ->  | E156: 45.5 | G156: =IF(Q156>1,VLOOKUP(Q156,'Reference Data'!$C$9:$C$43,3,FALSE),"") ->  | Q156: =IF(ISBLANK($A156),1,VLOOKUP($A156,'Reference Data'!$B$9:$C$133,2,FALSE)) -> 8 | R156: =VLOOKUP(Q156,'Reference Data'!$C$9:Z$125,($P$7)+1,FALSE) -> 45.5 | S156: 0 | T156: 45.5 | U156: 0 | V156: 0 | W156: 0 | X156: 0 | Y156: 0 | Z156: 0 | AA156: 0 | AC156: 0 | AD156: =IF(ISBLANK($A156),1,VLOOKUP($A156,'Reference Data'!$B$9:$D$133,3,FALSE)) -> 0 | AW156: 0 | AX156: 0
A157: Mileage | D157: =IF(Q157>1,VLOOKUP(Q157,'Reference Data'!$C$9:$C$43,5,FALSE),"") ->  | E157: 0.725 | G157: =IF(Q157>1,VLOOKUP(Q157,'Reference Data'!$C$9:$C$43,3,FALSE),"") ->  | Q157: =IF(ISBLANK($A157),1,VLOOKUP($A157,'Reference Data'!$B$9:$C$133,2,FALSE)) -> 9 | R157: =VLOOKUP(Q157,'Reference Data'!$C$9:Z$125,($P$7)+1,FALSE) -> 0.725 | S157: 0 | T157: 0.725 | U157: 0 | V157: 0 | W157: 0 | X157: 0 | Y157: 0 | Z157: 0 | AA157: 0 | AC157: 0 | AD157: =IF(ISBLANK($A157),1,VLOOKUP($A157,'Reference Data'!$B$9:$D$133,3,FALSE)) -> 0 | AW157: 0 | AX157: 0
A158: Overnight lodging (total) | C158: 1 | D158: =IF(Q158>1,VLOOKUP(Q158,'Reference Data'!$C$9:$C$43,5,FALSE),"") ->  | E158: 0 | F158: 0 | G158: =IF(Q158>1,VLOOKUP(Q158,'Reference Data'!$C$9:$C$43,3,FALSE),"") ->  | I158: =IF($E158=0,"",IF(($A$8)="Please Choose Date","Select Date Error!",IF($R158="N/A","",$X158))) ->  | Q158: =IF(ISBLANK($A158),1,VLOOKUP($A158,'Reference Data'!$B$9:$C$133,2,FALSE)) -> 10 | R158: =VLOOKUP(Q158,'Reference Data'!$C$9:Z$125,($P$7)+1,FALSE) -> 0 | S158: 0 | T158: 0 | U158: 0 | V158: 0 | W158: 0 | X158: 0 | Y158: 0 | Z158: 0 | AA158: 0 | AC158: 1 | AD158: =IF(ISBLANK($A158),1,VLOOKUP($A158,'Reference Data'!$B$9:$D$133,3,FALSE)) -> 0 | AW158: 0 | AX158: 0
A159: Per diem | D159: =IF(Q159>1,VLOOKUP(Q159,'Reference Data'!$C$9:$C$43,5,FALSE),"") ->  | E159: 41 | G159: =IF(Q159>1,VLOOKUP(Q159,'Reference Data'!$C$9:$C$43,3,FALSE),"") ->  | Q159: =IF(ISBLANK($A159),1,VLOOKUP($A159,'Reference Data'!$B$9:$C$133,2,FALSE)) -> 11 | R159: =VLOOKUP(Q159,'Reference Data'!$C$9:Z$125,($P$7)+1,FALSE) -> 41 | S159: 0 | T159: 41 | U159: 0 | V159: 0 | W159: 0 | X159: 0 | Y159: 0 | Z159: 0 | AA159: 0 | AC159: 0 | AD159: =IF(ISBLANK($A159),1,VLOOKUP($A159,'Reference Data'!$B$9:$D$133,3,FALSE)) -> 0 | AW159: 0 | AX159: 0
A160: Bailers | E160: 20 | Q160: =IF(ISBLANK($A160),1,VLOOKUP($A160,'Reference Data'!$B$9:$C$133,2,FALSE)) -> 15 | R160: =VLOOKUP(Q160,'Reference Data'!$C$9:Z$125,($P$7)+1,FALSE) -> 20 | S160: =IF(Q160>1, ROUND(R160*AC160,2), "") -> 0 | T160: =IF(ISNUMBER(E160),E160,"") -> 20 | U160: =IF(ISNUMBER(T160),ROUND(E160*AC160,2),"") -> 0 | V160: =IF(ISNUMBER(G160),G160,0) -> 0 | W160: =IF(ISNUMBER(H160), H160, 0) -> 0 | X160: =IF(Q160>1,IF(ISNUMBER(U160),ROUND(U160*(1+W160)+V160,2),S160),"") -> 0 | Y160: =IF(W160>$AB$7,$AB$7,W160) -> 0 | Z160: =IF(ISNUMBER(U160),ROUND(U160*(Y160+1)+V160,2),S160) -> 0 | AA160: =IF(AND(Q160>1,S160>0,S160<Z160),S160,Z160) -> 0 | AB160: =IF(AND(ISNUMBER(X160),ISNUMBER(AA160)),IF((X160-AA160)>0,X160-AA160,""),"") ->  | AC160: 0 | AD160: =IF(ISBLANK($A160),1,VLOOKUP($A160,'Reference Data'!$B$9:$D$133,3,FALSE)) -> 0 | AW160: 0 | AX160: 0
A161: Boring Incidentals | D161: =IF(Q161>1,VLOOKUP(Q161,'Reference Data'!$C$9:$C$43,5,FALSE),"") ->  | E161: 30 | G161: =IF(Q161>1,VLOOKUP(Q161,'Reference Data'!$C$9:$C$43,3,FALSE),"") ->  | Q161: =IF(ISBLANK($A161),1,VLOOKUP($A161,'Reference Data'!$B$9:$C$133,2,FALSE)) -> 16 | R161: =VLOOKUP(Q161,'Reference Data'!$C$9:Z$125,($P$7)+1,FALSE) -> 30 | S161: 0 | T161: 30 | U161: 0 | V161: 0 | W161: 0 | X161: 0 | Y161: 0 | Z161: 0 | AA161: 0 | AC161: 0 | AD161: =IF(ISBLANK($A161),1,VLOOKUP($A161,'Reference Data'!$B$9:$D$133,3,FALSE)) -> 0 | AW161: 0 | AX161: 0
A162: Decon | D162: =IF(Q162>1,VLOOKUP(Q162,'Reference Data'!$C$9:$C$43,5,FALSE),"") ->  | E162: 15 | G162: =IF(Q162>1,VLOOKUP(Q162,'Reference Data'!$C$9:$C$43,3,FALSE),"") ->  | Q162: =IF(ISBLANK($A162),1,VLOOKUP($A162,'Reference Data'!$B$9:$C$133,2,FALSE)) -> 17 | R162: =VLOOKUP(Q162,'Reference Data'!$C$9:Z$125,($P$7)+1,FALSE) -> 15 | S162: 0 | T162: 15 | U162: 0 | V162: 0 | W162: 0 | X162: 0 | Y162: 0 | Z162: 0 | AA162: 0 | AC162: 0 | AD162: =IF(ISBLANK($A162),1,VLOOKUP($A162,'Reference Data'!$B$9:$D$133,3,FALSE)) -> 0 | AW162: 0 | AX162: 0
A163: Flame Ionization Detector | D163: =IF(Q163>1,VLOOKUP(Q163,'Reference Data'!$C$9:$C$43,5,FALSE),"") ->  | E163: 135 | G163: =IF(Q163>1,VLOOKUP(Q163,'Reference Data'!$C$9:$C$43,3,FALSE),"") ->  | Q163: =IF(ISBLANK($A163),1,VLOOKUP($A163,'Reference Data'!$B$9:$C$133,2,FALSE)) -> 19 | R163: =VLOOKUP(Q163,'Reference Data'!$C$9:Z$125,($P$7)+1,FALSE) -> 135 | S163: 0 | T163: 135 | U163: 0 | V163: 0 | W163: 0 | X163: 0 | Y163: 0 | Z163: 0 | AA163: 0 | AC163: 0 | AD163: =IF(ISBLANK($A163),1,VLOOKUP($A163,'Reference Data'!$B$9:$D$133,3,FALSE)) -> 0 | AW163: 0 | AX163: 0
A164: Hand Auger | D164: =IF(Q164>1,VLOOKUP(Q164,'Reference Data'!$C$9:$C$43,5,FALSE),"") ->  | E164: 42 | G164: =IF(Q164>1,VLOOKUP(Q164,'Reference Data'!$C$9:$C$43,3,FALSE),"") ->  | Q164: =IF(ISBLANK($A164),1,VLOOKUP($A164,'Reference Data'!$B$9:$C$133,2,FALSE)) -> 20 | R164: =VLOOKUP(Q164,'Reference Data'!$C$9:Z$125,($P$7)+1,FALSE) -> 42 | S164: 0 | T164: 42 | U164: 0 | V164: 0 | W164: 0 | X164: 0 | Y164: 0 | Z164: 0 | AA164: 0 | AC164: 0 | AD164: =IF(ISBLANK($A164),1,VLOOKUP($A164,'Reference Data'!$B$9:$D$133,3,FALSE)) -> 0 | AW164: 0 | AX164: 0
A165: Interface Probe | D165: =IF(Q165>1,VLOOKUP(Q165,'Reference Data'!$C$9:$C$43,5,FALSE),"") ->  | E165: 70 | G165: =IF(Q165>1,VLOOKUP(Q165,'Reference Data'!$C$9:$C$43,3,FALSE),"") ->  | Q165: =IF(ISBLANK($A165),1,VLOOKUP($A165,'Reference Data'!$B$9:$C$133,2,FALSE)) -> 21 | R165: =VLOOKUP(Q165,'Reference Data'!$C$9:Z$125,($P$7)+1,FALSE) -> 70 | S165: 0 | T165: 70 | U165: 0 | V165: 0 | W165: 0 | X165: 0 | Y165: 0 | Z165: 0 | AA165: 0 | AC165: 0 | AD165: =IF(ISBLANK($A165),1,VLOOKUP($A165,'Reference Data'!$B$9:$D$133,3,FALSE)) -> 0 | AW165: 0 | AX165: 0
A166: Laser Survey Equipment | D166: =IF(Q166>1,VLOOKUP(Q166,'Reference Data'!$C$9:$C$43,5,FALSE),"") ->  | E166: 90 | G166: =IF(Q166>1,VLOOKUP(Q166,'Reference Data'!$C$9:$C$43,3,FALSE),"") ->  | Q166: =IF(ISBLANK($A166),1,VLOOKUP($A166,'Reference Data'!$B$9:$C$133,2,FALSE)) -> 22 | R166: =VLOOKUP(Q166,'Reference Data'!$C$9:Z$125,($P$7)+1,FALSE) -> 90 | S166: 0 | T166: 90 | U166: 0 | V166: 0 | W166: 0 | X166: 0 | Y166: 0 | Z166: 0 | AA166: 0 | AC166: 0 | AD166: =IF(ISBLANK($A166),1,VLOOKUP($A166,'Reference Data'!$B$9:$D$133,3,FALSE)) -> 0 | AW166: 0 | AX166: 0
A167: MW Incidentals | D167: =IF(Q167>1,VLOOKUP(Q167,'Reference Data'!$C$9:$C$43,5,FALSE),"") ->  | E167: 30 | G167: =IF(Q167>1,VLOOKUP(Q167,'Reference Data'!$C$9:$C$43,3,FALSE),"") ->  | Q167: =IF(ISBLANK($A167),1,VLOOKUP($A167,'Reference Data'!$B$9:$C$133,2,FALSE)) -> 26 | R167: =VLOOKUP(Q167,'Reference Data'!$C$9:Z$125,($P$7)+1,FALSE) -> 30 | S167: 0 | T167: =IF(ISNUMBER(E167),E167,"") -> 30 | U167: 0 | V167: =IF(ISNUMBER(G167),G167,0) -> 0 | W167: 0 | X167: 0 | Y167: =IF(W167>$AB$7,$AB$7,W167) -> 0 | Z167: 0 | AA167: 0 | AB167: =IF(AND(ISNUMBER(X167),ISNUMBER(AA167)),IF((X167-AA167)>0,X167-AA167,""),"") ->  | AC167: 0 | AD167: =IF(ISBLANK($A167),1,VLOOKUP($A167,'Reference Data'!$B$9:$D$133,3,FALSE)) -> 0 | AW167: 0 | AX167: 0
A168: Photo Ionization Detector | D168: =IF(Q168>1,VLOOKUP(Q168,'Reference Data'!$C$9:$C$43,5,FALSE),"") ->  | E168: 90 | G168: =IF(Q168>1,VLOOKUP(Q168,'Reference Data'!$C$9:$C$43,3,FALSE),"") ->  | Q168: =IF(ISBLANK($A168),1,VLOOKUP($A168,'Reference Data'!$B$9:$C$133,2,FALSE)) -> 30 | R168: =VLOOKUP(Q168,'Reference Data'!$C$9:Z$125,($P$7)+1,FALSE) -> 90 | S168: 0 | T168: 90 | U168: 0 | V168: 0 | W168: 0 | X168: 0 | Y168: 0 | Z168: 0 | AA168: 0 | AC168: 0 | AD168: =IF(ISBLANK($A168),1,VLOOKUP($A168,'Reference Data'!$B$9:$D$133,3,FALSE)) -> 0 | AW168: 0 | AX168: 0
A169: Water Level Indicator | D169: =IF(Q169>1,VLOOKUP(Q169,'Reference Data'!$C$9:$C$43,5,FALSE),"") ->  | E169: 15 | G169: =IF(Q169>1,VLOOKUP(Q169,'Reference Data'!$C$9:$C$43,3,FALSE),"") ->  | Q169: =IF(ISBLANK($A169),1,VLOOKUP($A169,'Reference Data'!$B$9:$C$133,2,FALSE)) -> 32 | R169: =VLOOKUP(Q169,'Reference Data'!$C$9:Z$125,($P$7)+1,FALSE) -> 15 | S169: 0 | T169: 15 | U169: 0 | V169: 0 | W169: 0 | X169: 0 | Y169: 0 | Z169: 0 | AA169: 0 | AC169: 0 | AD169: =IF(ISBLANK($A169),1,VLOOKUP($A169,'Reference Data'!$B$9:$D$133,3,FALSE)) -> 0 | AW169: 0 | AX169: 0
A170: Drums | D170: =IF(Q170>1,VLOOKUP(Q170,'Reference Data'!$C$9:$C$43,5,FALSE),"") ->  | E170: 0 | G170: =IF(Q170>1,VLOOKUP(Q170,'Reference Data'!$C$9:$C$43,3,FALSE),"") ->  | Q170: =IF(ISBLANK($A170),1,VLOOKUP($A170,'Reference Data'!$B$9:$C$133,2,FALSE)) -> 49 | R170: =VLOOKUP(Q170,'Reference Data'!$C$9:Z$125,($P$7)+1,FALSE) -> 0 | S170: 0 | T170: 0 | U170: 0 | V170: 0 | W170: 0 | X170: 0 | Y170: =IF(W170>$AB$7,$AB$7,W170) -> 0 | Z170: 0 | AA170: 0 | AB170: =IF(AND(ISNUMBER(X170),ISNUMBER(AA170)),IF((X170-AA170)>0,X170-AA170,""),"") ->  | AC170: 0 | AD170: =IF(ISBLANK($A170),1,VLOOKUP($A170,'Reference Data'!$B$9:$D$133,3,FALSE)) -> 1 | AW170: 0 | AX170: 0
A171: Drum Disposal | D171: =IF(Q171>1,VLOOKUP(Q171,'Reference Data'!$C$9:$C$43,5,FALSE),"") ->  | E171: 0 | G171: =IF(Q171>1,VLOOKUP(Q171,'Reference Data'!$C$9:$C$43,3,FALSE),"") ->  | Q171: =IF(ISBLANK($A171),1,VLOOKUP($A171,'Reference Data'!$B$9:$C$133,2,FALSE)) -> 48 | R171: =VLOOKUP(Q171,'Reference Data'!$C$9:Z$125,($P$7)+1,FALSE) -> 0 | S171: 0 | T171: 0 | U171: 0 | V171: 0 | W171: 0 | X171: 0 | Y171: =IF(W171>$AB$7,$AB$7,W171) -> 0 | Z171: 0 | AA171: 0 | AB171: =IF(AND(ISNUMBER(X171),ISNUMBER(AA171)),IF((X171-AA171)>0,X171-AA171,""),"") ->  | AC171: 0 | AD171: =IF(ISBLANK($A171),1,VLOOKUP($A171,'Reference Data'!$B$9:$D$133,3,FALSE)) -> 1 | AW171: 0 | AX171: 0
A172: Utility Locate | D172: =IF(Q172>1,VLOOKUP(Q172,'Reference Data'!$C$9:$C$43,5,FALSE),"") ->  | E172: 0 | G172: =IF(Q172>1,VLOOKUP(Q172,'Reference Data'!$C$9:$C$43,3,FALSE),"") ->  | Q172: =IF(ISBLANK($A172),1,VLOOKUP($A172,'Reference Data'!$B$9:$C$133,2,FALSE)) -> 31 | R172: =VLOOKUP(Q172,'Reference Data'!$C$9:Z$125,($P$7)+1,FALSE) -> 0 | S172: 0 | T172: 0 | U172: 0 | V172: 0 | W172: 0 | X172: 0 | Y172: =IF(W172>$AB$7,$AB$7,W172) -> 0 | Z172: 0 | AA172: 0 | AB172: =IF(AND(ISNUMBER(X172),ISNUMBER(AA172)),IF((X172-AA172)>0,X172-AA172,""),"") ->  | AC172: 0 | AD172: =IF(ISBLANK($A172),1,VLOOKUP($A172,'Reference Data'!$B$9:$D$133,3,FALSE)) -> 1 | AW172: 0 | AX172: 0
A173: Other (markup eligible) | C173: 1 | D173: =IF(Q173>1,VLOOKUP(Q173,'Reference Data'!$C$9:$C$43,5,FALSE),"") ->  | E173: 0 | F173: 0 | G173: =IF(Q173>1,VLOOKUP(Q173,'Reference Data'!$C$9:$C$43,3,FALSE),"") ->  | I173: =IF($E173=0,"",IF(($A$8)="Please Choose Date","Select Date Error!",IF($R173="N/A","",$X173))) ->  | Q173: =IF(ISBLANK($A173),1,VLOOKUP($A173,'Reference Data'!$B$9:$C$133,2,FALSE)) -> 94 | R173: =VLOOKUP(Q173,'Reference Data'!$C$9:Z$125,($P$7)+1,FALSE) -> 0 | S173: 0 | T173: 0 | U173: 0 | V173: 0 | W173: 0 | X173: 0 | Y173: 0 | Z173: 0 | AA173: 0 | AC173: 1 | AD173: =IF(ISBLANK($A173),1,VLOOKUP($A173,'Reference Data'!$B$9:$D$133,3,FALSE)) -> 1 | AW173: 0 | AX173: 0
A174: Other (not markup eligible) | C174: 1 | D174: =IF(Q174>1,VLOOKUP(Q174,'Reference Data'!$C$9:$C$43,5,FALSE),"") ->  | E174: 0 | F174: 0 | G174: =IF(Q174>1,VLOOKUP(Q174,'Reference Data'!$C$9:$C$43,3,FALSE),"") ->  | I174: =IF($E174=0,"",IF(($A$8)="Please Choose Date","Select Date Error!",IF($R174="N/A","",$X174))) ->  | Q174: =IF(ISBLANK($A174),1,VLOOKUP($A174,'Reference Data'!$B$9:$C$133,2,FALSE)) -> 95 | R174: =VLOOKUP(Q174,'Reference Data'!$C$9:Z$125,($P$7)+1,FALSE) -> 0 | S174: 0 | T174: 0 | U174: 0 | V174: 0 | W174: 0 | X174: 0 | Y174: 0 | Z174: 0 | AA174: 0 | AC174: 1 | AD174: =IF(ISBLANK($A174),1,VLOOKUP($A174,'Reference Data'!$B$9:$D$133,3,FALSE)) -> 0 | AW174: 0 | AX174: 0
A175: Laboratory Analyses (Soil) | D175: =IF(Q175>1,VLOOKUP(Q175,'Reference Data'!$C$9:$C$43,5,FALSE),"") ->  | G175: =IF(Q175>1,VLOOKUP(Q175,'Reference Data'!$C$9:$C$43,3,FALSE),"") ->  | R175: =VLOOKUP(Q175,'Reference Data'!$C$9:Z$125,($P$7)+1,FALSE) ->  | AW175: =IF(SUM($I$176:$I$187)>0, 1, 0) -> 0 | AX175: 0
A176: VOC -8260 (soil) | D176: =IF(Q176>1,VLOOKUP(Q176,'Reference Data'!$C$9:$C$43,5,FALSE),"") ->  | E176: 0 | G176: =IF(Q176>1,VLOOKUP(Q176,'Reference Data'!$C$9:$C$43,3,FALSE),"") ->  | Q176: =IF(ISBLANK($A176),1,VLOOKUP($A176,'Reference Data'!$B$9:$C$133,2,FALSE)) -> 75 | R176: =VLOOKUP(Q176,'Reference Data'!$C$9:Z$125,($P$7)+1,FALSE) -> 130 | S176: =IF(Q176>1, ROUND(R176*AC176,2), "") -> 0 | T176: 0 | U176: =IF(ISNUMBER(T176),ROUND(E176*AC176,2),"") -> 0 | V176: 0 | W176: =IF(ISNUMBER(H176), H176, 0) -> 0 | X176: =IF(Q176>1,IF(ISNUMBER(U176),ROUND(U176*(1+W176)+V176,2),S176),"") -> 0 | Y176: 0 | Z176: =IF(ISNUMBER(U176),ROUND(U176*(Y176+1)+V176,2),S176) -> 0 | AA176: =IF(AND(Q176>1,S176>0,S176<Z176),S176,Z176) -> 0 | AC176: 0 | AD176: =IF(ISBLANK($A176),1,VLOOKUP($A176,'Reference Data'!$B$9:$D$133,3,FALSE)) -> 1 | AW176: 0 | AX176: 0
A177: BTEX/MTBE -8021 (soil) | D177: =IF(Q177>1,VLOOKUP(Q177,'Reference Data'!$C$9:$C$43,5,FALSE),"") ->  | E177: 0 | G177: =IF(Q177>1,VLOOKUP(Q177,'Reference Data'!$C$9:$C$43,3,FALSE),"") ->  | Q177: =IF(ISBLANK($A177),1,VLOOKUP($A177,'Reference Data'!$B$9:$C$133,2,FALSE)) -> 64 | R177: =VLOOKUP(Q177,'Reference Data'!$C$9:Z$125,($P$7)+1,FALSE) -> 60 | S177: 0 | T177: 0 | U177: 0 | V177: 0 | W177: 0 | X177: 0 | Y177: 0 | Z177: 0 | AA177: 0 | AC177: 0 | AD177: =IF(ISBLANK($A177),1,VLOOKUP($A177,'Reference Data'!$B$9:$D$133,3,FALSE)) -> 1 | AW177: 0 | AX177: 0
A178: BTEX/MTBE -8260 (soil) | D178: =IF(Q178>1,VLOOKUP(Q178,'Reference Data'!$C$9:$C$43,5,FALSE),"") ->  | E178: 0 | G178: =IF(Q178>1,VLOOKUP(Q178,'Reference Data'!$C$9:$C$43,3,FALSE),"") ->  | Q178: =IF(ISBLANK($A178),1,VLOOKUP($A178,'Reference Data'!$B$9:$C$133,2,FALSE)) -> 65 | R178: =VLOOKUP(Q178,'Reference Data'!$C$9:Z$125,($P$7)+1,FALSE) -> 80 | S178: 0 | T178: 0 | U178: 0 | V178: 0 | W178: 0 | X178: 0 | Y178: 0 | Z178: 0 | AA178: 0 | AC178: 0 | AD178: =IF(ISBLANK($A178),1,VLOOKUP($A178,'Reference Data'!$B$9:$D$133,3,FALSE)) -> 1 | AW178: 0 | AX178: 0
A179: SVOC - 8270 (soil) | D179: =IF(Q179>1,VLOOKUP(Q179,'Reference Data'!$C$9:$C$43,5,FALSE),"") ->  | E179: 0 | G179: =IF(Q179>1,VLOOKUP(Q179,'Reference Data'!$C$9:$C$43,3,FALSE),"") ->  | Q179: =IF(ISBLANK($A179),1,VLOOKUP($A179,'Reference Data'!$B$9:$C$133,2,FALSE)) -> 72 | R179: =VLOOKUP(Q179,'Reference Data'!$C$9:Z$125,($P$7)+1,FALSE) -> 225 | S179: 0 | T179: 0 | U179: 0 | V179: 0 | W179: 0 | X179: 0 | Y179: 0 | Z179: 0 | AA179: 0 | AC179: 0 | AD179: =IF(ISBLANK($A179),1,VLOOKUP($A179,'Reference Data'!$B$9:$D$133,3,FALSE)) -> 1 | AW179: 0 | AX179: 0
A180: PAH -8270 SIM (soil) | D180: =IF(Q180>1,VLOOKUP(Q180,'Reference Data'!$C$9:$C$43,5,FALSE),"") ->  | E180: 0 | G180: =IF(Q180>1,VLOOKUP(Q180,'Reference Data'!$C$9:$C$43,3,FALSE),"") ->  | Q180: =IF(ISBLANK($A180),1,VLOOKUP($A180,'Reference Data'!$B$9:$C$133,2,FALSE)) -> 69 | R180: =VLOOKUP(Q180,'Reference Data'!$C$9:Z$125,($P$7)+1,FALSE) -> 130 | S180: 0 | T180: 0 | U180: 0 | V180: 0 | W180: 0 | X180: 0 | Y180: 0 | Z180: 0 | AA180: 0 | AC180: 0 | AD180: =IF(ISBLANK($A180),1,VLOOKUP($A180,'Reference Data'!$B$9:$D$133,3,FALSE)) -> 1 | AW180: 0 | AX180: 0
A181: PAH -8310 (soil) | D181: =IF(Q181>1,VLOOKUP(Q181,'Reference Data'!$C$9:$C$43,5,FALSE),"") ->  | E181: 0 | G181: =IF(Q181>1,VLOOKUP(Q181,'Reference Data'!$C$9:$C$43,3,FALSE),"") ->  | Q181: =IF(ISBLANK($A181),1,VLOOKUP($A181,'Reference Data'!$B$9:$C$133,2,FALSE)) -> 70 | R181: =VLOOKUP(Q181,'Reference Data'!$C$9:Z$125,($P$7)+1,FALSE) -> 150 | S181: 0 | T181: 0 | U181: 0 | V181: 0 | W181: 0 | X181: 0 | Y181: 0 | Z181: 0 | AA181: 0 | AC181: 0 | AD181: =IF(ISBLANK($A181),1,VLOOKUP($A181,'Reference Data'!$B$9:$D$133,3,FALSE)) -> 1 | AW181: 0 | AX181: 0
A182: Metals 7 barium, cadmium, chromium, lead, mercury, nickel, zinc (soil) | D182: =IF(Q182>1,VLOOKUP(Q182,'Reference Data'!$C$9:$C$43,5,FALSE),"") ->  | E182: 0 | G182: =IF(Q182>1,VLOOKUP(Q182,'Reference Data'!$C$9:$C$43,3,FALSE),"") ->  | Q182: =IF(ISBLANK($A182),1,VLOOKUP($A182,'Reference Data'!$B$9:$C$133,2,FALSE)) -> 68 | R182: =VLOOKUP(Q182,'Reference Data'!$C$9:Z$125,($P$7)+1,FALSE) -> 100 | S182: 0 | T182: 0 | U182: 0 | V182: 0 | W182: 0 | X182: 0 | Y182: 0 | Z182: 0 | AA182: 0 | AC182: 0 | AD182: =IF(ISBLANK($A182),1,VLOOKUP($A182,'Reference Data'!$B$9:$D$133,3,FALSE)) -> 1 | AW182: 0 | AX182: 0
A183: Individual Metals (per sample) (soil) | D183: =IF(Q183>1,VLOOKUP(Q183,'Reference Data'!$C$9:$C$43,5,FALSE),"") ->  | E183: 0 | G183: =IF(Q183>1,VLOOKUP(Q183,'Reference Data'!$C$9:$C$43,3,FALSE),"") ->  | Q183: =IF(ISBLANK($A183),1,VLOOKUP($A183,'Reference Data'!$B$9:$C$133,2,FALSE)) -> 67 | R183: =VLOOKUP(Q183,'Reference Data'!$C$9:Z$125,($P$7)+1,FALSE) -> 15 | S183: 0 | T183: 0 | U183: 0 | V183: 0 | W183: 0 | X183: 0 | Y183: 0 | Z183: 0 | AA183: 0 | AC183: 0 | AD183: =IF(ISBLANK($A183),1,VLOOKUP($A183,'Reference Data'!$B$9:$D$133,3,FALSE)) -> 1 | AW183: 0 | AX183: 0
A184: % Moisture (soil) | D184: =IF(Q184>1,VLOOKUP(Q184,'Reference Data'!$C$9:$C$43,5,FALSE),"") ->  | E184: 0 | G184: =IF(Q184>1,VLOOKUP(Q184,'Reference Data'!$C$9:$C$43,3,FALSE),"") ->  | Q184: =IF(ISBLANK($A184),1,VLOOKUP($A184,'Reference Data'!$B$9:$C$133,2,FALSE)) -> 76 | R184: =VLOOKUP(Q184,'Reference Data'!$C$9:Z$125,($P$7)+1,FALSE) -> 0 | S184: 0 | T184: 0 | U184: 0 | V184: 0 | W184: 0 | X184: 0 | Y184: =IF(W184>$AB$7,$AB$7,W184) -> 0 | Z184: 0 | AA184: 0 | AB184: =IF(AND(ISNUMBER(X184),ISNUMBER(AA184)),IF((X184-AA184)>0,X184-AA184,""),"") ->  | AC184: 0 | AD184: =IF(ISBLANK($A184),1,VLOOKUP($A184,'Reference Data'!$B$9:$D$133,3,FALSE)) -> 1 | AW184: 0 | AX184: 0
A185: MS/MSD | D185: =IF(Q185>1,VLOOKUP(Q185,'Reference Data'!$C$9:$C$43,5,FALSE),"") ->  | E185: 0 | G185: =IF(Q185>1,VLOOKUP(Q185,'Reference Data'!$C$9:$C$43,3,FALSE),"") ->  | Q185: =IF(ISBLANK($A185),1,VLOOKUP($A185,'Reference Data'!$B$9:$C$133,2,FALSE)) -> 85 | R185: =VLOOKUP(Q185,'Reference Data'!$C$9:Z$125,($P$7)+1,FALSE) -> 0 | S185: 0 | T185: 0 | U185: 0 | V185: 0 | W185: 0 | X185: 0 | Y185: =IF(W185>$AB$7,$AB$7,W185) -> 0 | Z185: 0 | AA185: 0 | AB185: =IF(AND(ISNUMBER(X185),ISNUMBER(AA185)),IF((X185-AA185)>0,X185-AA185,""),"") ->  | AC185: 0 | AD185: =IF(ISBLANK($A185),1,VLOOKUP($A185,'Reference Data'!$B$9:$D$133,3,FALSE)) -> 1 | AW185: 0 | AX185: 0
A186: QA/QC Data Package | D186: =IF(Q186>1,VLOOKUP(Q186,'Reference Data'!$C$9:$C$43,5,FALSE),"") ->  | E186: 0 | G186: =IF(Q186>1,VLOOKUP(Q186,'Reference Data'!$C$9:$C$43,3,FALSE),"") ->  | Q186: =IF(ISBLANK($A186),1,VLOOKUP($A186,'Reference Data'!$B$9:$C$133,2,FALSE)) -> 86 | R186: =VLOOKUP(Q186,'Reference Data'!$C$9:Z$125,($P$7)+1,FALSE) -> 0 | S186: 0 | T186: 0 | U186: 0 | V186: 0 | W186: 0 | X186: 0 | Y186: 0 | Z186: 0 | AA186: 0 | AC186: 0 | AD186: =IF(ISBLANK($A186),1,VLOOKUP($A186,'Reference Data'!$B$9:$D$133,3,FALSE)) -> 1 | AW186: 0 | AX186: 0
A187: Other | C187: 1 | D187: =IF(Q187>1,VLOOKUP(Q187,'Reference Data'!$C$9:$C$43,5,FALSE),"") ->  | E187: 0 | F187: 0 | G187: =IF(Q187>1,VLOOKUP(Q187,'Reference Data'!$C$9:$C$43,3,FALSE),"") ->  | I187: =IF($E187=0,"",IF(($A$8)="Please Choose Date","Select Date Error!",IF($R187="N/A","",$X187))) ->  | Q187: =IF(ISBLANK($A187),1,VLOOKUP($A187,'Reference Data'!$B$9:$C$133,2,FALSE)) -> 91 | R187: =VLOOKUP(Q187,'Reference Data'!$C$9:Z$125,($P$7)+1,FALSE) -> 0 | S187: 0 | T187: 0 | U187: 0 | V187: 0 | W187: 0 | X187: 0 | Y187: 0 | Z187: 0 | AA187: 0 | AC187: 1 | AD187: =IF(ISBLANK($A187),1,VLOOKUP($A187,'Reference Data'!$B$9:$D$133,3,FALSE)) -> 1 | AW187: 0 | AX187: 0
A188: Laboratory Analyses (Water) | D188: =IF(Q188>1,VLOOKUP(Q188,'Reference Data'!$C$9:$C$43,5,FALSE),"") ->  | G188: =IF(Q188>1,VLOOKUP(Q188,'Reference Data'!$C$9:$C$43,3,FALSE),"") ->  | R188: =VLOOKUP(Q188,'Reference Data'!$C$9:Z$125,($P$7)+1,FALSE) ->  | AW188: =IF(SUM($I$189:$I$199)>0, 1, 0) -> 0 | AX188: 0
A189: VOC -8260 (water) | D189: =IF(Q189>1,VLOOKUP(Q189,'Reference Data'!$C$9:$C$43,5,FALSE),"") ->  | E189: 0 | G189: =IF(Q189>1,VLOOKUP(Q189,'Reference Data'!$C$9:$C$43,3,FALSE),"") ->  | Q189: =IF(ISBLANK($A189),1,VLOOKUP($A189,'Reference Data'!$B$9:$C$133,2,FALSE)) -> 84 | R189: =VLOOKUP(Q189,'Reference Data'!$C$9:Z$125,($P$7)+1,FALSE) -> 135 | S189: =IF(Q189>1, ROUND(R189*AC189,2), "") -> 0 | T189: 0 | U189: =IF(ISNUMBER(T189),ROUND(E189*AC189,2),"") -> 0 | V189: 0 | W189: =IF(ISNUMBER(H189), H189, 0) -> 0 | X189: =IF(Q189>1,IF(ISNUMBER(U189),ROUND(U189*(1+W189)+V189,2),S189),"") -> 0 | Y189: 0 | Z189: =IF(ISNUMBER(U189),ROUND(U189*(Y189+1)+V189,2),S189) -> 0 | AA189: =IF(AND(Q189>1,S189>0,S189<Z189),S189,Z189) -> 0 | AC189: 0 | AD189: =IF(ISBLANK($A189),1,VLOOKUP($A189,'Reference Data'!$B$9:$D$133,3,FALSE)) -> 1 | AW189: 0 | AX189: 0
A190: BTEX/MTBE -8021 (water) | D190: =IF(Q190>1,VLOOKUP(Q190,'Reference Data'!$C$9:$C$43,5,FALSE),"") ->  | E190: 0 | G190: =IF(Q190>1,VLOOKUP(Q190,'Reference Data'!$C$9:$C$43,3,FALSE),"") ->  | Q190: =IF(ISBLANK($A190),1,VLOOKUP($A190,'Reference Data'!$B$9:$C$133,2,FALSE)) -> 77 | R190: =VLOOKUP(Q190,'Reference Data'!$C$9:Z$125,($P$7)+1,FALSE) -> 50 | S190: 0 | T190: 0 | U190: 0 | V190: 0 | W190: 0 | X190: 0 | Y190: 0 | Z190: 0 | AA190: 0 | AC190: 0 | AD190: =IF(ISBLANK($A190),1,VLOOKUP($A190,'Reference Data'!$B$9:$D$133,3,FALSE)) -> 1 | AW190: 0 | AX190: 0
A191: BTEX/MTBE -8260 (water) | D191: =IF(Q191>1,VLOOKUP(Q191,'Reference Data'!$C$9:$C$43,5,FALSE),"") ->  | E191: 0 | G191: =IF(Q191>1,VLOOKUP(Q191,'Reference Data'!$C$9:$C$43,3,FALSE),"") ->  | Q191: =IF(ISBLANK($A191),1,VLOOKUP($A191,'Reference Data'!$B$9:$C$133,2,FALSE)) -> 78 | R191: =VLOOKUP(Q191,'Reference Data'!$C$9:Z$125,($P$7)+1,FALSE) -> 80 | S191: 0 | T191: 0 | U191: 0 | V191: 0 | W191: 0 | X191: 0 | Y191: 0 | Z191: 0 | AA191: 0 | AC191: 0 | AD191: =IF(ISBLANK($A191),1,VLOOKUP($A191,'Reference Data'!$B$9:$D$133,3,FALSE)) -> 1 | AW191: 0 | AX191: 0
A192: SVOC - 8270 (water) | D192: =IF(Q192>1,VLOOKUP(Q192,'Reference Data'!$C$9:$C$43,5,FALSE),"") ->  | E192: 0 | G192: =IF(Q192>1,VLOOKUP(Q192,'Reference Data'!$C$9:$C$43,3,FALSE),"") ->  | Q192: =IF(ISBLANK($A192),1,VLOOKUP($A192,'Reference Data'!$B$9:$C$133,2,FALSE)) -> 83 | R192: =VLOOKUP(Q192,'Reference Data'!$C$9:Z$125,($P$7)+1,FALSE) -> 225 | S192: 0 | T192: 0 | U192: 0 | V192: 0 | W192: 0 | X192: 0 | Y192: 0 | Z192: 0 | AA192: 0 | AC192: 0 | AD192: =IF(ISBLANK($A192),1,VLOOKUP($A192,'Reference Data'!$B$9:$D$133,3,FALSE)) -> 1 | AW192: 0 | AX192: 0
A193: PAH -8270 SIM (water) | D193: =IF(Q193>1,VLOOKUP(Q193,'Reference Data'!$C$9:$C$43,5,FALSE),"") ->  | E193: 0 | G193: =IF(Q193>1,VLOOKUP(Q193,'Reference Data'!$C$9:$C$43,3,FALSE),"") ->  | Q193: =IF(ISBLANK($A193),1,VLOOKUP($A193,'Reference Data'!$B$9:$C$133,2,FALSE)) -> 81 | R193: =VLOOKUP(Q193,'Reference Data'!$C$9:Z$125,($P$7)+1,FALSE) -> 135 | S193: 0 | T193: 0 | U193: 0 | V193: 0 | W193: 0 | X193: 0 | Y193: 0 | Z193: 0 | AA193: 0 | AC193: 0 | AD193: =IF(ISBLANK($A193),1,VLOOKUP($A193,'Reference Data'!$B$9:$D$133,3,FALSE)) -> 1 | AW193: 0 | AX193: 0
A194: PAH -8310 (water) | D194: =IF(Q194>1,VLOOKUP(Q194,'Reference Data'!$C$9:$C$43,5,FALSE),"") ->  | E194: 0 | G194: =IF(Q194>1,VLOOKUP(Q194,'Reference Data'!$C$9:$C$43,3,FALSE),"") ->  | Q194: =IF(ISBLANK($A194),1,VLOOKUP($A194,'Reference Data'!$B$9:$C$133,2,FALSE)) -> 82 | R194: =VLOOKUP(Q194,'Reference Data'!$C$9:Z$125,($P$7)+1,FALSE) -> 150 | S194: 0 | T194: 0 | U194: 0 | V194: 0 | W194: 0 | X194: 0 | Y194: 0 | Z194: 0 | AA194: 0 | AC194: 0 | AD194: =IF(ISBLANK($A194),1,VLOOKUP($A194,'Reference Data'!$B$9:$D$133,3,FALSE)) -> 1 | AW194: 0 | AX194: 0
A195: Metals 7 barium, cadmium, chromium, lead, mercury, nickel, zinc (water) | D195: =IF(Q195>1,VLOOKUP(Q195,'Reference Data'!$C$9:$C$43,5,FALSE),"") ->  | E195: 0 | G195: =IF(Q195>1,VLOOKUP(Q195,'Reference Data'!$C$9:$C$43,3,FALSE),"") ->  | Q195: =IF(ISBLANK($A195),1,VLOOKUP($A195,'Reference Data'!$B$9:$C$133,2,FALSE)) -> 80 | R195: =VLOOKUP(Q195,'Reference Data'!$C$9:Z$125,($P$7)+1,FALSE) -> 100 | S195: 0 | T195: 0 | U195: 0 | V195: 0 | W195: 0 | X195: 0 | Y195: 0 | Z195: 0 | AA195: 0 | AC195: 0 | AD195: =IF(ISBLANK($A195),1,VLOOKUP($A195,'Reference Data'!$B$9:$D$133,3,FALSE)) -> 1 | AW195: 0 | AX195: 0
A196: Individual Metals (per sample) (water) | D196: =IF(Q196>1,VLOOKUP(Q196,'Reference Data'!$C$9:$C$43,5,FALSE),"") ->  | E196: 0 | G196: =IF(Q196>1,VLOOKUP(Q196,'Reference Data'!$C$9:$C$43,3,FALSE),"") ->  | Q196: =IF(ISBLANK($A196),1,VLOOKUP($A196,'Reference Data'!$B$9:$C$133,2,FALSE)) -> 79 | R196: =VLOOKUP(Q196,'Reference Data'!$C$9:Z$125,($P$7)+1,FALSE) -> 15 | S196: 0 | T196: 0 | U196: 0 | V196: 0 | W196: 0 | X196: 0 | Y196: 0 | Z196: 0 | AA196: 0 | AC196: 0 | AD196: =IF(ISBLANK($A196),1,VLOOKUP($A196,'Reference Data'!$B$9:$D$133,3,FALSE)) -> 1 | AW196: 0 | AX196: 0
A197: MS/MSD | D197: =IF(Q197>1,VLOOKUP(Q197,'Reference Data'!$C$9:$C$43,5,FALSE),"") ->  | E197: 0 | F197: =IF(ISNUMBER(C197),IF(ISNUMBER(E197),ROUND(AC197*E197,2),""),"") ->  | G197: =IF(Q197>1,VLOOKUP(Q197,'Reference Data'!$C$9:$C$43,3,FALSE),"") ->  | Q197: =IF(ISBLANK($A197),1,VLOOKUP($A197,'Reference Data'!$B$9:$C$133,2,FALSE)) -> 85 | R197: =VLOOKUP(Q197,'Reference Data'!$C$9:Z$125,($P$7)+1,FALSE) -> 0 | S197: 0 | T197: 0 | U197: 0 | V197: 0 | W197: 0 | X197: 0 | Y197: 0 | Z197: 0 | AA197: 0 | AC197: 0 | AD197: =IF(ISBLANK($A197),1,VLOOKUP($A197,'Reference Data'!$B$9:$D$133,3,FALSE)) -> 1 | AW197: 0 | AX197: 0
A198: QA/QC Data Package | D198: =IF(Q198>1,VLOOKUP(Q198,'Reference Data'!$C$9:$C$43,5,FALSE),"") ->  | E198: 0 | G198: =IF(Q198>1,VLOOKUP(Q198,'Reference Data'!$C$9:$C$43,3,FALSE),"") ->  | Q198: =IF(ISBLANK($A198),1,VLOOKUP($A198,'Reference Data'!$B$9:$C$133,2,FALSE)) -> 86 | R198: =VLOOKUP(Q198,'Reference Data'!$C$9:Z$125,($P$7)+1,FALSE) -> 0 | S198: 0 | T198: 0 | U198: 0 | V198: 0 | W198: 0 | X198: 0 | Y198: 0 | Z198: 0 | AA198: 0 | AC198: 0 | AD198: =IF(ISBLANK($A198),1,VLOOKUP($A198,'Reference Data'!$B$9:$D$133,3,FALSE)) -> 1 | AW198: 0 | AX198: 0
A199: Other | C199: 1 | D199: =IF(Q199>1,VLOOKUP(Q199,'Reference Data'!$C$9:$C$43,5,FALSE),"") ->  | E199: 0 | F199: 0 | G199: =IF(Q199>1,VLOOKUP(Q199,'Reference Data'!$C$9:$C$43,3,FALSE),"") ->  | I199: =IF($E199=0,"",IF(($A$8)="Please Choose Date","Select Date Error!",IF($R199="N/A","",$X199))) ->  | Q199: =IF(ISBLANK($A199),1,VLOOKUP($A199,'Reference Data'!$B$9:$C$133,2,FALSE)) -> 91 | R199: =VLOOKUP(Q199,'Reference Data'!$C$9:Z$125,($P$7)+1,FALSE) -> 0 | S199: 0 | T199: 0 | U199: 0 | V199: 0 | W199: 0 | X199: 0 | Y199: 0 | Z199: 0 | AA199: 0 | AC199: 1 | AD199: =IF(ISBLANK($A199),1,VLOOKUP($A199,'Reference Data'!$B$9:$D$133,3,FALSE)) -> 1 | AW199: 0 | AX199: 0
A200: Laboratory Analyses (Air) | R200: =VLOOKUP(Q200,'Reference Data'!$C$9:Z$125,($P$7)+1,FALSE) ->  | AW200: =IF(SUM($I$201:$I$202)>0, 1, 0) -> 0 | AX200: 0
A201: VOC -TO-15 | E201: 0 | Q201: 87 | R201: =VLOOKUP(Q201,'Reference Data'!$C$9:Z$125,($P$7)+1,FALSE) -> 400 | S201: =IF(Q201>1, ROUND(R201*AC201,2), "") -> 0 | T201: =IF(ISNUMBER(E201),E201,"") -> 0 | U201: =IF(ISNUMBER(T201),ROUND(E201*AC201,2),"") -> 0 | V201: =IF(ISNUMBER(G201),G201,0) -> 0 | W201: =IF(ISNUMBER(H201), H201, 0) -> 0 | X201: =IF(Q201>1,IF(ISNUMBER(U201),ROUND(U201*(1+W201)+V201,2),S201),"") -> 0 | Y201: =IF(W201>$AB$7,$AB$7,W201) -> 0 | Z201: =IF(ISNUMBER(U201),ROUND(U201*(Y201+1)+V201,2),S201) -> 0 | AA201: =IF(AND(Q201>1,S201>0,S201<Z201),S201,Z201) -> 0 | AB201: =IF(AND(ISNUMBER(X201),ISNUMBER(AA201)),IF((X201-AA201)>0,X201-AA201,""),"") ->  | AC201: =ROUND($C201,2) -> 0 | AD201: 1 | AW201: =IF(AA201=0, 0, 1) -> 0 | AX201: 0
A202: Other | C202: 1 | E202: 0 | F202: 0 | I202: =IF($E202=0,"",IF(($A$8)="Please Choose Date","Select Date Error!",IF($R202="N/A","",$X202))) ->  | Q202: 91 | R202: =VLOOKUP(Q202,'Reference Data'!$C$9:Z$125,($P$7)+1,FALSE) -> 0 | S202: =IF(Q202>1, ROUND(R202*AC202,2), "") -> 0 | T202: =IF(ISNUMBER(E202),E202,"") -> 0 | U202: =IF(ISNUMBER(T202),ROUND(E202*AC202,2),"") -> 0 | V202: =IF(ISNUMBER(G202),G202,0) -> 0 | W202: =IF(ISNUMBER(H202), H202, 0) -> 0 | X202: =IF(Q202>1,IF(ISNUMBER(U202),ROUND(U202*(1+W202)+V202,2),S202),"") -> 0 | Y202: =IF(W202>$AB$7,$AB$7,W202) -> 0 | Z202: =IF(ISNUMBER(U202),ROUND(U202*(Y202+1)+V202,2),S202) -> 0 | AA202: =IF(AND(Q202>1,S202>0,S202<Z202),S202,Z202) -> 0 | AB202: =IF(AND(ISNUMBER(X202),ISNUMBER(AA202)),IF((X202-AA202)>0,X202-AA202,""),"") ->  | AC202: =ROUND($C202,2) -> 1 | AD202: 1 | AW202: =IF(AA202=0, 0, 1) -> 0 | AX202: 0
... 913 more rows

Sheet SOW (itemized) (2) (hidden)
A1: Itemized Scope of Work #2 | AF1: Planning, Field Work, and Reporting Costs
AH2: Site Characterization and CAP Development | AK2: CAP Implementation | AO2: GW Monitoring and/or Remediation System O&M | AS2: Closure
A5: Incident Number | AH5: =I298 -> 0 | AK5: =I532 -> 0 | AO5: =SUM(I990,I991) -> 0 | AS5: =I1110 -> 0
A6: =SOW!G33 -> 0 | AJ6: =SUM(I57:I65,I69:I121,I125:I134) -> 0 | AN6: =SUM(I303:I376) -> 0 | AR6: =SUM(I537:I583) -> 0 | AU6: =SUM(I996:I1017) -> 0
A7: Select Date: | P7: 20 | AA7: Markup | AB7: =VLOOKUP($A8,'Reference Data'!$B$135:$D$153,3,FALSE) -> 0.1 | AJ7: =SUM(I138:I146,I150:I202,I206:I215) -> 0 | AN7: =SUM(I380:I408) -> 0 | AR7: =SUM(I587:I634) -> 0
A8: 1/1/2026 to Present | AA8: Add Lines # | AB8: 7 | AJ8: =SUM(I219:I230) -> 0 | AN8: =SUM(I412:I444) -> 0 | AO8: CAPR Routine Report Subtotals | AR8: =SUM(I638:I647) -> 0 | AU8: =SUM(I1021:I1063) -> 0
Z9: Total $ of Added Lines | AB9: =SUM(I34:I110) -> 0 | AJ9: =SUM(I234:I257) -> 0 | AN9: =SUM(I448:I481) -> 0 | AR9: =SUM(I651:I697) -> 0
Z10: Total $ of Sheet | AB10: =I1115 -> 0 | AJ10: =SUM(I261:I297) -> 0 | AN10: =SUM(I485:I518) -> 0 | AR10: =SUM(I701:I748) -> 0 | AU10: =SUM(I1067:I1109) -> 0
AA11: Sheet # | AB11: 0 | AN11: =SUM(I522:I531) -> 0 | AO11: CAPR Report Subtotals | AR11: =SUM(I752:I761) -> 0
A12: Immediate Response Costs | AW12: =IF(SUM($I$15:$I$52)>0, 1, 0) -> 0 | AX12: 0
A13: Planning, Preparation, and Follow-up Costs (Office) | F13: =IF(ISNUMBER(C13),IF(ISNUMBER(E13),ROUND(AC13*E13,2),""),"") ->  | G13: =IF(Q13>1,VLOOKUP(Q13,'Reference Data'!$C$9:$C$43,3,FALSE),"") ->  | I13: =IF(ISBLANK($C13),"",IF(($A$8)="Please Choose Date","Select Date Error!",IF($R13="N/A","",$X13))) ->  | AW13: =IF(SUM($I$15:$I$23)>0, 1, 0) -> 0 | AX13: 0
A14: DESCRIPTION | B14: TASK PERFORMED | C14: UNITS | D14: TYPE | E14: UNIT COST | F14: TOTAL W/O MARKUP OR TAX | G14: TAX (NO MARKUP) | H14: % MARK-UP | I14: AMOUNT PROPOSED | Q14: Automated Descriptor | R14: Automated Unit Cost | S14: Total Automated Unit Cost | T14: PROPOSED Unit Cost | U14: PROPOSED total w/o markup or tax | V14: PROPOSED Tax | W14: PROPOSED Markup | X14: PROPOSED Total AMT | Y14: Lower Calculated Markup | Z14: Lower Calculated total w/ markup and tax | AA14: Lower Cost Final total | AB14: Amt Denied | AC14: Units Rounded | AD14: Markup Available | AW14: =IF(SUM($I$15:$I$23)>0, 1, 0) -> 0 | AX14: 0
A15: Principal | D15: =IF(Q15>1,VLOOKUP(Q15,'Reference Data'!$C$9:$C$43,5,FALSE),"") ->  | E15: =R15 ->  | F15: =IF(ISNUMBER(C15),IF(ISNUMBER(E15),ROUND(AC15*E15,2),""),"") ->  | G15: =IF(Q15>1,VLOOKUP(Q15,'Reference Data'!$C$9:$C$43,3,FALSE),"") ->  | I15: =IF(ISBLANK($C15),"",IF(($A$8)="Please Choose Date","Select Date Error!",IF($R15="N/A","",$X15))) ->  | Q15: =IF(ISBLANK($A15),1,VLOOKUP($A15,'Reference Data'!$B$9:$C$133,2,FALSE)) -> 2 | R15: =VLOOKUP(Q15,'Reference Data'!$C$9:O$125,($P$7)+1,FALSE) ->  | S15: =IF(Q15>1, ROUND(R15*AC15,2), "") ->  | T15: =IF(ISNUMBER(E15),E15,"") ->  | U15: =IF(ISNUMBER(T15),ROUND(E15*AC15,2),"") ->  | V15: =IF(ISNUMBER(G15),G15,0) -> 0 | W15: =IF(ISNUMBER(H15), H15, 0) -> 0 | X15: =IF(Q15>1,IF(ISNUMBER(U15),ROUND(U15*(1+W15)+V15,2),S15),"") ->  | Y15: =IF(W15>$AB$7,$AB$7,W15) -> 0 | Z15: =IF(ISNUMBER(U15),ROUND(U15*(Y15+1)+V15,2),S15) ->  | AA15: =IF(AND(Q15>1,S15>0,S15<Z15),S15,Z15) ->  | AB15: =IF(AND(ISNUMBER(X15),ISNUMBER(AA15)),IF((X15-AA15)>0,X15-AA15,""),"") ->  | AC15: =ROUND($C15,2) -> 0 | AD15: =IF(ISBLANK($A15),1,VLOOKUP($A15,'Reference Data'!$B$9:$D$133,3,FALSE)) -> 0 | AW15: =IF(AA15=0, 0, 1) ->  | AX15: 0
A16: Senior Project Manager | D16: =IF(Q16>1,VLOOKUP(Q16,'Reference Data'!$C$9:$C$43,5,FALSE),"") ->  | E16: =R16 ->  | G16: =IF(Q16>1,VLOOKUP(Q16,'Reference Data'!$C$9:$C$43,3,FALSE),"") ->  | I16: =IF(ISBLANK($C16),"",IF(($A$8)="Please Choose Date","Select Date Error!",IF($R16="N/A","",$X16))) ->  | Q16: =IF(ISBLANK($A16),1,VLOOKUP($A16,'Reference Data'!$B$9:$C$133,2,FALSE)) -> 3 | R16: =VLOOKUP(Q16,'Reference Data'!$C$9:O$125,($P$7)+1,FALSE) ->  | V16: 0 | W16: 0 | Y16: 0 | AC16: 0 | AD16: =IF(ISBLANK($A16),1,VLOOKUP($A16,'Reference Data'!$B$9:$D$133,3,FALSE)) -> 0 | AW16: =IF(AA16=0, 0, 1) ->  | AX16: 0
A17: Project Manager | D17: =IF(Q17>1,VLOOKUP(Q17,'Reference Data'!$C$9:$C$43,5,FALSE),"") ->  | G17: =IF(Q17>1,VLOOKUP(Q17,'Reference Data'!$C$9:$C$43,3,FALSE),"") ->  | Q17: =IF(ISBLANK($A17),1,VLOOKUP($A17,'Reference Data'!$B$9:$C$133,2,FALSE)) -> 4 | R17: =VLOOKUP(Q17,'Reference Data'!$C$9:O$125,($P$7)+1,FALSE) ->  | V17: 0 | W17: 0 | Y17: 0 | AC17: 0 | AD17: =IF(ISBLANK($A17),1,VLOOKUP($A17,'Reference Data'!$B$9:$D$133,3,FALSE)) -> 0 | AW17: =IF(AA17=0, 0, 1) ->  | AX17: 0
A18: Staff | D18: =IF(Q18>1,VLOOKUP(Q18,'Reference Data'!$C$9:$C$43,5,FALSE),"") ->  | G18: =IF(Q18>1,VLOOKUP(Q18,'Reference Data'!$C$9:$C$43,3,FALSE),"") ->  | Q18: =IF(ISBLANK($A18),1,VLOOKUP($A18,'Reference Data'!$B$9:$C$133,2,FALSE)) -> 5 | R18: =VLOOKUP(Q18,'Reference Data'!$C$9:O$125,($P$7)+1,FALSE) ->  | V18: 0 | W18: 0 | Y18: 0 | AC18: 0 | AD18: =IF(ISBLANK($A18),1,VLOOKUP($A18,'Reference Data'!$B$9:$D$133,3,FALSE)) -> 0 | AX18: 0
A19: Technician | D19: =IF(Q19>1,VLOOKUP(Q19,'Reference Data'!$C$9:$C$43,5,FALSE),"") ->  | G19: =IF(Q19>1,VLOOKUP(Q19,'Reference Data'!$C$9:$C$43,3,FALSE),"") ->  | Q19: =IF(ISBLANK($A19),1,VLOOKUP($A19,'Reference Data'!$B$9:$C$133,2,FALSE)) -> 6 | R19: =VLOOKUP(Q19,'Reference Data'!$C$9:O$125,($P$7)+1,FALSE) ->  | V19: 0 | W19: 0 | Y19: 0 | AC19: 0 | AD19: =IF(ISBLANK($A19),1,VLOOKUP($A19,'Reference Data'!$B$9:$D$133,3,FALSE)) -> 0 | AX19: 0
A20: Drafting | D20: =IF(Q20>1,VLOOKUP(Q20,'Reference Data'!$C$9:$C$43,5,FALSE),"") ->  | G20: =IF(Q20>1,VLOOKUP(Q20,'Reference Data'!$C$9:$C$43,3,FALSE),"") ->  | Q20: =IF(ISBLANK($A20),1,VLOOKUP($A20,'Reference Data'!$B$9:$C$133,2,FALSE)) -> 7 | R20: =VLOOKUP(Q20,'Reference Data'!$C$9:O$125,($P$7)+1,FALSE) ->  | V20: 0 | W20: 0 | Y20: 0 | AC20: 0 | AD20: =IF(ISBLANK($A20),1,VLOOKUP($A20,'Reference Data'!$B$9:$D$133,3,FALSE)) -> 0 | AX20: 0
A21: Clerical | D21: =IF(Q21>1,VLOOKUP(Q21,'Reference Data'!$C$9:$C$43,5,FALSE),"") ->  | G21: =IF(Q21>1,VLOOKUP(Q21,'Reference Data'!$C$9:$C$43,3,FALSE),"") ->  | Q21: =IF(ISBLANK($A21),1,VLOOKUP($A21,'Reference Data'!$B$9:$C$133,2,FALSE)) -> 8 | R21: =VLOOKUP(Q21,'Reference Data'!$C$9:O$125,($P$7)+1,FALSE) ->  | V21: 0 | W21: 0 | Y21: 0 | AC21: 0 | AD21: =IF(ISBLANK($A21),1,VLOOKUP($A21,'Reference Data'!$B$9:$D$133,3,FALSE)) -> 0 | AX21: 0
A22: Other (markup eligible) | B22: 1 | C22: 1 | D22: =IF(Q22>1,VLOOKUP(Q22,'Reference Data'!$C$9:$C$43,5,FALSE),"") ->  | E22: 0 | F22: 0 | G22: =IF(Q22>1,VLOOKUP(Q22,'Reference Data'!$C$9:$C$43,3,FALSE),"") ->  | I22: =IF($E22=0,"",IF(($A$8)="Please Choose Date","Select Date Error!",IF($R22="N/A","",$X22))) ->  | Q22: =IF(ISBLANK($A22),1,VLOOKUP($A22,'Reference Data'!$B$9:$C$133,2,FALSE)) -> 94 | R22: =VLOOKUP(Q22,'Reference Data'!$C$9:O$125,($P$7)+1,FALSE) ->  | T22: 0 | U22: 0 | V22: 0 | W22: 0 | X22: 0 | Y22: 0 | Z22: 0 | AC22: 1 | AD22: =IF(ISBLANK($A22),1,VLOOKUP($A22,'Reference Data'!$B$9:$D$133,3,FALSE)) -> 1 | AX22: 0
A23: Other (not markup eligible) | B23: 1 | C23: 1 | D23: =IF(Q23>1,VLOOKUP(Q23,'Reference Data'!$C$9:$C$43,5,FALSE),"") ->  | E23: 0 | F23: 0 | G23: =IF(Q23>1,VLOOKUP(Q23,'Reference Data'!$C$9:$C$43,3,FALSE),"") ->  | I23: =IF($E23=0,"",IF(($A$8)="Please Choose Date","Select Date Error!",IF($R23="N/A","",$X23))) ->  | Q23: =IF(ISBLANK($A23),1,VLOOKUP($A23,'Reference Data'!$B$9:$C$133,2,FALSE)) -> 95 | R23: =VLOOKUP(Q23,'Reference Data'!$C$9:O$125,($P$7)+1,FALSE) ->  | S23: =IF(Q23>1, ROUND(R23*AC23,2), "") ->  | T23: =IF(ISNUMBER(E23),E23,"") -> 0 | U23: =IF(ISNUMBER(T23),ROUND(E23*AC23,2),"") -> 0 | V23: =IF(ISNUMBER(G23),G23,0) -> 0 | W23: =IF(ISNUMBER(H23), H23, 0) -> 0 | X23: =IF(Q23>1,IF(ISNUMBER(U23),ROUND(U23*(1+W23)+V23,2),S23),"") -> 0 | Y23: =IF(W23>$AB$7,$AB$7,W23) -> 0 | Z23: =IF(ISNUMBER(U23),ROUND(U23*(Y23+1)+V23,2),S23) -> 0 | AA23: =IF(AND(Q23>1,S23>0,S23<Z23),S23,Z23) ->  | AB23: =IF(AND(ISNUMBER(X23),ISNUMBER(AA23)),IF((X23-AA23)>0,X23-AA23,""),"") ->  | AC23: 1 | AD23: =IF(ISBLANK($A23),1,VLOOKUP($A23,'Reference Data'!$B$9:$D$133,3,FALSE)) -> 0 | AX23: 0
AW24: =IF(SUM($I$27:$I$38)>0, 1, 0) -> 0 | AX24: 0
A25: Field Costs | G25: =IF(Q25>1,VLOOKUP(Q25,'Reference Data'!$C$9:$C$43,3,FALSE),"") ->  | I25: =IF(ISBLANK($C25),"",IF(($A$8)="Please Choose Date","Select Date Error!",IF($R25="N/A","",$X25))) ->  | R25: =VLOOKUP(Q25,'Reference Data'!$C$9:O$125,($P$7)+1,FALSE) ->  | AW25: =IF(SUM($I$27:$I$38)>0, 1, 0) -> 0 | AX25: 0
A26: DESCRIPTION | B26: TASK PERFORMED | C26: UNITS | D26: TYPE | E26: UNIT COST | F26: TOTAL W/O MARKUP OR TAX | G26: TAX (NO MARKUP) | H26: % MARK-UP | I26: AMOUNT PROPOSED | Q26: Automated Descriptor | R26: =VLOOKUP(Q26,'Reference Data'!$C$9:O$125,($P$7)+1,FALSE) ->  | S26: Total Automated Unit Cost | T26: PROPOSED Unit Cost | U26: PROPOSED total w/o markup or tax | V26: PROPOSED Tax | W26: PROPOSED Markup | X26: PROPOSED Total AMT | Y26: Lower Calculated Markup | Z26: Lower Calculated total w/ markup and tax | AA26: Lower Cost Final total | AB26: Amt Denied | AC26: Units Rounded | AD26: Markup Available | AW26: =IF(SUM($I$27:$I$38)>0, 1, 0) -> 0 | AX26: 0
A27: Principal | D27: =IF(Q27>1,VLOOKUP(Q27,'Reference Data'!$C$9:$C$43,5,FALSE),"") ->  | E27: =R27 ->  | F27: =IF(ISNUMBER(C27),IF(ISNUMBER(E27),ROUND(AC27*E27,2),""),"") ->  | G27: =IF(Q27>1,VLOOKUP(Q27,'Reference Data'!$C$9:$C$43,3,FALSE),"") ->  | I27: =IF(ISBLANK($C27),"",IF(($A$8)="Please Choose Date","Select Date Error!",IF($R27="N/A","",$X27))) ->  | Q27: =IF(ISBLANK($A27),1,VLOOKUP($A27,'Reference Data'!$B$9:$C$133,2,FALSE)) -> 2 | R27: =VLOOKUP(Q27,'Reference Data'!$C$9:O$125,($P$7)+1,FALSE) ->  | S27: =IF(Q27>1, ROUND(R27*AC27,2), "") ->  | T27: =IF(ISNUMBER(E27),E27,"") ->  | U27: =IF(ISNUMBER(T27),ROUND(E27*AC27,2),"") ->  | V27: =IF(ISNUMBER(G27),G27,0) -> 0 | W27: =IF(ISNUMBER(H27), H27, 0) -> 0 | X27: =IF(Q27>1,IF(ISNUMBER(U27),ROUND(U27*(1+W27)+V27,2),S27),"") ->  | Y27: =IF(W27>$AB$7,$AB$7,W27) -> 0 | Z27: =IF(ISNUMBER(U27),ROUND(U27*(Y27+1)+V27,2),S27) ->  | AA27: =IF(AND(Q27>1,S27>0,S27<Z27),S27,Z27) ->  | AB27: =IF(AND(ISNUMBER(X27),ISNUMBER(AA27)),IF((X27-AA27)>0,X27-AA27,""),"") ->  | AC27: =ROUND($C27,2) -> 0 | AD27: =IF(ISBLANK($A27),1,VLOOKUP($A27,'Reference Data'!$B$9:$D$133,3,FALSE)) -> 0 | AX27: 0
A28: Senior Project Manager | D28: =IF(Q28>1,VLOOKUP(Q28,'Reference Data'!$C$9:$C$43,5,FALSE),"") ->  | G28: =IF(Q28>1,VLOOKUP(Q28,'Reference Data'!$C$9:$C$43,3,FALSE),"") ->  | I28: =IF(ISBLANK($C28),"",IF(($A$8)="Please Choose Date","Select Date Error!",IF($R28="N/A","",$X28))) ->  | Q28: =IF(ISBLANK($A28),1,VLOOKUP($A28,'Reference Data'!$B$9:$C$133,2,FALSE)) -> 3 | R28: =VLOOKUP(Q28,'Reference Data'!$C$9:O$125,($P$7)+1,FALSE) ->  | V28: 0 | W28: 0 | Y28: 0 | AC28: 0 | AD28: =IF(ISBLANK($A28),1,VLOOKUP($A28,'Reference Data'!$B$9:$D$133,3,FALSE)) -> 0 | AX28: 0
A29: Project Manager | D29: =IF(Q29>1,VLOOKUP(Q29,'Reference Data'!$C$9:$C$43,5,FALSE),"") ->  | G29: =IF(Q29>1,VLOOKUP(Q29,'Reference Data'!$C$9:$C$43,3,FALSE),"") ->  | Q29: =IF(ISBLANK($A29),1,VLOOKUP($A29,'Reference Data'!$B$9:$C$133,2,FALSE)) -> 4 | R29: =VLOOKUP(Q29,'Reference Data'!$C$9:O$125,($P$7)+1,FALSE) ->  | V29: 0 | W29: 0 | Y29: 0 | AC29: 0 | AD29: =IF(ISBLANK($A29),1,VLOOKUP($A29,'Reference Data'!$B$9:$D$133,3,FALSE)) -> 0 | AX29: 0
A30: Staff | D30: =IF(Q30>1,VLOOKUP(Q30,'Reference Data'!$C$9:$C$43,5,FALSE),"") ->  | G30: =IF(Q30>1,VLOOKUP(Q30,'Reference Data'!$C$9:$C$43,3,FALSE),"") ->  | Q30: =IF(ISBLANK($A30),1,VLOOKUP($A30,'Reference Data'!$B$9:$C$133,2,FALSE)) -> 5 | R30: =VLOOKUP(Q30,'Reference Data'!$C$9:O$125,($P$7)+1,FALSE) ->  | V30: 0 | W30: 0 | Y30: 0 | AC30: 0 | AD30: =IF(ISBLANK($A30),1,VLOOKUP($A30,'Reference Data'!$B$9:$D$133,3,FALSE)) -> 0 | AX30: 0
A31: Technician | D31: =IF(Q31>1,VLOOKUP(Q31,'Reference Data'!$C$9:$C$43,5,FALSE),"") ->  | G31: =IF(Q31>1,VLOOKUP(Q31,'Reference Data'!$C$9:$C$43,3,FALSE),"") ->  | Q31: =IF(ISBLANK($A31),1,VLOOKUP($A31,'Reference Data'!$B$9:$C$133,2,FALSE)) -> 6 | R31: =VLOOKUP(Q31,'Reference Data'!$C$9:O$125,($P$7)+1,FALSE) ->  | V31: 0 | W31: 0 | Y31: 0 | AC31: 0 | AD31: =IF(ISBLANK($A31),1,VLOOKUP($A31,'Reference Data'!$B$9:$D$133,3,FALSE)) -> 0 | AX31: 0
A32: Drafting | D32: =IF(Q32>1,VLOOKUP(Q32,'Reference Data'!$C$9:$C$43,5,FALSE),"") ->  | G32: =IF(Q32>1,VLOOKUP(Q32,'Reference Data'!$C$9:$C$43,3,FALSE),"") ->  | Q32: =IF(ISBLANK($A32),1,VLOOKUP($A32,'Reference Data'!$B$9:$C$133,2,FALSE)) -> 7 | R32: =VLOOKUP(Q32,'Reference Data'!$C$9:O$125,($P$7)+1,FALSE) ->  | V32: 0 | W32: 0 | Y32: 0 | AC32: 0 | AD32: =IF(ISBLANK($A32),1,VLOOKUP($A32,'Reference Data'!$B$9:$D$133,3,FALSE)) -> 0 | AX32: 0
A33: Clerical | D33: =IF(Q33>1,VLOOKUP(Q33,'Reference Data'!$C$9:$C$43,5,FALSE),"") ->  | G33: =IF(Q33>1,VLOOKUP(Q33,'Reference Data'!$C$9:$C$43,3,FALSE),"") ->  | Q33: =IF(ISBLANK($A33),1,VLOOKUP($A33,'Reference Data'!$B$9:$C$133,2,FALSE)) -> 8 | R33: =VLOOKUP(Q33,'Reference Data'!$C$9:O$125,($P$7)+1,FALSE) ->  | V33: 0 | W33: 0 | Y33: 0 | AC33: 0 | AD33: =IF(ISBLANK($A33),1,VLOOKUP($A33,'Reference Data'!$B$9:$D$133,3,FALSE)) -> 0 | AX33: 0
A34: Mileage | D34: =IF(Q34>1,VLOOKUP(Q34,'Reference Data'!$C$9:$C$43,5,FALSE),"") ->  | G34: =IF(Q34>1,VLOOKUP(Q34,'Reference Data'!$C$9:$C$43,3,FALSE),"") ->  | Q34: =IF(ISBLANK($A34),1,VLOOKUP($A34,'Reference Data'!$B$9:$C$133,2,FALSE)) -> 9 | R34: =VLOOKUP(Q34,'Reference Data'!$C$9:O$125,($P$7)+1,FALSE) ->  | V34: 0 | W34: 0 | Y34: 0 | AC34: 0 | AD34: =IF(ISBLANK($A34),1,VLOOKUP($A34,'Reference Data'!$B$9:$D$133,3,FALSE)) -> 0 | AX34: 0
A35: Overnight lodging (total) | C35: 1 | D35: =IF(Q35>1,VLOOKUP(Q35,'Reference Data'!$C$9:$C$43,5,FALSE),"") ->  | E35: 0 | F35: 0 | G35: =IF(Q35>1,VLOOKUP(Q35,'Reference Data'!$C$9:$C$43,3,FALSE),"") ->  | I35: =IF($E35=0,"",IF(($A$8)="Please Choose Date","Select Date Error!",IF($R35="N/A","",$X35))) ->  | Q35: =IF(ISBLANK($A35),1,VLOOKUP($A35,'Reference Data'!$B$9:$C$133,2,FALSE)) -> 10 | R35: =VLOOKUP(Q35,'Reference Data'!$C$9:O$125,($P$7)+1,FALSE) ->  | T35: 0 | U35: 0 | V35: 0 | W35: 0 | X35: 0 | Y35: 0 | Z35: 0 | AC35: 1 | AD35: =IF(ISBLANK($A35),1,VLOOKUP($A35,'Reference Data'!$B$9:$D$133,3,FALSE)) -> 0 | AX35: 0
A36: Per diem | D36: =IF(Q36>1,VLOOKUP(Q36,'Reference Data'!$C$9:$C$43,5,FALSE),"") ->  | G36: =IF(Q36>1,VLOOKUP(Q36,'Reference Data'!$C$9:$C$43,3,FALSE),"") ->  | I36: =IF(ISBLANK($C36),"",IF(($A$8)="Please Choose Date","Select Date Error!",IF($R36="N/A","",$X36))) ->  | Q36: =IF(ISBLANK($A36),1,VLOOKUP($A36,'Reference Data'!$B$9:$C$133,2,FALSE)) -> 11 | R36: =VLOOKUP(Q36,'Reference Data'!$C$9:O$125,($P$7)+1,FALSE) ->  | V36: 0 | W36: 0 | Y36: 0 | AC36: 0 | AD36: =IF(ISBLANK($A36),1,VLOOKUP($A36,'Reference Data'!$B$9:$D$133,3,FALSE)) -> 0 | AX36: 0
A37: Other (markup eligible) | C37: 1 | D37: =IF(Q37>1,VLOOKUP(Q37,'Reference Data'!$C$9:$C$43,5,FALSE),"") ->  | E37: 0 | F37: 0 | G37: =IF(Q37>1,VLOOKUP(Q37,'Reference Data'!$C$9:$C$43,3,FALSE),"") ->  | I37: =IF($E37=0,"",IF(($A$8)="Please Choose Date","Select Date Error!",IF($R37="N/A","",$X37))) ->  | Q37: =IF(ISBLANK($A37),1,VLOOKUP($A37,'Reference Data'!$B$9:$C$133,2,FALSE)) -> 94 | R37: =VLOOKUP(Q37,'Reference Data'!$C$9:O$125,($P$7)+1,FALSE) ->  | T37: 0 | U37: 0 | V37: 0 | W37: 0 | X37: 0 | Y37: 0 | Z37: 0 | AC37: 1 | AD37: =IF(ISBLANK($A37),1,VLOOKUP($A37,'Reference Data'!$B$9:$D$133,3,FALSE)) -> 1 | AX37: 0
A38: Other (not markup eligible) | C38: 1 | D38: =IF(Q38>1,VLOOKUP(Q38,'Reference Data'!$C$9:$C$43,5,FALSE),"") ->  | E38: 0 | F38: 0 | G38: =IF(Q38>1,VLOOKUP(Q38,'Reference Data'!$C$9:$C$43,3,FALSE),"") ->  | I38: =IF($E38=0,"",IF(($A$8)="Please Choose Date","Select Date Error!",IF($R38="N/A","",$X38))) ->  | Q38: =IF(ISBLANK($A38),1,VLOOKUP($A38,'Reference Data'!$B$9:$C$133,2,FALSE)) -> 95 | R38: =VLOOKUP(Q38,'Reference Data'!$C$9:O$125,($P$7)+1,FALSE) ->  | T38: 0 | U38: 0 | V38: 0 | W38: 0 | X38: 0 | Y38: 0 | Z38: 0 | AC38: 1 | AD38: =IF(ISBLANK($A38),1,VLOOKUP($A38,'Reference Data'!$B$9:$D$133,3,FALSE)) -> 0 | AX38: 0
AW39: =IF(SUM($I$42:$I$51)>0, 1, 0) -> 0 | AX39: 0
A40: Report Writing Costs | F40: =IF(ISNUMBER(C40),IF(ISNUMBER(E40),ROUND(AC40*E40,2),""),"") ->  | G40: =IF(Q40>1,VLOOKUP(Q40,'Reference Data'!$C$9:$C$43,3,FALSE),"") ->  | I40: =IF(ISBLANK($C40),"",IF(($A$8)="Please Choose Date","Select Date Error!",IF($R40="N/A","",$X40))) ->  | R40: =VLOOKUP(Q40,'Reference Data'!$C$9:O$125,($P$7)+1,FALSE) ->  | AW40: =IF(SUM($I$42:$I$51)>0, 1, 0) -> 0 | AX40: 0
A41: DESCRIPTION | B41: TASK PERFORMED | C41: UNITS | D41: TYPE | E41: UNIT COST | F41: TOTAL W/O MARKUP OR TAX | G41: TAX (NO MARKUP) | H41: % MARK-UP | I41: AMOUNT PROPOSED | Q41: Automated Descriptor | R41: =VLOOKUP(Q41,'Reference Data'!$C$9:O$125,($P$7)+1,FALSE) ->  | S41: Total Automated Unit Cost | T41: PROPOSED Unit Cost | U41: PROPOSED total w/o markup or tax | V41: PROPOSED Tax | W41: PROPOSED Markup | X41: PROPOSED Total AMT | Y41: Lower Calculated Markup | Z41: Lower Calculated total w/ markup and tax | AA41: Lower Cost Final total | AB41: Amt Denied | AC41: Units Rounded | AD41: Markup Available | AW41: =IF(SUM($I$42:$I$51)>0, 1, 0) -> 0 | AX41: 0
A42: Principal | D42: =IF(Q42>1,VLOOKUP(Q42,'Reference Data'!$C$9:$C$43,5,FALSE),"") ->  | E42: =R42 ->  | F42: =IF(ISNUMBER(C42),IF(ISNUMBER(E42),ROUND(AC42*E42,2),""),"") ->  | G42: =IF(Q42>1,VLOOKUP(Q42,'Reference Data'!$C$9:$C$43,3,FALSE),"") ->  | I42: =IF(ISBLANK($C42),"",IF(($A$8)="Please Choose Date","Select Date Error!",IF($R42="N/A","",$X42))) ->  | Q42: =IF(ISBLANK($A42),1,VLOOKUP($A42,'Reference Data'!$B$9:$C$133,2,FALSE)) -> 2 | R42: =VLOOKUP(Q42,'Reference Data'!$C$9:O$125,($P$7)+1,FALSE) ->  | S42: =IF(Q42>1, ROUND(R42*AC42,2), "") ->  | T42: =IF(ISNUMBER(E42),E42,"") ->  | U42: =IF(ISNUMBER(T42),ROUND(E42*AC42,2),"") ->  | V42: =IF(ISNUMBER(G42),G42,0) -> 0 | W42: =IF(ISNUMBER(H42), H42, 0) -> 0 | X42: =IF(Q42>1,IF(ISNUMBER(U42),ROUND(U42*(1+W42)+V42,2),S42),"") ->  | Y42: =IF(W42>$AB$7,$AB$7,W42) -> 0 | Z42: =IF(ISNUMBER(U42),ROUND(U42*(Y42+1)+V42,2),S42) ->  | AA42: =IF(AND(Q42>1,S42>0,S42<Z42),S42,Z42) ->  | AB42: =IF(AND(ISNUMBER(X42),ISNUMBER(AA42)),IF((X42-AA42)>0,X42-AA42,""),"") ->  | AC42: =ROUND($C42,2) -> 0 | AD42: =IF(ISBLANK($A42),1,VLOOKUP($A42,'Reference Data'!$B$9:$D$133,3,FALSE)) -> 0 | AX42: 0
A43: Senior Project Manager | D43: =IF(Q43>1,VLOOKUP(Q43,'Reference Data'!$C$9:$C$43,5,FALSE),"") ->  | G43: =IF(Q43>1,VLOOKUP(Q43,'Reference Data'!$C$9:$C$43,3,FALSE),"") ->  | Q43: =IF(ISBLANK($A43),1,VLOOKUP($A43,'Reference Data'!$B$9:$C$133,2,FALSE)) -> 3 | R43: =VLOOKUP(Q43,'Reference Data'!$C$9:O$125,($P$7)+1,FALSE) ->  | V43: 0 | W43: 0 | Y43: 0 | AC43: 0 | AD43: =IF(ISBLANK($A43),1,VLOOKUP($A43,'Reference Data'!$B$9:$D$133,3,FALSE)) -> 0 | AX43: 0
A44: Project Manager | D44: =IF(Q44>1,VLOOKUP(Q44,'Reference Data'!$C$9:$C$43,5,FALSE),"") ->  | G44: =IF(Q44>1,VLOOKUP(Q44,'Reference Data'!$C$9:$C$43,3,FALSE),"") ->  | Q44: =IF(ISBLANK($A44),1,VLOOKUP($A44,'Reference Data'!$B$9:$C$133,2,FALSE)) -> 4 | R44: =VLOOKUP(Q44,'Reference Data'!$C$9:O$125,($P$7)+1,FALSE) ->  | V44: 0 | W44: 0 | Y44: 0 | AC44: 0 | AD44: =IF(ISBLANK($A44),1,VLOOKUP($A44,'Reference Data'!$B$9:$D$133,3,FALSE)) -> 0 | AX44: 0
A45: Staff | D45: =IF(Q45>1,VLOOKUP(Q45,'Reference Data'!$C$9:$C$43,5,FALSE),"") ->  | G45: =IF(Q45>1,VLOOKUP(Q45,'Reference Data'!$C$9:$C$43,3,FALSE),"") ->  | Q45: =IF(ISBLANK($A45),1,VLOOKUP($A45,'Reference Data'!$B$9:$C$133,2,FALSE)) -> 5 | R45: =VLOOKUP(Q45,'Reference Data'!$C$9:O$125,($P$7)+1,FALSE) ->  | V45: 0 | W45: 0 | Y45: 0 | AC45: 0 | AD45: =IF(ISBLANK($A45),1,VLOOKUP($A45,'Reference Data'!$B$9:$D$133,3,FALSE)) -> 0 | AX45: 0
A46: Technician | D46: =IF(Q46>1,VLOOKUP(Q46,'Reference Data'!$C$9:$C$43,5,FALSE),"") ->  | G46: =IF(Q46>1,VLOOKUP(Q46,'Reference Data'!$C$9:$C$43,3,FALSE),"") ->  | Q46: =IF(ISBLANK($A46),1,VLOOKUP($A46,'Reference Data'!$B$9:$C$133,2,FALSE)) -> 6 | R46: =VLOOKUP(Q46,'Reference Data'!$C$9:O$125,($P$7)+1,FALSE) ->  | V46: 0 | W46: 0 | Y46: 0 | AC46: 0 | AD46: =IF(ISBLANK($A46),1,VLOOKUP($A46,'Reference Data'!$B$9:$D$133,3,FALSE)) -> 0 | AX46: 0
A47: Drafting | D47: =IF(Q47>1,VLOOKUP(Q47,'Reference Data'!$C$9:$C$43,5,FALSE),"") ->  | G47: =IF(Q47>1,VLOOKUP(Q47,'Reference Data'!$C$9:$C$43,3,FALSE),"") ->  | Q47: =IF(ISBLANK($A47),1,VLOOKUP($A47,'Reference Data'!$B$9:$C$133,2,FALSE)) -> 7 | R47: =VLOOKUP(Q47,'Reference Data'!$C$9:O$125,($P$7)+1,FALSE) ->  | V47: 0 | W47: 0 | Y47: 0 | AC47: 0 | AD47: =IF(ISBLANK($A47),1,VLOOKUP($A47,'Reference Data'!$B$9:$D$133,3,FALSE)) -> 0 | AX47: 0
A48: Clerical | D48: =IF(Q48>1,VLOOKUP(Q48,'Reference Data'!$C$9:$C$43,5,FALSE),"") ->  | G48: =IF(Q48>1,VLOOKUP(Q48,'Reference Data'!$C$9:$C$43,3,FALSE),"") ->  | Q48: =IF(ISBLANK($A48),1,VLOOKUP($A48,'Reference Data'!$B$9:$C$133,2,FALSE)) -> 8 | R48: =VLOOKUP(Q48,'Reference Data'!$C$9:O$125,($P$7)+1,FALSE) ->  | V48: 0 | W48: 0 | Y48: 0 | AC48: 0 | AD48: =IF(ISBLANK($A48),1,VLOOKUP($A48,'Reference Data'!$B$9:$D$133,3,FALSE)) -> 0 | AX48: 0
A49: Copies | D49: =IF(Q49>1,VLOOKUP(Q49,'Reference Data'!$C$9:$C$43,5,FALSE),"") ->  | G49: =IF(Q49>1,VLOOKUP(Q49,'Reference Data'!$C$9:$C$43,3,FALSE),"") ->  | Q49: =IF(ISBLANK($A49),1,VLOOKUP($A49,'Reference Data'!$B$9:$C$133,2,FALSE)) -> 96 | R49: =VLOOKUP(Q49,'Reference Data'!$C$9:O$125,($P$7)+1,FALSE) ->  | V49: 0 | W49: 0 | Y49: 0 | AC49: 0 | AD49: =IF(ISBLANK($A49),1,VLOOKUP($A49,'Reference Data'!$B$9:$D$133,3,FALSE)) -> 0 | AX49: 0
A50: Other (markup eligible) | C50: 1 | D50: =IF(Q50>1,VLOOKUP(Q50,'Reference Data'!$C$9:$C$43,5,FALSE),"") ->  | E50: 0 | F50: 0 | G50: =IF(Q50>1,VLOOKUP(Q50,'Reference Data'!$C$9:$C$43,3,FALSE),"") ->  | I50: =IF($E50=0,"",IF(($A$8)="Please Choose Date","Select Date Error!",IF($R50="N/A","",$X50))) ->  | Q50: =IF(ISBLANK($A50),1,VLOOKUP($A50,'Reference Data'!$B$9:$C$133,2,FALSE)) -> 94 | R50: =VLOOKUP(Q50,'Reference Data'!$C$9:O$125,($P$7)+1,FALSE) ->  | T50: 0 | U50: 0 | V50: 0 | W50: 0 | X50: 0 | Y50: 0 | Z50: 0 | AC50: 1 | AD50: =IF(ISBLANK($A50),1,VLOOKUP($A50,'Reference Data'!$B$9:$D$133,3,FALSE)) -> 1 | AX50: 0
A51: Other (not markup eligible) | C51: 1 | D51: =IF(Q51>1,VLOOKUP(Q51,'Reference Data'!$C$9:$C$43,5,FALSE),"") ->  | E51: 0 | F51: 0 | G51: =IF(Q51>1,VLOOKUP(Q51,'Reference Data'!$C$9:$C$43,3,FALSE),"") ->  | I51: =IF($E51=0,"",IF(($A$8)="Please Choose Date","Select Date Error!",IF($R51="N/A","",$X51))) ->  | Q51: =IF(ISBLANK($A51),1,VLOOKUP($A51,'Reference Data'!$B$9:$C$133,2,FALSE)) -> 95 | R51: =VLOOKUP(Q51,'Reference Data'!$C$9:O$125,($P$7)+1,FALSE) ->  | T51: 0 | U51: 0 | V51: 0 | W51: 0 | X51: 0 | Y51: 0 | Z51: 0 | AC51: 1 | AD51: =IF(ISBLANK($A51),1,VLOOKUP($A51,'Reference Data'!$B$9:$D$133,3,FALSE)) -> 0 | AX51: 0
A52: Immediate Response Grand Total | I52: =SUM(I15:I51) -> 0 | R52: =VLOOKUP(Q52,'Reference Data'!$C$9:O$125,($P$7)+1,FALSE) ->  | AA52: =I52 -> 0 | AW52: 0 | AX52: 0
A53: Site Characterization and CAP Development Costs | R53: =VLOOKUP(Q53,'Reference Data'!$C$9:Z$125,($P$7)+1,FALSE) ->  | AW53: =IF(SUM($I$57:$I$298)>0, 1, 0) -> 0 | AX53: 0
A54: Initial Site Characterization | R54: =VLOOKUP(Q54,'Reference Data'!$C$9:Z$125,($P$7)+1,FALSE) ->  | AW54: =IF(SUM($I$57:$I$134)>0, 1, 0) -> 0 | AX54: 0
A55: Planning, Preparation, and Follow-up Costs (Office) | R55: =VLOOKUP(Q55,'Reference Data'!$C$9:Z$125,($P$7)+1,FALSE) ->  | AW55: =IF(SUM($I$57:$I$65)>0, 1, 0) -> 0 | AX55: 0
A56: DESCRIPTION | B56: TASK PERFORMED | C56: UNITS | D56: TYPE | E56: UNIT COST | F56: TOTAL W/O MARKUP OR TAX | G56: TAX (NO MARKUP) | H56: % MARK-UP | I56: AMOUNT PROPOSED | Q56: Automated Descriptor | R56: =VLOOKUP(Q56,'Reference Data'!$C$9:Z$125,($P$7)+1,FALSE) ->  | S56: Total Automated Unit Cost | T56: PROPOSED Unit Cost | U56: PROPOSED total w/o markup or tax | V56: PROPOSED Tax | W56: PROPOSED Markup | X56: PROPOSED Total AMT | Y56: Lower Calculated Markup | Z56: Lower Calculated total w/ markup and tax | AA56: Lower Cost Final total | AB56: Amt Denied | AC56: Units Rounded | AD56: Markup Available | AW56: =IF(SUM($I$57:$I$65)>0, 1, 0) -> 0 | AX56: 0
A57: Principal | D57: =IF(Q57>1,VLOOKUP(Q57,'Reference Data'!$C$9:$C$43,5,FALSE),"") ->  | E57: =R57 -> 175.25 | F57: =IF(ISNUMBER(C57),IF(ISNUMBER(E57),ROUND(AC57*E57,2),""),"") ->  | G57: =IF(Q57>1,VLOOKUP(Q57,'Reference Data'!$C$9:$C$43,3,FALSE),"") ->  | I57: =IF(ISBLANK($C57),"",IF(($A$8)="Please Choose Date","Select Date Error!",IF($R57="N/A","",$X57))) ->  | Q57: =IF(ISBLANK($A57),1,VLOOKUP($A57,'Reference Data'!$B$9:$C$133,2,FALSE)) -> 2 | R57: =VLOOKUP(Q57,'Reference Data'!$C$9:Z$125,($P$7)+1,FALSE) -> 175.25 | S57: =IF(Q57>1, ROUND(R57*AC57,2), "") -> 0 | T57: =IF(ISNUMBER(E57),E57,"") -> 175.25 | U57: =IF(ISNUMBER(T57),ROUND(E57*AC57,2),"") -> 0 | V57: =IF(ISNUMBER(G57),G57,0) -> 0 | W57: =IF(ISNUMBER(H57), H57, 0) -> 0 | X57: =IF(Q57>1,IF(ISNUMBER(U57),ROUND(U57*(1+W57)+V57,2),S57),"") -> 0 | Y57: =IF(W57>$AB$7,$AB$7,W57) -> 0 | Z57: =IF(ISNUMBER(U57),ROUND(U57*(Y57+1)+V57,2),S57) -> 0 | AA57: =IF(AND(Q57>1,S57>0,S57<Z57),S57,Z57) -> 0 | AB57: =IF(AND(ISNUMBER(X57),ISNUMBER(AA57)),IF((X57-AA57)>0,X57-AA57,""),"") ->  | AC57: =ROUND($C57,2) -> 0 | AD57: =IF(ISBLANK($A57),1,VLOOKUP($A57,'Reference Data'!$B$9:$D$133,3,FALSE)) -> 0 | AW57: 0 | AX57: 0
A58: Senior Project Manager | D58: =IF(Q58>1,VLOOKUP(Q58,'Reference Data'!$C$9:$C$43,5,FALSE),"") ->  | E58: 162.75 | F58: =IF(ISNUMBER(C58),IF(ISNUMBER(E58),ROUND(AC58*E58,2),""),"") ->  | G58: =IF(Q58>1,VLOOKUP(Q58,'Reference Data'!$C$9:$C$43,3,FALSE),"") ->  | Q58: =IF(ISBLANK($A58),1,VLOOKUP($A58,'Reference Data'!$B$9:$C$133,2,FALSE)) -> 3 | R58: =VLOOKUP(Q58,'Reference Data'!$C$9:Z$125,($P$7)+1,FALSE) -> 162.75 | S58: 0 | T58: 162.75 | U58: 0 | V58: 0 | W58: 0 | X58: 0 | Y58: 0 | Z58: 0 | AA58: 0 | AC58: 0 | AD58: =IF(ISBLANK($A58),1,VLOOKUP($A58,'Reference Data'!$B$9:$D$133,3,FALSE)) -> 0 | AW58: 0 | AX58: 0
A59: Project Manager | D59: =IF(Q59>1,VLOOKUP(Q59,'Reference Data'!$C$9:$C$43,5,FALSE),"") ->  | E59: 133.75 | G59: =IF(Q59>1,VLOOKUP(Q59,'Reference Data'!$C$9:$C$43,3,FALSE),"") ->  | Q59: =IF(ISBLANK($A59),1,VLOOKUP($A59,'Reference Data'!$B$9:$C$133,2,FALSE)) -> 4 | R59: =VLOOKUP(Q59,'Reference Data'!$C$9:Z$125,($P$7)+1,FALSE) -> 133.75 | S59: 0 | T59: 133.75 | U59: 0 | V59: 0 | W59: 0 | X59: 0 | Y59: 0 | Z59: 0 | AA59: 0 | AC59: 0 | AD59: =IF(ISBLANK($A59),1,VLOOKUP($A59,'Reference Data'!$B$9:$D$133,3,FALSE)) -> 0 | AW59: 0 | AX59: 0
A60: Staff | D60: =IF(Q60>1,VLOOKUP(Q60,'Reference Data'!$C$9:$C$43,5,FALSE),"") ->  | E60: 112.25 | G60: =IF(Q60>1,VLOOKUP(Q60,'Reference Data'!$C$9:$C$43,3,FALSE),"") ->  | Q60: =IF(ISBLANK($A60),1,VLOOKUP($A60,'Reference Data'!$B$9:$C$133,2,FALSE)) -> 5 | R60: =VLOOKUP(Q60,'Reference Data'!$C$9:Z$125,($P$7)+1,FALSE) -> 112.25 | S60: 0 | T60: 112.25 | U60: 0 | V60: 0 | W60: 0 | X60: 0 | Y60: 0 | Z60: 0 | AA60: 0 | AC60: 0 | AD60: =IF(ISBLANK($A60),1,VLOOKUP($A60,'Reference Data'!$B$9:$D$133,3,FALSE)) -> 0 | AW60: 0 | AX60: 0
A61: Technician | D61: =IF(Q61>1,VLOOKUP(Q61,'Reference Data'!$C$9:$C$43,5,FALSE),"") ->  | E61: 77 | G61: =IF(Q61>1,VLOOKUP(Q61,'Reference Data'!$C$9:$C$43,3,FALSE),"") ->  | Q61: =IF(ISBLANK($A61),1,VLOOKUP($A61,'Reference Data'!$B$9:$C$133,2,FALSE)) -> 6 | R61: =VLOOKUP(Q61,'Reference Data'!$C$9:Z$125,($P$7)+1,FALSE) -> 77 | S61: 0 | T61: 77 | U61: 0 | V61: 0 | W61: 0 | X61: 0 | Y61: 0 | Z61: 0 | AA61: 0 | AC61: 0 | AD61: =IF(ISBLANK($A61),1,VLOOKUP($A61,'Reference Data'!$B$9:$D$133,3,FALSE)) -> 0 | AW61: 0 | AX61: 0
A62: Drafting | D62: =IF(Q62>1,VLOOKUP(Q62,'Reference Data'!$C$9:$C$43,5,FALSE),"") ->  | E62: 64.25 | G62: =IF(Q62>1,VLOOKUP(Q62,'Reference Data'!$C$9:$C$43,3,FALSE),"") ->  | Q62: =IF(ISBLANK($A62),1,VLOOKUP($A62,'Reference Data'!$B$9:$C$133,2,FALSE)) -> 7 | R62: =VLOOKUP(Q62,'Reference Data'!$C$9:Z$125,($P$7)+1,FALSE) -> 64.25 | S62: 0 | T62: 64.25 | U62: 0 | V62: 0 | W62: 0 | X62: 0 | Y62: 0 | Z62: 0 | AA62: 0 | AC62: 0 | AD62: =IF(ISBLANK($A62),1,VLOOKUP($A62,'Reference Data'!$B$9:$D$133,3,FALSE)) -> 0 | AW62: 0 | AX62: 0
A63: Clerical | D63: =IF(Q63>1,VLOOKUP(Q63,'Reference Data'!$C$9:$C$43,5,FALSE),"") ->  | E63: 45.5 | G63: =IF(Q63>1,VLOOKUP(Q63,'Reference Data'!$C$9:$C$43,3,FALSE),"") ->  | Q63: =IF(ISBLANK($A63),1,VLOOKUP($A63,'Reference Data'!$B$9:$C$133,2,FALSE)) -> 8 | R63: =VLOOKUP(Q63,'Reference Data'!$C$9:Z$125,($P$7)+1,FALSE) -> 45.5 | S63: 0 | T63: 45.5 | U63: 0 | V63: 0 | W63: 0 | X63: 0 | Y63: 0 | Z63: 0 | AA63: 0 | AC63: 0 | AD63: =IF(ISBLANK($A63),1,VLOOKUP($A63,'Reference Data'!$B$9:$D$133,3,FALSE)) -> 0 | AW63: 0 | AX63: 0
A64: Other (markup eligible) | C64: 1 | D64: =IF(Q64>1,VLOOKUP(Q64,'Reference Data'!$C$9:$C$43,5,FALSE),"") ->  | E64: 0 | F64: 0 | G64: =IF(Q64>1,VLOOKUP(Q64,'Reference Data'!$C$9:$C$43,3,FALSE),"") ->  | I64: =IF($E64=0,"",IF(($A$8)="Please Choose Date","Select Date Error!",IF($R64="N/A","",$X64))) ->  | Q64: =IF(ISBLANK($A64),1,VLOOKUP($A64,'Reference Data'!$B$9:$C$133,2,FALSE)) -> 94 | R64: =VLOOKUP(Q64,'Reference Data'!$C$9:Z$125,($P$7)+1,FALSE) -> 0 | S64: 0 | T64: 0 | U64: 0 | V64: 0 | W64: 0 | X64: 0 | Y64: 0 | Z64: 0 | AA64: 0 | AC64: 1 | AD64: =IF(ISBLANK($A64),1,VLOOKUP($A64,'Reference Data'!$B$9:$D$133,3,FALSE)) -> 1 | AW64: 0 | AX64: 0
A65: Other (not markup eligible) | C65: 1 | D65: =IF(Q65>1,VLOOKUP(Q65,'Reference Data'!$C$9:$C$43,5,FALSE),"") ->  | E65: 0 | F65: 0 | G65: =IF(Q65>1,VLOOKUP(Q65,'Reference Data'!$C$9:$C$43,3,FALSE),"") ->  | I65: =IF($E65=0,"",IF(($A$8)="Please Choose Date","Select Date Error!",IF($R65="N/A","",$X65))) ->  | Q65: =IF(ISBLANK($A65),1,VLOOKUP($A65,'Reference Data'!$B$9:$C$133,2,FALSE)) -> 95 | R65: =VLOOKUP(Q65,'Reference Data'!$C$9:Z$125,($P$7)+1,FALSE) -> 0 | S65: 0 | T65: 0 | U65: 0 | V65: 0 | W65: 0 | X65: 0 | Y65: 0 | Z65: 0 | AA65: 0 | AC65: 1 | AD65: =IF(ISBLANK($A65),1,VLOOKUP($A65,'Reference Data'!$B$9:$D$133,3,FALSE)) -> 0 | AW65: 0 | AX65: 0
R66: =VLOOKUP(Q66,'Reference Data'!$C$9:Z$125,($P$7)+1,FALSE) ->  | AW66: =IF(SUM($I$69:$I93)>0, 1, 0) -> 0 | AX66: 0
A67: Field Costs | G67: =IF(Q67>1,VLOOKUP(Q67,'Reference Data'!$C$9:$C$43,3,FALSE),"") ->  | I67: =IF(ISBLANK($C67),"",IF(($A$8)="Please Choose Date","Select Date Error!",IF($R67="N/A","",$X67))) ->  | R67: =VLOOKUP(Q67,'Reference Data'!$C$9:Z$125,($P$7)+1,FALSE) ->  | AW67: =IF(SUM($I$69:$I93)>0, 1, 0) -> 0 | AX67: 0
A68: DESCRIPTION | B68: TASK PERFORMED | C68: UNITS | D68: TYPE | E68: UNIT COST | F68: TOTAL W/O MARKUP OR TAX | G68: TAX (NO MARKUP) | H68: % MARK-UP | I68: AMOUNT PROPOSED | Q68: Automated Descriptor | R68: =VLOOKUP(Q68,'Reference Data'!$C$9:Z$125,($P$7)+1,FALSE) ->  | S68: Total Automated Unit Cost | T68: PROPOSED Unit Cost | U68: PROPOSED total w/o markup or tax | V68: PROPOSED Tax | W68: PROPOSED Markup | X68: PROPOSED Total AMT | Y68: Lower Calculated Markup | Z68: Lower Calculated total w/ markup and tax | AA68: Lower Cost Final total | AB68: Amt Denied | AC68: Units Rounded | AD68: Markup Available | AW68: =IF(SUM($I$69:$I93)>0, 1, 0) -> 0 | AX68: 0
A69: Principal | D69: =IF(Q69>1,VLOOKUP(Q69,'Reference Data'!$C$9:$C$43,5,FALSE),"") ->  | E69: =R69 -> 175.25 | G69: =IF(Q69>1,VLOOKUP(Q69,'Reference Data'!$C$9:$C$43,3,FALSE),"") ->  | I69: =IF(ISBLANK($C69),"",IF(($A$8)="Please Choose Date","Select Date Error!",IF($R69="N/A","",$X69))) ->  | Q69: =IF(ISBLANK($A69),1,VLOOKUP($A69,'Reference Data'!$B$9:$C$133,2,FALSE)) -> 2 | R69: =VLOOKUP(Q69,'Reference Data'!$C$9:Z$125,($P$7)+1,FALSE) -> 175.25 | S69: =IF(Q69>1, ROUND(R69*AC69,2), "") -> 0 | T69: =IF(ISNUMBER(E69),E69,"") -> 175.25 | U69: =IF(ISNUMBER(T69),ROUND(E69*AC69,2),"") -> 0 | V69: =IF(ISNUMBER(G69),G69,0) -> 0 | W69: =IF(ISNUMBER(H69), H69, 0) -> 0 | X69: =IF(Q69>1,IF(ISNUMBER(U69),ROUND(U69*(1+W69)+V69,2),S69),"") -> 0 | Y69: =IF(W69>$AB$7,$AB$7,W69) -> 0 | Z69: =IF(ISNUMBER(U69),ROUND(U69*(Y69+1)+V69,2),S69) -> 0 | AA69: =IF(AND(Q69>1,S69>0,S69<Z69),S69,Z69) -> 0 | AB69: =IF(AND(ISNUMBER(X69),ISNUMBER(AA69)),IF((X69-AA69)>0,X69-AA69,""),"") ->  | AC69: =ROUND($C69,2) -> 0 | AD69: =IF(ISBLANK($A69),1,VLOOKUP($A69,'Reference Data'!$B$9:$D$133,3,FALSE)) -> 0 | AW69: 0 | AX69: 0
A70: Senior Project Manager | D70: =IF(Q70>1,VLOOKUP(Q70,'Reference Data'!$C$9:$C$43,5,FALSE),"") ->  | E70: 162.75 | G70: =IF(Q70>1,VLOOKUP(Q70,'Reference Data'!$C$9:$C$43,3,FALSE),"") ->  | I70: =IF(ISBLANK($C70),"",IF(($A$8)="Please Choose Date","Select Date Error!",IF($R70="N/A","",$X70))) ->  | Q70: =IF(ISBLANK($A70),1,VLOOKUP($A70,'Reference Data'!$B$9:$C$133,2,FALSE)) -> 3 | R70: =VLOOKUP(Q70,'Reference Data'!$C$9:Z$125,($P$7)+1,FALSE) -> 162.75 | S70: 0 | T70: 162.75 | U70: 0 | V70: 0 | W70: 0 | X70: 0 | Y70: 0 | Z70: 0 | AA70: 0 | AC70: 0 | AD70: =IF(ISBLANK($A70),1,VLOOKUP($A70,'Reference Data'!$B$9:$D$133,3,FALSE)) -> 0 | AW70: 0 | AX70: 0
A71: Project Manager | D71: =IF(Q71>1,VLOOKUP(Q71,'Reference Data'!$C$9:$C$43,5,FALSE),"") ->  | E71: 133.75 | G71: =IF(Q71>1,VLOOKUP(Q71,'Reference Data'!$C$9:$C$43,3,FALSE),"") ->  | Q71: =IF(ISBLANK($A71),1,VLOOKUP($A71,'Reference Data'!$B$9:$C$133,2,FALSE)) -> 4 | R71: =VLOOKUP(Q71,'Reference Data'!$C$9:Z$125,($P$7)+1,FALSE) -> 133.75 | S71: 0 | T71: 133.75 | U71: 0 | V71: 0 | W71: 0 | X71: 0 | Y71: 0 | Z71: 0 | AA71: 0 | AC71: 0 | AD71: =IF(ISBLANK($A71),1,VLOOKUP($A71,'Reference Data'!$B$9:$D$133,3,FALSE)) -> 0 | AW71: 0 | AX71: 0
A72: Staff | D72: =IF(Q72>1,VLOOKUP(Q72,'Reference Data'!$C$9:$C$43,5,FALSE),"") ->  | E72: 112.25 | G72: =IF(Q72>1,VLOOKUP(Q72,'Reference Data'!$C$9:$C$43,3,FALSE),"") ->  | Q72: =IF(ISBLANK($A72),1,VLOOKUP($A72,'Reference Data'!$B$9:$C$133,2,FALSE)) -> 5 | R72: =VLOOKUP(Q72,'Reference Data'!$C$9:Z$125,($P$7)+1,FALSE) -> 112.25 | S72: 0 | T72: 112.25 | U72: 0 | V72: 0 | W72: 0 | X72: 0 | Y72: 0 | Z72: 0 | AA72: 0 | AC72: 0 | AD72: =IF(ISBLANK($A72),1,VLOOKUP($A72,'Reference Data'!$B$9:$D$133,3,FALSE)) -> 0 | AW72: 0 | AX72: 0
A73: Technician | D73: =IF(Q73>1,VLOOKUP(Q73,'Reference Data'!$C$9:$C$43,5,FALSE),"") ->  | E73: 77 | G73: =IF(Q73>1,VLOOKUP(Q73,'Reference Data'!$C$9:$C$43,3,FALSE),"") ->  | Q73: =IF(ISBLANK($A73),1,VLOOKUP($A73,'Reference Data'!$B$9:$C$133,2,FALSE)) -> 6 | R73: =VLOOKUP(Q73,'Reference Data'!$C$9:Z$125,($P$7)+1,FALSE) -> 77 | S73: 0 | T73: 77 | U73: 0 | V73: 0 | W73: 0 | X73: 0 | Y73: 0 | Z73: 0 | AA73: 0 | AC73: 0 | AD73: =IF(ISBLANK($A73),1,VLOOKUP($A73,'Reference Data'!$B$9:$D$133,3,FALSE)) -> 0 | AW73: 0 | AX73: 0
A74: Drafting | D74: =IF(Q74>1,VLOOKUP(Q74,'Reference Data'!$C$9:$C$43,5,FALSE),"") ->  | E74: 64.25 | G74: =IF(Q74>1,VLOOKUP(Q74,'Reference Data'!$C$9:$C$43,3,FALSE),"") ->  | Q74: =IF(ISBLANK($A74),1,VLOOKUP($A74,'Reference Data'!$B$9:$C$133,2,FALSE)) -> 7 | R74: =VLOOKUP(Q74,'Reference Data'!$C$9:Z$125,($P$7)+1,FALSE) -> 64.25 | S74: 0 | T74: 64.25 | U74: 0 | V74: 0 | W74: 0 | X74: 0 | Y74: 0 | Z74: 0 | AA74: 0 | AC74: 0 | AD74: =IF(ISBLANK($A74),1,VLOOKUP($A74,'Reference Data'!$B$9:$D$133,3,FALSE)) -> 0 | AW74: 0 | AX74: 0
A75: Clerical | D75: =IF(Q75>1,VLOOKUP(Q75,'Reference Data'!$C$9:$C$43,5,FALSE),"") ->  | E75: 45.5 | G75: =IF(Q75>1,VLOOKUP(Q75,'Reference Data'!$C$9:$C$43,3,FALSE),"") ->  | Q75: =IF(ISBLANK($A75),1,VLOOKUP($A75,'Reference Data'!$B$9:$C$133,2,FALSE)) -> 8 | R75: =VLOOKUP(Q75,'Reference Data'!$C$9:Z$125,($P$7)+1,FALSE) -> 45.5 | S75: 0 | T75: 45.5 | U75: 0 | V75: 0 | W75: 0 | X75: 0 | Y75: 0 | Z75: 0 | AA75: 0 | AC75: 0 | AD75: =IF(ISBLANK($A75),1,VLOOKUP($A75,'Reference Data'!$B$9:$D$133,3,FALSE)) -> 0 | AW75: 0 | AX75: 0
A76: Mileage | D76: =IF(Q76>1,VLOOKUP(Q76,'Reference Data'!$C$9:$C$43,5,FALSE),"") ->  | E76: 0.725 | G76: =IF(Q76>1,VLOOKUP(Q76,'Reference Data'!$C$9:$C$43,3,FALSE),"") ->  | Q76: =IF(ISBLANK($A76),1,VLOOKUP($A76,'Reference Data'!$B$9:$C$133,2,FALSE)) -> 9 | R76: =VLOOKUP(Q76,'Reference Data'!$C$9:Z$125,($P$7)+1,FALSE) -> 0.725 | S76: 0 | T76: 0.725 | U76: 0 | V76: 0 | W76: 0 | X76: 0 | Y76: 0 | Z76: 0 | AA76: 0 | AC76: 0 | AD76: =IF(ISBLANK($A76),1,VLOOKUP($A76,'Reference Data'!$B$9:$D$133,3,FALSE)) -> 0 | AW76: 0 | AX76: 0
A77: Overnight lodging (total) | C77: 1 | D77: =IF(Q77>1,VLOOKUP(Q77,'Reference Data'!$C$9:$C$43,5,FALSE),"") ->  | E77: 0 | F77: 0 | G77: =IF(Q77>1,VLOOKUP(Q77,'Reference Data'!$C$9:$C$43,3,FALSE),"") ->  | I77: =IF($E77=0,"",IF(($A$8)="Please Choose Date","Select Date Error!",IF($R77="N/A","",$X77))) ->  | Q77: =IF(ISBLANK($A77),1,VLOOKUP($A77,'Reference Data'!$B$9:$C$133,2,FALSE)) -> 10 | R77: =VLOOKUP(Q77,'Reference Data'!$C$9:Z$125,($P$7)+1,FALSE) -> 0 | S77: 0 | T77: 0 | U77: 0 | V77: 0 | W77: 0 | X77: 0 | Y77: 0 | Z77: 0 | AA77: 0 | AC77: 1 | AD77: =IF(ISBLANK($A77),1,VLOOKUP($A77,'Reference Data'!$B$9:$D$133,3,FALSE)) -> 0 | AW77: 0 | AX77: 0
A78: Per diem | D78: =IF(Q78>1,VLOOKUP(Q78,'Reference Data'!$C$9:$C$43,5,FALSE),"") ->  | E78: =R78 -> 41 | G78: =IF(Q78>1,VLOOKUP(Q78,'Reference Data'!$C$9:$C$43,3,FALSE),"") ->  | Q78: =IF(ISBLANK($A78),1,VLOOKUP($A78,'Reference Data'!$B$9:$C$133,2,FALSE)) -> 11 | R78: =VLOOKUP(Q78,'Reference Data'!$C$9:Z$125,($P$7)+1,FALSE) -> 41 | S78: 0 | T78: 41 | U78: 0 | V78: 0 | W78: 0 | X78: 0 | Y78: 0 | Z78: 0 | AA78: 0 | AC78: 0 | AD78: =IF(ISBLANK($A78),1,VLOOKUP($A78,'Reference Data'!$B$9:$D$133,3,FALSE)) -> 0 | AW78: 0 | AX78: 0
A79: Bailers | E79: 20 | Q79: =IF(ISBLANK($A79),1,VLOOKUP($A79,'Reference Data'!$B$9:$C$133,2,FALSE)) -> 15 | R79: =VLOOKUP(Q79,'Reference Data'!$C$9:Z$125,($P$7)+1,FALSE) -> 20 | S79: =IF(Q79>1, ROUND(R79*AC79,2), "") -> 0 | T79: =IF(ISNUMBER(E79),E79,"") -> 20 | U79: =IF(ISNUMBER(T79),ROUND(E79*AC79,2),"") -> 0 | V79: =IF(ISNUMBER(G79),G79,0) -> 0 | W79: =IF(ISNUMBER(H79), H79, 0) -> 0 | X79: =IF(Q79>1,IF(ISNUMBER(U79),ROUND(U79*(1+W79)+V79,2),S79),"") -> 0 | Y79: =IF(W79>$AB$7,$AB$7,W79) -> 0 | Z79: =IF(ISNUMBER(U79),ROUND(U79*(Y79+1)+V79,2),S79) -> 0 | AA79: =IF(AND(Q79>1,S79>0,S79<Z79),S79,Z79) -> 0 | AB79: =IF(AND(ISNUMBER(X79),ISNUMBER(AA79)),IF((X79-AA79)>0,X79-AA79,""),"") ->  | AC79: 0 | AD79: =IF(ISBLANK($A79),1,VLOOKUP($A79,'Reference Data'!$B$9:$D$133,3,FALSE)) -> 0 | AW79: 0 | AX79: 0
A80: Boring Incidentals | D80: =IF(Q80>1,VLOOKUP(Q80,'Reference Data'!$C$9:$C$43,5,FALSE),"") ->  | E80: 30 | G80: =IF(Q80>1,VLOOKUP(Q80,'Reference Data'!$C$9:$C$43,3,FALSE),"") ->  | Q80: =IF(ISBLANK($A80),1,VLOOKUP($A80,'Reference Data'!$B$9:$C$133,2,FALSE)) -> 16 | R80: =VLOOKUP(Q80,'Reference Data'!$C$9:Z$125,($P$7)+1,FALSE) -> 30 | S80: 0 | T80: 30 | U80: 0 | V80: 0 | W80: 0 | X80: 0 | Y80: 0 | Z80: 0 | AA80: 0 | AC80: 0 | AD80: =IF(ISBLANK($A80),1,VLOOKUP($A80,'Reference Data'!$B$9:$D$133,3,FALSE)) -> 0 | AW80: 0 | AX80: 0
A81: Decon | D81: =IF(Q81>1,VLOOKUP(Q81,'Reference Data'!$C$9:$C$43,5,FALSE),"") ->  | E81: 15 | G81: =IF(Q81>1,VLOOKUP(Q81,'Reference Data'!$C$9:$C$43,3,FALSE),"") ->  | Q81: =IF(ISBLANK($A81),1,VLOOKUP($A81,'Reference Data'!$B$9:$C$133,2,FALSE)) -> 17 | R81: =VLOOKUP(Q81,'Reference Data'!$C$9:Z$125,($P$7)+1,FALSE) -> 15 | S81: 0 | T81: 15 | U81: 0 | V81: 0 | W81: 0 | X81: 0 | Y81: 0 | Z81: 0 | AA81: 0 | AC81: 0 | AD81: =IF(ISBLANK($A81),1,VLOOKUP($A81,'Reference Data'!$B$9:$D$133,3,FALSE)) -> 0 | AW81: =IF(AA81=0, 0, 1) -> 0 | AX81: 0
A82: Flame Ionization Detector | D82: =IF(Q82>1,VLOOKUP(Q82,'Reference Data'!$C$9:$C$43,5,FALSE),"") ->  | E82: 135 | G82: =IF(Q82>1,VLOOKUP(Q82,'Reference Data'!$C$9:$C$43,3,FALSE),"") ->  | Q82: =IF(ISBLANK($A82),1,VLOOKUP($A82,'Reference Data'!$B$9:$C$133,2,FALSE)) -> 19 | R82: =VLOOKUP(Q82,'Reference Data'!$C$9:Z$125,($P$7)+1,FALSE) -> 135 | S82: 0 | T82: =IF(ISNUMBER(E82),E82,"") -> 135 | U82: 0 | V82: =IF(ISNUMBER(G82),G82,0) -> 0 | W82: 0 | X82: 0 | Y82: =IF(W82>$AB$7,$AB$7,W82) -> 0 | Z82: 0 | AA82: 0 | AB82: =IF(AND(ISNUMBER(X82),ISNUMBER(AA82)),IF((X82-AA82)>0,X82-AA82,""),"") ->  | AC82: 0 | AD82: =IF(ISBLANK($A82),1,VLOOKUP($A82,'Reference Data'!$B$9:$D$133,3,FALSE)) -> 0 | AW82: 0 | AX82: 0
A83: Hand Auger | D83: =IF(Q83>1,VLOOKUP(Q83,'Reference Data'!$C$9:$C$43,5,FALSE),"") ->  | E83: 42 | G83: =IF(Q83>1,VLOOKUP(Q83,'Reference Data'!$C$9:$C$43,3,FALSE),"") ->  | Q83: =IF(ISBLANK($A83),1,VLOOKUP($A83,'Reference Data'!$B$9:$C$133,2,FALSE)) -> 20 | R83: =VLOOKUP(Q83,'Reference Data'!$C$9:Z$125,($P$7)+1,FALSE) -> 42 | S83: 0 | T83: 42 | U83: 0 | V83: 0 | W83: 0 | X83: 0 | Y83: 0 | Z83: 0 | AA83: 0 | AC83: 0 | AD83: =IF(ISBLANK($A83),1,VLOOKUP($A83,'Reference Data'!$B$9:$D$133,3,FALSE)) -> 0 | AW83: 0 | AX83: 0
A84: Interface Probe | D84: =IF(Q84>1,VLOOKUP(Q84,'Reference Data'!$C$9:$C$43,5,FALSE),"") ->  | E84: 70 | G84: =IF(Q84>1,VLOOKUP(Q84,'Reference Data'!$C$9:$C$43,3,FALSE),"") ->  | Q84: =IF(ISBLANK($A84),1,VLOOKUP($A84,'Reference Data'!$B$9:$C$133,2,FALSE)) -> 21 | R84: =VLOOKUP(Q84,'Reference Data'!$C$9:Z$125,($P$7)+1,FALSE) -> 70 | S84: 0 | T84: 70 | U84: 0 | V84: 0 | W84: 0 | X84: 0 | Y84: 0 | Z84: 0 | AA84: 0 | AC84: 0 | AD84: =IF(ISBLANK($A84),1,VLOOKUP($A84,'Reference Data'!$B$9:$D$133,3,FALSE)) -> 0 | AW84: 0 | AX84: 0
A85: Laser Survey Equipment | D85: =IF(Q85>1,VLOOKUP(Q85,'Reference Data'!$C$9:$C$43,5,FALSE),"") ->  | E85: 90 | G85: =IF(Q85>1,VLOOKUP(Q85,'Reference Data'!$C$9:$C$43,3,FALSE),"") ->  | Q85: =IF(ISBLANK($A85),1,VLOOKUP($A85,'Reference Data'!$B$9:$C$133,2,FALSE)) -> 22 | R85: =VLOOKUP(Q85,'Reference Data'!$C$9:Z$125,($P$7)+1,FALSE) -> 90 | S85: 0 | T85: =IF(ISNUMBER(E85),E85,"") -> 90 | U85: 0 | V85: =IF(ISNUMBER(G85),G85,0) -> 0 | W85: 0 | X85: 0 | Y85: =IF(W85>$AB$7,$AB$7,W85) -> 0 | Z85: 0 | AA85: 0 | AB85: =IF(AND(ISNUMBER(X85),ISNUMBER(AA85)),IF((X85-AA85)>0,X85-AA85,""),"") ->  | AC85: 0 | AD85: =IF(ISBLANK($A85),1,VLOOKUP($A85,'Reference Data'!$B$9:$D$133,3,FALSE)) -> 0 | AW85: 0 | AX85: 0
A86: MW Incidentals | D86: =IF(Q86>1,VLOOKUP(Q86,'Reference Data'!$C$9:$C$43,5,FALSE),"") ->  | E86: 30 | G86: =IF(Q86>1,VLOOKUP(Q86,'Reference Data'!$C$9:$C$43,3,FALSE),"") ->  | Q86: =IF(ISBLANK($A86),1,VLOOKUP($A86,'Reference Data'!$B$9:$C$133,2,FALSE)) -> 26 | R86: =VLOOKUP(Q86,'Reference Data'!$C$9:Z$125,($P$7)+1,FALSE) -> 30 | S86: 0 | T86: =IF(ISNUMBER(E86),E86,"") -> 30 | U86: 0 | V86: =IF(ISNUMBER(G86),G86,0) -> 0 | W86: 0 | X86: 0 | Y86: =IF(W86>$AB$7,$AB$7,W86) -> 0 | Z86: 0 | AA86: 0 | AB86: =IF(AND(ISNUMBER(X86),ISNUMBER(AA86)),IF((X86-AA86)>0,X86-AA86,""),"") ->  | AC86: 0 | AD86: =IF(ISBLANK($A86),1,VLOOKUP($A86,'Reference Data'!$B$9:$D$133,3,FALSE)) -> 0 | AW86: 0 | AX86: 0
A87: Photo Ionization Detector | D87: =IF(Q87>1,VLOOKUP(Q87,'Reference Data'!$C$9:$C$43,5,FALSE),"") ->  | E87: 90 | G87: =IF(Q87>1,VLOOKUP(Q87,'Reference Data'!$C$9:$C$43,3,FALSE),"") ->  | Q87: =IF(ISBLANK($A87),1,VLOOKUP($A87,'Reference Data'!$B$9:$C$133,2,FALSE)) -> 30 | R87: =VLOOKUP(Q87,'Reference Data'!$C$9:Z$125,($P$7)+1,FALSE) -> 90 | S87: 0 | T87: =IF(ISNUMBER(E87),E87,"") -> 90 | U87: 0 | V87: =IF(ISNUMBER(G87),G87,0) -> 0 | W87: 0 | X87: 0 | Y87: =IF(W87>$AB$7,$AB$7,W87) -> 0 | Z87: 0 | AA87: 0 | AB87: =IF(AND(ISNUMBER(X87),ISNUMBER(AA87)),IF((X87-AA87)>0,X87-AA87,""),"") ->  | AC87: 0 | AD87: =IF(ISBLANK($A87),1,VLOOKUP($A87,'Reference Data'!$B$9:$D$133,3,FALSE)) -> 0 | AW87: 0 | AX87: 0
A88: Water Level Indicator | D88: =IF(Q88>1,VLOOKUP(Q88,'Reference Data'!$C$9:$C$43,5,FALSE),"") ->  | E88: 15 | G88: =IF(Q88>1,VLOOKUP(Q88,'Reference Data'!$C$9:$C$43,3,FALSE),"") ->  | Q88: =IF(ISBLANK($A88),1,VLOOKUP($A88,'Reference Data'!$B$9:$C$133,2,FALSE)) -> 32 | R88: =VLOOKUP(Q88,'Reference Data'!$C$9:Z$125,($P$7)+1,FALSE) -> 15 | S88: 0 | T88: 15 | U88: 0 | V88: 0 | W88: 0 | X88: 0 | Y88: 0 | Z88: 0 | AA88: 0 | AC88: 0 | AD88: =IF(ISBLANK($A88),1,VLOOKUP($A88,'Reference Data'!$B$9:$D$133,3,FALSE)) -> 0 | AW88: 0 | AX88: 0
A89: Drums | D89: =IF(Q89>1,VLOOKUP(Q89,'Reference Data'!$C$9:$C$43,5,FALSE),"") ->  | E89: 0 | G89: =IF(Q89>1,VLOOKUP(Q89,'Reference Data'!$C$9:$C$43,3,FALSE),"") ->  | Q89: =IF(ISBLANK($A89),1,VLOOKUP($A89,'Reference Data'!$B$9:$C$133,2,FALSE)) -> 49 | R89: =VLOOKUP(Q89,'Reference Data'!$C$9:Z$125,($P$7)+1,FALSE) -> 0 | S89: 0 | T89: 0 | U89: 0 | V89: 0 | W89: 0 | X89: 0 | Y89: =IF(W89>$AB$7,$AB$7,W89) -> 0 | Z89: 0 | AA89: 0 | AB89: =IF(AND(ISNUMBER(X89),ISNUMBER(AA89)),IF((X89-AA89)>0,X89-AA89,""),"") ->  | AC89: 0 | AD89: =IF(ISBLANK($A89),1,VLOOKUP($A89,'Reference Data'!$B$9:$D$133,3,FALSE)) -> 1 | AW89: 0 | AX89: 0
A90: Drum Disposal | D90: =IF(Q90>1,VLOOKUP(Q90,'Reference Data'!$C$9:$C$43,5,FALSE),"") ->  | E90: 0 | G90: =IF(Q90>1,VLOOKUP(Q90,'Reference Data'!$C$9:$C$43,3,FALSE),"") ->  | Q90: =IF(ISBLANK($A90),1,VLOOKUP($A90,'Reference Data'!$B$9:$C$133,2,FALSE)) -> 48 | R90: =VLOOKUP(Q90,'Reference Data'!$C$9:Z$125,($P$7)+1,FALSE) -> 0 | S90: 0 | T90: 0 | U90: 0 | V90: 0 | W90: 0 | X90: 0 | Y90: =IF(W90>$AB$7,$AB$7,W90) -> 0 | Z90: 0 | AA90: 0 | AB90: =IF(AND(ISNUMBER(X90),ISNUMBER(AA90)),IF((X90-AA90)>0,X90-AA90,""),"") ->  | AC90: 0 | AD90: =IF(ISBLANK($A90),1,VLOOKUP($A90,'Reference Data'!$B$9:$D$133,3,FALSE)) -> 1 | AW90: 0 | AX90: 0
A91: Utility Locate | D91: =IF(Q91>1,VLOOKUP(Q91,'Reference Data'!$C$9:$C$43,5,FALSE),"") ->  | E91: 0 | G91: =IF(Q91>1,VLOOKUP(Q91,'Reference Data'!$C$9:$C$43,3,FALSE),"") ->  | Q91: =IF(ISBLANK($A91),1,VLOOKUP($A91,'Reference Data'!$B$9:$C$133,2,FALSE)) -> 31 | R91: =VLOOKUP(Q91,'Reference Data'!$C$9:Z$125,($P$7)+1,FALSE) -> 0 | S91: 0 | T91: 0 | U91: 0 | V91: 0 | W91: 0 | X91: 0 | Y91: =IF(W91>$AB$7,$AB$7,W91) -> 0 | Z91: 0 | AA91: 0 | AB91: =IF(AND(ISNUMBER(X91),ISNUMBER(AA91)),IF((X91-AA91)>0,X91-AA91,""),"") ->  | AC91: 0 | AD91: =IF(ISBLANK($A91),1,VLOOKUP($A91,'Reference Data'!$B$9:$D$133,3,FALSE)) -> 1 | AW91: 0 | AX91: 0
A92: Other (markup eligible) | C92: 1 | D92: =IF(Q92>1,VLOOKUP(Q92,'Reference Data'!$C$9:$C$43,5,FALSE),"") ->  | E92: 0 | F92: =IF(ISNUMBER(C92),IF(ISNUMBER(E92),ROUND(AC92*E92,2),""),"") -> 0 | G92: =IF(Q92>1,VLOOKUP(Q92,'Reference Data'!$C$9:$C$43,3,FALSE),"") ->  | I92: =IF($E92=0,"",IF(($A$8)="Please Choose Date","Select Date Error!",IF($R92="N/A","",$X92))) ->  | Q92: =IF(ISBLANK($A92),1,VLOOKUP($A92,'Reference Data'!$B$9:$C$133,2,FALSE)) -> 94 | R92: =VLOOKUP(Q92,'Reference Data'!$C$9:Z$125,($P$7)+1,FALSE) -> 0 | S92: 0 | T92: =IF(ISNUMBER(E92),E92,"") -> 0 | U92: 0 | V92: =IF(ISNUMBER(G92),G92,0) -> 0 | W92: 0 | X92: 0 | Y92: =IF(W92>$AB$7,$AB$7,W92) -> 0 | Z92: 0 | AA92: 0 | AB92: =IF(AND(ISNUMBER(X92),ISNUMBER(AA92)),IF((X92-AA92)>0,X92-AA92,""),"") ->  | AC92: 1 | AD92: =IF(ISBLANK($A92),1,VLOOKUP($A92,'Reference Data'!$B$9:$D$133,3,FALSE)) -> 1 | AW92: 0 | AX92: 0
A93: Other (not markup eligible) | C93: 1 | D93: =IF(Q93>1,VLOOKUP(Q93,'Reference Data'!$C$9:$C$43,5,FALSE),"") ->  | E93: 0 | F93: =IF(ISNUMBER(C93),IF(ISNUMBER(E93),ROUND(AC93*E93,2),""),"") -> 0 | G93: =IF(Q93>1,VLOOKUP(Q93,'Reference Data'!$C$9:$C$43,3,FALSE),"") ->  | I93: =IF($E93=0,"",IF(($A$8)="Please Choose Date","Select Date Error!",IF($R93="N/A","",$X93))) ->  | Q93: =IF(ISBLANK($A93),1,VLOOKUP($A93,'Reference Data'!$B$9:$C$133,2,FALSE)) -> 95 | R93: =VLOOKUP(Q93,'Reference Data'!$C$9:Z$125,($P$7)+1,FALSE) -> 0 | S93: 0 | T93: =IF(ISNUMBER(E93),E93,"") -> 0 | U93: 0 | V93: =IF(ISNUMBER(G93),G93,0) -> 0 | W93: 0 | X93: 0 | Y93: =IF(W93>$AB$7,$AB$7,W93) -> 0 | Z93: 0 | AA93: 0 | AB93: =IF(AND(ISNUMBER(X93),ISNUMBER(AA93)),IF((X93-AA93)>0,X93-AA93,""),"") ->  | AC93: 1 | AD93: =IF(ISBLANK($A93),1,VLOOKUP($A93,'Reference Data'!$B$9:$D$133,3,FALSE)) -> 0 | AW93: 0 | AX93: 0
A94: Laboratory Analyses (Soil) | D94: =IF(Q94>1,VLOOKUP(Q94,'Reference Data'!$C$9:$C$43,5,FALSE),"") ->  | G94: =IF(Q94>1,VLOOKUP(Q94,'Reference Data'!$C$9:$C$43,3,FALSE),"") ->  | R94: =VLOOKUP(Q94,'Reference Data'!$C$9:Z$125,($P$7)+1,FALSE) ->  | AW94: =IF(SUM($I$95:$I106)>0, 1, 0) -> 0 | AX94: 0
A95: VOC -8260 (soil) | D95: =IF(Q95>1,VLOOKUP(Q95,'Reference Data'!$C$9:$C$43,5,FALSE),"") ->  | E95: 0 | G95: =IF(Q95>1,VLOOKUP(Q95,'Reference Data'!$C$9:$C$43,3,FALSE),"") ->  | Q95: =IF(ISBLANK($A95),1,VLOOKUP($A95,'Reference Data'!$B$9:$C$133,2,FALSE)) -> 75 | R95: =VLOOKUP(Q95,'Reference Data'!$C$9:Z$125,($P$7)+1,FALSE) -> 130 | S95: =IF(Q95>1, ROUND(R95*AC95,2), "") -> 0 | T95: 0 | U95: =IF(ISNUMBER(T95),ROUND(E95*AC95,2),"") -> 0 | V95: 0 | W95: =IF(ISNUMBER(H95), H95, 0) -> 0 | X95: =IF(Q95>1,IF(ISNUMBER(U95),ROUND(U95*(1+W95)+V95,2),S95),"") -> 0 | Y95: 0 | Z95: =IF(ISNUMBER(U95),ROUND(U95*(Y95+1)+V95,2),S95) -> 0 | AA95: =IF(AND(Q95>1,S95>0,S95<Z95),S95,Z95) -> 0 | AC95: 0 | AD95: =IF(ISBLANK($A95),1,VLOOKUP($A95,'Reference Data'!$B$9:$D$133,3,FALSE)) -> 1 | AW95: 0 | AX95: 0
A96: BTEX/MTBE -8021 (soil) | D96: =IF(Q96>1,VLOOKUP(Q96,'Reference Data'!$C$9:$C$43,5,FALSE),"") ->  | E96: 0 | G96: =IF(Q96>1,VLOOKUP(Q96,'Reference Data'!$C$9:$C$43,3,FALSE),"") ->  | Q96: =IF(ISBLANK($A96),1,VLOOKUP($A96,'Reference Data'!$B$9:$C$133,2,FALSE)) -> 64 | R96: =VLOOKUP(Q96,'Reference Data'!$C$9:Z$125,($P$7)+1,FALSE) -> 60 | S96: 0 | T96: 0 | U96: 0 | V96: 0 | W96: 0 | X96: 0 | Y96: 0 | Z96: 0 | AA96: 0 | AC96: 0 | AD96: =IF(ISBLANK($A96),1,VLOOKUP($A96,'Reference Data'!$B$9:$D$133,3,FALSE)) -> 1 | AW96: 0 | AX96: 0
A97: BTEX/MTBE -8260 (soil) | D97: =IF(Q97>1,VLOOKUP(Q97,'Reference Data'!$C$9:$C$43,5,FALSE),"") ->  | E97: 0 | G97: =IF(Q97>1,VLOOKUP(Q97,'Reference Data'!$C$9:$C$43,3,FALSE),"") ->  | Q97: =IF(ISBLANK($A97),1,VLOOKUP($A97,'Reference Data'!$B$9:$C$133,2,FALSE)) -> 65 | R97: =VLOOKUP(Q97,'Reference Data'!$C$9:Z$125,($P$7)+1,FALSE) -> 80 | S97: 0 | T97: 0 | U97: 0 | V97: 0 | W97: 0 | X97: 0 | Y97: 0 | Z97: 0 | AA97: 0 | AC97: 0 | AD97: =IF(ISBLANK($A97),1,VLOOKUP($A97,'Reference Data'!$B$9:$D$133,3,FALSE)) -> 1 | AW97: 0 | AX97: 0
A98: SVOC - 8270 (soil) | D98: =IF(Q98>1,VLOOKUP(Q98,'Reference Data'!$C$9:$C$43,5,FALSE),"") ->  | E98: 0 | G98: =IF(Q98>1,VLOOKUP(Q98,'Reference Data'!$C$9:$C$43,3,FALSE),"") ->  | Q98: =IF(ISBLANK($A98),1,VLOOKUP($A98,'Reference Data'!$B$9:$C$133,2,FALSE)) -> 72 | R98: =VLOOKUP(Q98,'Reference Data'!$C$9:Z$125,($P$7)+1,FALSE) -> 225 | S98: 0 | T98: 0 | U98: 0 | V98: 0 | W98: 0 | X98: 0 | Y98: 0 | Z98: 0 | AA98: 0 | AC98: 0 | AD98: =IF(ISBLANK($A98),1,VLOOKUP($A98,'Reference Data'!$B$9:$D$133,3,FALSE)) -> 1 | AW98: 0 | AX98: 0
A99: PAH -8270 SIM (soil) | D99: =IF(Q99>1,VLOOKUP(Q99,'Reference Data'!$C$9:$C$43,5,FALSE),"") ->  | E99: 0 | G99: =IF(Q99>1,VLOOKUP(Q99,'Reference Data'!$C$9:$C$43,3,FALSE),"") ->  | Q99: =IF(ISBLANK($A99),1,VLOOKUP($A99,'Reference Data'!$B$9:$C$133,2,FALSE)) -> 69 | R99: =VLOOKUP(Q99,'Reference Data'!$C$9:Z$125,($P$7)+1,FALSE) -> 130 | S99: 0 | T99: 0 | U99: 0 | V99: 0 | W99: 0 | X99: 0 | Y99: 0 | Z99: 0 | AA99: 0 | AC99: 0 | AD99: =IF(ISBLANK($A99),1,VLOOKUP($A99,'Reference Data'!$B$9:$D$133,3,FALSE)) -> 1 | AW99: 0 | AX99: 0
A100: PAH -8310 (soil) | D100: =IF(Q100>1,VLOOKUP(Q100,'Reference Data'!$C$9:$C$43,5,FALSE),"") ->  | E100: 0 | G100: =IF(Q100>1,VLOOKUP(Q100,'Reference Data'!$C$9:$C$43,3,FALSE),"") ->  | Q100: =IF(ISBLANK($A100),1,VLOOKUP($A100,'Reference Data'!$B$9:$C$133,2,FALSE)) -> 70 | R100: =VLOOKUP(Q100,'Reference Data'!$C$9:Z$125,($P$7)+1,FALSE) -> 150 | S100: 0 | T100: 0 | U100: 0 | V100: 0 | W100: 0 | X100: 0 | Y100: 0 | Z100: 0 | AA100: 0 | AC100: 0 | AD100: =IF(ISBLANK($A100),1,VLOOKUP($A100,'Reference Data'!$B$9:$D$133,3,FALSE)) -> 1 | AW100: 0 | AX100: 0
A101: Metals 7 barium, cadmium, chromium, lead, mercury, nickel, zinc (soil) | D101: =IF(Q101>1,VLOOKUP(Q101,'Reference Data'!$C$9:$C$43,5,FALSE),"") ->  | E101: 0 | G101: =IF(Q101>1,VLOOKUP(Q101,'Reference Data'!$C$9:$C$43,3,FALSE),"") ->  | Q101: =IF(ISBLANK($A101),1,VLOOKUP($A101,'Reference Data'!$B$9:$C$133,2,FALSE)) -> 68 | R101: =VLOOKUP(Q101,'Reference Data'!$C$9:Z$125,($P$7)+1,FALSE) -> 100 | S101: 0 | T101: 0 | U101: 0 | V101: 0 | W101: 0 | X101: 0 | Y101: 0 | Z101: 0 | AA101: 0 | AC101: 0 | AD101: =IF(ISBLANK($A101),1,VLOOKUP($A101,'Reference Data'!$B$9:$D$133,3,FALSE)) -> 1 | AW101: 0 | AX101: 0
A102: Individual Metals (per sample) (soil) | D102: =IF(Q102>1,VLOOKUP(Q102,'Reference Data'!$C$9:$C$43,5,FALSE),"") ->  | E102: 0 | G102: =IF(Q102>1,VLOOKUP(Q102,'Reference Data'!$C$9:$C$43,3,FALSE),"") ->  | Q102: =IF(ISBLANK($A102),1,VLOOKUP($A102,'Reference Data'!$B$9:$C$133,2,FALSE)) -> 67 | R102: =VLOOKUP(Q102,'Reference Data'!$C$9:Z$125,($P$7)+1,FALSE) -> 15 | S102: 0 | T102: 0 | U102: 0 | V102: 0 | W102: 0 | X102: 0 | Y102: 0 | Z102: 0 | AA102: 0 | AC102: 0 | AD102: =IF(ISBLANK($A102),1,VLOOKUP($A102,'Reference Data'!$B$9:$D$133,3,FALSE)) -> 1 | AW102: 0 | AX102: 0
A103: % Moisture (soil) | D103: =IF(Q103>1,VLOOKUP(Q103,'Reference Data'!$C$9:$C$43,5,FALSE),"") ->  | E103: 0 | G103: =IF(Q103>1,VLOOKUP(Q103,'Reference Data'!$C$9:$C$43,3,FALSE),"") ->  | Q103: =IF(ISBLANK($A103),1,VLOOKUP($A103,'Reference Data'!$B$9:$C$133,2,FALSE)) -> 76 | R103: =VLOOKUP(Q103,'Reference Data'!$C$9:Z$125,($P$7)+1,FALSE) -> 0 | S103: 0 | T103: 0 | U103: 0 | V103: 0 | W103: 0 | X103: 0 | Y103: =IF(W103>$AB$7,$AB$7,W103) -> 0 | Z103: 0 | AA103: 0 | AB103: =IF(AND(ISNUMBER(X103),ISNUMBER(AA103)),IF((X103-AA103)>0,X103-AA103,""),"") ->  | AC103: 0 | AD103: =IF(ISBLANK($A103),1,VLOOKUP($A103,'Reference Data'!$B$9:$D$133,3,FALSE)) -> 1 | AW103: 0 | AX103: 0
A104: MS/MSD | D104: =IF(Q104>1,VLOOKUP(Q104,'Reference Data'!$C$9:$C$43,5,FALSE),"") ->  | E104: 0 | G104: =IF(Q104>1,VLOOKUP(Q104,'Reference Data'!$C$9:$C$43,3,FALSE),"") ->  | Q104: =IF(ISBLANK($A104),1,VLOOKUP($A104,'Reference Data'!$B$9:$C$133,2,FALSE)) -> 85 | R104: =VLOOKUP(Q104,'Reference Data'!$C$9:Z$125,($P$7)+1,FALSE) -> 0 | S104: 0 | T104: 0 | U104: 0 | V104: 0 | W104: 0 | X104: 0 | Y104: =IF(W104>$AB$7,$AB$7,W104) -> 0 | Z104: 0 | AA104: 0 | AB104: =IF(AND(ISNUMBER(X104),ISNUMBER(AA104)),IF((X104-AA104)>0,X104-AA104,""),"") ->  | AC104: 0 | AD104: =IF(ISBLANK($A104),1,VLOOKUP($A104,'Reference Data'!$B$9:$D$133,3,FALSE)) -> 1 | AW104: 0 | AX104: 0
A105: QA/QC Data Package | D105: =IF(Q105>1,VLOOKUP(Q105,'Reference Data'!$C$9:$C$43,5,FALSE),"") ->  | E105: 0 | G105: =IF(Q105>1,VLOOKUP(Q105,'Reference Data'!$C$9:$C$43,3,FALSE),"") ->  | Q105: =IF(ISBLANK($A105),1,VLOOKUP($A105,'Reference Data'!$B$9:$C$133,2,FALSE)) -> 86 | R105: =VLOOKUP(Q105,'Reference Data'!$C$9:Z$125,($P$7)+1,FALSE) -> 0 | S105: 0 | T105: 0 | U105: 0 | V105: 0 | W105: 0 | X105: 0 | Y105: 0 | Z105: 0 | AA105: 0 | AC105: 0 | AD105: =IF(ISBLANK($A105),1,VLOOKUP($A105,'Reference Data'!$B$9:$D$133,3,FALSE)) -> 1 | AW105: 0 | AX105: 0
A106: Other | C106: 1 | D106: =IF(Q106>1,VLOOKUP(Q106,'Reference Data'!$C$9:$C$43,5,FALSE),"") ->  | E106: 0 | F106: 0 | G106: =IF(Q106>1,VLOOKUP(Q106,'Reference Data'!$C$9:$C$43,3,FALSE),"") ->  | I106: =IF($E106=0,"",IF(($A$8)="Please Choose Date","Select Date Error!",IF($R106="N/A","",$X106))) ->  | Q106: =IF(ISBLANK($A106),1,VLOOKUP($A106,'Reference Data'!$B$9:$C$133,2,FALSE)) -> 91 | R106: =VLOOKUP(Q106,'Reference Data'!$C$9:Z$125,($P$7)+1,FALSE) -> 0 | S106: 0 | T106: 0 | U106: 0 | V106: 0 | W106: 0 | X106: 0 | Y106: 0 | Z106: 0 | AA106: 0 | AC106: 1 | AD106: =IF(ISBLANK($A106),1,VLOOKUP($A106,'Reference Data'!$B$9:$D$133,3,FALSE)) -> 1 | AW106: 0 | AX106: 0
A107: Laboratory Analyses (Water) | G107: =IF(Q107>1,VLOOKUP(Q107,'Reference Data'!$C$9:$C$43,3,FALSE),"") ->  | R107: =VLOOKUP(Q107,'Reference Data'!$C$9:Z$125,($P$7)+1,FALSE) ->  | AW107: =IF(SUM($I$108:$I$118)>0, 1, 0) -> 0 | AX107: 0
A108: VOC -8260 (water) | D108: =IF(Q108>1,VLOOKUP(Q108,'Reference Data'!$C$9:$C$43,5,FALSE),"") ->  | E108: 0 | G108: =IF(Q108>1,VLOOKUP(Q108,'Reference Data'!$C$9:$C$43,3,FALSE),"") ->  | Q108: =IF(ISBLANK($A108),1,VLOOKUP($A108,'Reference Data'!$B$9:$C$133,2,FALSE)) -> 84 | R108: =VLOOKUP(Q108,'Reference Data'!$C$9:Z$125,($P$7)+1,FALSE) -> 135 | S108: =IF(Q108>1, ROUND(R108*AC108,2), "") -> 0 | T108: 0 | U108: =IF(ISNUMBER(T108),ROUND(E108*AC108,2),"") -> 0 | V108: 0 | W108: =IF(ISNUMBER(H108), H108, 0) -> 0 | X108: =IF(Q108>1,IF(ISNUMBER(U108),ROUND(U108*(1+W108)+V108,2),S108),"") -> 0 | Y108: 0 | Z108: =IF(ISNUMBER(U108),ROUND(U108*(Y108+1)+V108,2),S108) -> 0 | AA108: =IF(AND(Q108>1,S108>0,S108<Z108),S108,Z108) -> 0 | AC108: 0 | AD108: =IF(ISBLANK($A108),1,VLOOKUP($A108,'Reference Data'!$B$9:$D$133,3,FALSE)) -> 1 | AW108: 0 | AX108: 0
A109: BTEX/MTBE -8021 (water) | D109: =IF(Q109>1,VLOOKUP(Q109,'Reference Data'!$C$9:$C$43,5,FALSE),"") ->  | E109: 0 | G109: =IF(Q109>1,VLOOKUP(Q109,'Reference Data'!$C$9:$C$43,3,FALSE),"") ->  | Q109: =IF(ISBLANK($A109),1,VLOOKUP($A109,'Reference Data'!$B$9:$C$133,2,FALSE)) -> 77 | R109: =VLOOKUP(Q109,'Reference Data'!$C$9:Z$125,($P$7)+1,FALSE) -> 50 | S109: 0 | T109: 0 | U109: 0 | V109: 0 | W109: 0 | X109: 0 | Y109: 0 | Z109: 0 | AA109: 0 | AC109: 0 | AD109: =IF(ISBLANK($A109),1,VLOOKUP($A109,'Reference Data'!$B$9:$D$133,3,FALSE)) -> 1 | AW109: 0 | AX109: 0
A110: BTEX/MTBE -8260 (water) | D110: =IF(Q110>1,VLOOKUP(Q110,'Reference Data'!$C$9:$C$43,5,FALSE),"") ->  | E110: 0 | G110: =IF(Q110>1,VLOOKUP(Q110,'Reference Data'!$C$9:$C$43,3,FALSE),"") ->  | Q110: =IF(ISBLANK($A110),1,VLOOKUP($A110,'Reference Data'!$B$9:$C$133,2,FALSE)) -> 78 | R110: =VLOOKUP(Q110,'Reference Data'!$C$9:Z$125,($P$7)+1,FALSE) -> 80 | S110: 0 | T110: 0 | U110: 0 | V110: 0 | W110: 0 | X110: 0 | Y110: 0 | Z110: 0 | AA110: 0 | AC110: 0 | AD110: =IF(ISBLANK($A110),1,VLOOKUP($A110,'Reference Data'!$B$9:$D$133,3,FALSE)) -> 1 | AW110: 0 | AX110: 0
A111: SVOC - 8270 (water) | D111: =IF(Q111>1,VLOOKUP(Q111,'Reference Data'!$C$9:$C$43,5,FALSE),"") ->  | E111: 0 | G111: =IF(Q111>1,VLOOKUP(Q111,'Reference Data'!$C$9:$C$43,3,FALSE),"") ->  | Q111: =IF(ISBLANK($A111),1,VLOOKUP($A111,'Reference Data'!$B$9:$C$133,2,FALSE)) -> 83 | R111: =VLOOKUP(Q111,'Reference Data'!$C$9:Z$125,($P$7)+1,FALSE) -> 225 | S111: 0 | T111: 0 | U111: 0 | V111: 0 | W111: 0 | X111: 0 | Y111: 0 | Z111: 0 | AA111: 0 | AC111: 0 | AD111: =IF(ISBLANK($A111),1,VLOOKUP($A111,'Reference Data'!$B$9:$D$133,3,FALSE)) -> 1 | AW111: 0 | AX111: 0
A112: PAH -8270 SIM (water) | D112: =IF(Q112>1,VLOOKUP(Q112,'Reference Data'!$C$9:$C$43,5,FALSE),"") ->  | E112: 0 | G112: =IF(Q112>1,VLOOKUP(Q112,'Reference Data'!$C$9:$C$43,3,FALSE),"") ->  | Q112: =IF(ISBLANK($A112),1,VLOOKUP($A112,'Reference Data'!$B$9:$C$133,2,FALSE)) -> 81 | R112: =VLOOKUP(Q112,'Reference Data'!$C$9:Z$125,($P$7)+1,FALSE) -> 135 | S112: 0 | T112: 0 | U112: 0 | V112: 0 | W112: 0 | X112: 0 | Y112: 0 | Z112: 0 | AA112: 0 | AC112: 0 | AD112: =IF(ISBLANK($A112),1,VLOOKUP($A112,'Reference Data'!$B$9:$D$133,3,FALSE)) -> 1 | AW112: 0 | AX112: 0
A113: PAH -8310 (water) | D113: =IF(Q113>1,VLOOKUP(Q113,'Reference Data'!$C$9:$C$43,5,FALSE),"") ->  | E113: 0 | G113: =IF(Q113>1,VLOOKUP(Q113,'Reference Data'!$C$9:$C$43,3,FALSE),"") ->  | Q113: =IF(ISBLANK($A113),1,VLOOKUP($A113,'Reference Data'!$B$9:$C$133,2,FALSE)) -> 82 | R113: =VLOOKUP(Q113,'Reference Data'!$C$9:Z$125,($P$7)+1,FALSE) -> 150 | S113: 0 | T113: 0 | U113: 0 | V113: 0 | W113: 0 | X113: 0 | Y113: 0 | Z113: 0 | AA113: 0 | AC113: 0 | AD113: =IF(ISBLANK($A113),1,VLOOKUP($A113,'Reference Data'!$B$9:$D$133,3,FALSE)) -> 1 | AW113: 0 | AX113: 0
A114: Metals 7 barium, cadmium, chromium, lead, mercury, nickel, zinc (water) | D114: =IF(Q114>1,VLOOKUP(Q114,'Reference Data'!$C$9:$C$43,5,FALSE),"") ->  | E114: 0 | G114: =IF(Q114>1,VLOOKUP(Q114,'Reference Data'!$C$9:$C$43,3,FALSE),"") ->  | Q114: =IF(ISBLANK($A114),1,VLOOKUP($A114,'Reference Data'!$B$9:$C$133,2,FALSE)) -> 80 | R114: =VLOOKUP(Q114,'Reference Data'!$C$9:Z$125,($P$7)+1,FALSE) -> 100 | S114: 0 | T114: 0 | U114: 0 | V114: 0 | W114: 0 | X114: 0 | Y114: 0 | Z114: 0 | AA114: 0 | AC114: 0 | AD114: =IF(ISBLANK($A114),1,VLOOKUP($A114,'Reference Data'!$B$9:$D$133,3,FALSE)) -> 1 | AW114: 0 | AX114: 0
A115: Individual Metals (per sample) (water) | D115: =IF(Q115>1,VLOOKUP(Q115,'Reference Data'!$C$9:$C$43,5,FALSE),"") ->  | E115: 0 | G115: =IF(Q115>1,VLOOKUP(Q115,'Reference Data'!$C$9:$C$43,3,FALSE),"") ->  | Q115: =IF(ISBLANK($A115),1,VLOOKUP($A115,'Reference Data'!$B$9:$C$133,2,FALSE)) -> 79 | R115: =VLOOKUP(Q115,'Reference Data'!$C$9:Z$125,($P$7)+1,FALSE) -> 15 | S115: 0 | T115: =IF(ISNUMBER(E115),E115,"") -> 0 | U115: 0 | V115: =IF(ISNUMBER(G115),G115,0) -> 0 | W115: 0 | X115: 0 | Y115: =IF(W115>$AB$7,$AB$7,W115) -> 0 | Z115: 0 | AA115: 0 | AB115: =IF(AND(ISNUMBER(X115),ISNUMBER(AA115)),IF((X115-AA115)>0,X115-AA115,""),"") ->  | AC115: 0 | AD115: =IF(ISBLANK($A115),1,VLOOKUP($A115,'Reference Data'!$B$9:$D$133,3,FALSE)) -> 1 | AW115: 0 | AX115: 0
A116: MS/MSD | D116: =IF(Q116>1,VLOOKUP(Q116,'Reference Data'!$C$9:$C$43,5,FALSE),"") ->  | E116: 0 | G116: =IF(Q116>1,VLOOKUP(Q116,'Reference Data'!$C$9:$C$43,3,FALSE),"") ->  | Q116: =IF(ISBLANK($A116),1,VLOOKUP($A116,'Reference Data'!$B$9:$C$133,2,FALSE)) -> 85 | R116: =VLOOKUP(Q116,'Reference Data'!$C$9:Z$125,($P$7)+1,FALSE) -> 0 | S116: 0 | T116: 0 | U116: 0 | V116: 0 | W116: 0 | X116: 0 | Y116: 0 | Z116: 0 | AA116: 0 | AC116: 0 | AD116: =IF(ISBLANK($A116),1,VLOOKUP($A116,'Reference Data'!$B$9:$D$133,3,FALSE)) -> 1 | AW116: 0 | AX116: 0
A117: QA/QC Data Package | D117: =IF(Q117>1,VLOOKUP(Q117,'Reference Data'!$C$9:$C$43,5,FALSE),"") ->  | E117: 0 | G117: =IF(Q117>1,VLOOKUP(Q117,'Reference Data'!$C$9:$C$43,3,FALSE),"") ->  | Q117: =IF(ISBLANK($A117),1,VLOOKUP($A117,'Reference Data'!$B$9:$C$133,2,FALSE)) -> 86 | R117: =VLOOKUP(Q117,'Reference Data'!$C$9:Z$125,($P$7)+1,FALSE) -> 0 | S117: 0 | T117: 0 | U117: 0 | V117: 0 | W117: 0 | X117: 0 | Y117: 0 | Z117: 0 | AA117: 0 | AC117: 0 | AD117: =IF(ISBLANK($A117),1,VLOOKUP($A117,'Reference Data'!$B$9:$D$133,3,FALSE)) -> 1 | AW117: 0 | AX117: 0
A118: Other | C118: 1 | D118: =IF(Q118>1,VLOOKUP(Q118,'Reference Data'!$C$9:$C$43,5,FALSE),"") ->  | E118: 0 | F118: 0 | G118: =IF(Q118>1,VLOOKUP(Q118,'Reference Data'!$C$9:$C$43,3,FALSE),"") ->  | I118: =IF($E118=0,"",IF(($A$8)="Please Choose Date","Select Date Error!",IF($R118="N/A","",$X118))) ->  | Q118: =IF(ISBLANK($A118),1,VLOOKUP($A118,'Reference Data'!$B$9:$C$133,2,FALSE)) -> 91 | R118: =VLOOKUP(Q118,'Reference Data'!$C$9:Z$125,($P$7)+1,FALSE) -> 0 | S118: 0 | T118: =IF(ISNUMBER(E118),E118,"") -> 0 | U118: 0 | V118: =IF(ISNUMBER(G118),G118,0) -> 0 | W118: 0 | X118: 0 | Y118: =IF(W118>$AB$7,$AB$7,W118) -> 0 | Z118: 0 | AA118: 0 | AB118: =IF(AND(ISNUMBER(X118),ISNUMBER(AA118)),IF((X118-AA118)>0,X118-AA118,""),"") ->  | AC118: 1 | AD118: =IF(ISBLANK($A118),1,VLOOKUP($A118,'Reference Data'!$B$9:$D$133,3,FALSE)) -> 1 | AW118: 0 | AX118: 0
A119: Laboratory Analyses (Air) | R119: =VLOOKUP(Q119,'Reference Data'!$C$9:Z$125,($P$7)+1,FALSE) ->  | AW119: =IF(SUM($I$120:$I$121)>0, 1, 0) -> 0 | AX119: 0
A120: VOC -TO-15 | E120: 0 | Q120: 87 | R120: =VLOOKUP(Q120,'Reference Data'!$C$9:Z$125,($P$7)+1,FALSE) -> 400 | S120: =IF(Q120>1, ROUND(R120*AC120,2), "") -> 0 | T120: =IF(ISNUMBER(E120),E120,"") -> 0 | U120: =IF(ISNUMBER(T120),ROUND(E120*AC120,2),"") -> 0 | V120: =IF(ISNUMBER(G120),G120,0) -> 0 | W120: =IF(ISNUMBER(H120), H120, 0) -> 0 | X120: =IF(Q120>1,IF(ISNUMBER(U120),ROUND(U120*(1+W120)+V120,2),S120),"") -> 0 | Y120: =IF(W120>$AB$7,$AB$7,W120) -> 0 | Z120: =IF(ISNUMBER(U120),ROUND(U120*(Y120+1)+V120,2),S120) -> 0 | AA120: =IF(AND(Q120>1,S120>0,S120<Z120),S120,Z120) -> 0 | AB120: =IF(AND(ISNUMBER(X120),ISNUMBER(AA120)),IF((X120-AA120)>0,X120-AA120,""),"") ->  | AC120: =ROUND($C120,2) -> 0 | AD120: 1 | AW120: 0 | AX120: 0
A121: Other | C121: 1 | E121: 0 | F121: 0 | I121: =IF($E121=0,"",IF(($A$8)="Please Choose Date","Select Date Error!",IF($R121="N/A","",$X121))) ->  | Q121: 91 | R121: =VLOOKUP(Q121,'Reference Data'!$C$9:Z$125,($P$7)+1,FALSE) -> 0 | S121: =IF(Q121>1, ROUND(R121*AC121,2), "") -> 0 | T121: =IF(ISNUMBER(E121),E121,"") -> 0 | U121: =IF(ISNUMBER(T121),ROUND(E121*AC121,2),"") -> 0 | V121: =IF(ISNUMBER(G121),G121,0) -> 0 | W121: =IF(ISNUMBER(H121), H121, 0) -> 0 | X121: =IF(Q121>1,IF(ISNUMBER(U121),ROUND(U121*(1+W121)+V121,2),S121),"") -> 0 | Y121: =IF(W121>$AB$7,$AB$7,W121) -> 0 | Z121: =IF(ISNUMBER(U121),ROUND(U121*(Y121+1)+V121,2),S121) -> 0 | AA121: =IF(AND(Q121>1,S121>0,S121<Z121),S121,Z121) -> 0 | AB121: =IF(AND(ISNUMBER(X121),ISNUMBER(AA121)),IF((X121-AA121)>0,X121-AA121,""),"") ->  | AC121: =ROUND($C121,2) -> 1 | AD121: 1 | AW121: 0 | AX121: 0
R122: =VLOOKUP(Q122,'Reference Data'!$C$9:Z$125,($P$7)+1,FALSE) ->  | AW122: =IF(SUM($I$125:$I$134)>0, 1, 0) -> 0 | AX122: 0
A123: Report Writing Costs | G123: =IF(Q123>1,VLOOKUP(Q123,'Reference Data'!$C$9:$C$43,3,FALSE),"") ->  | I123: =IF(ISBLANK($C123),"",IF(($A$8)="Please Choose Date","Select Date Error!",IF($R123="N/A","",$X123))) ->  | R123: =VLOOKUP(Q123,'Reference Data'!$C$9:Z$125,($P$7)+1,FALSE) ->  | AW123: =IF(SUM($I$125:$I$134)>0, 1, 0) -> 0 | AX123: 0
A124: DESCRIPTION | B124: TASK PERFORMED | C124: UNITS | D124: TYPE | E124: UNIT COST | F124: TOTAL W/O MARKUP OR TAX | G124: TAX (NO MARKUP) | H124: % MARK-UP | I124: AMOUNT PROPOSED | Q124: Automated Descriptor | R124: =VLOOKUP(Q124,'Reference Data'!$C$9:Z$125,($P$7)+1,FALSE) ->  | S124: Total Automated Unit Cost | T124: PROPOSED Unit Cost | U124: PROPOSED total w/o markup or tax | V124: PROPOSED Tax | W124: PROPOSED Markup | X124: PROPOSED Total AMT | Y124: Lower Calculated Markup | Z124: Lower Calculated total w/ markup and tax | AA124: Lower Cost Final total | AB124: Amt Denied | AC124: Units Rounded | AD124: Markup Available | AW124: =IF(SUM($I$125:$I$134)>0, 1, 0) -> 0 | AX124: 0
A125: Principal | D125: =IF(Q125>1,VLOOKUP(Q125,'Reference Data'!$C$9:$C$43,5,FALSE),"") ->  | E125: =R125 -> 175.25 | G125: =IF(Q125>1,VLOOKUP(Q125,'Reference Data'!$C$9:$C$43,3,FALSE),"") ->  | I125: =IF(ISBLANK($C125),"",IF(($A$8)="Please Choose Date","Select Date Error!",IF($R125="N/A","",$X125))) ->  | Q125: =IF(ISBLANK($A125),1,VLOOKUP($A125,'Reference Data'!$B$9:$C$133,2,FALSE)) -> 2 | R125: =VLOOKUP(Q125,'Reference Data'!$C$9:Z$125,($P$7)+1,FALSE) -> 175.25 | S125: =IF(Q125>1, ROUND(R125*AC125,2), "") -> 0 | T125: =IF(ISNUMBER(E125),E125,"") -> 175.25 | U125: =IF(ISNUMBER(T125),ROUND(E125*AC125,2),"") -> 0 | V125: =IF(ISNUMBER(G125),G125,0) -> 0 | W125: =IF(ISNUMBER(H125), H125, 0) -> 0 | X125: =IF(Q125>1,IF(ISNUMBER(U125),ROUND(U125*(1+W125)+V125,2),S125),"") -> 0 | Y125: =IF(W125>$AB$7,$AB$7,W125) -> 0 | Z125: =IF(ISNUMBER(U125),ROUND(U125*(Y125+1)+V125,2),S125) -> 0 | AA125: =IF(AND(Q125>1,S125>0,S125<Z125),S125,Z125) -> 0 | AB125: =IF(AND(ISNUMBER(X125),ISNUMBER(AA125)),IF((X125-AA125)>0,X125-AA125,""),"") ->  | AC125: =ROUND($C125,2) -> 0 | AD125: =IF(ISBLANK($A125),1,VLOOKUP($A125,'Reference Data'!$B$9:$D$133,3,FALSE)) -> 0 | AW125: 0 | AX125: 0
A126: Senior Project Manager | D126: =IF(Q126>1,VLOOKUP(Q126,'Reference Data'!$C$9:$C$43,5,FALSE),"") ->  | E126: =R126 -> 162.75 | G126: =IF(Q126>1,VLOOKUP(Q126,'Reference Data'!$C$9:$C$43,3,FALSE),"") ->  | Q126: =IF(ISBLANK($A126),1,VLOOKUP($A126,'Reference Data'!$B$9:$C$133,2,FALSE)) -> 3 | R126: =VLOOKUP(Q126,'Reference Data'!$C$9:Z$125,($P$7)+1,FALSE) -> 162.75 | S126: 0 | T126: 162.75 | U126: 0 | V126: 0 | W126: 0 | X126: 0 | Y126: 0 | Z126: 0 | AA126: 0 | AC126: 0 | AD126: =IF(ISBLANK($A126),1,VLOOKUP($A126,'Reference Data'!$B$9:$D$133,3,FALSE)) -> 0 | AW126: 0 | AX126: 0
A127: Project Manager | D127: =IF(Q127>1,VLOOKUP(Q127,'Reference Data'!$C$9:$C$43,5,FALSE),"") ->  | E127: =R127 -> 133.75 | G127: =IF(Q127>1,VLOOKUP(Q127,'Reference Data'!$C$9:$C$43,3,FALSE),"") ->  | Q127: =IF(ISBLANK($A127),1,VLOOKUP($A127,'Reference Data'!$B$9:$C$133,2,FALSE)) -> 4 | R127: =VLOOKUP(Q127,'Reference Data'!$C$9:Z$125,($P$7)+1,FALSE) -> 133.75 | S127: 0 | T127: 133.75 | U127: 0 | V127: 0 | W127: 0 | X127: 0 | Y127: 0 | Z127: 0 | AA127: 0 | AC127: 0 | AD127: =IF(ISBLANK($A127),1,VLOOKUP($A127,'Reference Data'!$B$9:$D$133,3,FALSE)) -> 0 | AW127: 0 | AX127: 0
A128: Staff | D128: =IF(Q128>1,VLOOKUP(Q128,'Reference Data'!$C$9:$C$43,5,FALSE),"") ->  | E128: =R128 -> 112.25 | G128: =IF(Q128>1,VLOOKUP(Q128,'Reference Data'!$C$9:$C$43,3,FALSE),"") ->  | Q128: =IF(ISBLANK($A128),1,VLOOKUP($A128,'Reference Data'!$B$9:$C$133,2,FALSE)) -> 5 | R128: =VLOOKUP(Q128,'Reference Data'!$C$9:Z$125,($P$7)+1,FALSE) -> 112.25 | S128: 0 | T128: 112.25 | U128: 0 | V128: 0 | W128: 0 | X128: 0 | Y128: 0 | Z128: 0 | AA128: 0 | AC128: 0 | AD128: =IF(ISBLANK($A128),1,VLOOKUP($A128,'Reference Data'!$B$9:$D$133,3,FALSE)) -> 0 | AW128: 0 | AX128: 0
A129: Technician | D129: =IF(Q129>1,VLOOKUP(Q129,'Reference Data'!$C$9:$C$43,5,FALSE),"") ->  | E129: =R129 -> 77 | F129: =IF(ISNUMBER(C129),IF(ISNUMBER(E129),ROUND(AC129*E129,2),""),"") ->  | G129: =IF(Q129>1,VLOOKUP(Q129,'Reference Data'!$C$9:$C$43,3,FALSE),"") ->  | Q129: =IF(ISBLANK($A129),1,VLOOKUP($A129,'Reference Data'!$B$9:$C$133,2,FALSE)) -> 6 | R129: =VLOOKUP(Q129,'Reference Data'!$C$9:Z$125,($P$7)+1,FALSE) -> 77 | S129: 0 | T129: 77 | U129: 0 | V129: 0 | W129: 0 | X129: 0 | Y129: 0 | Z129: 0 | AA129: 0 | AC129: 0 | AD129: =IF(ISBLANK($A129),1,VLOOKUP($A129,'Reference Data'!$B$9:$D$133,3,FALSE)) -> 0 | AW129: 0 | AX129: 0
A130: Drafting | D130: =IF(Q130>1,VLOOKUP(Q130,'Reference Data'!$C$9:$C$43,5,FALSE),"") ->  | E130: 64.25 | G130: =IF(Q130>1,VLOOKUP(Q130,'Reference Data'!$C$9:$C$43,3,FALSE),"") ->  | Q130: =IF(ISBLANK($A130),1,VLOOKUP($A130,'Reference Data'!$B$9:$C$133,2,FALSE)) -> 7 | R130: =VLOOKUP(Q130,'Reference Data'!$C$9:Z$125,($P$7)+1,FALSE) -> 64.25 | S130: 0 | T130: 64.25 | U130: 0 | V130: 0 | W130: 0 | X130: 0 | Y130: 0 | Z130: 0 | AA130: 0 | AC130: 0 | AD130: =IF(ISBLANK($A130),1,VLOOKUP($A130,'Reference Data'!$B$9:$D$133,3,FALSE)) -> 0 | AW130: 0 | AX130: 0
A131: Clerical | D131: =IF(Q131>1,VLOOKUP(Q131,'Reference Data'!$C$9:$C$43,5,FALSE),"") ->  | E131: 45.5 | G131: =IF(Q131>1,VLOOKUP(Q131,'Reference Data'!$C$9:$C$43,3,FALSE),"") ->  | Q131: =IF(ISBLANK($A131),1,VLOOKUP($A131,'Reference Data'!$B$9:$C$133,2,FALSE)) -> 8 | R131: =VLOOKUP(Q131,'Reference Data'!$C$9:Z$125,($P$7)+1,FALSE) -> 45.5 | S131: 0 | T131: 45.5 | U131: 0 | V131: 0 | W131: 0 | X131: 0 | Y131: 0 | Z131: 0 | AA131: 0 | AC131: 0 | AD131: =IF(ISBLANK($A131),1,VLOOKUP($A131,'Reference Data'!$B$9:$D$133,3,FALSE)) -> 0 | AW131: 0 | AX131: 0
A132: Copies | D132: =IF(Q132>1,VLOOKUP(Q132,'Reference Data'!$C$9:$C$43,5,FALSE),"") ->  | E132: 0.15 | G132: =IF(Q132>1,VLOOKUP(Q132,'Reference Data'!$C$9:$C$43,3,FALSE),"") ->  | Q132: =IF(ISBLANK($A132),1,VLOOKUP($A132,'Reference Data'!$B$9:$C$133,2,FALSE)) -> 96 | R132: =VLOOKUP(Q132,'Reference Data'!$C$9:Z$125,($P$7)+1,FALSE) -> 0.15 | S132: 0 | T132: 0.15 | U132: 0 | V132: 0 | W132: 0 | X132: 0 | Y132: 0 | Z132: 0 | AA132: 0 | AC132: 0 | AD132: =IF(ISBLANK($A132),1,VLOOKUP($A132,'Reference Data'!$B$9:$D$133,3,FALSE)) -> 0 | AW132: 0 | AX132: 0
A133: Other (markup eligible) | C133: 1 | D133: =IF(Q133>1,VLOOKUP(Q133,'Reference Data'!$C$9:$C$43,5,FALSE),"") ->  | E133: 0 | F133: 0 | G133: =IF(Q133>1,VLOOKUP(Q133,'Reference Data'!$C$9:$C$43,3,FALSE),"") ->  | I133: =IF($E133=0,"",IF(($A$8)="Please Choose Date","Select Date Error!",IF($R133="N/A","",$X133))) ->  | Q133: =IF(ISBLANK($A133),1,VLOOKUP($A133,'Reference Data'!$B$9:$C$133,2,FALSE)) -> 94 | R133: =VLOOKUP(Q133,'Reference Data'!$C$9:Z$125,($P$7)+1,FALSE) -> 0 | S133: 0 | T133: 0 | U133: 0 | V133: 0 | W133: 0 | X133: 0 | Y133: 0 | Z133: 0 | AA133: 0 | AC133: 1 | AD133: =IF(ISBLANK($A133),1,VLOOKUP($A133,'Reference Data'!$B$9:$D$133,3,FALSE)) -> 1 | AW133: 0 | AX133: 0
A134: Other (not markup eligible) | C134: 1 | D134: =IF(Q134>1,VLOOKUP(Q134,'Reference Data'!$C$9:$C$43,5,FALSE),"") ->  | E134: 0 | F134: 0 | G134: =IF(Q134>1,VLOOKUP(Q134,'Reference Data'!$C$9:$C$43,3,FALSE),"") ->  | I134: =IF($E134=0,"",IF(($A$8)="Please Choose Date","Select Date Error!",IF($R134="N/A","",$X134))) ->  | Q134: =IF(ISBLANK($A134),1,VLOOKUP($A134,'Reference Data'!$B$9:$C$133,2,FALSE)) -> 95 | R134: =VLOOKUP(Q134,'Reference Data'!$C$9:Z$125,($P$7)+1,FALSE) -> 0 | S134: 0 | T134: 0 | U134: 0 | V134: 0 | W134: 0 | X134: 0 | Y134: 0 | Z134: 0 | AA134: 0 | AC134: 1 | AD134: =IF(ISBLANK($A134),1,VLOOKUP($A134,'Reference Data'!$B$9:$D$133,3,FALSE)) -> 0 | AW134: 0 | AX134: 0
A135: Further Site Investigation | G135: =IF(Q135>1,VLOOKUP(Q135,'Reference Data'!$C$9:$C$43,3,FALSE),"") ->  | I135: =IF(ISBLANK($C135),"",IF(($A$5)="Please Choose Date","Select Date Error!",IF($R135="N/A","",$X135))) ->  | R135: =VLOOKUP(Q135,'Reference Data'!$C$9:Z$125,($P$7)+1,FALSE) ->  | AW135: =IF(SUM($I$138:$I$215)>0, 1, 0) -> 0 | AX135: 0
A136: Planning, Preparation, and Follow-up Costs (Office) | G136: =IF(Q136>1,VLOOKUP(Q136,'Reference Data'!$C$9:$C$43,3,FALSE),"") ->  | I136: =IF(ISBLANK($C136),"",IF(($A$8)="Please Choose Date","Select Date Error!",IF($R136="N/A","",$X136))) ->  | R136: =VLOOKUP(Q136,'Reference Data'!$C$9:Z$125,($P$7)+1,FALSE) ->  | AW136: =IF(SUM($I$138:$I$146)>0, 1, 0) -> 0 | AX136: 0
A137: DESCRIPTION | B137: TASK PERFORMED | C137: UNITS | D137: TYPE | E137: UNIT COST | F137: TOTAL W/O MARKUP OR TAX | G137: TAX (NO MARKUP) | H137: % MARK-UP | I137: AMOUNT PROPOSED | Q137: Automated Descriptor | R137: =VLOOKUP(Q137,'Reference Data'!$C$9:Z$125,($P$7)+1,FALSE) ->  | S137: Total Automated Unit Cost | T137: PROPOSED Unit Cost | U137: PROPOSED total w/o markup or tax | V137: PROPOSED Tax | W137: PROPOSED Markup | X137: PROPOSED Total AMT | Y137: Lower Calculated Markup | Z137: Lower Calculated total w/ markup and tax | AA137: Lower Cost Final total | AB137: Amt Denied | AC137: Units Rounded | AD137: Markup Available | AW137: =IF(SUM($I$138:$I$146)>0, 1, 0) -> 0 | AX137: 0
A138: Principal | D138: =IF(Q138>1,VLOOKUP(Q138,'Reference Data'!$C$9:$C$43,5,FALSE),"") ->  | E138: 175.25 | G138: =IF(Q138>1,VLOOKUP(Q138,'Reference Data'!$C$9:$C$43,3,FALSE),"") ->  | I138: =IF(ISBLANK($C138),"",IF(($A$8)="Please Choose Date","Select Date Error!",IF($R138="N/A","",$X138))) ->  | Q138: =IF(ISBLANK($A138),1,VLOOKUP($A138,'Reference Data'!$B$9:$C$133,2,FALSE)) -> 2 | R138: =VLOOKUP(Q138,'Reference Data'!$C$9:Z$125,($P$7)+1,FALSE) -> 175.25 | S138: =IF(Q138>1, ROUND(R138*AC138,2), "") -> 0 | T138: =IF(ISNUMBER(E138),E138,"") -> 175.25 | U138: =IF(ISNUMBER(T138),ROUND(E138*AC138,2),"") -> 0 | V138: =IF(ISNUMBER(G138),G138,0) -> 0 | W138: =IF(ISNUMBER(H138), H138, 0) -> 0 | X138: =IF(Q138>1,IF(ISNUMBER(U138),ROUND(U138*(1+W138)+V138,2),S138),"") -> 0 | Y138: =IF(W138>$AB$7,$AB$7,W138) -> 0 | Z138: =IF(ISNUMBER(U138),ROUND(U138*(Y138+1)+V138,2),S138) -> 0 | AA138: =IF(AND(Q138>1,S138>0,S138<Z138),S138,Z138) -> 0 | AB138: =IF(AND(ISNUMBER(X138),ISNUMBER(AA138)),IF((X138-AA138)>0,X138-AA138,""),"") ->  | AC138: =ROUND($C138,2) -> 0 | AD138: =IF(ISBLANK($A138),1,VLOOKUP($A138,'Reference Data'!$B$9:$D$133,3,FALSE)) -> 0 | AW138: 0 | AX138: 0
A139: Senior Project Manager | D139: =IF(Q139>1,VLOOKUP(Q139,'Reference Data'!$C$9:$C$43,5,FALSE),"") ->  | E139: 162.75 | G139: =IF(Q139>1,VLOOKUP(Q139,'Reference Data'!$C$9:$C$43,3,FALSE),"") ->  | Q139: =IF(ISBLANK($A139),1,VLOOKUP($A139,'Reference Data'!$B$9:$C$133,2,FALSE)) -> 3 | R139: =VLOOKUP(Q139,'Reference Data'!$C$9:Z$125,($P$7)+1,FALSE) -> 162.75 | S139: 0 | T139: 162.75 | U139: 0 | V139: 0 | W139: 0 | X139: 0 | Y139: 0 | Z139: 0 | AA139: 0 | AC139: 0 | AD139: =IF(ISBLANK($A139),1,VLOOKUP($A139,'Reference Data'!$B$9:$D$133,3,FALSE)) -> 0 | AW139: 0 | AX139: 0
A140: Project Manager | D140: =IF(Q140>1,VLOOKUP(Q140,'Reference Data'!$C$9:$C$43,5,FALSE),"") ->  | E140: 133.75 | G140: =IF(Q140>1,VLOOKUP(Q140,'Reference Data'!$C$9:$C$43,3,FALSE),"") ->  | Q140: =IF(ISBLANK($A140),1,VLOOKUP($A140,'Reference Data'!$B$9:$C$133,2,FALSE)) -> 4 | R140: =VLOOKUP(Q140,'Reference Data'!$C$9:Z$125,($P$7)+1,FALSE) -> 133.75 | S140: 0 | T140: 133.75 | U140: 0 | V140: 0 | W140: 0 | X140: 0 | Y140: 0 | Z140: 0 | AA140: 0 | AC140: 0 | AD140: =IF(ISBLANK($A140),1,VLOOKUP($A140,'Reference Data'!$B$9:$D$133,3,FALSE)) -> 0 | AW140: 0 | AX140: 0
A141: Staff | D141: =IF(Q141>1,VLOOKUP(Q141,'Reference Data'!$C$9:$C$43,5,FALSE),"") ->  | E141: 112.25 | G141: =IF(Q141>1,VLOOKUP(Q141,'Reference Data'!$C$9:$C$43,3,FALSE),"") ->  | Q141: =IF(ISBLANK($A141),1,VLOOKUP($A141,'Reference Data'!$B$9:$C$133,2,FALSE)) -> 5 | R141: =VLOOKUP(Q141,'Reference Data'!$C$9:Z$125,($P$7)+1,FALSE) -> 112.25 | S141: 0 | T141: 112.25 | U141: 0 | V141: 0 | W141: 0 | X141: 0 | Y141: 0 | Z141: 0 | AA141: 0 | AC141: 0 | AD141: =IF(ISBLANK($A141),1,VLOOKUP($A141,'Reference Data'!$B$9:$D$133,3,FALSE)) -> 0 | AW141: 0 | AX141: 0
A142: Technician | D142: =IF(Q142>1,VLOOKUP(Q142,'Reference Data'!$C$9:$C$43,5,FALSE),"") ->  | E142: 77 | G142: =IF(Q142>1,VLOOKUP(Q142,'Reference Data'!$C$9:$C$43,3,FALSE),"") ->  | Q142: =IF(ISBLANK($A142),1,VLOOKUP($A142,'Reference Data'!$B$9:$C$133,2,FALSE)) -> 6 | R142: =VLOOKUP(Q142,'Reference Data'!$C$9:Z$125,($P$7)+1,FALSE) -> 77 | S142: 0 | T142: 77 | U142: 0 | V142: 0 | W142: 0 | X142: 0 | Y142: 0 | Z142: 0 | AA142: 0 | AC142: 0 | AD142: =IF(ISBLANK($A142),1,VLOOKUP($A142,'Reference Data'!$B$9:$D$133,3,FALSE)) -> 0 | AW142: 0 | AX142: 0
A143: Drafting | D143: =IF(Q143>1,VLOOKUP(Q143,'Reference Data'!$C$9:$C$43,5,FALSE),"") ->  | E143: 64.25 | G143: =IF(Q143>1,VLOOKUP(Q143,'Reference Data'!$C$9:$C$43,3,FALSE),"") ->  | Q143: =IF(ISBLANK($A143),1,VLOOKUP($A143,'Reference Data'!$B$9:$C$133,2,FALSE)) -> 7 | R143: =VLOOKUP(Q143,'Reference Data'!$C$9:Z$125,($P$7)+1,FALSE) -> 64.25 | S143: 0 | T143: 64.25 | U143: 0 | V143: 0 | W143: 0 | X143: 0 | Y143: 0 | Z143: 0 | AA143: 0 | AC143: 0 | AD143: =IF(ISBLANK($A143),1,VLOOKUP($A143,'Reference Data'!$B$9:$D$133,3,FALSE)) -> 0 | AW143: 0 | AX143: 0
A144: Clerical | D144: =IF(Q144>1,VLOOKUP(Q144,'Reference Data'!$C$9:$C$43,5,FALSE),"") ->  | E144: 45.5 | G144: =IF(Q144>1,VLOOKUP(Q144,'Reference Data'!$C$9:$C$43,3,FALSE),"") ->  | Q144: =IF(ISBLANK($A144),1,VLOOKUP($A144,'Reference Data'!$B$9:$C$133,2,FALSE)) -> 8 | R144: =VLOOKUP(Q144,'Reference Data'!$C$9:Z$125,($P$7)+1,FALSE) -> 45.5 | S144: 0 | T144: 45.5 | U144: 0 | V144: 0 | W144: 0 | X144: 0 | Y144: 0 | Z144: 0 | AA144: 0 | AC144: 0 | AD144: =IF(ISBLANK($A144),1,VLOOKUP($A144,'Reference Data'!$B$9:$D$133,3,FALSE)) -> 0 | AW144: 0 | AX144: 0
A145: Other (markup eligible) | C145: 1 | D145: =IF(Q145>1,VLOOKUP(Q145,'Reference Data'!$C$9:$C$43,5,FALSE),"") ->  | E145: 0 | F145: =IF(ISNUMBER(C145),IF(ISNUMBER(E145),ROUND(AC145*E145,2),""),"") -> 0 | G145: =IF(Q145>1,VLOOKUP(Q145,'Reference Data'!$C$9:$C$43,3,FALSE),"") ->  | I145: =IF($E145=0,"",IF(($A$8)="Please Choose Date","Select Date Error!",IF($R145="N/A","",$X145))) ->  | Q145: =IF(ISBLANK($A145),1,VLOOKUP($A145,'Reference Data'!$B$9:$C$133,2,FALSE)) -> 94 | R145: =VLOOKUP(Q145,'Reference Data'!$C$9:Z$125,($P$7)+1,FALSE) -> 0 | S145: 0 | T145: 0 | U145: 0 | V145: 0 | W145: 0 | X145: 0 | Y145: 0 | Z145: 0 | AA145: 0 | AC145: 1 | AD145: =IF(ISBLANK($A145),1,VLOOKUP($A145,'Reference Data'!$B$9:$D$133,3,FALSE)) -> 1 | AW145: 0 | AX145: 0
A146: Other (not markup eligible) | C146: 1 | D146: =IF(Q146>1,VLOOKUP(Q146,'Reference Data'!$C$9:$C$43,5,FALSE),"") ->  | E146: 0 | F146: =IF(ISNUMBER(C146),IF(ISNUMBER(E146),ROUND(AC146*E146,2),""),"") -> 0 | G146: =IF(Q146>1,VLOOKUP(Q146,'Reference Data'!$C$9:$C$43,3,FALSE),"") ->  | I146: =IF($E146=0,"",IF(($A$8)="Please Choose Date","Select Date Error!",IF($R146="N/A","",$X146))) ->  | Q146: =IF(ISBLANK($A146),1,VLOOKUP($A146,'Reference Data'!$B$9:$C$133,2,FALSE)) -> 95 | R146: =VLOOKUP(Q146,'Reference Data'!$C$9:Z$125,($P$7)+1,FALSE) -> 0 | S146: 0 | T146: 0 | U146: 0 | V146: 0 | W146: 0 | X146: 0 | Y146: 0 | Z146: 0 | AA146: 0 | AC146: 1 | AD146: =IF(ISBLANK($A146),1,VLOOKUP($A146,'Reference Data'!$B$9:$D$133,3,FALSE)) -> 0 | AW146: 0 | AX146: 0
R147: =VLOOKUP(Q147,'Reference Data'!$C$9:Z$125,($P$7)+1,FALSE) ->  | AW147: =IF(SUM($I$150:$I$174)>0, 1, 0) -> 0 | AX147: 0
A148: Field Costs | G148: =IF(Q148>1,VLOOKUP(Q148,'Reference Data'!$C$9:$C$43,3,FALSE),"") ->  | I148: =IF(ISBLANK($C148),"",IF(($A$8)="Please Choose Date","Select Date Error!",IF($R148="N/A","",$X148))) ->  | R148: =VLOOKUP(Q148,'Reference Data'!$C$9:Z$125,($P$7)+1,FALSE) ->  | AW148: =IF(SUM($I$150:$I$174)>0, 1, 0) -> 0 | AX148: 0
A149: DESCRIPTION | B149: TASK PERFORMED | C149: UNITS | D149: TYPE | E149: UNIT COST | F149: TOTAL W/O MARKUP OR TAX | G149: TAX (NO MARKUP) | H149: % MARK-UP | I149: AMOUNT PROPOSED | Q149: Automated Descriptor | R149: =VLOOKUP(Q149,'Reference Data'!$C$9:Z$125,($P$7)+1,FALSE) ->  | S149: Total Automated Unit Cost | T149: PROPOSED Unit Cost | U149: PROPOSED total w/o markup or tax | V149: PROPOSED Tax | W149: PROPOSED Markup | X149: PROPOSED Total AMT | Y149: Lower Calculated Markup | Z149: Lower Calculated total w/ markup and tax | AA149: Lower Cost Final total | AB149: Amt Denied | AC149: Units Rounded | AD149: Markup Available | AW149: =IF(SUM($I$150:$I$174)>0, 1, 0) -> 0 | AX149: 0
A150: Principal | D150: =IF(Q150>1,VLOOKUP(Q150,'Reference Data'!$C$9:$C$43,5,FALSE),"") ->  | E150: 175.25 | G150: =IF(Q150>1,VLOOKUP(Q150,'Reference Data'!$C$9:$C$43,3,FALSE),"") ->  | I150: =IF(ISBLANK($C150),"",IF(($A$8)="Please Choose Date","Select Date Error!",IF($R150="N/A","",$X150))) ->  | Q150: =IF(ISBLANK($A150),1,VLOOKUP($A150,'Reference Data'!$B$9:$C$133,2,FALSE)) -> 2 | R150: =VLOOKUP(Q150,'Reference Data'!$C$9:Z$125,($P$7)+1,FALSE) -> 175.25 | S150: =IF(Q150>1, ROUND(R150*AC150,2), "") -> 0 | T150: =IF(ISNUMBER(E150),E150,"") -> 175.25 | U150: =IF(ISNUMBER(T150),ROUND(E150*AC150,2),"") -> 0 | V150: =IF(ISNUMBER(G150),G150,0) -> 0 | W150: =IF(ISNUMBER(H150), H150, 0) -> 0 | X150: =IF(Q150>1,IF(ISNUMBER(U150),ROUND(U150*(1+W150)+V150,2),S150),"") -> 0 | Y150: =IF(W150>$AB$7,$AB$7,W150) -> 0 | Z150: =IF(ISNUMBER(U150),ROUND(U150*(Y150+1)+V150,2),S150) -> 0 | AA150: =IF(AND(Q150>1,S150>0,S150<Z150),S150,Z150) -> 0 | AB150: =IF(AND(ISNUMBER(X150),ISNUMBER(AA150)),IF((X150-AA150)>0,X150-AA150,""),"") ->  | AC150: =ROUND($C150,2) -> 0 | AD150: =IF(ISBLANK($A150),1,VLOOKUP($A150,'Reference Data'!$B$9:$D$133,3,FALSE)) -> 0 | AW150: =IF(AA150=0, 0, 1) -> 0 | AX150: 0
A151: Senior Project Manager | D151: =IF(Q151>1,VLOOKUP(Q151,'Reference Data'!$C$9:$C$43,5,FALSE),"") ->  | E151: 162.75 | G151: =IF(Q151>1,VLOOKUP(Q151,'Reference Data'!$C$9:$C$43,3,FALSE),"") ->  | Q151: =IF(ISBLANK($A151),1,VLOOKUP($A151,'Reference Data'!$B$9:$C$133,2,FALSE)) -> 3 | R151: =VLOOKUP(Q151,'Reference Data'!$C$9:Z$125,($P$7)+1,FALSE) -> 162.75 | S151: 0 | T151: 162.75 | U151: 0 | V151: 0 | W151: 0 | X151: 0 | Y151: 0 | Z151: 0 | AA151: 0 | AC151: 0 | AD151: =IF(ISBLANK($A151),1,VLOOKUP($A151,'Reference Data'!$B$9:$D$133,3,FALSE)) -> 0 | AW151: 0 | AX151: 0
A152: Project Manager | D152: =IF(Q152>1,VLOOKUP(Q152,'Reference Data'!$C$9:$C$43,5,FALSE),"") ->  | E152: 133.75 | G152: =IF(Q152>1,VLOOKUP(Q152,'Reference Data'!$C$9:$C$43,3,FALSE),"") ->  | Q152: =IF(ISBLANK($A152),1,VLOOKUP($A152,'Reference Data'!$B$9:$C$133,2,FALSE)) -> 4 | R152: =VLOOKUP(Q152,'Reference Data'!$C$9:Z$125,($P$7)+1,FALSE) -> 133.75 | S152: 0 | T152: 133.75 | U152: 0 | V152: 0 | W152: 0 | X152: 0 | Y152: 0 | Z152: 0 | AA152: 0 | AC152: 0 | AD152: =IF(ISBLANK($A152),1,VLOOKUP($A152,'Reference Data'!$B$9:$D$133,3,FALSE)) -> 0 | AW152: 0 | AX152: 0
A153: Staff | D153: =IF(Q153>1,VLOOKUP(Q153,'Reference Data'!$C$9:$C$43,5,FALSE),"") ->  | E153: 112.25 | G153: =IF(Q153>1,VLOOKUP(Q153,'Reference Data'!$C$9:$C$43,3,FALSE),"") ->  | Q153: =IF(ISBLANK($A153),1,VLOOKUP($A153,'Reference Data'!$B$9:$C$133,2,FALSE)) -> 5 | R153: =VLOOKUP(Q153,'Reference Data'!$C$9:Z$125,($P$7)+1,FALSE) -> 112.25 | S153: 0 | T153: 112.25 | U153: 0 | V153: 0 | W153: 0 | X153: 0 | Y153: 0 | Z153: 0 | AA153: 0 | AC153: 0 | AD153: =IF(ISBLANK($A153),1,VLOOKUP($A153,'Reference Data'!$B$9:$D$133,3,FALSE)) -> 0 | AW153: 0 | AX153: 0
A154: Technician | D154: =IF(Q154>1,VLOOKUP(Q154,'Reference Data'!$C$9:$C$43,5,FALSE),"") ->  | E154: 77 | G154: =IF(Q154>1,VLOOKUP(Q154,'Reference Data'!$C$9:$C$43,3,FALSE),"") ->  | Q154: =IF(ISBLANK($A154),1,VLOOKUP($A154,'Reference Data'!$B$9:$C$133,2,FALSE)) -> 6 | R154: =VLOOKUP(Q154,'Reference Data'!$C$9:Z$125,($P$7)+1,FALSE) -> 77 | S154: 0 | T154: 77 | U154: 0 | V154: 0 | W154: 0 | X154: 0 | Y154: 0 | Z154: 0 | AA154: 0 | AC154: 0 | AD154: =IF(ISBLANK($A154),1,VLOOKUP($A154,'Reference Data'!$B$9:$D$133,3,FALSE)) -> 0 | AW154: 0 | AX154: 0
A155: Drafting | D155: =IF(Q155>1,VLOOKUP(Q155,'Reference Data'!$C$9:$C$43,5,FALSE),"") ->  | E155: 64.25 | G155: =IF(Q155>1,VLOOKUP(Q155,'Reference Data'!$C$9:$C$43,3,FALSE),"") ->  | Q155: =IF(ISBLANK($A155),1,VLOOKUP($A155,'Reference Data'!$B$9:$C$133,2,FALSE)) -> 7 | R155: =VLOOKUP(Q155,'Reference Data'!$C$9:Z$125,($P$7)+1,FALSE) -> 64.25 | S155: 0 | T155: 64.25 | U155: 0 | V155: 0 | W155: 0 | X155: 0 | Y155: 0 | Z155: 0 | AA155: 0 | AC155: 0 | AD155: =IF(ISBLANK($A155),1,VLOOKUP($A155,'Reference Data'!$B$9:$D$133,3,FALSE)) -> 0 | AW155: 0 | AX155: 0
A156: Clerical | D156: =IF(Q156>1,VLOOKUP(Q156,'Reference Data'!$C$9:$C$43,5,FALSE),"") ->  | E156: 45.5 | G156: =IF(Q156>1,VLOOKUP(Q156,'Reference Data'!$C$9:$C$43,3,FALSE),"") ->  | Q156: =IF(ISBLANK($A156),1,VLOOKUP($A156,'Reference Data'!$B$9:$C$133,2,FALSE)) -> 8 | R156: =VLOOKUP(Q156,'Reference Data'!$C$9:Z$125,($P$7)+1,FALSE) -> 45.5 | S156: 0 | T156: 45.5 | U156: 0 | V156: 0 | W156: 0 | X156: 0 | Y156: 0 | Z156: 0 | AA156: 0 | AC156: 0 | AD156: =IF(ISBLANK($A156),1,VLOOKUP($A156,'Reference Data'!$B$9:$D$133,3,FALSE)) -> 0 | AW156: 0 | AX156: 0
A157: Mileage | D157: =IF(Q157>1,VLOOKUP(Q157,'Reference Data'!$C$9:$C$43,5,FALSE),"") ->  | E157: 0.725 | G157: =IF(Q157>1,VLOOKUP(Q157,'Reference Data'!$C$9:$C$43,3,FALSE),"") ->  | Q157: =IF(ISBLANK($A157),1,VLOOKUP($A157,'Reference Data'!$B$9:$C$133,2,FALSE)) -> 9 | R157: =VLOOKUP(Q157,'Reference Data'!$C$9:Z$125,($P$7)+1,FALSE) -> 0.725 | S157: 0 | T157: 0.725 | U157: 0 | V157: 0 | W157: 0 | X157: 0 | Y157: 0 | Z157: 0 | AA157: 0 | AC157: 0 | AD157: =IF(ISBLANK($A157),1,VLOOKUP($A157,'Reference Data'!$B$9:$D$133,3,FALSE)) -> 0 | AW157: 0 | AX157: 0
A158: Overnight lodging (total) | C158: 1 | D158: =IF(Q158>1,VLOOKUP(Q158,'Reference Data'!$C$9:$C$43,5,FALSE),"") ->  | E158: 0 | F158: 0 | G158: =IF(Q158>1,VLOOKUP(Q158,'Reference Data'!$C$9:$C$43,3,FALSE),"") ->  | I158: =IF($E158=0,"",IF(($A$8)="Please Choose Date","Select Date Error!",IF($R158="N/A","",$X158))) ->  | Q158: =IF(ISBLANK($A158),1,VLOOKUP($A158,'Reference Data'!$B$9:$C$133,2,FALSE)) -> 10 | R158: =VLOOKUP(Q158,'Reference Data'!$C$9:Z$125,($P$7)+1,FALSE) -> 0 | S158: 0 | T158: 0 | U158: 0 | V158: 0 | W158: 0 | X158: 0 | Y158: 0 | Z158: 0 | AA158: 0 | AC158: 1 | AD158: =IF(ISBLANK($A158),1,VLOOKUP($A158,'Reference Data'!$B$9:$D$133,3,FALSE)) -> 0 | AW158: 0 | AX158: 0
A159: Per diem | D159: =IF(Q159>1,VLOOKUP(Q159,'Reference Data'!$C$9:$C$43,5,FALSE),"") ->  | E159: 41 | G159: =IF(Q159>1,VLOOKUP(Q159,'Reference Data'!$C$9:$C$43,3,FALSE),"") ->  | Q159: =IF(ISBLANK($A159),1,VLOOKUP($A159,'Reference Data'!$B$9:$C$133,2,FALSE)) -> 11 | R159: =VLOOKUP(Q159,'Reference Data'!$C$9:Z$125,($P$7)+1,FALSE) -> 41 | S159: 0 | T159: 41 | U159: 0 | V159: 0 | W159: 0 | X159: 0 | Y159: 0 | Z159: 0 | AA159: 0 | AC159: 0 | AD159: =IF(ISBLANK($A159),1,VLOOKUP($A159,'Reference Data'!$B$9:$D$133,3,FALSE)) -> 0 | AW159: 0 | AX159: 0
A160: Bailers | E160: 20 | Q160: =IF(ISBLANK($A160),1,VLOOKUP($A160,'Reference Data'!$B$9:$C$133,2,FALSE)) -> 15 | R160: =VLOOKUP(Q160,'Reference Data'!$C$9:Z$125,($P$7)+1,FALSE) -> 20 | S160: =IF(Q160>1, ROUND(R160*AC160,2), "") -> 0 | T160: =IF(ISNUMBER(E160),E160,"") -> 20 | U160: =IF(ISNUMBER(T160),ROUND(E160*AC160,2),"") -> 0 | V160: =IF(ISNUMBER(G160),G160,0) -> 0 | W160: =IF(ISNUMBER(H160), H160, 0) -> 0 | X160: =IF(Q160>1,IF(ISNUMBER(U160),ROUND(U160*(1+W160)+V160,2),S160),"") -> 0 | Y160: =IF(W160>$AB$7,$AB$7,W160) -> 0 | Z160: =IF(ISNUMBER(U160),ROUND(U160*(Y160+1)+V160,2),S160) -> 0 | AA160: =IF(AND(Q160>1,S160>0,S160<Z160),S160,Z160) -> 0 | AB160: =IF(AND(ISNUMBER(X160),ISNUMBER(AA160)),IF((X160-AA160)>0,X160-AA160,""),"") ->  | AC160: 0 | AD160: =IF(ISBLANK($A160),1,VLOOKUP($A160,'Reference Data'!$B$9:$D$133,3,FALSE)) -> 0 | AW160: 0 | AX160: 0
A161: Boring Incidentals | D161: =IF(Q161>1,VLOOKUP(Q161,'Reference Data'!$C$9:$C$43,5,FALSE),"") ->  | E161: 30 | G161: =IF(Q161>1,VLOOKUP(Q161,'Reference Data'!$C$9:$C$43,3,FALSE),"") ->  | Q161: =IF(ISBLANK($A161),1,VLOOKUP($A161,'Reference Data'!$B$9:$C$133,2,FALSE)) -> 16 | R161: =VLOOKUP(Q161,'Reference Data'!$C$9:Z$125,($P$7)+1,FALSE) -> 30 | S161: 0 | T161: 30 | U161: 0 | V161: 0 | W161: 0 | X161: 0 | Y161: 0 | Z161: 0 | AA161: 0 | AC161: 0 | AD161: =IF(ISBLANK($A161),1,VLOOKUP($A161,'Reference Data'!$B$9:$D$133,3,FALSE)) -> 0 | AW161: 0 | AX161: 0
A162: Decon | D162: =IF(Q162>1,VLOOKUP(Q162,'Reference Data'!$C$9:$C$43,5,FALSE),"") ->  | E162: 15 | G162: =IF(Q162>1,VLOOKUP(Q162,'Reference Data'!$C$9:$C$43,3,FALSE),"") ->  | Q162: =IF(ISBLANK($A162),1,VLOOKUP($A162,'Reference Data'!$B$9:$C$133,2,FALSE)) -> 17 | R162: =VLOOKUP(Q162,'Reference Data'!$C$9:Z$125,($P$7)+1,FALSE) -> 15 | S162: 0 | T162: 15 | U162: 0 | V162: 0 | W162: 0 | X162: 0 | Y162: 0 | Z162: 0 | AA162: 0 | AC162: 0 | AD162: =IF(ISBLANK($A162),1,VLOOKUP($A162,'Reference Data'!$B$9:$D$133,3,FALSE)) -> 0 | AW162: 0 | AX162: 0
A163: Flame Ionization Detector | D163: =IF(Q163>1,VLOOKUP(Q163,'Reference Data'!$C$9:$C$43,5,FALSE),"") ->  | E163: 135 | G163: =IF(Q163>1,VLOOKUP(Q163,'Reference Data'!$C$9:$C$43,3,FALSE),"") ->  | Q163: =IF(ISBLANK($A163),1,VLOOKUP($A163,'Reference Data'!$B$9:$C$133,2,FALSE)) -> 19 | R163: =VLOOKUP(Q163,'Reference Data'!$C$9:Z$125,($P$7)+1,FALSE) -> 135 | S163: 0 | T163: 135 | U163: 0 | V163: 0 | W163: 0 | X163: 0 | Y163: 0 | Z163: 0 | AA163: 0 | AC163: 0 | AD163: =IF(ISBLANK($A163),1,VLOOKUP($A163,'Reference Data'!$B$9:$D$133,3,FALSE)) -> 0 | AW163: 0 | AX163: 0
A164: Hand Auger | D164: =IF(Q164>1,VLOOKUP(Q164,'Reference Data'!$C$9:$C$43,5,FALSE),"") ->  | E164: 42 | G164: =IF(Q164>1,VLOOKUP(Q164,'Reference Data'!$C$9:$C$43,3,FALSE),"") ->  | Q164: =IF(ISBLANK($A164),1,VLOOKUP($A164,'Reference Data'!$B$9:$C$133,2,FALSE)) -> 20 | R164: =VLOOKUP(Q164,'Reference Data'!$C$9:Z$125,($P$7)+1,FALSE) -> 42 | S164: 0 | T164: 42 | U164: 0 | V164: 0 | W164: 0 | X164: 0 | Y164: 0 | Z164: 0 | AA164: 0 | AC164: 0 | AD164: =IF(ISBLANK($A164),1,VLOOKUP($A164,'Reference Data'!$B$9:$D$133,3,FALSE)) -> 0 | AW164: 0 | AX164: 0
A165: Interface Probe | D165: =IF(Q165>1,VLOOKUP(Q165,'Reference Data'!$C$9:$C$43,5,FALSE),"") ->  | E165: 70 | G165: =IF(Q165>1,VLOOKUP(Q165,'Reference Data'!$C$9:$C$43,3,FALSE),"") ->  | Q165: =IF(ISBLANK($A165),1,VLOOKUP($A165,'Reference Data'!$B$9:$C$133,2,FALSE)) -> 21 | R165: =VLOOKUP(Q165,'Reference Data'!$C$9:Z$125,($P$7)+1,FALSE) -> 70 | S165: 0 | T165: 70 | U165: 0 | V165: 0 | W165: 0 | X165: 0 | Y165: 0 | Z165: 0 | AA165: 0 | AC165: 0 | AD165: =IF(ISBLANK($A165),1,VLOOKUP($A165,'Reference Data'!$B$9:$D$133,3,FALSE)) -> 0 | AW165: 0 | AX165: 0
A166: Laser Survey Equipment | D166: =IF(Q166>1,VLOOKUP(Q166,'Reference Data'!$C$9:$C$43,5,FALSE),"") ->  | E166: 90 | G166: =IF(Q166>1,VLOOKUP(Q166,'Reference Data'!$C$9:$C$43,3,FALSE),"") ->  | Q166: =IF(ISBLANK($A166),1,VLOOKUP($A166,'Reference Data'!$B$9:$C$133,2,FALSE)) -> 22 | R166: =VLOOKUP(Q166,'Reference Data'!$C$9:Z$125,($P$7)+1,FALSE) -> 90 | S166: 0 | T166: 90 | U166: 0 | V166: 0 | W166: 0 | X166: 0 | Y166: 0 | Z166: 0 | AA166: 0 | AC166: 0 | AD166: =IF(ISBLANK($A166),1,VLOOKUP($A166,'Reference Data'!$B$9:$D$133,3,FALSE)) -> 0 | AW166: 0 | AX166: 0
A167: MW Incidentals | D167: =IF(Q167>1,VLOOKUP(Q167,'Reference Data'!$C$9:$C$43,5,FALSE),"") ->  | E167: 30 | G167: =IF(Q167>1,VLOOKUP(Q167,'Reference Data'!$C$9:$C$43,3,FALSE),"") ->  | Q167: =IF(ISBLANK($A167),1,VLOOKUP($A167,'Reference Data'!$B$9:$C$133,2,FALSE)) -> 26 | R167: =VLOOKUP(Q167,'Reference Data'!$C$9:Z$125,($P$7)+1,FALSE) -> 30 | S167: 0 | T167: =IF(ISNUMBER(E167),E167,"") -> 30 | U167: 0 | V167: =IF(ISNUMBER(G167),G167,0) -> 0 | W167: 0 | X167: 0 | Y167: =IF(W167>$AB$7,$AB$7,W167) -> 0 | Z167: 0 | AA167: 0 | AB167: =IF(AND(ISNUMBER(X167),ISNUMBER(AA167)),IF((X167-AA167)>0,X167-AA167,""),"") ->  | AC167: 0 | AD167: =IF(ISBLANK($A167),1,VLOOKUP($A167,'Reference Data'!$B$9:$D$133,3,FALSE)) -> 0 | AW167: 0 | AX167: 0
A168: Photo Ionization Detector | D168: =IF(Q168>1,VLOOKUP(Q168,'Reference Data'!$C$9:$C$43,5,FALSE),"") ->  | E168: 90 | G168: =IF(Q168>1,VLOOKUP(Q168,'Reference Data'!$C$9:$C$43,3,FALSE),"") ->  | Q168: =IF(ISBLANK($A168),1,VLOOKUP($A168,'Reference Data'!$B$9:$C$133,2,FALSE)) -> 30 | R168: =VLOOKUP(Q168,'Reference Data'!$C$9:Z$125,($P$7)+1,FALSE) -> 90 | S168: 0 | T168: 90 | U168: 0 | V168: 0 | W168: 0 | X168: 0 | Y168: 0 | Z168: 0 | AA168: 0 | AC168: 0 | AD168: =IF(ISBLANK($A168),1,VLOOKUP($A168,'Reference Data'!$B$9:$D$133,3,FALSE)) -> 0 | AW168: 0 | AX168: 0
A169: Water Level Indicator | D169: =IF(Q169>1,VLOOKUP(Q169,'Reference Data'!$C$9:$C$43,5,FALSE),"") ->  | E169: 15 | G169: =IF(Q169>1,VLOOKUP(Q169,'Reference Data'!$C$9:$C$43,3,FALSE),"") ->  | Q169: =IF(ISBLANK($A169),1,VLOOKUP($A169,'Reference Data'!$B$9:$C$133,2,FALSE)) -> 32 | R169: =VLOOKUP(Q169,'Reference Data'!$C$9:Z$125,($P$7)+1,FALSE) -> 15 | S169: 0 | T169: 15 | U169: 0 | V169: 0 | W169: 0 | X169: 0 | Y169: 0 | Z169: 0 | AA169: 0 | AC169: 0 | AD169: =IF(ISBLANK($A169),1,VLOOKUP($A169,'Reference Data'!$B$9:$D$133,3,FALSE)) -> 0 | AW169: 0 | AX169: 0
A170: Drums | D170: =IF(Q170>1,VLOOKUP(Q170,'Reference Data'!$C$9:$C$43,5,FALSE),"") ->  | E170: 0 | G170: =IF(Q170>1,VLOOKUP(Q170,'Reference Data'!$C$9:$C$43,3,FALSE),"") ->  | Q170: =IF(ISBLANK($A170),1,VLOOKUP($A170,'Reference Data'!$B$9:$C$133,2,FALSE)) -> 49 | R170: =VLOOKUP(Q170,'Reference Data'!$C$9:Z$125,($P$7)+1,FALSE) -> 0 | S170: 0 | T170: 0 | U170: 0 | V170: 0 | W170: 0 | X170: 0 | Y170: =IF(W170>$AB$7,$AB$7,W170) -> 0 | Z170: 0 | AA170: 0 | AB170: =IF(AND(ISNUMBER(X170),ISNUMBER(AA170)),IF((X170-AA170)>0,X170-AA170,""),"") ->  | AC170: 0 | AD170: =IF(ISBLANK($A170),1,VLOOKUP($A170,'Reference Data'!$B$9:$D$133,3,FALSE)) -> 1 | AW170: 0 | AX170: 0
A171: Drum Disposal | D171: =IF(Q171>1,VLOOKUP(Q171,'Reference Data'!$C$9:$C$43,5,FALSE),"") ->  | E171: 0 | G171: =IF(Q171>1,VLOOKUP(Q171,'Reference Data'!$C$9:$C$43,3,FALSE),"") ->  | Q171: =IF(ISBLANK($A171),1,VLOOKUP($A171,'Reference Data'!$B$9:$C$133,2,FALSE)) -> 48 | R171: =VLOOKUP(Q171,'Reference Data'!$C$9:Z$125,($P$7)+1,FALSE) -> 0 | S171: 0 | T171: 0 | U171: 0 | V171: 0 | W171: 0 | X171: 0 | Y171: =IF(W171>$AB$7,$AB$7,W171) -> 0 | Z171: 0 | AA171: 0 | AB171: =IF(AND(ISNUMBER(X171),ISNUMBER(AA171)),IF((X171-AA171)>0,X171-AA171,""),"") ->  | AC171: 0 | AD171: =IF(ISBLANK($A171),1,VLOOKUP($A171,'Reference Data'!$B$9:$D$133,3,FALSE)) -> 1 | AW171: 0 | AX171: 0
A172: Utility Locate | D172: =IF(Q172>1,VLOOKUP(Q172,'Reference Data'!$C$9:$C$43,5,FALSE),"") ->  | E172: 0 | G172: =IF(Q172>1,VLOOKUP(Q172,'Reference Data'!$C$9:$C$43,3,FALSE),"") ->  | Q172: =IF(ISBLANK($A172),1,VLOOKUP($A172,'Reference Data'!$B$9:$C$133,2,FALSE)) -> 31 | R172: =VLOOKUP(Q172,'Reference Data'!$C$9:Z$125,($P$7)+1,FALSE) -> 0 | S172: 0 | T172: 0 | U172: 0 | V172: 0 | W172: 0 | X172: 0 | Y172: =IF(W172>$AB$7,$AB$7,W172) -> 0 | Z172: 0 | AA172: 0 | AB172: =IF(AND(ISNUMBER(X172),ISNUMBER(AA172)),IF((X172-AA172)>0,X172-AA172,""),"") ->  | AC172: 0 | AD172: =IF(ISBLANK($A172),1,VLOOKUP($A172,'Reference Data'!$B$9:$D$133,3,FALSE)) -> 1 | AW172: 0 | AX172: 0
A173: Other (markup eligible) | C173: 1 | D173: =IF(Q173>1,VLOOKUP(Q173,'Reference Data'!$C$9:$C$43,5,FALSE),"") ->  | E173: 0 | F173: 0 | G173: =IF(Q173>1,VLOOKUP(Q173,'Reference Data'!$C$9:$C$43,3,FALSE),"") ->  | I173: =IF($E173=0,"",IF(($A$8)="Please Choose Date","Select Date Error!",IF($R173="N/A","",$X173))) ->  | Q173: =IF(ISBLANK($A173),1,VLOOKUP($A173,'Reference Data'!$B$9:$C$133,2,FALSE)) -> 94 | R173: =VLOOKUP(Q173,'Reference Data'!$C$9:Z$125,($P$7)+1,FALSE) -> 0 | S173: 0 | T173: 0 | U173: 0 | V173: 0 | W173: 0 | X173: 0 | Y173: 0 | Z173: 0 | AA173: 0 | AC173: 1 | AD173: =IF(ISBLANK($A173),1,VLOOKUP($A173,'Reference Data'!$B$9:$D$133,3,FALSE)) -> 1 | AW173: 0 | AX173: 0
A174: Other (not markup eligible) | C174: 1 | D174: =IF(Q174>1,VLOOKUP(Q174,'Reference Data'!$C$9:$C$43,5,FALSE),"") ->  | E174: 0 | F174: 0 | G174: =IF(Q174>1,VLOOKUP(Q174,'Reference Data'!$C$9:$C$43,3,FALSE),"") ->  | I174: =IF($E174=0,"",IF(($A$8)="Please Choose Date","Select Date Error!",IF($R174="N/A","",$X174))) ->  | Q174: =IF(ISBLANK($A174),1,VLOOKUP($A174,'Reference Data'!$B$9:$C$133,2,FALSE)) -> 95 | R174: =VLOOKUP(Q174,'Reference Data'!$C$9:Z$125,($P$7)+1,FALSE) -> 0 | S174: 0 | T174: 0 | U174: 0 | V174: 0 | W174: 0 | X174: 0 | Y174: 0 | Z174: 0 | AA174: 0 | AC174: 1 | AD174: =IF(ISBLANK($A174),1,VLOOKUP($A174,'Reference Data'!$B$9:$D$133,3,FALSE)) -> 0 | AW174: 0 | AX174: 0
A175: Laboratory Analyses (Soil) | D175: =IF(Q175>1,VLOOKUP(Q175,'Reference Data'!$C$9:$C$43,5,FALSE),"") ->  | G175: =IF(Q175>1,VLOOKUP(Q175,'Reference Data'!$C$9:$C$43,3,FALSE),"") ->  | R175: =VLOOKUP(Q175,'Reference Data'!$C$9:Z$125,($P$7)+1,FALSE) ->  | AW175: =IF(SUM($I$176:$I$187)>0, 1, 0) -> 0 | AX175: 0
A176: VOC -8260 (soil) | D176: =IF(Q176>1,VLOOKUP(Q176,'Reference Data'!$C$9:$C$43,5,FALSE),"") ->  | E176: 0 | G176: =IF(Q176>1,VLOOKUP(Q176,'Reference Data'!$C$9:$C$43,3,FALSE),"") ->  | Q176: =IF(ISBLANK($A176),1,VLOOKUP($A176,'Reference Data'!$B$9:$C$133,2,FALSE)) -> 75 | R176: =VLOOKUP(Q176,'Reference Data'!$C$9:Z$125,($P$7)+1,FALSE) -> 130 | S176: =IF(Q176>1, ROUND(R176*AC176,2), "") -> 0 | T176: 0 | U176: =IF(ISNUMBER(T176),ROUND(E176*AC176,2),"") -> 0 | V176: 0 | W176: =IF(ISNUMBER(H176), H176, 0) -> 0 | X176: =IF(Q176>1,IF(ISNUMBER(U176),ROUND(U176*(1+W176)+V176,2),S176),"") -> 0 | Y176: 0 | Z176: =IF(ISNUMBER(U176),ROUND(U176*(Y176+1)+V176,2),S176) -> 0 | AA176: =IF(AND(Q176>1,S176>0,S176<Z176),S176,Z176) -> 0 | AC176: 0 | AD176: =IF(ISBLANK($A176),1,VLOOKUP($A176,'Reference Data'!$B$9:$D$133,3,FALSE)) -> 1 | AW176: 0 | AX176: 0
A177: BTEX/MTBE -8021 (soil) | D177: =IF(Q177>1,VLOOKUP(Q177,'Reference Data'!$C$9:$C$43,5,FALSE),"") ->  | E177: 0 | G177: =IF(Q177>1,VLOOKUP(Q177,'Reference Data'!$C$9:$C$43,3,FALSE),"") ->  | Q177: =IF(ISBLANK($A177),1,VLOOKUP($A177,'Reference Data'!$B$9:$C$133,2,FALSE)) -> 64 | R177: =VLOOKUP(Q177,'Reference Data'!$C$9:Z$125,($P$7)+1,FALSE) -> 60 | S177: 0 | T177: 0 | U177: 0 | V177: 0 | W177: 0 | X177: 0 | Y177: 0 | Z177: 0 | AA177: 0 | AC177: 0 | AD177: =IF(ISBLANK($A177),1,VLOOKUP($A177,'Reference Data'!$B$9:$D$133,3,FALSE)) -> 1 | AW177: 0 | AX177: 0
A178: BTEX/MTBE -8260 (soil) | D178: =IF(Q178>1,VLOOKUP(Q178,'Reference Data'!$C$9:$C$43,5,FALSE),"") ->  | E178: 0 | G178: =IF(Q178>1,VLOOKUP(Q178,'Reference Data'!$C$9:$C$43,3,FALSE),"") ->  | Q178: =IF(ISBLANK($A178),1,VLOOKUP($A178,'Reference Data'!$B$9:$C$133,2,FALSE)) -> 65 | R178: =VLOOKUP(Q178,'Reference Data'!$C$9:Z$125,($P$7)+1,FALSE) -> 80 | S178: 0 | T178: 0 | U178: 0 | V178: 0 | W178: 0 | X178: 0 | Y178: 0 | Z178: 0 | AA178: 0 | AC178: 0 | AD178: =IF(ISBLANK($A178),1,VLOOKUP($A178,'Reference Data'!$B$9:$D$133,3,FALSE)) -> 1 | AW178: 0 | AX178: 0
A179: SVOC - 8270 (soil) | D179: =IF(Q179>1,VLOOKUP(Q179,'Reference Data'!$C$9:$C$43,5,FALSE),"") ->  | E179: 0 | G179: =IF(Q179>1,VLOOKUP(Q179,'Reference Data'!$C$9:$C$43,3,FALSE),"") ->  | Q179: =IF(ISBLANK($A179),1,VLOOKUP($A179,'Reference Data'!$B$9:$C$133,2,FALSE)) -> 72 | R179: =VLOOKUP(Q179,'Reference Data'!$C$9:Z$125,($P$7)+1,FALSE) -> 225 | S179: 0 | T179: 0 | U179: 0 | V179: 0 | W179: 0 | X179: 0 | Y179: 0 | Z179: 0 | AA179: 0 | AC179: 0 | AD179: =IF(ISBLANK($A179),1,VLOOKUP($A179,'Reference Data'!$B$9:$D$133,3,FALSE)) -> 1 | AW179: 0 | AX179: 0
A180: PAH -8270 SIM (soil) | D180: =IF(Q180>1,VLOOKUP(Q180,'Reference Data'!$C$9:$C$43,5,FALSE),"") ->  | E180: 0 | G180: =IF(Q180>1,VLOOKUP(Q180,'Reference Data'!$C$9:$C$43,3,FALSE),"") ->  | Q180: =IF(ISBLANK($A180),1,VLOOKUP($A180,'Reference Data'!$B$9:$C$133,2,FALSE)) -> 69 | R180: =VLOOKUP(Q180,'Reference Data'!$C$9:Z$125,($P$7)+1,FALSE) -> 130 | S180: 0 | T180: 0 | U180: 0 | V180: 0 | W180: 0 | X180: 0 | Y180: 0 | Z180: 0 | AA180: 0 | AC180: 0 | AD180: =IF(ISBLANK($A180),1,VLOOKUP($A180,'Reference Data'!$B$9:$D$133,3,FALSE)) -> 1 | AW180: 0 | AX180: 0
A181: PAH -8310 (soil) | D181: =IF(Q181>1,VLOOKUP(Q181,'Reference Data'!$C$9:$C$43,5,FALSE),"") ->  | E181: 0 | G181: =IF(Q181>1,VLOOKUP(Q181,'Reference Data'!$C$9:$C$43,3,FALSE),"") ->  | Q181: =IF(ISBLANK($A181),1,VLOOKUP($A181,'Reference Data'!$B$9:$C$133,2,FALSE)) -> 70 | R181: =VLOOKUP(Q181,'Reference Data'!$C$9:Z$125,($P$7)+1,FALSE) -> 150 | S181: 0 | T181: 0 | U181: 0 | V181: 0 | W181: 0 | X181: 0 | Y181: 0 | Z181: 0 | AA181: 0 | AC181: 0 | AD181: =IF(ISBLANK($A181),1,VLOOKUP($A181,'Reference Data'!$B$9:$D$133,3,FALSE)) -> 1 | AW181: 0 | AX181: 0
A182: Metals 7 barium, cadmium, chromium, lead, mercury, nickel, zinc (soil) | D182: =IF(Q182>1,VLOOKUP(Q182,'Reference Data'!$C$9:$C$43,5,FALSE),"") ->  | E182: 0 | G182: =IF(Q182>1,VLOOKUP(Q182,'Reference Data'!$C$9:$C$43,3,FALSE),"") ->  | Q182: =IF(ISBLANK($A182),1,VLOOKUP($A182,'Reference Data'!$B$9:$C$133,2,FALSE)) -> 68 | R182: =VLOOKUP(Q182,'Reference Data'!$C$9:Z$125,($P$7)+1,FALSE) -> 100 | S182: 0 | T182: 0 | U182: 0 | V182: 0 | W182: 0 | X182: 0 | Y182: 0 | Z182: 0 | AA182: 0 | AC182: 0 | AD182: =IF(ISBLANK($A182),1,VLOOKUP($A182,'Reference Data'!$B$9:$D$133,3,FALSE)) -> 1 | AW182: 0 | AX182: 0
A183: Individual Metals (per sample) (soil) | D183: =IF(Q183>1,VLOOKUP(Q183,'Reference Data'!$C$9:$C$43,5,FALSE),"") ->  | E183: 0 | G183: =IF(Q183>1,VLOOKUP(Q183,'Reference Data'!$C$9:$C$43,3,FALSE),"") ->  | Q183: =IF(ISBLANK($A183),1,VLOOKUP($A183,'Reference Data'!$B$9:$C$133,2,FALSE)) -> 67 | R183: =VLOOKUP(Q183,'Reference Data'!$C$9:Z$125,($P$7)+1,FALSE) -> 15 | S183: 0 | T183: 0 | U183: 0 | V183: 0 | W183: 0 | X183: 0 | Y183: 0 | Z183: 0 | AA183: 0 | AC183: 0 | AD183: =IF(ISBLANK($A183),1,VLOOKUP($A183,'Reference Data'!$B$9:$D$133,3,FALSE)) -> 1 | AW183: 0 | AX183: 0
A184: % Moisture (soil) | D184: =IF(Q184>1,VLOOKUP(Q184,'Reference Data'!$C$9:$C$43,5,FALSE),"") ->  | E184: 0 | G184: =IF(Q184>1,VLOOKUP(Q184,'Reference Data'!$C$9:$C$43,3,FALSE),"") ->  | Q184: =IF(ISBLANK($A184),1,VLOOKUP($A184,'Reference Data'!$B$9:$C$133,2,FALSE)) -> 76 | R184: =VLOOKUP(Q184,'Reference Data'!$C$9:Z$125,($P$7)+1,FALSE) -> 0 | S184: 0 | T184: 0 | U184: 0 | V184: 0 | W184: 0 | X184: 0 | Y184: =IF(W184>$AB$7,$AB$7,W184) -> 0 | Z184: 0 | AA184: 0 | AB184: =IF(AND(ISNUMBER(X184),ISNUMBER(AA184)),IF((X184-AA184)>0,X184-AA184,""),"") ->  | AC184: 0 | AD184: =IF(ISBLANK($A184),1,VLOOKUP($A184,'Reference Data'!$B$9:$D$133,3,FALSE)) -> 1 | AW184: 0 | AX184: 0
A185: MS/MSD | D185: =IF(Q185>1,VLOOKUP(Q185,'Reference Data'!$C$9:$C$43,5,FALSE),"") ->  | E185: 0 | G185: =IF(Q185>1,VLOOKUP(Q185,'Reference Data'!$C$9:$C$43,3,FALSE),"") ->  | Q185: =IF(ISBLANK($A185),1,VLOOKUP($A185,'Reference Data'!$B$9:$C$133,2,FALSE)) -> 85 | R185: =VLOOKUP(Q185,'Reference Data'!$C$9:Z$125,($P$7)+1,FALSE) -> 0 | S185: 0 | T185: 0 | U185: 0 | V185: 0 | W185: 0 | X185: 0 | Y185: =IF(W185>$AB$7,$AB$7,W185) -> 0 | Z185: 0 | AA185: 0 | AB185: =IF(AND(ISNUMBER(X185),ISNUMBER(AA185)),IF((X185-AA185)>0,X185-AA185,""),"") ->  | AC185: 0 | AD185: =IF(ISBLANK($A185),1,VLOOKUP($A185,'Reference Data'!$B$9:$D$133,3,FALSE)) -> 1 | AW185: 0 | AX185: 0
A186: QA/QC Data Package | D186: =IF(Q186>1,VLOOKUP(Q186,'Reference Data'!$C$9:$C$43,5,FALSE),"") ->  | E186: 0 | G186: =IF(Q186>1,VLOOKUP(Q186,'Reference Data'!$C$9:$C$43,3,FALSE),"") ->  | Q186: =IF(ISBLANK($A186),1,VLOOKUP($A186,'Reference Data'!$B$9:$C$133,2,FALSE)) -> 86 | R186: =VLOOKUP(Q186,'Reference Data'!$C$9:Z$125,($P$7)+1,FALSE) -> 0 | S186: 0 | T186: 0 | U186: 0 | V186: 0 | W186: 0 | X186: 0 | Y186: 0 | Z186: 0 | AA186: 0 | AC186: 0 | AD186: =IF(ISBLANK($A186),1,VLOOKUP($A186,'Reference Data'!$B$9:$D$133,3,FALSE)) -> 1 | AW186: 0 | AX186: 0
A187: Other | C187: 1 | D187: =IF(Q187>1,VLOOKUP(Q187,'Reference Data'!$C$9:$C$43,5,FALSE),"") ->  | E187: 0 | F187: 0 | G187: =IF(Q187>1,VLOOKUP(Q187,'Reference Data'!$C$9:$C$43,3,FALSE),"") ->  | I187: =IF($E187=0,"",IF(($A$8)="Please Choose Date","Select Date Error!",IF($R187="N/A","",$X187))) ->  | Q187: =IF(ISBLANK($A187),1,VLOOKUP($A187,'Reference Data'!$B$9:$C$133,2,FALSE)) -> 91 | R187: =VLOOKUP(Q187,'Reference Data'!$C$9:Z$125,($P$7)+1,FALSE) -> 0 | S187: 0 | T187: 0 | U187: 0 | V187: 0 | W187: 0 | X187: 0 | Y187: 0 | Z187: 0 | AA187: 0 | AC187: 1 | AD187: =IF(ISBLANK($A187),1,VLOOKUP($A187,'Reference Data'!$B$9:$D$133,3,FALSE)) -> 1 | AW187: 0 | AX187: 0
A188: Laboratory Analyses (Water) | D188: =IF(Q188>1,VLOOKUP(Q188,'Reference Data'!$C$9:$C$43,5,FALSE),"") ->  | G188: =IF(Q188>1,VLOOKUP(Q188,'Reference Data'!$C$9:$C$43,3,FALSE),"") ->  | R188: =VLOOKUP(Q188,'Reference Data'!$C$9:Z$125,($P$7)+1,FALSE) ->  | AW188: =IF(SUM($I$189:$I$199)>0, 1, 0) -> 0 | AX188: 0
A189: VOC -8260 (water) | D189: =IF(Q189>1,VLOOKUP(Q189,'Reference Data'!$C$9:$C$43,5,FALSE),"") ->  | E189: 0 | G189: =IF(Q189>1,VLOOKUP(Q189,'Reference Data'!$C$9:$C$43,3,FALSE),"") ->  | Q189: =IF(ISBLANK($A189),1,VLOOKUP($A189,'Reference Data'!$B$9:$C$133,2,FALSE)) -> 84 | R189: =VLOOKUP(Q189,'Reference Data'!$C$9:Z$125,($P$7)+1,FALSE) -> 135 | S189: =IF(Q189>1, ROUND(R189*AC189,2), "") -> 0 | T189: 0 | U189: =IF(ISNUMBER(T189),ROUND(E189*AC189,2),"") -> 0 | V189: 0 | W189: =IF(ISNUMBER(H189), H189, 0) -> 0 | X189: =IF(Q189>1,IF(ISNUMBER(U189),ROUND(U189*(1+W189)+V189,2),S189),"") -> 0 | Y189: 0 | Z189: =IF(ISNUMBER(U189),ROUND(U189*(Y189+1)+V189,2),S189) -> 0 | AA189: =IF(AND(Q189>1,S189>0,S189<Z189),S189,Z189) -> 0 | AC189: 0 | AD189: =IF(ISBLANK($A189),1,VLOOKUP($A189,'Reference Data'!$B$9:$D$133,3,FALSE)) -> 1 | AW189: 0 | AX189: 0
A190: BTEX/MTBE -8021 (water) | D190: =IF(Q190>1,VLOOKUP(Q190,'Reference Data'!$C$9:$C$43,5,FALSE),"") ->  | E190: 0 | G190: =IF(Q190>1,VLOOKUP(Q190,'Reference Data'!$C$9:$C$43,3,FALSE),"") ->  | Q190: =IF(ISBLANK($A190),1,VLOOKUP($A190,'Reference Data'!$B$9:$C$133,2,FALSE)) -> 77 | R190: =VLOOKUP(Q190,'Reference Data'!$C$9:Z$125,($P$7)+1,FALSE) -> 50 | S190: 0 | T190: 0 | U190: 0 | V190: 0 | W190: 0 | X190: 0 | Y190: 0 | Z190: 0 | AA190: 0 | AC190: 0 | AD190: =IF(ISBLANK($A190),1,VLOOKUP($A190,'Reference Data'!$B$9:$D$133,3,FALSE)) -> 1 | AW190: 0 | AX190: 0
A191: BTEX/MTBE -8260 (water) | D191: =IF(Q191>1,VLOOKUP(Q191,'Reference Data'!$C$9:$C$43,5,FALSE),"") ->  | E191: 0 | G191: =IF(Q191>1,VLOOKUP(Q191,'Reference Data'!$C$9:$C$43,3,FALSE),"") ->  | Q191: =IF(ISBLANK($A191),1,VLOOKUP($A191,'Reference Data'!$B$9:$C$133,2,FALSE)) -> 78 | R191: =VLOOKUP(Q191,'Reference Data'!$C$9:Z$125,($P$7)+1,FALSE) -> 80 | S191: 0 | T191: 0 | U191: 0 | V191: 0 | W191: 0 | X191: 0 | Y191: 0 | Z191: 0 | AA191: 0 | AC191: 0 | AD191: =IF(ISBLANK($A191),1,VLOOKUP($A191,'Reference Data'!$B$9:$D$133,3,FALSE)) -> 1 | AW191: 0 | AX191: 0
A192: SVOC - 8270 (water) | D192: =IF(Q192>1,VLOOKUP(Q192,'Reference Data'!$C$9:$C$43,5,FALSE),"") ->  | E192: 0 | G192: =IF(Q192>1,VLOOKUP(Q192,'Reference Data'!$C$9:$C$43,3,FALSE),"") ->  | Q192: =IF(ISBLANK($A192),1,VLOOKUP($A192,'Reference Data'!$B$9:$C$133,2,FALSE)) -> 83 | R192: =VLOOKUP(Q192,'Reference Data'!$C$9:Z$125,($P$7)+1,FALSE) -> 225 | S192: 0 | T192: 0 | U192: 0 | V192: 0 | W192: 0 | X192: 0 | Y192: 0 | Z192: 0 | AA192: 0 | AC192: 0 | AD192: =IF(ISBLANK($A192),1,VLOOKUP($A192,'Reference Data'!$B$9:$D$133,3,FALSE)) -> 1 | AW192: 0 | AX192: 0
A193: PAH -8270 SIM (water) | D193: =IF(Q193>1,VLOOKUP(Q193,'Reference Data'!$C$9:$C$43,5,FALSE),"") ->  | E193: 0 | G193: =IF(Q193>1,VLOOKUP(Q193,'Reference Data'!$C$9:$C$43,3,FALSE),"") ->  | Q193: =IF(ISBLANK($A193),1,VLOOKUP($A193,'Reference Data'!$B$9:$C$133,2,FALSE)) -> 81 | R193: =VLOOKUP(Q193,'Reference Data'!$C$9:Z$125,($P$7)+1,FALSE) -> 135 | S193: 0 | T193: 0 | U193: 0 | V193: 0 | W193: 0 | X193: 0 | Y193: 0 | Z193: 0 | AA193: 0 | AC193: 0 | AD193: =IF(ISBLANK($A193),1,VLOOKUP($A193,'Reference Data'!$B$9:$D$133,3,FALSE)) -> 1 | AW193: 0 | AX193: 0
A194: PAH -8310 (water) | D194: =IF(Q194>1,VLOOKUP(Q194,'Reference Data'!$C$9:$C$43,5,FALSE),"") ->  | E194: 0 | G194: =IF(Q194>1,VLOOKUP(Q194,'Reference Data'!$C$9:$C$43,3,FALSE),"") ->  | Q194: =IF(ISBLANK($A194),1,VLOOKUP($A194,'Reference Data'!$B$9:$C$133,2,FALSE)) -> 82 | R194: =VLOOKUP(Q194,'Reference Data'!$C$9:Z$125,($P$7)+1,FALSE) -> 150 | S194: 0 | T194: 0 | U194: 0 | V194: 0 | W194: 0 | X194: 0 | Y194: 0 | Z194: 0 | AA194: 0 | AC194: 0 | AD194: =IF(ISBLANK($A194),1,VLOOKUP($A194,'Reference Data'!$B$9:$D$133,3,FALSE)) -> 1 | AW194: 0 | AX194: 0
A195: Metals 7 barium, cadmium, chromium, lead, mercury, nickel, zinc (water) | D195: =IF(Q195>1,VLOOKUP(Q195,'Reference Data'!$C$9:$C$43,5,FALSE),"") ->  | E195: 0 | G195: =IF(Q195>1,VLOOKUP(Q195,'Reference Data'!$C$9:$C$43,3,FALSE),"") ->  | Q195: =IF(ISBLANK($A195),1,VLOOKUP($A195,'Reference Data'!$B$9:$C$133,2,FALSE)) -> 80 | R195: =VLOOKUP(Q195,'Reference Data'!$C$9:Z$125,($P$7)+1,FALSE) -> 100 | S195: 0 | T195: 0 | U195: 0 | V195: 0 | W195: 0 | X195: 0 | Y195: 0 | Z195: 0 | AA195: 0 | AC195: 0 | AD195: =IF(ISBLANK($A195),1,VLOOKUP($A195,'Reference Data'!$B$9:$D$133,3,FALSE)) -> 1 | AW195: 0 | AX195: 0
A196: Individual Metals (per sample) (water) | D196: =IF(Q196>1,VLOOKUP(Q196,'Reference Data'!$C$9:$C$43,5,FALSE),"") ->  | E196: 0 | G196: =IF(Q196>1,VLOOKUP(Q196,'Reference Data'!$C$9:$C$43,3,FALSE),"") ->  | Q196: =IF(ISBLANK($A196),1,VLOOKUP($A196,'Reference Data'!$B$9:$C$133,2,FALSE)) -> 79 | R196: =VLOOKUP(Q196,'Reference Data'!$C$9:Z$125,($P$7)+1,FALSE) -> 15 | S196: 0 | T196: 0 | U196: 0 | V196: 0 | W196: 0 | X196: 0 | Y196: 0 | Z196: 0 | AA196: 0 | AC196: 0 | AD196: =IF(ISBLANK($A196),1,VLOOKUP($A196,'Reference Data'!$B$9:$D$133,3,FALSE)) -> 1 | AW196: 0 | AX196: 0
A197: MS/MSD | D197: =IF(Q197>1,VLOOKUP(Q197,'Reference Data'!$C$9:$C$43,5,FALSE),"") ->  | E197: 0 | F197: =IF(ISNUMBER(C197),IF(ISNUMBER(E197),ROUND(AC197*E197,2),""),"") ->  | G197: =IF(Q197>1,VLOOKUP(Q197,'Reference Data'!$C$9:$C$43,3,FALSE),"") ->  | Q197: =IF(ISBLANK($A197),1,VLOOKUP($A197,'Reference Data'!$B$9:$C$133,2,FALSE)) -> 85 | R197: =VLOOKUP(Q197,'Reference Data'!$C$9:Z$125,($P$7)+1,FALSE) -> 0 | S197: 0 | T197: 0 | U197: 0 | V197: 0 | W197: 0 | X197: 0 | Y197: 0 | Z197: 0 | AA197: 0 | AC197: 0 | AD197: =IF(ISBLANK($A197),1,VLOOKUP($A197,'Reference Data'!$B$9:$D$133,3,FALSE)) -> 1 | AW197: 0 | AX197: 0
A198: QA/QC Data Package | D198: =IF(Q198>1,VLOOKUP(Q198,'Reference Data'!$C$9:$C$43,5,FALSE),"") ->  | E198: 0 | G198: =IF(Q198>1,VLOOKUP(Q198,'Reference Data'!$C$9:$C$43,3,FALSE),"") ->  | Q198: =IF(ISBLANK($A198),1,VLOOKUP($A198,'Reference Data'!$B$9:$C$133,2,FALSE)) -> 86 | R198: =VLOOKUP(Q198,'Reference Data'!$C$9:Z$125,($P$7)+1,FALSE) -> 0 | S198: 0 | T198: 0 | U198: 0 | V198: 0 | W198: 0 | X198: 0 | Y198: 0 | Z198: 0 | AA198: 0 | AC198: 0 | AD198: =IF(ISBLANK($A198),1,VLOOKUP($A198,'Reference Data'!$B$9:$D$133,3,FALSE)) -> 1 | AW198: 0 | AX198: 0
A199: Other | C199: 1 | D199: =IF(Q199>1,VLOOKUP(Q199,'Reference Data'!$C$9:$C$43,5,FALSE),"") ->  | E199: 0 | F199: 0 | G199: =IF(Q199>1,VLOOKUP(Q199,'Reference Data'!$C$9:$C$43,3,FALSE),"") ->  | I199: =IF($E199=0,"",IF(($A$8)="Please Choose Date","Select Date Error!",IF($R199="N/A","",$X199))) ->  | Q199: =IF(ISBLANK($A199),1,VLOOKUP($A199,'Reference Data'!$B$9:$C$133,2,FALSE)) -> 91 | R199: =VLOOKUP(Q199,'Reference Data'!$C$9:Z$125,($P$7)+1,FALSE) -> 0 | S199: 0 | T199: 0 | U199: 0 | V199: 0 | W199: 0 | X199: 0 | Y199: 0 | Z199: 0 | AA199: 0 | AC199: 1 | AD199: =IF(ISBLANK($A199),1,VLOOKUP($A199,'Reference Data'!$B$9:$D$133,3,FALSE)) -> 1 | AW199: 0 | AX199: 0
A200: Laboratory Analyses (Air) | R200: =VLOOKUP(Q200,'Reference Data'!$C$9:Z$125,($P$7)+1,FALSE) ->  | AW200: =IF(SUM($I$201:$I$202)>0, 1, 0) -> 0 | AX200: 0
A201: VOC -TO-15 | E201: 0 | Q201: 87 | R201: =VLOOKUP(Q201,'Reference Data'!$C$9:Z$125,($P$7)+1,FALSE) -> 400 | S201: =IF(Q201>1, ROUND(R201*AC201,2), "") -> 0 | T201: =IF(ISNUMBER(E201),E201,"") -> 0 | U201: =IF(ISNUMBER(T201),ROUND(E201*AC201,2),"") -> 0 | V201: =IF(ISNUMBER(G201),G201,0) -> 0 | W201: =IF(ISNUMBER(H201), H201, 0) -> 0 | X201: =IF(Q201>1,IF(ISNUMBER(U201),ROUND(U201*(1+W201)+V201,2),S201),"") -> 0 | Y201: =IF(W201>$AB$7,$AB$7,W201) -> 0 | Z201: =IF(ISNUMBER(U201),ROUND(U201*(Y201+1)+V201,2),S201) -> 0 | AA201: =IF(AND(Q201>1,S201>0,S201<Z201),S201,Z201) -> 0 | AB201: =IF(AND(ISNUMBER(X201),ISNUMBER(AA201)),IF((X201-AA201)>0,X201-AA201,""),"") ->  | AC201: =ROUND($C201,2) -> 0 | AD201: 1 | AW201: =IF(AA201=0, 0, 1) -> 0 | AX201: 0
A202: Other | C202: 1 | E202: 0 | F202: 0 | I202: =IF($E202=0,"",IF(($A$8)="Please Choose Date","Select Date Error!",IF($R202="N/A","",$X202))) ->  | Q202: 91 | R202: =VLOOKUP(Q202,'Reference Data'!$C$9:Z$125,($P$7)+1,FALSE) -> 0 | S202: =IF(Q202>1, ROUND(R202*AC202,2), "") -> 0 | T202: =IF(ISNUMBER(E202),E202,"") -> 0 | U202: =IF(ISNUMBER(T202),ROUND(E202*AC202,2),"") -> 0 | V202: =IF(ISNUMBER(G202),G202,0) -> 0 | W202: =IF(ISNUMBER(H202), H202, 0) -> 0 | X202: =IF(Q202>1,IF(ISNUMBER(U202),ROUND(U202*(1+W202)+V202,2),S202),"") -> 0 | Y202: =IF(W202>$AB$7,$AB$7,W202) -> 0 | Z202: =IF(ISNUMBER(U202),ROUND(U202*(Y202+1)+V202,2),S202) -> 0 | AA202: =IF(AND(Q202>1,S202>0,S202<Z202),S202,Z202) -> 0 | AB202: =IF(AND(ISNUMBER(X202),ISNUMBER(AA202)),IF((X202-AA202)>0,X202-AA202,""),"") ->  | AC202: =ROUND($C202,2) -> 1 | AD202: 1 | AW202: =IF(AA202=0, 0, 1) -> 0 | AX202: 0
... 913 more rows

Sheet SOW (itemized) (3) (hidden)
A1: Itemized Scope of Work #3 | AF1: Planning, Field Work, and Reporting Costs
AH2: Site Characterization and CAP Development | AK2: CAP Implementation | AO2: GW Monitoring and/or Remediation System O&M | AS2: Closure
A5: Incident Number | AH5: =I298 -> 0 | AK5: =I532 -> 0 | AO5: =SUM(I990,I991) -> 0 | AS5: =I1110 -> 0
A6: =SOW!G33 -> 0 | AJ6: =SUM(I57:I65,I69:I121,I125:I134) -> 0 | AN6: =SUM(I303:I376) -> 0 | AR6: =SUM(I537:I583) -> 0 | AU6: =SUM(I996:I1017) -> 0
A7: Select Date: | P7: 20 | AA7: Markup | AB7: =VLOOKUP($A8,'Reference Data'!$B$135:$D$153,3,FALSE) -> 0.1 | AJ7: =SUM(I138:I146,I150:I202,I206:I215) -> 0 | AN7: =SUM(I380:I408) -> 0 | AR7: =SUM(I587:I634) -> 0
A8: 1/1/2026 to Present | AA8: Add Lines # | AB8: 7 | AJ8: =SUM(I219:I230) -> 0 | AN8: =SUM(I412:I444) -> 0 | AO8: CAPR Routine Report Subtotals | AR8: =SUM(I638:I647) -> 0 | AU8: =SUM(I1021:I1063) -> 0
Z9: Total $ of Added Lines | AB9: =SUM(I34:I110) -> 0 | AJ9: =SUM(I234:I257) -> 0 | AN9: =SUM(I448:I481) -> 0 | AR9: =SUM(I651:I697) -> 0
Z10: Total $ of Sheet | AB10: =I1115 -> 0 | AJ10: =SUM(I261:I297) -> 0 | AN10: =SUM(I485:I518) -> 0 | AR10: =SUM(I701:I748) -> 0 | AU10: =SUM(I1067:I1109) -> 0
AA11: Sheet # | AB11: 0 | AN11: =SUM(I522:I531) -> 0 | AO11: CAPR Report Subtotals | AR11: =SUM(I752:I761) -> 0
A12: Immediate Response Costs | AW12: =IF(SUM($I$15:$I$52)>0, 1, 0) -> 0 | AX12: 0
A13: Planning, Preparation, and Follow-up Costs (Office) | F13: =IF(ISNUMBER(C13),IF(ISNUMBER(E13),ROUND(AC13*E13,2),""),"") ->  | G13: =IF(Q13>1,VLOOKUP(Q13,'Reference Data'!$C$9:$C$43,3,FALSE),"") ->  | I13: =IF(ISBLANK($C13),"",IF(($A$8)="Please Choose Date","Select Date Error!",IF($R13="N/A","",$X13))) ->  | AW13: =IF(SUM($I$15:$I$23)>0, 1, 0) -> 0 | AX13: 0
A14: DESCRIPTION | B14: TASK PERFORMED | C14: UNITS | D14: TYPE | E14: UNIT COST | F14: TOTAL W/O MARKUP OR TAX | G14: TAX (NO MARKUP) | H14: % MARK-UP | I14: AMOUNT PROPOSED | Q14: Automated Descriptor | R14: Automated Unit Cost | S14: Total Automated Unit Cost | T14: PROPOSED Unit Cost | U14: PROPOSED total w/o markup or tax | V14: PROPOSED Tax | W14: PROPOSED Markup | X14: PROPOSED Total AMT | Y14: Lower Calculated Markup | Z14: Lower Calculated total w/ markup and tax | AA14: Lower Cost Final total | AB14: Amt Denied | AC14: Units Rounded | AD14: Markup Available | AW14: =IF(SUM($I$15:$I$23)>0, 1, 0) -> 0 | AX14: 0
A15: Principal | D15: =IF(Q15>1,VLOOKUP(Q15,'Reference Data'!$C$9:$C$43,5,FALSE),"") ->  | E15: =R15 ->  | F15: =IF(ISNUMBER(C15),IF(ISNUMBER(E15),ROUND(AC15*E15,2),""),"") ->  | G15: =IF(Q15>1,VLOOKUP(Q15,'Reference Data'!$C$9:$C$43,3,FALSE),"") ->  | I15: =IF(ISBLANK($C15),"",IF(($A$8)="Please Choose Date","Select Date Error!",IF($R15="N/A","",$X15))) ->  | Q15: =IF(ISBLANK($A15),1,VLOOKUP($A15,'Reference Data'!$B$9:$C$133,2,FALSE)) -> 2 | R15: =VLOOKUP(Q15,'Reference Data'!$C$9:O$125,($P$7)+1,FALSE) ->  | S15: =IF(Q15>1, ROUND(R15*AC15,2), "") ->  | T15: =IF(ISNUMBER(E15),E15,"") ->  | U15: =IF(ISNUMBER(T15),ROUND(E15*AC15,2),"") ->  | V15: =IF(ISNUMBER(G15),G15,0) -> 0 | W15: =IF(ISNUMBER(H15), H15, 0) -> 0 | X15: =IF(Q15>1,IF(ISNUMBER(U15),ROUND(U15*(1+W15)+V15,2),S15),"") ->  | Y15: =IF(W15>$AB$7,$AB$7,W15) -> 0 | Z15: =IF(ISNUMBER(U15),ROUND(U15*(Y15+1)+V15,2),S15) ->  | AA15: =IF(AND(Q15>1,S15>0,S15<Z15),S15,Z15) ->  | AB15: =IF(AND(ISNUMBER(X15),ISNUMBER(AA15)),IF((X15-AA15)>0,X15-AA15,""),"") ->  | AC15: =ROUND($C15,2) -> 0 | AD15: =IF(ISBLANK($A15),1,VLOOKUP($A15,'Reference Data'!$B$9:$D$133,3,FALSE)) -> 0 | AW15: =IF(AA15=0, 0, 1) ->  | AX15: 0
A16: Senior Project Manager | D16: =IF(Q16>1,VLOOKUP(Q16,'Reference Data'!$C$9:$C$43,5,FALSE),"") ->  | E16: =R16 ->  | G16: =IF(Q16>1,VLOOKUP(Q16,'Reference Data'!$C$9:$C$43,3,FALSE),"") ->  | I16: =IF(ISBLANK($C16),"",IF(($A$8)="Please Choose Date","Select Date Error!",IF($R16="N/A","",$X16))) ->  | Q16: =IF(ISBLANK($A16),1,VLOOKUP($A16,'Reference Data'!$B$9:$C$133,2,FALSE)) -> 3 | R16: =VLOOKUP(Q16,'Reference Data'!$C$9:O$125,($P$7)+1,FALSE) ->  | V16: 0 | W16: 0 | Y16: 0 | AC16: 0 | AD16: =IF(ISBLANK($A16),1,VLOOKUP($A16,'Reference Data'!$B$9:$D$133,3,FALSE)) -> 0 | AW16: =IF(AA16=0, 0, 1) ->  | AX16: 0
A17: Project Manager | D17: =IF(Q17>1,VLOOKUP(Q17,'Reference Data'!$C$9:$C$43,5,FALSE),"") ->  | G17: =IF(Q17>1,VLOOKUP(Q17,'Reference Data'!$C$9:$C$43,3,FALSE),"") ->  | Q17: =IF(ISBLANK($A17),1,VLOOKUP($A17,'Reference Data'!$B$9:$C$133,2,FALSE)) -> 4 | R17: =VLOOKUP(Q17,'Reference Data'!$C$9:O$125,($P$7)+1,FALSE) ->  | V17: 0 | W17: 0 | Y17: 0 | AC17: 0 | AD17: =IF(ISBLANK($A17),1,VLOOKUP($A17,'Reference Data'!$B$9:$D$133,3,FALSE)) -> 0 | AW17: =IF(AA17=0, 0, 1) ->  | AX17: 0
A18: Staff | D18: =IF(Q18>1,VLOOKUP(Q18,'Reference Data'!$C$9:$C$43,5,FALSE),"") ->  | G18: =IF(Q18>1,VLOOKUP(Q18,'Reference Data'!$C$9:$C$43,3,FALSE),"") ->  | Q18: =IF(ISBLANK($A18),1,VLOOKUP($A18,'Reference Data'!$B$9:$C$133,2,FALSE)) -> 5 | R18: =VLOOKUP(Q18,'Reference Data'!$C$9:O$125,($P$7)+1,FALSE) ->  | V18: 0 | W18: 0 | Y18: 0 | AC18: 0 | AD18: =IF(ISBLANK($A18),1,VLOOKUP($A18,'Reference Data'!$B$9:$D$133,3,FALSE)) -> 0 | AX18: 0
A19: Technician | D19: =IF(Q19>1,VLOOKUP(Q19,'Reference Data'!$C$9:$C$43,5,FALSE),"") ->  | G19: =IF(Q19>1,VLOOKUP(Q19,'Reference Data'!$C$9:$C$43,3,FALSE),"") ->  | Q19: =IF(ISBLANK($A19),1,VLOOKUP($A19,'Reference Data'!$B$9:$C$133,2,FALSE)) -> 6 | R19: =VLOOKUP(Q19,'Reference Data'!$C$9:O$125,($P$7)+1,FALSE) ->  | V19: 0 | W19: 0 | Y19: 0 | AC19: 0 | AD19: =IF(ISBLANK($A19),1,VLOOKUP($A19,'Reference Data'!$B$9:$D$133,3,FALSE)) -> 0 | AX19: 0
A20: Drafting | D20: =IF(Q20>1,VLOOKUP(Q20,'Reference Data'!$C$9:$C$43,5,FALSE),"") ->  | G20: =IF(Q20>1,VLOOKUP(Q20,'Reference Data'!$C$9:$C$43,3,FALSE),"") ->  | Q20: =IF(ISBLANK($A20),1,VLOOKUP($A20,'Reference Data'!$B$9:$C$133,2,FALSE)) -> 7 | R20: =VLOOKUP(Q20,'Reference Data'!$C$9:O$125,($P$7)+1,FALSE) ->  | V20: 0 | W20: 0 | Y20: 0 | AC20: 0 | AD20: =IF(ISBLANK($A20),1,VLOOKUP($A20,'Reference Data'!$B$9:$D$133,3,FALSE)) -> 0 | AX20: 0
A21: Clerical | D21: =IF(Q21>1,VLOOKUP(Q21,'Reference Data'!$C$9:$C$43,5,FALSE),"") ->  | G21: =IF(Q21>1,VLOOKUP(Q21,'Reference Data'!$C$9:$C$43,3,FALSE),"") ->  | Q21: =IF(ISBLANK($A21),1,VLOOKUP($A21,'Reference Data'!$B$9:$C$133,2,FALSE)) -> 8 | R21: =VLOOKUP(Q21,'Reference Data'!$C$9:O$125,($P$7)+1,FALSE) ->  | V21: 0 | W21: 0 | Y21: 0 | AC21: 0 | AD21: =IF(ISBLANK($A21),1,VLOOKUP($A21,'Reference Data'!$B$9:$D$133,3,FALSE)) -> 0 | AX21: 0
A22: Other (markup eligible) | B22: 1 | C22: 1 | D22: =IF(Q22>1,VLOOKUP(Q22,'Reference Data'!$C$9:$C$43,5,FALSE),"") ->  | E22: 0 | F22: 0 | G22: =IF(Q22>1,VLOOKUP(Q22,'Reference Data'!$C$9:$C$43,3,FALSE),"") ->  | I22: =IF($E22=0,"",IF(($A$8)="Please Choose Date","Select Date Error!",IF($R22="N/A","",$X22))) ->  | Q22: =IF(ISBLANK($A22),1,VLOOKUP($A22,'Reference Data'!$B$9:$C$133,2,FALSE)) -> 94 | R22: =VLOOKUP(Q22,'Reference Data'!$C$9:O$125,($P$7)+1,FALSE) ->  | T22: 0 | U22: 0 | V22: 0 | W22: 0 | X22: 0 | Y22: 0 | Z22: 0 | AC22: 1 | AD22: =IF(ISBLANK($A22),1,VLOOKUP($A22,'Reference Data'!$B$9:$D$133,3,FALSE)) -> 1 | AX22: 0
A23: Other (not markup eligible) | B23: 1 | C23: 1 | D23: =IF(Q23>1,VLOOKUP(Q23,'Reference Data'!$C$9:$C$43,5,FALSE),"") ->  | E23: 0 | F23: 0 | G23: =IF(Q23>1,VLOOKUP(Q23,'Reference Data'!$C$9:$C$43,3,FALSE),"") ->  | I23: =IF($E23=0,"",IF(($A$8)="Please Choose Date","Select Date Error!",IF($R23="N/A","",$X23))) ->  | Q23: =IF(ISBLANK($A23),1,VLOOKUP($A23,'Reference Data'!$B$9:$C$133,2,FALSE)) -> 95 | R23: =VLOOKUP(Q23,'Reference Data'!$C$9:O$125,($P$7)+1,FALSE) ->  | S23: =IF(Q23>1, ROUND(R23*AC23,2), "") ->  | T23: =IF(ISNUMBER(E23),E23,"") -> 0 | U23: =IF(ISNUMBER(T23),ROUND(E23*AC23,2),"") -> 0 | V23: =IF(ISNUMBER(G23),G23,0) -> 0 | W23: =IF(ISNUMBER(H23), H23, 0) -> 0 | X23: =IF(Q23>1,IF(ISNUMBER(U23),ROUND(U23*(1+W23)+V23,2),S23),"") -> 0 | Y23: =IF(W23>$AB$7,$AB$7,W23) -> 0 | Z23: =IF(ISNUMBER(U23),ROUND(U23*(Y23+1)+V23,2),S23) -> 0 | AA23: =IF(AND(Q23>1,S23>0,S23<Z23),S23,Z23) ->  | AB23: =IF(AND(ISNUMBER(X23),ISNUMBER(AA23)),IF((X23-AA23)>0,X23-AA23,""),"") ->  | AC23: 1 | AD23: =IF(ISBLANK($A23),1,VLOOKUP($A23,'Reference Data'!$B$9:$D$133,3,FALSE)) -> 0 | AX23: 0
AW24: =IF(SUM($I$27:$I$38)>0, 1, 0) -> 0 | AX24: 0
A25: Field Costs | G25: =IF(Q25>1,VLOOKUP(Q25,'Reference Data'!$C$9:$C$43,3,FALSE),"") ->  | I25: =IF(ISBLANK($C25),"",IF(($A$8)="Please Choose Date","Select Date Error!",IF($R25="N/A","",$X25))) ->  | R25: =VLOOKUP(Q25,'Reference Data'!$C$9:O$125,($P$7)+1,FALSE) ->  | AW25: =IF(SUM($I$27:$I$38)>0, 1, 0) -> 0 | AX25: 0
A26: DESCRIPTION | B26: TASK PERFORMED | C26: UNITS | D26: TYPE | E26: UNIT COST | F26: TOTAL W/O MARKUP OR TAX | G26: TAX (NO MARKUP) | H26: % MARK-UP | I26: AMOUNT PROPOSED | Q26: Automated Descriptor | R26: =VLOOKUP(Q26,'Reference Data'!$C$9:O$125,($P$7)+1,FALSE) ->  | S26: Total Automated Unit Cost | T26: PROPOSED Unit Cost | U26: PROPOSED total w/o markup or tax | V26: PROPOSED Tax | W26: PROPOSED Markup | X26: PROPOSED Total AMT | Y26: Lower Calculated Markup | Z26: Lower Calculated total w/ markup and tax | AA26: Lower Cost Final total | AB26: Amt Denied | AC26: Units Rounded | AD26: Markup Available | AW26: =IF(SUM($I$27:$I$38)>0, 1, 0) -> 0 | AX26: 0
A27: Principal | D27: =IF(Q27>1,VLOOKUP(Q27,'Reference Data'!$C$9:$C$43,5,FALSE),"") ->  | E27: =R27 ->  | F27: =IF(ISNUMBER(C27),IF(ISNUMBER(E27),ROUND(AC27*E27,2),""),"") ->  | G27: =IF(Q27>1,VLOOKUP(Q27,'Reference Data'!$C$9:$C$43,3,FALSE),"") ->  | I27: =IF(ISBLANK($C27),"",IF(($A$8)="Please Choose Date","Select Date Error!",IF($R27="N/A","",$X27))) ->  | Q27: =IF(ISBLANK($A27),1,VLOOKUP($A27,'Reference Data'!$B$9:$C$133,2,FALSE)) -> 2 | R27: =VLOOKUP(Q27,'Reference Data'!$C$9:O$125,($P$7)+1,FALSE) ->  | S27: =IF(Q27>1, ROUND(R27*AC27,2), "") ->  | T27: =IF(ISNUMBER(E27),E27,"") ->  | U27: =IF(ISNUMBER(T27),ROUND(E27*AC27,2),"") ->  | V27: =IF(ISNUMBER(G27),G27,0) -> 0 | W27: =IF(ISNUMBER(H27), H27, 0) -> 0 | X27: =IF(Q27>1,IF(ISNUMBER(U27),ROUND(U27*(1+W27)+V27,2),S27),"") ->  | Y27: =IF(W27>$AB$7,$AB$7,W27) -> 0 | Z27: =IF(ISNUMBER(U27),ROUND(U27*(Y27+1)+V27,2),S27) ->  | AA27: =IF(AND(Q27>1,S27>0,S27<Z27),S27,Z27) ->  | AB27: =IF(AND(ISNUMBER(X27),ISNUMBER(AA27)),IF((X27-AA27)>0,X27-AA27,""),"") ->  | AC27: =ROUND($C27,2) -> 0 | AD27: =IF(ISBLANK($A27),1,VLOOKUP($A27,'Reference Data'!$B$9:$D$133,3,FALSE)) -> 0 | AX27: 0
A28: Senior Project Manager | D28: =IF(Q28>1,VLOOKUP(Q28,'Reference Data'!$C$9:$C$43,5,FALSE),"") ->  | G28: =IF(Q28>1,VLOOKUP(Q28,'Reference Data'!$C$9:$C$43,3,FALSE),"") ->  | I28: =IF(ISBLANK($C28),"",IF(($A$8)="Please Choose Date","Select Date Error!",IF($R28="N/A","",$X28))) ->  | Q28: =IF(ISBLANK($A28),1,VLOOKUP($A28,'Reference Data'!$B$9:$C$133,2,FALSE)) -> 3 | R28: =VLOOKUP(Q28,'Reference Data'!$C$9:O$125,($P$7)+1,FALSE) ->  | V28: 0 | W28: 0 | Y28: 0 | AC28: 0 | AD28: =IF(ISBLANK($A28),1,VLOOKUP($A28,'Reference Data'!$B$9:$D$133,3,FALSE)) -> 0 | AX28: 0
A29: Project Manager | D29: =IF(Q29>1,VLOOKUP(Q29,'Reference Data'!$C$9:$C$43,5,FALSE),"") ->  | G29: =IF(Q29>1,VLOOKUP(Q29,'Reference Data'!$C$9:$C$43,3,FALSE),"") ->  | Q29: =IF(ISBLANK($A29),1,VLOOKUP($A29,'Reference Data'!$B$9:$C$133,2,FALSE)) -> 4 | R29: =VLOOKUP(Q29,'Reference Data'!$C$9:O$125,($P$7)+1,FALSE) ->  | V29: 0 | W29: 0 | Y29: 0 | AC29: 0 | AD29: =IF(ISBLANK($A29),1,VLOOKUP($A29,'Reference Data'!$B$9:$D$133,3,FALSE)) -> 0 | AX29: 0
A30: Staff | D30: =IF(Q30>1,VLOOKUP(Q30,'Reference Data'!$C$9:$C$43,5,FALSE),"") ->  | G30: =IF(Q30>1,VLOOKUP(Q30,'Reference Data'!$C$9:$C$43,3,FALSE),"") ->  | Q30: =IF(ISBLANK($A30),1,VLOOKUP($A30,'Reference Data'!$B$9:$C$133,2,FALSE)) -> 5 | R30: =VLOOKUP(Q30,'Reference Data'!$C$9:O$125,($P$7)+1,FALSE) ->  | V30: 0 | W30: 0 | Y30: 0 | AC30: 0 | AD30: =IF(ISBLANK($A30),1,VLOOKUP($A30,'Reference Data'!$B$9:$D$133,3,FALSE)) -> 0 | AX30: 0
A31: Technician | D31: =IF(Q31>1,VLOOKUP(Q31,'Reference Data'!$C$9:$C$43,5,FALSE),"") ->  | G31: =IF(Q31>1,VLOOKUP(Q31,'Reference Data'!$C$9:$C$43,3,FALSE),"") ->  | Q31: =IF(ISBLANK($A31),1,VLOOKUP($A31,'Reference Data'!$B$9:$C$133,2,FALSE)) -> 6 | R31: =VLOOKUP(Q31,'Reference Data'!$C$9:O$125,($P$7)+1,FALSE) ->  | V31: 0 | W31: 0 | Y31: 0 | AC31: 0 | AD31: =IF(ISBLANK($A31),1,VLOOKUP($A31,'Reference Data'!$B$9:$D$133,3,FALSE)) -> 0 | AX31: 0
A32: Drafting | D32: =IF(Q32>1,VLOOKUP(Q32,'Reference Data'!$C$9:$C$43,5,FALSE),"") ->  | G32: =IF(Q32>1,VLOOKUP(Q32,'Reference Data'!$C$9:$C$43,3,FALSE),"") ->  | Q32: =IF(ISBLANK($A32),1,VLOOKUP($A32,'Reference Data'!$B$9:$C$133,2,FALSE)) -> 7 | R32: =VLOOKUP(Q32,'Reference Data'!$C$9:O$125,($P$7)+1,FALSE) ->  | V32: 0 | W32: 0 | Y32: 0 | AC32: 0 | AD32: =IF(ISBLANK($A32),1,VLOOKUP($A32,'Reference Data'!$B$9:$D$133,3,FALSE)) -> 0 | AX32: 0
A33: Clerical | D33: =IF(Q33>1,VLOOKUP(Q33,'Reference Data'!$C$9:$C$43,5,FALSE),"") ->  | G33: =IF(Q33>1,VLOOKUP(Q33,'Reference Data'!$C$9:$C$43,3,FALSE),"") ->  | Q33: =IF(ISBLANK($A33),1,VLOOKUP($A33,'Reference Data'!$B$9:$C$133,2,FALSE)) -> 8 | R33: =VLOOKUP(Q33,'Reference Data'!$C$9:O$125,($P$7)+1,FALSE) ->  | V33: 0 | W33: 0 | Y33: 0 | AC33: 0 | AD33: =IF(ISBLANK($A33),1,VLOOKUP($A33,'Reference Data'!$B$9:$D$133,3,FALSE)) -> 0 | AX33: 0
A34: Mileage | D34: =IF(Q34>1,VLOOKUP(Q34,'Reference Data'!$C$9:$C$43,5,FALSE),"") ->  | G34: =IF(Q34>1,VLOOKUP(Q34,'Reference Data'!$C$9:$C$43,3,FALSE),"") ->  | Q34: =IF(ISBLANK($A34),1,VLOOKUP($A34,'Reference Data'!$B$9:$C$133,2,FALSE)) -> 9 | R34: =VLOOKUP(Q34,'Reference Data'!$C$9:O$125,($P$7)+1,FALSE) ->  | V34: 0 | W34: 0 | Y34: 0 | AC34: 0 | AD34: =IF(ISBLANK($A34),1,VLOOKUP($A34,'Reference Data'!$B$9:$D$133,3,FALSE)) -> 0 | AX34: 0
A35: Overnight lodging (total) | C35: 1 | D35: =IF(Q35>1,VLOOKUP(Q35,'Reference Data'!$C$9:$C$43,5,FALSE),"") ->  | E35: 0 | F35: 0 | G35: =IF(Q35>1,VLOOKUP(Q35,'Reference Data'!$C$9:$C$43,3,FALSE),"") ->  | I35: =IF($E35=0,"",IF(($A$8)="Please Choose Date","Select Date Error!",IF($R35="N/A","",$X35))) ->  | Q35: =IF(ISBLANK($A35),1,VLOOKUP($A35,'Reference Data'!$B$9:$C$133,2,FALSE)) -> 10 | R35: =VLOOKUP(Q35,'Reference Data'!$C$9:O$125,($P$7)+1,FALSE) ->  | T35: 0 | U35: 0 | V35: 0 | W35: 0 | X35: 0 | Y35: 0 | Z35: 0 | AC35: 1 | AD35: =IF(ISBLANK($A35),1,VLOOKUP($A35,'Reference Data'!$B$9:$D$133,3,FALSE)) -> 0 | AX35: 0
A36: Per diem | D36: =IF(Q36>1,VLOOKUP(Q36,'Reference Data'!$C$9:$C$43,5,FALSE),"") ->  | G36: =IF(Q36>1,VLOOKUP(Q36,'Reference Data'!$C$9:$C$43,3,FALSE),"") ->  | I36: =IF(ISBLANK($C36),"",IF(($A$8)="Please Choose Date","Select Date Error!",IF($R36="N/A","",$X36))) ->  | Q36: =IF(ISBLANK($A36),1,VLOOKUP($A36,'Reference Data'!$B$9:$C$133,2,FALSE)) -> 11 | R36: =VLOOKUP(Q36,'Reference Data'!$C$9:O$125,($P$7)+1,FALSE) ->  | V36: 0 | W36: 0 | Y36: 0 | AC36: 0 | AD36: =IF(ISBLANK($A36),1,VLOOKUP($A36,'Reference Data'!$B$9:$D$133,3,FALSE)) -> 0 | AX36: 0
A37: Other (markup eligible) | C37: 1 | D37: =IF(Q37>1,VLOOKUP(Q37,'Reference Data'!$C$9:$C$43,5,FALSE),"") ->  | E37: 0 | F37: 0 | G37: =IF(Q37>1,VLOOKUP(Q37,'Reference Data'!$C$9:$C$43,3,FALSE),"") ->  | I37: =IF($E37=0,"",IF(($A$8)="Please Choose Date","Select Date Error!",IF($R37="N/A","",$X37))) ->  | Q37: =IF(ISBLANK($A37),1,VLOOKUP($A37,'Reference Data'!$B$9:$C$133,2,FALSE)) -> 94 | R37: =VLOOKUP(Q37,'Reference Data'!$C$9:O$125,($P$7)+1,FALSE) ->  | T37: 0 | U37: 0 | V37: 0 | W37: 0 | X37: 0 | Y37: 0 | Z37: 0 | AC37: 1 | AD37: =IF(ISBLANK($A37),1,VLOOKUP($A37,'Reference Data'!$B$9:$D$133,3,FALSE)) -> 1 | AX37: 0
A38: Other (not markup eligible) | C38: 1 | D38: =IF(Q38>1,VLOOKUP(Q38,'Reference Data'!$C$9:$C$43,5,FALSE),"") ->  | E38: 0 | F38: 0 | G38: =IF(Q38>1,VLOOKUP(Q38,'Reference Data'!$C$9:$C$43,3,FALSE),"") ->  | I38: =IF($E38=0,"",IF(($A$8)="Please Choose Date","Select Date Error!",IF($R38="N/A","",$X38))) ->  | Q38: =IF(ISBLANK($A38),1,VLOOKUP($A38,'Reference Data'!$B$9:$C$133,2,FALSE)) -> 95 | R38: =VLOOKUP(Q38,'Reference Data'!$C$9:O$125,($P$7)+1,FALSE) ->  | T38: 0 | U38: 0 | V38: 0 | W38: 0 | X38: 0 | Y38: 0 | Z38: 0 | AC38: 1 | AD38: =IF(ISBLANK($A38),1,VLOOKUP($A38,'Reference Data'!$B$9:$D$133,3,FALSE)) -> 0 | AX38: 0
AW39: =IF(SUM($I$42:$I$51)>0, 1, 0) -> 0 | AX39: 0
A40: Report Writing Costs | F40: =IF(ISNUMBER(C40),IF(ISNUMBER(E40),ROUND(AC40*E40,2),""),"") ->  | G40: =IF(Q40>1,VLOOKUP(Q40,'Reference Data'!$C$9:$C$43,3,FALSE),"") ->  | I40: =IF(ISBLANK($C40),"",IF(($A$8)="Please Choose Date","Select Date Error!",IF($R40="N/A","",$X40))) ->  | R40: =VLOOKUP(Q40,'Reference Data'!$C$9:O$125,($P$7)+1,FALSE) ->  | AW40: =IF(SUM($I$42:$I$51)>0, 1, 0) -> 0 | AX40: 0
A41: DESCRIPTION | B41: TASK PERFORMED | C41: UNITS | D41: TYPE | E41: UNIT COST | F41: TOTAL W/O MARKUP OR TAX | G41: TAX (NO MARKUP) | H41: % MARK-UP | I41: AMOUNT PROPOSED | Q41: Automated Descriptor | R41: =VLOOKUP(Q41,'Reference Data'!$C$9:O$125,($P$7)+1,FALSE) ->  | S41: Total Automated Unit Cost | T41: PROPOSED Unit Cost | U41: PROPOSED total w/o markup or tax | V41: PROPOSED Tax | W41: PROPOSED Markup | X41: PROPOSED Total AMT | Y41: Lower Calculated Markup | Z41: Lower Calculated total w/ markup and tax | AA41: Lower Cost Final total | AB41: Amt Denied | AC41: Units Rounded | AD41: Markup Available | AW41: =IF(SUM($I$42:$I$51)>0, 1, 0) -> 0 | AX41: 0
A42: Principal | D42: =IF(Q42>1,VLOOKUP(Q42,'Reference Data'!$C$9:$C$43,5,FALSE),"") ->  | E42: =R42 ->  | F42: =IF(ISNUMBER(C42),IF(ISNUMBER(E42),ROUND(AC42*E42,2),""),"") ->  | G42: =IF(Q42>1,VLOOKUP(Q42,'Reference Data'!$C$9:$C$43,3,FALSE),"") ->  | I42: =IF(ISBLANK($C42),"",IF(($A$8)="Please Choose Date","Select Date Error!",IF($R42="N/A","",$X42))) ->  | Q42: =IF(ISBLANK($A42),1,VLOOKUP($A42,'Reference Data'!$B$9:$C$133,2,FALSE)) -> 2 | R42: =VLOOKUP(Q42,'Reference Data'!$C$9:O$125,($P$7)+1,FALSE) ->  | S42: =IF(Q42>1, ROUND(R42*AC42,2), "") ->  | T42: =IF(ISNUMBER(E42),E42,"") ->  | U42: =IF(ISNUMBER(T42),ROUND(E42*AC42,2),"") ->  | V42: =IF(ISNUMBER(G42),G42,0) -> 0 | W42: =IF(ISNUMBER(H42), H42, 0) -> 0 | X42: =IF(Q42>1,IF(ISNUMBER(U42),ROUND(U42*(1+W42)+V42,2),S42),"") ->  | Y42: =IF(W42>$AB$7,$AB$7,W42) -> 0 | Z42: =IF(ISNUMBER(U42),ROUND(U42*(Y42+1)+V42,2),S42) ->  | AA42: =IF(AND(Q42>1,S42>0,S42<Z42),S42,Z42) ->  | AB42: =IF(AND(ISNUMBER(X42),ISNUMBER(AA42)),IF((X42-AA42)>0,X42-AA42,""),"") ->  | AC42: =ROUND($C42,2) -> 0 | AD42: =IF(ISBLANK($A42),1,VLOOKUP($A42,'Reference Data'!$B$9:$D$133,3,FALSE)) -> 0 | AX42: 0
A43: Senior Project Manager | D43: =IF(Q43>1,VLOOKUP(Q43,'Reference Data'!$C$9:$C$43,5,FALSE),"") ->  | G43: =IF(Q43>1,VLOOKUP(Q43,'Reference Data'!$C$9:$C$43,3,FALSE),"") ->  | Q43: =IF(ISBLANK($A43),1,VLOOKUP($A43,'Reference Data'!$B$9:$C$133,2,FALSE)) -> 3 | R43: =VLOOKUP(Q43,'Reference Data'!$C$9:O$125,($P$7)+1,FALSE) ->  | V43: 0 | W43: 0 | Y43: 0 | AC43: 0 | AD43: =IF(ISBLANK($A43),1,VLOOKUP($A43,'Reference Data'!$B$9:$D$133,3,FALSE)) -> 0 | AX43: 0
A44: Project Manager | D44: =IF(Q44>1,VLOOKUP(Q44,'Reference Data'!$C$9:$C$43,5,FALSE),"") ->  | G44: =IF(Q44>1,VLOOKUP(Q44,'Reference Data'!$C$9:$C$43,3,FALSE),"") ->  | Q44: =IF(ISBLANK($A44),1,VLOOKUP($A44,'Reference Data'!$B$9:$C$133,2,FALSE)) -> 4 | R44: =VLOOKUP(Q44,'Reference Data'!$C$9:O$125,($P$7)+1,FALSE) ->  | V44: 0 | W44: 0 | Y44: 0 | AC44: 0 | AD44: =IF(ISBLANK($A44),1,VLOOKUP($A44,'Reference Data'!$B$9:$D$133,3,FALSE)) -> 0 | AX44: 0
A45: Staff | D45: =IF(Q45>1,VLOOKUP(Q45,'Reference Data'!$C$9:$C$43,5,FALSE),"") ->  | G45: =IF(Q45>1,VLOOKUP(Q45,'Reference Data'!$C$9:$C$43,3,FALSE),"") ->  | Q45: =IF(ISBLANK($A45),1,VLOOKUP($A45,'Reference Data'!$B$9:$C$133,2,FALSE)) -> 5 | R45: =VLOOKUP(Q45,'Reference Data'!$C$9:O$125,($P$7)+1,FALSE) ->  | V45: 0 | W45: 0 | Y45: 0 | AC45: 0 | AD45: =IF(ISBLANK($A45),1,VLOOKUP($A45,'Reference Data'!$B$9:$D$133,3,FALSE)) -> 0 | AX45: 0
A46: Technician | D46: =IF(Q46>1,VLOOKUP(Q46,'Reference Data'!$C$9:$C$43,5,FALSE),"") ->  | G46: =IF(Q46>1,VLOOKUP(Q46,'Reference Data'!$C$9:$C$43,3,FALSE),"") ->  | Q46: =IF(ISBLANK($A46),1,VLOOKUP($A46,'Reference Data'!$B$9:$C$133,2,FALSE)) -> 6 | R46: =VLOOKUP(Q46,'Reference Data'!$C$9:O$125,($P$7)+1,FALSE) ->  | V46: 0 | W46: 0 | Y46: 0 | AC46: 0 | AD46: =IF(ISBLANK($A46),1,VLOOKUP($A46,'Reference Data'!$B$9:$D$133,3,FALSE)) -> 0 | AX46: 0
A47: Drafting | D47: =IF(Q47>1,VLOOKUP(Q47,'Reference Data'!$C$9:$C$43,5,FALSE),"") ->  | G47: =IF(Q47>1,VLOOKUP(Q47,'Reference Data'!$C$9:$C$43,3,FALSE),"") ->  | Q47: =IF(ISBLANK($A47),1,VLOOKUP($A47,'Reference Data'!$B$9:$C$133,2,FALSE)) -> 7 | R47: =VLOOKUP(Q47,'Reference Data'!$C$9:O$125,($P$7)+1,FALSE) ->  | V47: 0 | W47: 0 | Y47: 0 | AC47: 0 | AD47: =IF(ISBLANK($A47),1,VLOOKUP($A47,'Reference Data'!$B$9:$D$133,3,FALSE)) -> 0 | AX47: 0
A48: Clerical | D48: =IF(Q48>1,VLOOKUP(Q48,'Reference Data'!$C$9:$C$43,5,FALSE),"") ->  | G48: =IF(Q48>1,VLOOKUP(Q48,'Reference Data'!$C$9:$C$43,3,FALSE),"") ->  | Q48: =IF(ISBLANK($A48),1,VLOOKUP($A48,'Reference Data'!$B$9:$C$133,2,FALSE)) -> 8 | R48: =VLOOKUP(Q48,'Reference Data'!$C$9:O$125,($P$7)+1,FALSE) ->  | V48: 0 | W48: 0 | Y48: 0 | AC48: 0 | AD48: =IF(ISBLANK($A48),1,VLOOKUP($A48,'Reference Data'!$B$9:$D$133,3,FALSE)) -> 0 | AX48: 0
A49: Copies | D49: =IF(Q49>1,VLOOKUP(Q49,'Reference Data'!$C$9:$C$43,5,FALSE),"") ->  | G49: =IF(Q49>1,VLOOKUP(Q49,'Reference Data'!$C$9:$C$43,3,FALSE),"") ->  | Q49: =IF(ISBLANK($A49),1,VLOOKUP($A49,'Reference Data'!$B$9:$C$133,2,FALSE)) -> 96 | R49: =VLOOKUP(Q49,'Reference Data'!$C$9:O$125,($P$7)+1,FALSE) ->  | V49: 0 | W49: 0 | Y49: 0 | AC49: 0 | AD49: =IF(ISBLANK($A49),1,VLOOKUP($A49,'Reference Data'!$B$9:$D$133,3,FALSE)) -> 0 | AX49: 0
A50: Other (markup eligible) | C50: 1 | D50: =IF(Q50>1,VLOOKUP(Q50,'Reference Data'!$C$9:$C$43,5,FALSE),"") ->  | E50: 0 | F50: 0 | G50: =IF(Q50>1,VLOOKUP(Q50,'Reference Data'!$C$9:$C$43,3,FALSE),"") ->  | I50: =IF($E50=0,"",IF(($A$8)="Please Choose Date","Select Date Error!",IF($R50="N/A","",$X50))) ->  | Q50: =IF(ISBLANK($A50),1,VLOOKUP($A50,'Reference Data'!$B$9:$C$133,2,FALSE)) -> 94 | R50: =VLOOKUP(Q50,'Reference Data'!$C$9:O$125,($P$7)+1,FALSE) ->  | T50: 0 | U50: 0 | V50: 0 | W50: 0 | X50: 0 | Y50: 0 | Z50: 0 | AC50: 1 | AD50: =IF(ISBLANK($A50),1,VLOOKUP($A50,'Reference Data'!$B$9:$D$133,3,FALSE)) -> 1 | AX50: 0
A51: Other (not markup eligible) | C51: 1 | D51: =IF(Q51>1,VLOOKUP(Q51,'Reference Data'!$C$9:$C$43,5,FALSE),"") ->  | E51: 0 | F51: 0 | G51: =IF(Q51>1,VLOOKUP(Q51,'Reference Data'!$C$9:$C$43,3,FALSE),"") ->  | I51: =IF($E51=0,"",IF(($A$8)="Please Choose Date","Select Date Error!",IF($R51="N/A","",$X51))) ->  | Q51: =IF(ISBLANK($A51),1,VLOOKUP($A51,'Reference Data'!$B$9:$C$133,2,FALSE)) -> 95 | R51: =VLOOKUP(Q51,'Reference Data'!$C$9:O$125,($P$7)+1,FALSE) ->  | T51: 0 | U51: 0 | V51: 0 | W51: 0 | X51: 0 | Y51: 0 | Z51: 0 | AC51: 1 | AD51: =IF(ISBLANK($A51),1,VLOOKUP($A51,'Reference Data'!$B$9:$D$133,3,FALSE)) -> 0 | AX51: 0
A52: Immediate Response Grand Total | I52: =SUM(I15:I51) -> 0 | R52: =VLOOKUP(Q52,'Reference Data'!$C$9:O$125,($P$7)+1,FALSE) ->  | AA52: =I52 -> 0 | AW52: 0 | AX52: 0
A53: Site Characterization and CAP Development Costs | R53: =VLOOKUP(Q53,'Reference Data'!$C$9:Z$125,($P$7)+1,FALSE) ->  | AW53: =IF(SUM($I$57:$I$298)>0, 1, 0) -> 0 | AX53: 0
A54: Initial Site Characterization | R54: =VLOOKUP(Q54,'Reference Data'!$C$9:Z$125,($P$7)+1,FALSE) ->  | AW54: =IF(SUM($I$57:$I$134)>0, 1, 0) -> 0 | AX54: 0
A55: Planning, Preparation, and Follow-up Costs (Office) | R55: =VLOOKUP(Q55,'Reference Data'!$C$9:Z$125,($P$7)+1,FALSE) ->  | AW55: =IF(SUM($I$57:$I$65)>0, 1, 0) -> 0 | AX55: 0
A56: DESCRIPTION | B56: TASK PERFORMED | C56: UNITS | D56: TYPE | E56: UNIT COST | F56: TOTAL W/O MARKUP OR TAX | G56: TAX (NO MARKUP) | H56: % MARK-UP | I56: AMOUNT PROPOSED | Q56: Automated Descriptor | R56: =VLOOKUP(Q56,'Reference Data'!$C$9:Z$125,($P$7)+1,FALSE) ->  | S56: Total Automated Unit Cost | T56: PROPOSED Unit Cost | U56: PROPOSED total w/o markup or tax | V56: PROPOSED Tax | W56: PROPOSED Markup | X56: PROPOSED Total AMT | Y56: Lower Calculated Markup | Z56: Lower Calculated total w/ markup and tax | AA56: Lower Cost Final total | AB56: Amt Denied | AC56: Units Rounded | AD56: Markup Available | AW56: =IF(SUM($I$57:$I$65)>0, 1, 0) -> 0 | AX56: 0
A57: Principal | D57: =IF(Q57>1,VLOOKUP(Q57,'Reference Data'!$C$9:$C$43,5,FALSE),"") ->  | E57: =R57 -> 175.25 | F57: =IF(ISNUMBER(C57),IF(ISNUMBER(E57),ROUND(AC57*E57,2),""),"") ->  | G57: =IF(Q57>1,VLOOKUP(Q57,'Reference Data'!$C$9:$C$43,3,FALSE),"") ->  | I57: =IF(ISBLANK($C57),"",IF(($A$8)="Please Choose Date","Select Date Error!",IF($R57="N/A","",$X57))) ->  | Q57: =IF(ISBLANK($A57),1,VLOOKUP($A57,'Reference Data'!$B$9:$C$133,2,FALSE)) -> 2 | R57: =VLOOKUP(Q57,'Reference Data'!$C$9:Z$125,($P$7)+1,FALSE) -> 175.25 | S57: =IF(Q57>1, ROUND(R57*AC57,2), "") -> 0 | T57: =IF(ISNUMBER(E57),E57,"") -> 175.25 | U57: =IF(ISNUMBER(T57),ROUND(E57*AC57,2),"") -> 0 | V57: =IF(ISNUMBER(G57),G57,0) -> 0 | W57: =IF(ISNUMBER(H57), H57, 0) -> 0 | X57: =IF(Q57>1,IF(ISNUMBER(U57),ROUND(U57*(1+W57)+V57,2),S57),"") -> 0 | Y57: =IF(W57>$AB$7,$AB$7,W57) -> 0 | Z57: =IF(ISNUMBER(U57),ROUND(U57*(Y57+1)+V57,2),S57) -> 0 | AA57: =IF(AND(Q57>1,S57>0,S57<Z57),S57,Z57) -> 0 | AB57: =IF(AND(ISNUMBER(X57),ISNUMBER(AA57)),IF((X57-AA57)>0,X57-AA57,""),"") ->  | AC57: =ROUND($C57,2) -> 0 | AD57: =IF(ISBLANK($A57),1,VLOOKUP($A57,'Reference Data'!$B$9:$D$133,3,FALSE)) -> 0 | AW57: 0 | AX57: 0
A58: Senior Project Manager | D58: =IF(Q58>1,VLOOKUP(Q58,'Reference Data'!$C$9:$C$43,5,FALSE),"") ->  | E58: 162.75 | F58: =IF(ISNUMBER(C58),IF(ISNUMBER(E58),ROUND(AC58*E58,2),""),"") ->  | G58: =IF(Q58>1,VLOOKUP(Q58,'Reference Data'!$C$9:$C$43,3,FALSE),"") ->  | Q58: =IF(ISBLANK($A58),1,VLOOKUP($A58,'Reference Data'!$B$9:$C$133,2,FALSE)) -> 3 | R58: =VLOOKUP(Q58,'Reference Data'!$C$9:Z$125,($P$7)+1,FALSE) -> 162.75 | S58: 0 | T58: 162.75 | U58: 0 | V58: 0 | W58: 0 | X58: 0 | Y58: 0 | Z58: 0 | AA58: 0 | AC58: 0 | AD58: =IF(ISBLANK($A58),1,VLOOKUP($A58,'Reference Data'!$B$9:$D$133,3,FALSE)) -> 0 | AW58: 0 | AX58: 0
A59: Project Manager | D59: =IF(Q59>1,VLOOKUP(Q59,'Reference Data'!$C$9:$C$43,5,FALSE),"") ->  | E59: 133.75 | G59: =IF(Q59>1,VLOOKUP(Q59,'Reference Data'!$C$9:$C$43,3,FALSE),"") ->  | Q59: =IF(ISBLANK($A59),1,VLOOKUP($A59,'Reference Data'!$B$9:$C$133,2,FALSE)) -> 4 | R59: =VLOOKUP(Q59,'Reference Data'!$C$9:Z$125,($P$7)+1,FALSE) -> 133.75 | S59: 0 | T59: 133.75 | U59: 0 | V59: 0 | W59: 0 | X59: 0 | Y59: 0 | Z59: 0 | AA59: 0 | AC59: 0 | AD59: =IF(ISBLANK($A59),1,VLOOKUP($A59,'Reference Data'!$B$9:$D$133,3,FALSE)) -> 0 | AW59: 0 | AX59: 0
A60: Staff | D60: =IF(Q60>1,VLOOKUP(Q60,'Reference Data'!$C$9:$C$43,5,FALSE),"") ->  | E60: 112.25 | G60: =IF(Q60>1,VLOOKUP(Q60,'Reference Data'!$C$9:$C$43,3,FALSE),"") ->  | Q60: =IF(ISBLANK($A60),1,VLOOKUP($A60,'Reference Data'!$B$9:$C$133,2,FALSE)) -> 5 | R60: =VLOOKUP(Q60,'Reference Data'!$C$9:Z$125,($P$7)+1,FALSE) -> 112.25 | S60: 0 | T60: 112.25 | U60: 0 | V60: 0 | W60: 0 | X60: 0 | Y60: 0 | Z60: 0 | AA60: 0 | AC60: 0 | AD60: =IF(ISBLANK($A60),1,VLOOKUP($A60,'Reference Data'!$B$9:$D$133,3,FALSE)) -> 0 | AW60: 0 | AX60: 0
A61: Technician | D61: =IF(Q61>1,VLOOKUP(Q61,'Reference Data'!$C$9:$C$43,5,FALSE),"") ->  | E61: 77 | G61: =IF(Q61>1,VLOOKUP(Q61,'Reference Data'!$C$9:$C$43,3,FALSE),"") ->  | Q61: =IF(ISBLANK($A61),1,VLOOKUP($A61,'Reference Data'!$B$9:$C$133,2,FALSE)) -> 6 | R61: =VLOOKUP(Q61,'Reference Data'!$C$9:Z$125,($P$7)+1,FALSE) -> 77 | S61: 0 | T61: 77 | U61: 0 | V61: 0 | W61: 0 | X61: 0 | Y61: 0 | Z61: 0 | AA61: 0 | AC61: 0 | AD61: =IF(ISBLANK($A61),1,VLOOKUP($A61,'Reference Data'!$B$9:$D$133,3,FALSE)) -> 0 | AW61: 0 | AX61: 0
A62: Drafting | D62: =IF(Q62>1,VLOOKUP(Q62,'Reference Data'!$C$9:$C$43,5,FALSE),"") ->  | E62: 64.25 | G62: =IF(Q62>1,VLOOKUP(Q62,'Reference Data'!$C$9:$C$43,3,FALSE),"") ->  | Q62: =IF(ISBLANK($A62),1,VLOOKUP($A62,'Reference Data'!$B$9:$C$133,2,FALSE)) -> 7 | R62: =VLOOKUP(Q62,'Reference Data'!$C$9:Z$125,($P$7)+1,FALSE) -> 64.25 | S62: 0 | T62: 64.25 | U62: 0 | V62: 0 | W62: 0 | X62: 0 | Y62: 0 | Z62: 0 | AA62: 0 | AC62: 0 | AD62: =IF(ISBLANK($A62),1,VLOOKUP($A62,'Reference Data'!$B$9:$D$133,3,FALSE)) -> 0 | AW62: 0 | AX62: 0
A63: Clerical | D63: =IF(Q63>1,VLOOKUP(Q63,'Reference Data'!$C$9:$C$43,5,FALSE),"") ->  | E63: 45.5 | G63: =IF(Q63>1,VLOOKUP(Q63,'Reference Data'!$C$9:$C$43,3,FALSE),"") ->  | Q63: =IF(ISBLANK($A63),1,VLOOKUP($A63,'Reference Data'!$B$9:$C$133,2,FALSE)) -> 8 | R63: =VLOOKUP(Q63,'Reference Data'!$C$9:Z$125,($P$7)+1,FALSE) -> 45.5 | S63: 0 | T63: 45.5 | U63: 0 | V63: 0 | W63: 0 | X63: 0 | Y63: 0 | Z63: 0 | AA63: 0 | AC63: 0 | AD63: =IF(ISBLANK($A63),1,VLOOKUP($A63,'Reference Data'!$B$9:$D$133,3,FALSE)) -> 0 | AW63: 0 | AX63: 0
A64: Other (markup eligible) | C64: 1 | D64: =IF(Q64>1,VLOOKUP(Q64,'Reference Data'!$C$9:$C$43,5,FALSE),"") ->  | E64: 0 | F64: 0 | G64: =IF(Q64>1,VLOOKUP(Q64,'Reference Data'!$C$9:$C$43,3,FALSE),"") ->  | I64: =IF($E64=0,"",IF(($A$8)="Please Choose Date","Select Date Error!",IF($R64="N/A","",$X64))) ->  | Q64: =IF(ISBLANK($A64),1,VLOOKUP($A64,'Reference Data'!$B$9:$C$133,2,FALSE)) -> 94 | R64: =VLOOKUP(Q64,'Reference Data'!$C$9:Z$125,($P$7)+1,FALSE) -> 0 | S64: 0 | T64: 0 | U64: 0 | V64: 0 | W64: 0 | X64: 0 | Y64: 0 | Z64: 0 | AA64: 0 | AC64: 1 | AD64: =IF(ISBLANK($A64),1,VLOOKUP($A64,'Reference Data'!$B$9:$D$133,3,FALSE)) -> 1 | AW64: 0 | AX64: 0
A65: Other (not markup eligible) | C65: 1 | D65: =IF(Q65>1,VLOOKUP(Q65,'Reference Data'!$C$9:$C$43,5,FALSE),"") ->  | E65: 0 | F65: 0 | G65: =IF(Q65>1,VLOOKUP(Q65,'Reference Data'!$C$9:$C$43,3,FALSE),"") ->  | I65: =IF($E65=0,"",IF(($A$8)="Please Choose Date","Select Date Error!",IF($R65="N/A","",$X65))) ->  | Q65: =IF(ISBLANK($A65),1,VLOOKUP($A65,'Reference Data'!$B$9:$C$133,2,FALSE)) -> 95 | R65: =VLOOKUP(Q65,'Reference Data'!$C$9:Z$125,($P$7)+1,FALSE) -> 0 | S65: 0 | T65: 0 | U65: 0 | V65: 0 | W65: 0 | X65: 0 | Y65: 0 | Z65: 0 | AA65: 0 | AC65: 1 | AD65: =IF(ISBLANK($A65),1,VLOOKUP($A65,'Reference Data'!$B$9:$D$133,3,FALSE)) -> 0 | AW65: 0 | AX65: 0
R66: =VLOOKUP(Q66,'Reference Data'!$C$9:Z$125,($P$7)+1,FALSE) ->  | AW66: =IF(SUM($I$69:$I93)>0, 1, 0) -> 0 | AX66: 0
A67: Field Costs | G67: =IF(Q67>1,VLOOKUP(Q67,'Reference Data'!$C$9:$C$43,3,FALSE),"") ->  | I67: =IF(ISBLANK($C67),"",IF(($A$8)="Please Choose Date","Select Date Error!",IF($R67="N/A","",$X67))) ->  | R67: =VLOOKUP(Q67,'Reference Data'!$C$9:Z$125,($P$7)+1,FALSE) ->  | AW67: =IF(SUM($I$69:$I93)>0, 1, 0) -> 0 | AX67: 0
A68: DESCRIPTION | B68: TASK PERFORMED | C68: UNITS | D68: TYPE | E68: UNIT COST | F68: TOTAL W/O MARKUP OR TAX | G68: TAX (NO MARKUP) | H68: % MARK-UP | I68: AMOUNT PROPOSED | Q68: Automated Descriptor | R68: =VLOOKUP(Q68,'Reference Data'!$C$9:Z$125,($P$7)+1,FALSE) ->  | S68: Total Automated Unit Cost | T68: PROPOSED Unit Cost | U68: PROPOSED total w/o markup or tax | V68: PROPOSED Tax | W68: PROPOSED Markup | X68: PROPOSED Total AMT | Y68: Lower Calculated Markup | Z68: Lower Calculated total w/ markup and tax | AA68: Lower Cost Final total | AB68: Amt Denied | AC68: Units Rounded | AD68: Markup Available | AW68: =IF(SUM($I$69:$I93)>0, 1, 0) -> 0 | AX68: 0
A69: Principal | D69: =IF(Q69>1,VLOOKUP(Q69,'Reference Data'!$C$9:$C$43,5,FALSE),"") ->  | E69: =R69 -> 175.25 | G69: =IF(Q69>1,VLOOKUP(Q69,'Reference Data'!$C$9:$C$43,3,FALSE),"") ->  | I69: =IF(ISBLANK($C69),"",IF(($A$8)="Please Choose Date","Select Date Error!",IF($R69="N/A","",$X69))) ->  | Q69: =IF(ISBLANK($A69),1,VLOOKUP($A69,'Reference Data'!$B$9:$C$133,2,FALSE)) -> 2 | R69: =VLOOKUP(Q69,'Reference Data'!$C$9:Z$125,($P$7)+1,FALSE) -> 175.25 | S69: =IF(Q69>1, ROUND(R69*AC69,2), "") -> 0 | T69: =IF(ISNUMBER(E69),E69,"") -> 175.25 | U69: =IF(ISNUMBER(T69),ROUND(E69*AC69,2),"") -> 0 | V69: =IF(ISNUMBER(G69),G69,0) -> 0 | W69: =IF(ISNUMBER(H69), H69, 0) -> 0 | X69: =IF(Q69>1,IF(ISNUMBER(U69),ROUND(U69*(1+W69)+V69,2),S69),"") -> 0 | Y69: =IF(W69>$AB$7,$AB$7,W69) -> 0 | Z69: =IF(ISNUMBER(U69),ROUND(U69*(Y69+1)+V69,2),S69) -> 0 | AA69: =IF(AND(Q69>1,S69>0,S69<Z69),S69,Z69) -> 0 | AB69: =IF(AND(ISNUMBER(X69),ISNUMBER(AA69)),IF((X69-AA69)>0,X69-AA69,""),"") ->  | AC69: =ROUND($C69,2) -> 0 | AD69: =IF(ISBLANK($A69),1,VLOOKUP($A69,'Reference Data'!$B$9:$D$133,3,FALSE)) -> 0 | AW69: 0 | AX69: 0
A70: Senior Project Manager | D70: =IF(Q70>1,VLOOKUP(Q70,'Reference Data'!$C$9:$C$43,5,FALSE),"") ->  | E70: 162.75 | G70: =IF(Q70>1,VLOOKUP(Q70,'Reference Data'!$C$9:$C$43,3,FALSE),"") ->  | I70: =IF(ISBLANK($C70),"",IF(($A$8)="Please Choose Date","Select Date Error!",IF($R70="N/A","",$X70))) ->  | Q70: =IF(ISBLANK($A70),1,VLOOKUP($A70,'Reference Data'!$B$9:$C$133,2,FALSE)) -> 3 | R70: =VLOOKUP(Q70,'Reference Data'!$C$9:Z$125,($P$7)+1,FALSE) -> 162.75 | S70: 0 | T70: 162.75 | U70: 0 | V70: 0 | W70: 0 | X70: 0 | Y70: 0 | Z70: 0 | AA70: 0 | AC70: 0 | AD70: =IF(ISBLANK($A70),1,VLOOKUP($A70,'Reference Data'!$B$9:$D$133,3,FALSE)) -> 0 | AW70: 0 | AX70: 0
A71: Project Manager | D71: =IF(Q71>1,VLOOKUP(Q71,'Reference Data'!$C$9:$C$43,5,FALSE),"") ->  | E71: 133.75 | G71: =IF(Q71>1,VLOOKUP(Q71,'Reference Data'!$C$9:$C$43,3,FALSE),"") ->  | Q71: =IF(ISBLANK($A71),1,VLOOKUP($A71,'Reference Data'!$B$9:$C$133,2,FALSE)) -> 4 | R71: =VLOOKUP(Q71,'Reference Data'!$C$9:Z$125,($P$7)+1,FALSE) -> 133.75 | S71: 0 | T71: 133.75 | U71: 0 | V71: 0 | W71: 0 | X71: 0 | Y71: 0 | Z71: 0 | AA71: 0 | AC71: 0 | AD71: =IF(ISBLANK($A71),1,VLOOKUP($A71,'Reference Data'!$B$9:$D$133,3,FALSE)) -> 0 | AW71: 0 | AX71: 0
A72: Staff | D72: =IF(Q72>1,VLOOKUP(Q72,'Reference Data'!$C$9:$C$43,5,FALSE),"") ->  | E72: 112.25 | G72: =IF(Q72>1,VLOOKUP(Q72,'Reference Data'!$C$9:$C$43,3,FALSE),"") ->  | Q72: =IF(ISBLANK($A72),1,VLOOKUP($A72,'Reference Data'!$B$9:$C$133,2,FALSE)) -> 5 | R72: =VLOOKUP(Q72,'Reference Data'!$C$9:Z$125,($P$7)+1,FALSE) -> 112.25 | S72: 0 | T72: 112.25 | U72: 0 | V72: 0 | W72: 0 | X72: 0 | Y72: 0 | Z72: 0 | AA72: 0 | AC72: 0 | AD72: =IF(ISBLANK($A72),1,VLOOKUP($A72,'Reference Data'!$B$9:$D$133,3,FALSE)) -> 0 | AW72: 0 | AX72: 0
A73: Technician | D73: =IF(Q73>1,VLOOKUP(Q73,'Reference Data'!$C$9:$C$43,5,FALSE),"") ->  | E73: 77 | G73: =IF(Q73>1,VLOOKUP(Q73,'Reference Data'!$C$9:$C$43,3,FALSE),"") ->  | Q73: =IF(ISBLANK($A73),1,VLOOKUP($A73,'Reference Data'!$B$9:$C$133,2,FALSE)) -> 6 | R73: =VLOOKUP(Q73,'Reference Data'!$C$9:Z$125,($P$7)+1,FALSE) -> 77 | S73: 0 | T73: 77 | U73: 0 | V73: 0 | W73: 0 | X73: 0 | Y73: 0 | Z73: 0 | AA73: 0 | AC73: 0 | AD73: =IF(ISBLANK($A73),1,VLOOKUP($A73,'Reference Data'!$B$9:$D$133,3,FALSE)) -> 0 | AW73: 0 | AX73: 0
A74: Drafting | D74: =IF(Q74>1,VLOOKUP(Q74,'Reference Data'!$C$9:$C$43,5,FALSE),"") ->  | E74: 64.25 | G74: =IF(Q74>1,VLOOKUP(Q74,'Reference Data'!$C$9:$C$43,3,FALSE),"") ->  | Q74: =IF(ISBLANK($A74),1,VLOOKUP($A74,'Reference Data'!$B$9:$C$133,2,FALSE)) -> 7 | R74: =VLOOKUP(Q74,'Reference Data'!$C$9:Z$125,($P$7)+1,FALSE) -> 64.25 | S74: 0 | T74: 64.25 | U74: 0 | V74: 0 | W74: 0 | X74: 0 | Y74: 0 | Z74: 0 | AA74: 0 | AC74: 0 | AD74: =IF(ISBLANK($A74),1,VLOOKUP($A74,'Reference Data'!$B$9:$D$133,3,FALSE)) -> 0 | AW74: 0 | AX74: 0
A75: Clerical | D75: =IF(Q75>1,VLOOKUP(Q75,'Reference Data'!$C$9:$C$43,5,FALSE),"") ->  | E75: 45.5 | G75: =IF(Q75>1,VLOOKUP(Q75,'Reference Data'!$C$9:$C$43,3,FALSE),"") ->  | Q75: =IF(ISBLANK($A75),1,VLOOKUP($A75,'Reference Data'!$B$9:$C$133,2,FALSE)) -> 8 | R75: =VLOOKUP(Q75,'Reference Data'!$C$9:Z$125,($P$7)+1,FALSE) -> 45.5 | S75: 0 | T75: 45.5 | U75: 0 | V75: 0 | W75: 0 | X75: 0 | Y75: 0 | Z75: 0 | AA75: 0 | AC75: 0 | AD75: =IF(ISBLANK($A75),1,VLOOKUP($A75,'Reference Data'!$B$9:$D$133,3,FALSE)) -> 0 | AW75: 0 | AX75: 0
A76: Mileage | D76: =IF(Q76>1,VLOOKUP(Q76,'Reference Data'!$C$9:$C$43,5,FALSE),"") ->  | E76: 0.725 | G76: =IF(Q76>1,VLOOKUP(Q76,'Reference Data'!$C$9:$C$43,3,FALSE),"") ->  | Q76: =IF(ISBLANK($A76),1,VLOOKUP($A76,'Reference Data'!$B$9:$C$133,2,FALSE)) -> 9 | R76: =VLOOKUP(Q76,'Reference Data'!$C$9:Z$125,($P$7)+1,FALSE) -> 0.725 | S76: 0 | T76: 0.725 | U76: 0 | V76: 0 | W76: 0 | X76: 0 | Y76: 0 | Z76: 0 | AA76: 0 | AC76: 0 | AD76: =IF(ISBLANK($A76),1,VLOOKUP($A76,'Reference Data'!$B$9:$D$133,3,FALSE)) -> 0 | AW76: 0 | AX76: 0
A77: Overnight lodging (total) | C77: 1 | D77: =IF(Q77>1,VLOOKUP(Q77,'Reference Data'!$C$9:$C$43,5,FALSE),"") ->  | E77: 0 | F77: 0 | G77: =IF(Q77>1,VLOOKUP(Q77,'Reference Data'!$C$9:$C$43,3,FALSE),"") ->  | I77: =IF($E77=0,"",IF(($A$8)="Please Choose Date","Select Date Error!",IF($R77="N/A","",$X77))) ->  | Q77: =IF(ISBLANK($A77),1,VLOOKUP($A77,'Reference Data'!$B$9:$C$133,2,FALSE)) -> 10 | R77: =VLOOKUP(Q77,'Reference Data'!$C$9:Z$125,($P$7)+1,FALSE) -> 0 | S77: 0 | T77: 0 | U77: 0 | V77: 0 | W77: 0 | X77: 0 | Y77: 0 | Z77: 0 | AA77: 0 | AC77: 1 | AD77: =IF(ISBLANK($A77),1,VLOOKUP($A77,'Reference Data'!$B$9:$D$133,3,FALSE)) -> 0 | AW77: 0 | AX77: 0
A78: Per diem | D78: =IF(Q78>1,VLOOKUP(Q78,'Reference Data'!$C$9:$C$43,5,FALSE),"") ->  | E78: =R78 -> 41 | G78: =IF(Q78>1,VLOOKUP(Q78,'Reference Data'!$C$9:$C$43,3,FALSE),"") ->  | Q78: =IF(ISBLANK($A78),1,VLOOKUP($A78,'Reference Data'!$B$9:$C$133,2,FALSE)) -> 11 | R78: =VLOOKUP(Q78,'Reference Data'!$C$9:Z$125,($P$7)+1,FALSE) -> 41 | S78: 0 | T78: 41 | U78: 0 | V78: 0 | W78: 0 | X78: 0 | Y78: 0 | Z78: 0 | AA78: 0 | AC78: 0 | AD78: =IF(ISBLANK($A78),1,VLOOKUP($A78,'Reference Data'!$B$9:$D$133,3,FALSE)) -> 0 | AW78: 0 | AX78: 0
A79: Bailers | E79: 20 | Q79: =IF(ISBLANK($A79),1,VLOOKUP($A79,'Reference Data'!$B$9:$C$133,2,FALSE)) -> 15 | R79: =VLOOKUP(Q79,'Reference Data'!$C$9:Z$125,($P$7)+1,FALSE) -> 20 | S79: =IF(Q79>1, ROUND(R79*AC79,2), "") -> 0 | T79: =IF(ISNUMBER(E79),E79,"") -> 20 | U79: =IF(ISNUMBER(T79),ROUND(E79*AC79,2),"") -> 0 | V79: =IF(ISNUMBER(G79),G79,0) -> 0 | W79: =IF(ISNUMBER(H79), H79, 0) -> 0 | X79: =IF(Q79>1,IF(ISNUMBER(U79),ROUND(U79*(1+W79)+V79,2),S79),"") -> 0 | Y79: =IF(W79>$AB$7,$AB$7,W79) -> 0 | Z79: =IF(ISNUMBER(U79),ROUND(U79*(Y79+1)+V79,2),S79) -> 0 | AA79: =IF(AND(Q79>1,S79>0,S79<Z79),S79,Z79) -> 0 | AB79: =IF(AND(ISNUMBER(X79),ISNUMBER(AA79)),IF((X79-AA79)>0,X79-AA79,""),"") ->  | AC79: 0 | AD79: =IF(ISBLANK($A79),1,VLOOKUP($A79,'Reference Data'!$B$9:$D$133,3,FALSE)) -> 0 | AW79: 0 | AX79: 0
A80: Boring Incidentals | D80: =IF(Q80>1,VLOOKUP(Q80,'Reference Data'!$C$9:$C$43,5,FALSE),"") ->  | E80: 30 | G80: =IF(Q80>1,VLOOKUP(Q80,'Reference Data'!$C$9:$C$43,3,FALSE),"") ->  | Q80: =IF(ISBLANK($A80),1,VLOOKUP($A80,'Reference Data'!$B$9:$C$133,2,FALSE)) -> 16 | R80: =VLOOKUP(Q80,'Reference Data'!$C$9:Z$125,($P$7)+1,FALSE) -> 30 | S80: 0 | T80: 30 | U80: 0 | V80: 0 | W80: 0 | X80: 0 | Y80: 0 | Z80: 0 | AA80: 0 | AC80: 0 | AD80: =IF(ISBLANK($A80),1,VLOOKUP($A80,'Reference Data'!$B$9:$D$133,3,FALSE)) -> 0 | AW80: 0 | AX80: 0
A81: Decon | D81: =IF(Q81>1,VLOOKUP(Q81,'Reference Data'!$C$9:$C$43,5,FALSE),"") ->  | E81: 15 | G81: =IF(Q81>1,VLOOKUP(Q81,'Reference Data'!$C$9:$C$43,3,FALSE),"") ->  | Q81: =IF(ISBLANK($A81),1,VLOOKUP($A81,'Reference Data'!$B$9:$C$133,2,FALSE)) -> 17 | R81: =VLOOKUP(Q81,'Reference Data'!$C$9:Z$125,($P$7)+1,FALSE) -> 15 | S81: 0 | T81: 15 | U81: 0 | V81: 0 | W81: 0 | X81: 0 | Y81: 0 | Z81: 0 | AA81: 0 | AC81: 0 | AD81: =IF(ISBLANK($A81),1,VLOOKUP($A81,'Reference Data'!$B$9:$D$133,3,FALSE)) -> 0 | AW81: =IF(AA81=0, 0, 1) -> 0 | AX81: 0
A82: Flame Ionization Detector | D82: =IF(Q82>1,VLOOKUP(Q82,'Reference Data'!$C$9:$C$43,5,FALSE),"") ->  | E82: 135 | G82: =IF(Q82>1,VLOOKUP(Q82,'Reference Data'!$C$9:$C$43,3,FALSE),"") ->  | Q82: =IF(ISBLANK($A82),1,VLOOKUP($A82,'Reference Data'!$B$9:$C$133,2,FALSE)) -> 19 | R82: =VLOOKUP(Q82,'Reference Data'!$C$9:Z$125,($P$7)+1,FALSE) -> 135 | S82: 0 | T82: =IF(ISNUMBER(E82),E82,"") -> 135 | U82: 0 | V82: =IF(ISNUMBER(G82),G82,0) -> 0 | W82: 0 | X82: 0 | Y82: =IF(W82>$AB$7,$AB$7,W82) -> 0 | Z82: 0 | AA82: 0 | AB82: =IF(AND(ISNUMBER(X82),ISNUMBER(AA82)),IF((X82-AA82)>0,X82-AA82,""),"") ->  | AC82: 0 | AD82: =IF(ISBLANK($A82),1,VLOOKUP($A82,'Reference Data'!$B$9:$D$133,3,FALSE)) -> 0 | AW82: 0 | AX82: 0
A83: Hand Auger | D83: =IF(Q83>1,VLOOKUP(Q83,'Reference Data'!$C$9:$C$43,5,FALSE),"") ->  | E83: 42 | G83: =IF(Q83>1,VLOOKUP(Q83,'Reference Data'!$C$9:$C$43,3,FALSE),"") ->  | Q83: =IF(ISBLANK($A83),1,VLOOKUP($A83,'Reference Data'!$B$9:$C$133,2,FALSE)) -> 20 | R83: =VLOOKUP(Q83,'Reference Data'!$C$9:Z$125,($P$7)+1,FALSE) -> 42 | S83: 0 | T83: 42 | U83: 0 | V83: 0 | W83: 0 | X83: 0 | Y83: 0 | Z83: 0 | AA83: 0 | AC83: 0 | AD83: =IF(ISBLANK($A83),1,VLOOKUP($A83,'Reference Data'!$B$9:$D$133,3,FALSE)) -> 0 | AW83: 0 | AX83: 0
A84: Interface Probe | D84: =IF(Q84>1,VLOOKUP(Q84,'Reference Data'!$C$9:$C$43,5,FALSE),"") ->  | E84: 70 | G84: =IF(Q84>1,VLOOKUP(Q84,'Reference Data'!$C$9:$C$43,3,FALSE),"") ->  | Q84: =IF(ISBLANK($A84),1,VLOOKUP($A84,'Reference Data'!$B$9:$C$133,2,FALSE)) -> 21 | R84: =VLOOKUP(Q84,'Reference Data'!$C$9:Z$125,($P$7)+1,FALSE) -> 70 | S84: 0 | T84: 70 | U84: 0 | V84: 0 | W84: 0 | X84: 0 | Y84: 0 | Z84: 0 | AA84: 0 | AC84: 0 | AD84: =IF(ISBLANK($A84),1,VLOOKUP($A84,'Reference Data'!$B$9:$D$133,3,FALSE)) -> 0 | AW84: 0 | AX84: 0
A85: Laser Survey Equipment | D85: =IF(Q85>1,VLOOKUP(Q85,'Reference Data'!$C$9:$C$43,5,FALSE),"") ->  | E85: 90 | G85: =IF(Q85>1,VLOOKUP(Q85,'Reference Data'!$C$9:$C$43,3,FALSE),"") ->  | Q85: =IF(ISBLANK($A85),1,VLOOKUP($A85,'Reference Data'!$B$9:$C$133,2,FALSE)) -> 22 | R85: =VLOOKUP(Q85,'Reference Data'!$C$9:Z$125,($P$7)+1,FALSE) -> 90 | S85: 0 | T85: =IF(ISNUMBER(E85),E85,"") -> 90 | U85: 0 | V85: =IF(ISNUMBER(G85),G85,0) -> 0 | W85: 0 | X85: 0 | Y85: =IF(W85>$AB$7,$AB$7,W85) -> 0 | Z85: 0 | AA85: 0 | AB85: =IF(AND(ISNUMBER(X85),ISNUMBER(AA85)),IF((X85-AA85)>0,X85-AA85,""),"") ->  | AC85: 0 | AD85: =IF(ISBLANK($A85),1,VLOOKUP($A85,'Reference Data'!$B$9:$D$133,3,FALSE)) -> 0 | AW85: 0 | AX85: 0
A86: MW Incidentals | D86: =IF(Q86>1,VLOOKUP(Q86,'Reference Data'!$C$9:$C$43,5,FALSE),"") ->  | E86: 30 | G86: =IF(Q86>1,VLOOKUP(Q86,'Reference Data'!$C$9:$C$43,3,FALSE),"") ->  | Q86: =IF(ISBLANK($A86),1,VLOOKUP($A86,'Reference Data'!$B$9:$C$133,2,FALSE)) -> 26 | R86: =VLOOKUP(Q86,'Reference Data'!$C$9:Z$125,($P$7)+1,FALSE) -> 30 | S86: 0 | T86: =IF(ISNUMBER(E86),E86,"") -> 30 | U86: 0 | V86: =IF(ISNUMBER(G86),G86,0) -> 0 | W86: 0 | X86: 0 | Y86: =IF(W86>$AB$7,$AB$7,W86) -> 0 | Z86: 0 | AA86: 0 | AB86: =IF(AND(ISNUMBER(X86),ISNUMBER(AA86)),IF((X86-AA86)>0,X86-AA86,""),"") ->  | AC86: 0 | AD86: =IF(ISBLANK($A86),1,VLOOKUP($A86,'Reference Data'!$B$9:$D$133,3,FALSE)) -> 0 | AW86: 0 | AX86: 0
A87: Photo Ionization Detector | D87: =IF(Q87>1,VLOOKUP(Q87,'Reference Data'!$C$9:$C$43,5,FALSE),"") ->  | E87: 90 | G87: =IF(Q87>1,VLOOKUP(Q87,'Reference Data'!$C$9:$C$43,3,FALSE),"") ->  | Q87: =IF(ISBLANK($A87),1,VLOOKUP($A87,'Reference Data'!$B$9:$C$133,2,FALSE)) -> 30 | R87: =VLOOKUP(Q87,'Reference Data'!$C$9:Z$125,($P$7)+1,FALSE) -> 90 | S87: 0 | T87: =IF(ISNUMBER(E87),E87,"") -> 90 | U87: 0 | V87: =IF(ISNUMBER(G87),G87,0) -> 0 | W87: 0 | X87: 0 | Y87: =IF(W87>$AB$7,$AB$7,W87) -> 0 | Z87: 0 | AA87: 0 | AB87: =IF(AND(ISNUMBER(X87),ISNUMBER(AA87)),IF((X87-AA87)>0,X87-AA87,""),"") ->  | AC87: 0 | AD87: =IF(ISBLANK($A87),1,VLOOKUP($A87,'Reference Data'!$B$9:$D$133,3,FALSE)) -> 0 | AW87: 0 | AX87: 0
A88: Water Level Indicator | D88: =IF(Q88>1,VLOOKUP(Q88,'Reference Data'!$C$9:$C$43,5,FALSE),"") ->  | E88: 15 | G88: =IF(Q88>1,VLOOKUP(Q88,'Reference Data'!$C$9:$C$43,3,FALSE),"") ->  | Q88: =IF(ISBLANK($A88),1,VLOOKUP($A88,'Reference Data'!$B$9:$C$133,2,FALSE)) -> 32 | R88: =VLOOKUP(Q88,'Reference Data'!$C$9:Z$125,($P$7)+1,FALSE) -> 15 | S88: 0 | T88: 15 | U88: 0 | V88: 0 | W88: 0 | X88: 0 | Y88: 0 | Z88: 0 | AA88: 0 | AC88: 0 | AD88: =IF(ISBLANK($A88),1,VLOOKUP($A88,'Reference Data'!$B$9:$D$133,3,FALSE)) -> 0 | AW88: 0 | AX88: 0
